Workbook

Sheet Pricing TAM
G8: Pricing Tariff Approval Model
G10: Electricity Distribution Network Service Provider
J12: For 2021–26 regulatory control period
D17: The AER is required to update (cells highlighted in this colour throughout model): | M17: The business is required to update (cells highlighted in this colour throughout model):
E18: 'Input' | F18: All inputs required for escalation of prices or revenue caps, as well as business name and year | N18: 'SA v A costs' | O18: Standalone and avoidable costs for each tariff class
E20: 'Dist.' | F20: Actual revenue from RINs for (t-2) (and (t-3) in relevant transition years) | N20: 'Trial tariffs' | O20: Tariffs, tariff classes, and revenues for each trial tariff (t)
F21: Opening unders/overs account balance from previous proposal | O21: Tariffs, tariff classes, prices, quantities, and revenues for each trial tariff (t-1)
O22: Revenue for side constraints, measured as p(t-1)*q(t)
E23: 'Prop DUOS' | F23: Existing tariff names from previous proposal
N24: 'Dist.' | O24: Estimated revenue for (t-2) in relevant transition years
E25: 't-1 DUOS' | F25: Approved prices for (t-1) | O25: Revenues deliberately under-recovered in each year
E27: 'DPPC' | F27: Actual revenue from RINs for (t-2) (and (t-3) in relevant transition years) | N27: 'Side constraints' | O27: Tariff class names and categorisation for each tariff
F28: Actual charges from RINs for (t-2) (and (t-3) in relevant transition years)
F29: Opening unders/overs account balance from previous proposal | N29: 'Prop DUOS' | O29: Proposed tariff names for (t)
O30: Tariff charging component names
E31: 't-1 TUOS' | F31: Approved prices for (t-1) | O31: Format of charges (cents/year, day/month/year) - NB revenue calculations depend on this selection - quantities do not need to be adjusted
O32: Proposed tariff prices for (t)
E33: 'JSA' | F33: Actual revenue from RINs for (t-2) (and (t-3) in relevant transition years) | O33: Forecast quantities for (t)
F34: Actual charges from RINs for (t-2) (and (t-3) in relevant transition years)
F35: Opening unders/overs account balance from previous proposal | N35: 't-1 DUOS' | O35: Estimated quantities for (t-1)
E37: 't-1 JUOS' | F37: Approved prices for (t-1) | N37: 'DPPC' | O37: Forecast designated pricing proposal charges for (t)
O38: Estimated designated pricing proposal charges for (t-1) (and (t-2) in relevant transition years)
E39: 'Indicative t' | F39: Indicative tariffs for (t) from previous proposal | O39: Estimated revenue for (t-2) in relevant transition years
O40: Revenues deliberately under-recovered in each year
D42: NB - the AER may input placeholder information in the above inputs, or retain inputs from previous year proposal when providing template to business each year | N42: 'Prop TUOS' | O42: Proposed tariff prices for (t)
N44: 'JSA' | O44: Forecast FiT charges for (t)
O45: Estimated FiT charges for (t-1) (and (t-2) in relevant transition years)
O46: Revenues deliberately under-recovered in each year
N48: 'Prop JUOS' | O48: Proposed tariff prices for (t)
N50: 'Indicative t' | O50: Any explanations as required for material differences from indicative tariffs
N52: 'Indicative t+1...' | O52: Indicative tariffs for the remaining years of the regulatory period
E53: VERSION RECORD
E55: Version | F55: Date | H55: Description
E56: 1 | F56: May 2021 | H56: Initial model for 2021–26, based on previous model used for 2015–20 period
H57: Updated to reflect 2021–26 determination (incentive schemes, COVID-19 adjustment, licence fees, etc.)
H58: Incorporated t-3 period to unders and overs for transition
H59: Added SA v A costs to model
H60: Removed DPPC cost breakdown sheet
H61: Removed side constraints in year 1
H62: Added mechanism to allow prices in multiple formats (e.g. cents/day, $/year, etc.)
H63: Moved some general/basic inputs to input page from revenue compliance pages
H64: Linked tariff pages to 'Prop DUOS' sheet to reduce errors
H65: Set tariff component sections (demand, consumption) to reduce inconsistencies across businesses
H66: Added trial tariffs to model

Sheet Mechanisms

Sheet Input
B3: Tariff Approval Template for | E3: AusNet Services | L3: AusNet Services | M3: 2022
L4: CitiPower | M4: 2023
B5: financial year ending | E5: 2022 | L5: Jemena | M5: 2024
L6: Powercor | M6: 2025
B7: t | D7: = | E7: =IF(E5=2021,"HY21",IF(E5<2021, E5,E5-1&"/"&E5-2000)) -> 2021/22 | G7: Initial year | L7: United Energy | M7: 2026
B8: t-1 | D8: = | E8: =IF(E5=2022,"HY21",IF(E5<2022,E5-1,E5-2&"/"&E5-2001)) -> HY21 | G8: 2021/22
B9: t-2 | D9: = | E9: =IF(E5=2023,"HY21",IF(E5<2023,E5-2,E5-3&"/"&E5-2002)) -> 2020
B10: t-3 | D10: = | E10: =IF(E5=2024,"HY21",IF(E5<2024,E5-3,E5-4&"/"&E5-2003)) -> 2019
B11: t-4 | D11: = | E11: =IF(E5=2025,"HY21",IF(E5<2025,E5-4,E5-5&"/"&E5-2004)) -> 2018
B13: CPI | D13: CPI Index used changes for transition from calendar years to financial years
B14: CPI Index June 2016 | E14: 108.6
B15: CPI Index June 2017 | E15: 110.7 | G15: CPI 2018 | H15: =E15/E14-1 -> 0.01933701657
B16: CPI Index June 2018 | E16: 113 | G16: CPI 2019 | H16: 0.02077687444 | K16: CPI measured as June t-2 to June t-1 for year t in 2016–20 determination (t is calendar year), e.g. June 2018 - June 2019 for year 2020
B17: CPI Index June 2019 | E17: 114.8 | G17: CPI 2020 | H17: 0.01592920354 | K17: CPI measured as December t-2 to December t-1 for year t in 2021–26 determination (t is financial year), e.g. December 2019 (2019/20) - December 2020 (2020/21) for year 2021/22
B18: CPI Index December 2019 | E18: 116.2 | G18: CPI HY21 | H18: 0.01219512195 | K18: In HY21, CPI index covers the gap between June 2019 and December 2019 to ensure a continuous index. This CPI index is used for calculating the adjusted nominal WACC for the HY21 unders/overs calcualtions, and differs from CPI used to escalate relevant price-capped services in the HY21 pricing proposals (as those CPI indexations were a whole year for escalation of prices from one year to the next).
B19: CPI Index December 2020 | E19: 117.2 | G19: CPI 2021/22 | H19: 0.008605851979
B20: CPI Index December 2021 | E20: =E19*(1+H24) -> 119.5432819 | G20: CPI 2022/23 | H20: 0.0199938725
B21: CPI Index December 2022 | E21: =E20*(1+H24) -> 121.933415 | G21: CPI 2023/24 | H21: 0.0199938725
B22: CPI Index December 2023 | E22: =E21*(1+H24) -> 124.3713361 | G22: CPI 2024/25 | H22: 0.0199938725
B23: CPI Index December 2024 | E23: =E22*(1+H24) -> 126.8580008 | G23: CPI 2025/26 | H23: 0.0199938725
G24: Forecast 21–26 | H24: 0.0199938725
B25: ="CPI " &$E$10 -> CPI 2019 | E25: =VLOOKUP(B25,G$15:H$23,2,FALSE) -> 0.02077687444 | F25: (t-3)
B26: ="CPI " &$E$9 -> CPI 2020 | E26: =VLOOKUP(B26,G$15:H$23,2,FALSE) -> 0.01592920354 | F26: (t-2)
B27: ="CPI " &$E$8 -> CPI HY21 | E27: =VLOOKUP(B27,G$15:H$23,2,FALSE) -> 0.01219512195 | F27: (t-1)
B28: ="CPI " &$E$7 -> CPI 2021/22 | E28: =VLOOKUP(B28,G$15:H$23,2,FALSE) -> 0.008605851979 | F28: (t)
B32: Real Vanilla WACC (rvw)
B33: =$E$7 -> 2021/22 | F33: 2021/22 | G33: 2022/23 | H33: 2023/24 | I33: 2024/25 | J33: 2025/26 | L33: 2019 | M33: 2020 | N33: HY21
B34: =$B$47 -> AusNet Services | D34: =HLOOKUP($B$33,$F$33:$J$38,2,FALSE) -> 0.02777919049 | F34: 0.02777919049 | G34: 0.02595766974 | H34: 0.024136149 | I34: 0.02231462825 | J34: 0.02049310751 | L34: 0.03744929841 | M34: 0.03625859568 | N34: 0.01194573971
B35: =$B$48 -> CitiPower | D35: =HLOOKUP($B$33,$F$33:$J$38,3,FALSE) -> 0.02673866577 | F35: 0.02673866577 | G35: 0.02490360705 | H35: 0.02306854832 | I35: 0.0212334896 | J35: 0.01939843088 | L35: 0.03508047475 | M35: 0.03362104414 | N35: 0.01156599113
B36: =$B$49 -> Jemena | D36: =HLOOKUP($B$33,$F$33:$J$38,4,FALSE) -> 0.02850449876 | F36: 0.02850449876 | G36: 0.02641352507 | H36: 0.02432255139 | I36: 0.0222315777 | J36: 0.02014060402 | L36: 0.03766911607 | M36: 0.03656195102 | N36: 0.012022317
B37: =$B$50 -> Powercor | D37: =HLOOKUP($B$33,$F$33:$J$38,5,FALSE) -> 0.02673866577 | F37: 0.02673866577 | G37: 0.02490360705 | H37: 0.02306854832 | I37: 0.0212334896 | J37: 0.01939843088 | L37: 0.03508047475 | M37: 0.03362104414 | N37: 0.01156599113
B38: =$B$51 -> United Energy | D38: =HLOOKUP($B$33,$F$33:$J$38,6,FALSE) -> 0.02706529237 | F38: 0.02706529237 | G38: 0.02516239383 | H38: 0.02325949529 | I38: 0.02135659675 | J38: 0.0194536982 | L38: 0.03751614965 | M38: 0.03600205381 | N38: 0.01174375301
B40: ="rvw (t) "&E$7 -> rvw (t) 2021/22 | D40: =VLOOKUP(E$3,B34:D38,3,FALSE) -> 0.02777919049 | E40: (t) | F40: =VLOOKUP($E$3,$B$34:$J$38,5,FALSE) -> 0.02777919049 | G40: =VLOOKUP($E$3,$B34:$J$38,6,FALSE) -> 0.02595766974 | H40: =VLOOKUP($E$3,$B$34:$J$38,7,FALSE) -> 0.024136149 | I40: =VLOOKUP($E$3,$B$34:$J$38,8,FALSE) -> 0.02231462825 | J40: =VLOOKUP($E$3,$B$34:$J$38,9,FALSE) -> 0.02049310751 | L40: =VLOOKUP($E$3,$B$34:$N$38,11,FALSE) -> 0.03744929841 | M40: =VLOOKUP($E$3,$B$34:$N$38,12,FALSE) -> 0.03625859568 | N40: =VLOOKUP($E$3,$B$34:$N$38,13,FALSE) -> 0.01194573971
B41: ="rvw for "&E$8 -> rvw for HY21 | D41: =HLOOKUP($E8,F$33:N$40,8,FALSE) -> 0.01194573971 | E41: (t-1)
B42: ="rvw for "&E$9 -> rvw for 2020 | D42: =HLOOKUP($E9,F$33:N$40,8,FALSE) -> 0.03625859568 | E42: (t-2)
B43: ="rvw for "&E$10 -> rvw for 2019 | D43: =HLOOKUP($E10,F$33:N$40,8,FALSE) -> 0.03744929841 | E43: (t-3)
B45: DuoS
B46: =E7 -> 2021/22 | F46: 2021/22 | G46: 2022/23 | H46: 2023/24 | I46: 2024/25 | J46: 2025/26
B47: AusNet Services | D47: =IF(E$7="2021/22","n/a",HLOOKUP($B$46,$G$46:$J$51,2,FALSE)) -> n/a | F47: 690786240.2 | G47: 0.01726111851 | H47: 0.01726111851 | I47: 0.01726111851 | J47: 0.01726111851
B48: CitiPower | D48: =IF(E$7="2021/22","n/a",HLOOKUP($B$46,$G$46:$J$51,2,FALSE)) -> n/a | F48: 291393865.8 | G48: 0.01 | H48: 0.01 | I48: 0.01 | J48: 0.01
B49: Jemena | D49: =IF(E$7="2021/22","n/a",HLOOKUP($B$46,$G$46:$J$51,2,FALSE)) -> n/a | F49: 261430320 | G49: 0.009 | H49: 0.009 | I49: 0.009 | J49: 0.009
B50: Powercor | D50: =IF(E$7="2021/22","n/a",HLOOKUP($B$46,$G$46:$J$51,2,FALSE)) -> n/a | F50: 664476590.4 | G50: 0.001 | H50: 0.001 | I50: 0.001 | J50: 0.001
B51: United Energy | D51: =IF(E$7="2021/22","n/a",HLOOKUP($B$46,$G$46:$J$51,2,FALSE)) -> n/a | F51: 412785124.2 | G51: 0.015 | H51: 0.015 | I51: 0.015 | J51: 0.015
B53: ="Xt for "&E$7 -> Xt for 2021/22 | D53: =VLOOKUP(E$3,B47:D51,3,FALSE) -> n/a | F53: =VLOOKUP($E$3,$B$47:$J$51,5,FALSE) -> 690786240.2 | G53: =VLOOKUP($E$3,$B$47:$J$51,6,FALSE) -> 0.01726111851 | H53: =VLOOKUP($E$3,$B$47:$J$51,7,FALSE) -> 0.01726111851 | I53: =VLOOKUP($E$3,$B$47:$J$51,8,FALSE) -> 0.01726111851 | J53: =VLOOKUP($E$3,$B$47:$J$51,9,FALSE) -> 0.01726111851
B55: DuoS adjustments
B56: F factor Scheme | D56: =$E$7 -> 2021/22 | F56: 2021/22 | G56: 2022/23 | H56: 2023/24 | I56: 2024/25 | J56: 2025/26
B57: =$B$47 -> AusNet Services | D57: =HLOOKUP($D$56,$F$56:$J$61,2,FALSE) -> 404100 | F57: 404100 | G57: 0 | H57: 0 | I57: 0 | J57: 0
B58: =$B$48 -> CitiPower | D58: =HLOOKUP($D$56,$F$56:$J$61,3,FALSE) -> 31500 | F58: 31500 | G58: 0 | H58: 0 | I58: 0 | J58: 0
B59: =$B$49 -> Jemena | D59: =HLOOKUP($D$56,$F$56:$J$61,4,FALSE) -> 116400 | F59: 116400 | G59: 0 | H59: 0 | I59: 0 | J59: 0
B60: =$B$50 -> Powercor | D60: =HLOOKUP($D$56,$F$56:$J$61,5,FALSE) -> 3745200 | F60: 3745200 | G60: 0 | H60: 0 | I60: 0 | J60: 0
B61: =$B$51 -> United Energy | D61: =HLOOKUP($D$56,$F$56:$J$61,6,FALSE) -> 62400 | F61: 62400 | G61: 0 | H61: 0 | I61: 0 | J61: 0
B63: ="f factor (t) "&E$7 -> f factor (t) 2021/22 | D63: =VLOOKUP(E$3,B57:D61,3,FALSE) -> 404100 | F63: =VLOOKUP($E$3,$B$57:$J$61,5,FALSE) -> 404100 | G63: =VLOOKUP($E$3,$B$57:$J$61,6,FALSE) -> 0 | H63: =VLOOKUP($E$3,$B$57:$J$61,7,FALSE) -> 0 | I63: =VLOOKUP($E$3,$B$57:$J$61,8,FALSE) -> 0 | J63: =VLOOKUP($E$3,$B$57:$J$61,9,FALSE) -> 0
B65: S factor (STPIS) | D65: =$E$7 -> 2021/22 | F65: 2021/22 | G65: 2022/23 | H65: 2023/24 | I65: 2024/25 | J65: 2025/26 | L65: S-factor scheme applied on two year lag, i.e. s-factor for 2019/20 will be applied in 2021/22
B66: =$B$47 -> AusNet Services | D66: =HLOOKUP($D$65,$F$65:$J$70,2,FALSE) -> -5739373.483 | F66: -5739373.483 | G66: 0 | H66: 0 | I66: 0 | J66: 0
B67: =$B$48 -> CitiPower | D67: =HLOOKUP($D$65,$F$65:$J$70,3,FALSE) -> 8232190.197 | F67: 8232190.197 | G67: 0 | H67: 0 | I67: 0 | J67: 0
B68: =$B$49 -> Jemena | D68: =HLOOKUP($D$65,$F$65:$J$70,4,FALSE) -> 4750418.68 | F68: 4750418.68 | G68: 0 | H68: 0 | I68: 0 | J68: 0
B69: =$B$50 -> Powercor | D69: =HLOOKUP($D$65,$F$65:$J$70,5,FALSE) -> 19459049.07 | F69: 19459049.07 | G69: 0 | H69: 0 | I69: 0 | J69: 0
B70: =$B$51 -> United Energy | D70: =HLOOKUP($D$65,$F$65:$J$70,6,FALSE) -> 19744640.33 | F70: 19744640.33 | G70: 0 | H70: 0 | I70: 0 | J70: 0
B72: ="S factor (t) "&E$7 -> S factor (t) 2021/22 | D72: =VLOOKUP(E$3,B66:D70,3,FALSE) -> -5739373.483 | F72: =VLOOKUP($E$3,$B$66:$J$70,5,FALSE) -> -5739373.483 | G72: =VLOOKUP($E$3,$B$66:$J$70,6,FALSE) -> 0 | H72: =VLOOKUP($E$3,$B$66:$J$70,7,FALSE) -> 0 | I72: =VLOOKUP($E$3,$B$66:$J$70,8,FALSE) -> 0 | J72: =VLOOKUP($E$3,$B$66:$J$70,9,FALSE) -> 0
B74: H factor (CSIS) | D74: =$E$7 -> 2021/22 | F74: 2021/22 | G74: 2022/23 | H74: 2023/24 | I74: 2024/25 | J74: 2025/26
B75: =$B$47 -> AusNet Services | D75: =HLOOKUP($D$74,$F$74:$J$79,2,FALSE) -> 0 | H75: 0 | I75: 0 | J75: 0
B76: =$B$48 -> CitiPower | D76: =HLOOKUP($D$74,$F$74:$J$79,3,FALSE) -> 0 | H76: 0 | I76: 0 | J76: 0
B77: =$B$49 -> Jemena | D77: =HLOOKUP($D$74,$F$74:$J$79,4,FALSE) -> 0 | H77: 0 | I77: 0 | J77: 0
B78: =$B$50 -> Powercor | D78: =HLOOKUP($D$74,$F$74:$J$79,5,FALSE) -> 0 | H78: 0 | I78: 0 | J78: 0
B79: =$B$51 -> United Energy | D79: =HLOOKUP($D$74,$F$74:$J$79,6,FALSE) -> 0 | H79: 0 | I79: 0 | J79: 0
B81: ="H factor (t) "&E$7 -> H factor (t) 2021/22 | D81: =VLOOKUP(E$3,B75:D79,3,FALSE) -> 0 | F81: =VLOOKUP($E$3,$B$75:$J$79,5,FALSE) -> 0 | G81: =VLOOKUP($E$3,$B$75:$J$79,6,FALSE) -> 0 | H81: =VLOOKUP($E$3,$B$75:$J$79,7,FALSE) -> 0 | I81: =VLOOKUP($E$3,$B$75:$J$79,8,FALSE) -> 0 | J81: =VLOOKUP($E$3,$B$75:$J$79,9,FALSE) -> 0
B83: Pass through Amounts | D83: =$E$7 -> 2021/22 | F83: 2021/22 | G83: 2022/23 | H83: 2023/24 | I83: 2024/25 | J83: 2025/26 | M83: WACC true-up | N83: HY21
B84: =$B$47 -> AusNet Services | D84: =HLOOKUP($D$83,$F$83:$J$88,2,FALSE) -> 2575206.463 | F84: =0+(N84*((1+((1+F34)*(1+$H$19)-1))^0.5))+2901474.1666704 -> 2575206.463 | G84: 0 | H84: 0 | I84: 0 | J84: 0 | M84: =B84 -> AusNet Services | N84: -320452.3307
B85: =$B$48 -> CitiPower | D85: =HLOOKUP($D$83,$F$83:$J$88,3,FALSE) -> -421275.477 | F85: =0+(N85*((1+((1+F35)*(1+$H$19)-1))^0.5)) -> -421275.477 | G85: 0 | H85: 0 | I85: 0 | J85: 0 | M85: =B85 -> CitiPower | N85: -413976.2999
B86: =$B$49 -> Jemena | D86: =HLOOKUP($D$83,$F$83:$J$88,4,FALSE) -> -210034.9375 | F86: -210034.9375 | G86: 0 | H86: 0 | I86: 0 | J86: 0 | M86: =B86 -> Jemena | N86: -206218.5374
B87: =$B$50 -> Powercor | D87: =HLOOKUP($D$83,$F$83:$J$88,5,FALSE) -> -936602.7227 | F87: -936602.7227 | G87: 0 | H87: 0 | I87: 0 | J87: 0 | M87: =B87 -> Powercor | N87: -920374.7922
B88: =$B$51 -> United Energy | D88: =HLOOKUP($D$83,$F$83:$J$88,6,FALSE) -> -512728.7194 | F88: -512728.7194 | G88: 0 | H88: 0 | I88: 0 | J88: 0 | M88: =B88 -> United Energy | N88: -503764.8665
B90: ="Pass through amounts (t) "&E$7 -> Pass through amounts (t) 2021/22 | D90: =VLOOKUP(E$3,B84:D88,3,FALSE) -> 2575206.463 | F90: =VLOOKUP($E$3,$B$84:$J$88,5,FALSE) -> 2575206.463 | G90: =VLOOKUP($E$3,$B$84:$J$88,6,FALSE) -> 0 | H90: =VLOOKUP($E$3,$B$84:$J$88,7,FALSE) -> 0 | I90: =VLOOKUP($E$3,$B$84:$J$88,8,FALSE) -> 0 | J90: =VLOOKUP($E$3,$B$84:$J$88,9,FALSE) -> 0
B92: ESC-V License Fees | D92: =IF(E9=2020,"2019/20",IF(E9="HY21","2020/21",E9)) -> 2019/20 | F92: 2019/20 | G92: 2020/21 | H92: 2021/22 | I92: 2022/23 | J92: 2023/24 | L92: License fees applied on two year lag, i.e. license fee for 2019/20 will be applied in 2021/22
B93: =$B$47 -> AusNet Services | D93: =HLOOKUP($D$92,$F$92:$J$97,2,FALSE) -> 497439 | F93: 497439 | G93: 0 | H93: 0 | I93: 0 | J93: 0
B94: =$B$48 -> CitiPower | D94: =HLOOKUP($D$92,$F$92:$J$97,3,FALSE) -> 229777 | F94: 229777 | G94: 0 | H94: 0 | I94: 0 | J94: 0
B95: =$B$49 -> Jemena | D95: =HLOOKUP($D$92,$F$92:$J$97,4,FALSE) -> 230438 | F95: 230438 | G95: 0 | H95: 0 | I95: 0 | J95: 0
B96: =$B$50 -> Powercor | D96: =HLOOKUP($D$92,$F$92:$J$97,5,FALSE) -> 560434 | F96: 560434 | G96: 0 | H96: 0 | I96: 0 | J96: 0
B97: =$B$51 -> United Energy | D97: =HLOOKUP($D$92,$F$92:$J$97,6,FALSE) -> 459344 | F97: 459344 | G97: 0 | H97: 0 | I97: 0 | J97: 0
B99: ="Licence Fee (t-2) "&D92 -> Licence Fee (t-2) 2019/20 | D99: =VLOOKUP(E$3,B93:D97,3,FALSE) -> 497439 | F99: =VLOOKUP($E$3,$B$93:$J$97,5,FALSE) -> 497439 | G99: =VLOOKUP($E$3,$B$93:$J$97,6,FALSE) -> 0 | H99: =VLOOKUP($E$3,$B$93:$J$97,7,FALSE) -> 0 | I99: =VLOOKUP($E$3,$B$93:$J$97,8,FALSE) -> 0 | J99: =VLOOKUP($E$3,$B$93:$J$97,9,FALSE) -> 0
B101: COVID-19 adjustment | D101: =$E$7 -> 2021/22 | F101: 2021/22 | G101: 2022/23 | H101: 2023/24 | I101: 2024/25 | J101: 2025/26
B102: =$B$47 -> AusNet Services | D102: =IF($D$101=$F$101,"n/a",HLOOKUP($D$101,$F$101:$J$106,2,FALSE)) -> n/a
B103: =$B$48 -> CitiPower | D103: =IF($D$101=$F$101,"n/a",HLOOKUP($D$101,$F$101:$J$106,3,FALSE)) -> n/a | F103: 0 | G103: =F103/4*((((1+M35)*(1+$H$17))^0.5))*(((1+N35)*(1+$H$18)))*(((1+F35)*(1+$H$19)))*((((1+G35)*(1+$H$20))^0.5)) -> 0 | H103: =F103/4*((((1+M35)*(1+$H$17))^0.5))*(((1+N35)*(1+$H$18)))*(((1+F35)*(1+$H$19)))*(((1+G35)*(1+$H$20)))*((((1+H35)*(1+$H$21))^0.5)) -> 0 | I103: =F103/4*((((1+M35)*(1+$H$17))^0.5))*(((1+N35)*(1+$H$18)))*(((1+F35)*(1+$H$19)))*(((1+G35)*(1+$H$20)))*(((1+H35)*(1+$H$21)))*((((1+I35)*(1+$H$22))^0.5)) -> 0 | J103: =F103/4*((((1+M35)*(1+$H$17))^0.5))*(((1+N35)*(1+$H$18)))*(((1+F35)*(1+$H$19)))*(((1+G35)*(1+$H$20)))*(((1+H35)*(1+$H$21)))*(((1+I35)*(1+$H$22)))*((((1+J35)*(1+$H$23))^0.5)) -> 0 | L103: TO BE INPUT IN 2021/22 TO BALANCE UNDERS/OVERS ACCOUNT
B104: =$B$49 -> Jemena | D104: =IF($D$101=$F$101,"n/a",HLOOKUP($D$101,$F$101:$J$106,4,FALSE)) -> n/a
B105: =$B$50 -> Powercor | D105: =IF($D$101=$F$101,"n/a",HLOOKUP($D$101,$F$101:$J$106,5,FALSE)) -> n/a
B106: =$B$51 -> United Energy | D106: =IF($D$101=$F$101,"n/a",HLOOKUP($D$101,$F$101:$J$106,6,FALSE)) -> n/a
B108: ="P factor (t) "&D101 -> P factor (t) 2021/22 | D108: =VLOOKUP(E$3,B102:D106,3,FALSE) -> n/a | F108: =VLOOKUP($E$3,$B$102:$J$106,5,FALSE) -> 0 | G108: =VLOOKUP($E$3,$B$102:$J$106,6,FALSE) -> 0 | H108: =VLOOKUP($E$3,$B$102:$J$106,7,FALSE) -> 0 | I108: =VLOOKUP($E$3,$B$102:$J$106,8,FALSE) -> 0 | J108: =VLOOKUP($E$3,$B$102:$J$106,9,FALSE) -> 0
B110: DMIS adjustment | D110: =$E$7 -> 2021/22 | F110: 2021/22 | G110: 2022/23 | H110: 2023/24 | I110: 2024/25 | J110: 2025/26
B111: =$B$47 -> AusNet Services | D111: =HLOOKUP($D$110,$F$110:$J$115,2,FALSE) -> 0 | F111: 0 | G111: 0 | H111: 0 | I111: 0 | J111: 0
B112: =$B$48 -> CitiPower | D112: =HLOOKUP($D$110,$F$110:$J$115,3,FALSE) -> 0 | F112: 0 | G112: 0 | H112: 0 | I112: 0 | J112: 0
B113: =$B$49 -> Jemena | D113: =HLOOKUP($D$110,$F$110:$J$115,4,FALSE) -> 0 | F113: 0 | G113: 0 | H113: 0 | I113: 0 | J113: 0
B114: =$B$50 -> Powercor | D114: =HLOOKUP($D$110,$F$110:$J$115,5,FALSE) -> 0 | F114: 0 | G114: 0 | H114: 0 | I114: 0 | J114: 0
B115: =$B$51 -> United Energy | D115: =HLOOKUP($D$110,$F$110:$J$115,6,FALSE) -> 166500 | F115: 166500 | G115: 0 | H115: 0 | I115: 0 | J115: 0
B117: ="DMIS (t) "&E$7 -> DMIS (t) 2021/22 | D117: =VLOOKUP(E$3,B111:D115,3,FALSE) -> 0 | F117: =VLOOKUP($E$3,$B$111:$J$115,5,FALSE) -> 0 | G117: =VLOOKUP($E$3,$B$111:$J$115,6,FALSE) -> 0 | H117: =VLOOKUP($E$3,$B$111:$J$115,7,FALSE) -> 0 | I117: =VLOOKUP($E$3,$B$111:$J$115,8,FALSE) -> 0 | J117: =VLOOKUP($E$3,$B$111:$J$115,9,FALSE) -> 0
B119: DMIA Carryover adjustment | D119: =$E$7 -> 2021/22 | F119: 2021/22 | G119: 2022/23 | H119: 2023/24 | I119: 2024/25 | J119: 2025/26
B120: =$B$47 -> AusNet Services | D120: =HLOOKUP($D$119,$F$119:$J$124,2,FALSE) -> 0 | G120: 0
B121: =$B$48 -> CitiPower | D121: =HLOOKUP($D$119,$F$119:$J$124,3,FALSE) -> 0 | G121: 0
B122: =$B$49 -> Jemena | D122: =HLOOKUP($D$119,$F$119:$J$124,4,FALSE) -> 0 | G122: 0
B123: =$B$50 -> Powercor | D123: =HLOOKUP($D$119,$F$119:$J$124,5,FALSE) -> 0 | G123: 0
B124: =$B$51 -> United Energy | D124: =HLOOKUP($D$119,$F$119:$J$124,6,FALSE) -> 0 | G124: 0
B126: ="DMIA (t) "&E$7 -> DMIA (t) 2021/22 | D126: =VLOOKUP(E$3,B120:D124,3,FALSE) -> 0 | F126: =VLOOKUP($E$3,$B$120:$J$124,5,FALSE) -> 0 | G126: =VLOOKUP($E$3,$B$120:$J$124,6,FALSE) -> 0 | H126: =VLOOKUP($E$3,$B$120:$J$124,7,FALSE) -> 0 | I126: =VLOOKUP($E$3,$B$120:$J$124,8,FALSE) -> 0 | J126: =VLOOKUP($E$3,$B$120:$J$124,9,FALSE) -> 0
B128: Allowed revenues
B129: Distribution (TAR for U/O) | C129: =E10 -> 2019 | D129: =E9 -> 2020 | E129: =E8 -> HY21 | F129: 2021/22 | G129: 2022/23 | H129: 2023/24 | I129: 2024/25 | J129: 2025/26 | L129: 2019 | M129: 2020 | N129: HY21
B130: =$B$47 -> AusNet Services | C130: =HLOOKUP($C$129,$F$129:$N$134,2,FALSE) -> 655156567.7 | D130: =HLOOKUP($D$129,$F$129:$N$134,2,FALSE) -> 674885824.5 | E130: =HLOOKUP($E$129,$F$129:$N$134,2,FALSE) -> 296082545.5 | F130: 0 | G130: 0 | H130: 0 | I130: 0 | J130: 0 | L130: 655156567.7 | M130: 674885824.5 | N130: 296082545.5
B131: =$B$48 -> CitiPower | C131: =HLOOKUP($C$129,$F$129:$N$134,3,FALSE) -> 296807003.9 | D131: =HLOOKUP($D$129,$F$129:$N$134,3,FALSE) -> 311411434.2 | E131: =HLOOKUP($E$129,$F$129:$N$134,3,FALSE) -> 131344767.8 | F131: 0 | G131: 0 | H131: 0 | I131: 0 | J131: 0 | L131: 296807003.9 | M131: 311411434.2 | N131: 131344767.8
B132: =$B$49 -> Jemena | C132: =HLOOKUP($C$129,$F$129:$N$134,4,FALSE) -> 266812928.2 | D132: =HLOOKUP($D$129,$F$129:$N$134,4,FALSE) -> 276596802.5 | E132: =HLOOKUP($E$129,$F$129:$N$134,4,FALSE) -> 117654758.4 | F132: 0 | G132: 0 | H132: 0 | I132: 0 | J132: 0 | L132: 266812928.2 | M132: 276596802.5 | N132: 117654758.4
B133: =$B$50 -> Powercor | C133: =HLOOKUP($C$129,$F$129:$N$134,5,FALSE) -> 666859909.5 | D133: =HLOOKUP($D$129,$F$129:$N$134,5,FALSE) -> 692501133.1 | E133: =HLOOKUP($E$129,$F$129:$N$134,5,FALSE) -> 303428601.6 | F133: 0 | G133: 0 | H133: 0 | I133: 0 | J133: 0 | L133: 666859909.5 | M133: 692501133.1 | N133: 303428601.6
B134: =$B$51 -> United Energy | C134: =HLOOKUP($C$129,$F$129:$N$134,6,FALSE) -> 450164788.1 | D134: =HLOOKUP($D$129,$F$129:$N$134,6,FALSE) -> 457268883.4 | E134: =HLOOKUP($E$129,$F$129:$N$134,6,FALSE) -> 184626512.1 | F134: 0 | G134: 0 | H134: 0 | I134: 0 | J134: 0 | L134: 450164788.1 | M134: 457268883.4 | N134: 184626512.1
B136: ="TAR for "&C129&" - "&E129 -> TAR for 2019 - HY21 | C136: =VLOOKUP(E$3,B130:C134,2,FALSE) -> 655156567.7 | D136: =VLOOKUP(E$3,B130:D134,3,FALSE) -> 674885824.5 | E136: =VLOOKUP(E$3,B130:E134,4,FALSE) -> 296082545.5 | F136: =VLOOKUP($E$3,$B$130:$J$134,5,FALSE) -> 0 | G136: =VLOOKUP($E$3,$B$130:$N$134,6,FALSE) -> 0 | H136: =VLOOKUP($E$3,$B$130:$N$134,7,FALSE) -> 0 | I136: =VLOOKUP($E$3,$B$130:$N$134,8,FALSE) -> 0 | J136: =VLOOKUP($E$3,$B$130:$N$134,9,FALSE) -> 0 | L136: =VLOOKUP($E$3,$B$130:$N$134,11,FALSE) -> 655156567.7 | M136: =VLOOKUP($E$3,$B$130:$N$134,12,FALSE) -> 674885824.5 | N136: =VLOOKUP($E$3,$B$130:$N$134,13,FALSE) -> 296082545.5
C137: t-3 | D137: t-2 | E137: t-1
B139: DUOS AAR (for t-1 values) | D139: =E8 -> HY21 | F139: 2021/22 | G139: 2022/23 | H139: 2023/24 | I139: 2024/25 | J139: 2025/26
B140: =$B$47 -> AusNet Services | D140: =IF($E$7=$G$8,"n/a",HLOOKUP($D$139,$F$139:$J$144,2,FALSE)) -> n/a | F140: 0 | G140: 0 | H140: 0 | I140: 0 | J140: 0
B141: =$B$48 -> CitiPower | D141: =IF($E$7=$G$8,"n/a",HLOOKUP($D$139,$F$139:$J$144,3,FALSE)) -> n/a | F141: 0 | G141: 0 | H141: 0 | I141: 0 | J141: 0
B142: =$B$49 -> Jemena | D142: =IF($E$7=$G$8,"n/a",HLOOKUP($D$139,$F$139:$J$144,4,FALSE)) -> n/a | F142: 0 | G142: 0 | H142: 0 | I142: 0 | J142: 0
B143: =$B$50 -> Powercor | D143: =IF($E$7=$G$8,"n/a",HLOOKUP($D$139,$F$139:$J$144,5,FALSE)) -> n/a | F143: 0 | G143: 0 | H143: 0 | I143: 0 | J143: 0
B144: =$B$51 -> United Energy | D144: =IF($E$7=$G$8,"n/a",HLOOKUP($D$139,$F$139:$J$144,6,FALSE)) -> n/a | F144: 0 | G144: 0 | H144: 0 | I144: 0 | J144: 0
B146: ="DUOS AAR (t-1) "&E8 -> DUOS AAR (t-1) HY21 | D146: =VLOOKUP(E$3,B140:D144,3,FALSE) -> n/a | F146: =VLOOKUP($E$3,$B$140:$J$144,5,FALSE) -> 0 | G146: =VLOOKUP($E$3,$B$140:$J$144,6,FALSE) -> 0 | H146: =VLOOKUP($E$3,$B$140:$J$144,7,FALSE) -> 0 | I146: =VLOOKUP($E$3,$B$140:$J$144,8,FALSE) -> 0 | J146: =VLOOKUP($E$3,$B$140:$J$144,9,FALSE) -> 0
B148: DUOS over/unders adjustment (for t-1 values) | D148: =E8 -> HY21 | F148: 2021/22 | G148: 2022/23 | H148: 2023/24 | I148: 2024/25 | J148: 2025/26
B149: =$B$47 -> AusNet Services | D149: =IF($E$7=$G$8,"n/a",HLOOKUP($D$148,$F$148:$J$153,2,FALSE)) -> n/a | F149: 0 | G149: 0 | H149: 0 | I149: 0 | J149: 0
B150: =$B$48 -> CitiPower | D150: =IF($E$7=$G$8,"n/a",HLOOKUP($D$148,$F$148:$J$153,3,FALSE)) -> n/a | F150: 0 | G150: 0 | H150: 0 | I150: 0 | J150: 0
B151: =$B$49 -> Jemena | D151: =IF($E$7=$G$8,"n/a",HLOOKUP($D$148,$F$148:$J$153,4,FALSE)) -> n/a | F151: 0 | G151: 0 | H151: 0 | I151: 0 | J151: 0
B152: =$B$50 -> Powercor | D152: =IF($E$7=$G$8,"n/a",HLOOKUP($D$148,$F$148:$J$153,5,FALSE)) -> n/a | F152: 0 | G152: 0 | H152: 0 | I152: 0 | J152: 0
B153: =$B$51 -> United Energy | D153: =IF($E$7=$G$8,"n/a",HLOOKUP($D$148,$F$148:$J$153,6,FALSE)) -> n/a | F153: 0 | G153: 0 | H153: 0 | I153: 0 | J153: 0
B155: ="DUOS O/U adjustment (t-1) "&E$8 -> DUOS O/U adjustment (t-1) HY21 | D155: =VLOOKUP(E$3,B149:D153,3,FALSE) -> n/a | F155: =VLOOKUP($E$3,$B$149:$J$153,5,FALSE) -> 0 | G155: =VLOOKUP($E$3,$B$149:$J$153,6,FALSE) -> 0 | H155: =VLOOKUP($E$3,$B$149:$J$153,7,FALSE) -> 0 | I155: =VLOOKUP($E$3,$B$149:$J$153,8,FALSE) -> 0 | J155: =VLOOKUP($E$3,$B$149:$J$153,9,FALSE) -> 0

Sheet SA v A costs
B6: Tariff class | C6: Average DUoS ($/kWh) | D6: Standalone costs ($/kWh) | E6: Avoidable costs ($/kWh) | F6: Compliant?
B7: =IF('Side constraints'!B21="","",'Side constraints'!B21) -> Residential | C7: 0.1091852835 | D7: 0.98 | E7: 0.012 | F7: =IF(C7="","",IF(C7<D7,IF(C7>E7,"YES","NO"),"NO")) -> YES
B8: =IF('Side constraints'!B22="","",'Side constraints'!B22) -> Small industrial & commercial | C8: 0.1164581853 | D8: 0.911 | E8: 0.01 | F8: =IF(C8="","",IF(C8<D8,IF(C8>E8,"YES","NO"),"NO")) -> YES
B9: =IF('Side constraints'!B23="","",'Side constraints'!B23) -> Medium industrial & commercial | C9: 0.1121890937 | D9: 0.241 | E9: 0.009 | F9: YES
B10: =IF('Side constraints'!B24="","",'Side constraints'!B24) -> Large industrial & commercial | C10: 0.06555283441 | D10: 0.16 | E10: 0.007 | F10: YES
B11: =IF('Side constraints'!B25="","",'Side constraints'!B25) -> High voltage | C11: 0.03034363605 | D11: 0.106 | E11: 0.004 | F11: YES
B12: =IF('Side constraints'!B26="","",'Side constraints'!B26) -> Sub transmission | C12: 0.006368431374 | D12: 0.04 | E12: 0.001 | F12: YES
B13: =IF('Side constraints'!B27="","",'Side constraints'!B27) ->  | C13: =IF('Side constraints'!D27="","",'Side constraints'!D27/1000) -> 
B14: =IF('Side constraints'!B28="","",'Side constraints'!B28) ->  | C14: =IF('Side constraints'!D28="","",'Side constraints'!D28/1000) -> 
B15: =IF('Side constraints'!B29="","",'Side constraints'!B29) ->  | C15: =IF('Side constraints'!D29="","",'Side constraints'!D29/1000) -> 
B16: =IF('Side constraints'!B30="","",'Side constraints'!B30) ->  | C16: =IF('Side constraints'!D30="","",'Side constraints'!D30/1000) -> 
B17: =IF('Side constraints'!B31="","",'Side constraints'!B31) ->  | C17: =IF('Side constraints'!D31="","",'Side constraints'!D31/1000) -> 
B18: =IF('Side constraints'!B32="","",'Side constraints'!B32) ->  | C18: =IF('Side constraints'!D32="","",'Side constraints'!D32/1000) -> 
B19: =IF('Side constraints'!B33="","",'Side constraints'!B33) ->  | C19: =IF('Side constraints'!D33="","",'Side constraints'!D33/1000) -> 
B20: =IF('Side constraints'!B34="","",'Side constraints'!B34) ->  | C20: =IF('Side constraints'!D34="","",'Side constraints'!D34/1000) -> 
B21: =IF('Side constraints'!B35="","",'Side constraints'!B35) ->  | C21: =IF('Side constraints'!D35="","",'Side constraints'!D35/1000) -> 
B22: =IF('Side constraints'!B36="","",'Side constraints'!B36) ->  | C22: =IF('Side constraints'!D36="","",'Side constraints'!D36/1000) -> 
B23: =IF('Side constraints'!B37="","",'Side constraints'!B37) ->  | C23: =IF('Side constraints'!D37="","",'Side constraints'!D37/1000) -> 
B26: The above standalone and avoidable costs bounds should be supported by a model detailing calculations

Sheet Trial tariffs
D2: Individual threshold | F2: 0.005
D3: Cumulative threshold | F3: 0.01
D4: ="ARR "&Input!E7 -> ARR 2021/22 | F4: =Dist.!C16+Dist.!C17 -> 685450966.7 | I4: Please enter tariff , tariff class, and total revenues for each trial tariff below.
I5: Please provide estimated revenue p(t-1)*q(t) for the purpose of side constraints as instructed by AER.
B7: Table 1 - Forecast trial tariffs, side constraints
B8: Tariff name | C8: Tariff class | P8: Estimated Revenue for side constraints p(t-1)*q(t) | T8: ="Forecast Revenue "&Input!E7 -> Forecast Revenue 2021/22 | X8: Compliant?
D9: Description | P9: Distribution | Q9: DPPC | R9: JSA | S9: Total | T9: Distribution | U9: DPPC | V9: JSA | W9: Dist. %
S10: =IF(B10="","",SUM(P10:R10)) ->  | W10: =IF(B10="","",T10/Dist.!$C$11) ->  | X10: =IF(B10="","",IF(W10<=$F$2,"YES","NO")) -> 
S11: =IF(B11="","",SUM(P11:R11)) ->  | W11: =IF(B11="","",T11/Dist.!$C$11) -> 
W12: =IF(B12="","",T12/Dist.!$C$11) -> 
W13: =IF(B13="","",T13/Dist.!$C$11) -> 
W14: =IF(B14="","",T14/Dist.!$C$11) -> 
W15: =IF(B15="","",T15/Dist.!$C$11) -> 
W16: =IF(B16="","",T16/Dist.!$C$11) -> 
W17: =IF(B17="","",T17/Dist.!$C$11) -> 
W18: =IF(B18="","",T18/Dist.!$C$11) -> 
W19: =IF(B19="","",T19/Dist.!$C$11) -> 
W20: =IF(B20="","",T20/Dist.!$C$11) -> 
W21: =IF(B21="","",T21/Dist.!$C$11) -> 
W22: =IF(B22="","",T22/Dist.!$C$11) -> 
W23: =IF(B23="","",T23/Dist.!$C$11) -> 
W24: =IF(B24="","",T24/Dist.!$C$11) -> 
W25: =IF(B25="","",T25/Dist.!$C$11) -> 
P26: =IF(COUNT(P10:P25)=0,"",SUM(P10:P25)) ->  | Q26: =IF(COUNT(Q10:Q25)=0,"",SUM(Q10:Q25)) ->  | R26: =IF(COUNT(R10:R25)=0,"",SUM(R10:R25)) ->  | S26: =IF(SUM(S10:S25)=0,"",SUM(S10:S25)) ->  | T26: =IF(COUNT(T10:T25)=0,"",SUM(T10:T25)) ->  | U26: =IF(COUNT(U10:U25)=0,"",SUM(U10:U25)) ->  | V26: =IF(COUNT(V10:V25)=0,"",SUM(V10:V25)) ->  | W26: =IF(SUM(W10:W25)=0,"",T26/Dist.!$C$11) ->  | X26: =IF(W26="","",IF(W26<=$F$3,"YES","NO")) -> 
I28: Please enter details for trial tariffs from previous year where applicable
B29: Table 2 - Previous year trial tariffs
B30: Tariff name | C30: Tariff class | D30: Distribution prices (t-1) | H30: DPPC prices (t-1) | L30: JSA prices (t-1) | P30: Quantities (t-1) | T30: ="Estimated Revenue "&Input!E8 -> Estimated Revenue HY21
D31: Component 1 | E31: Component 2 | F31: Component 3 | G31: Component 4 | H31: Component 1 | I31: Component 2 | J31: Component 3 | K31: Component 4 | L31: Component 1 | M31: Component 2 | N31: Component 3 | O31: Component 4 | P31: Component 1 | Q31: Component 2 | R31: Component 3 | S31: Component 4 | T31: Distribution | U31: DPPC | V31: JSA | W31: Total
W32: =IF(B32="","",SUM(T32:V32)) -> 
T48: =IF(SUM(T32:T47)=0,"",SUM(T32:T47)) ->  | U48: =IF(SUM(U32:U47)=0,"",SUM(U32:U47)) ->  | V48: =IF(SUM(V32:V47)=0,"",SUM(V32:V47)) ->  | W48: =IF(SUM(W32:W47)=0,"",SUM(W32:W47)) -> 

Sheet Dist.
B2: ="Tariff Approval - "&Input!$E$3 -> Tariff Approval - AusNet Services | C2: Dist.
B4: DUoS
B6: Year (t) | C6: =Input!E7 -> 2021/22 | E6: =Input!E8 -> HY21 | G6: Table 6 - Distribtion Recovery Arrangements
I7: =IF(Input!E5>2023, "", "Year t-3") -> Year t-3 | J7: Year t-2 | K7: Year t-1 | L7: Year t
B8: Table 1- Compliance with AER Final Determination Total Annual Revenue | I8: =IF(Input!E5>2023, "", "(actual)") -> (actual) | J8: =IF(J9=2020,"(estimate)","(actual)") -> (estimate) | K8: (estimate) | L8: (forecast)
B9: Revenue from TSS tariffs | C9: ='Prop DUOS'!BL76 -> 660827431.5 | I9: =IF(Input!E5>2023, "", Input!E10) -> 2019 | J9: =Input!E9 -> 2020 | K9: =Input!E8 -> HY21 | L9: =Input!E7 -> 2021/22
B10: Revenue from trial tariffs | C10: ='Trial tariffs'!T26 ->  | I10: =I9=I12 -> FALSE
B11: Revenue from DUoS charges for year t | C11: =SUM(C9:C10) -> 660827431.5 | G11: (A) Revenue from DUoS charges | I11: 662677186.3 | J11: 679355648.1 | K11: ='t-1 DUOS'!AV76+IF('Trial tariffs'!T48="",0,'Trial tariffs'!T48) -> 306252473.5 | L11: =C11 -> 660827431.5 | N11: t-3 will apply in the 2021/22 and 2022/23 pricing proposals
B12: Total Annual Revenue for year t | C12: =C20 -> 660827431.6
C13: =IF(C11="","",IF(C12>=C11,"DUoS REVENUE CAP FORMULA COMPLIANT","DUoS REVENUE CAP FORMULA BREACHED")) -> DUoS REVENUE CAP FORMULA COMPLIANT | D13: =C13="DUoS REVENUE CAP FORMULA COMPLIANT" -> TRUE | N13: Actual revenues being trued up should reflect values in annual reporting RINs, or else auditing requirements apply.
G14: (B) Less TAR for regulatory year = | I14: =IF(Input!E5>2023, "", Input!C136) -> 655156567.7 | J14: =Input!D136 -> 674885824.5 | K14: =Input!E136 -> 296082545.5 | L14: =SUM(L15:L18) -> 688568109.7 | N14: Estimated revenues for t-1 year should reflect best estimates of the current year revenues.
B15: Table 2 - Total Annual Revenue for year t (TARt) | G15: + Adjusted annual smoothed revenue | L15: =C16 -> 690786240.2 | N15: The t-2 year in the 2021/22 pricing proposal (reflecting the 2020 year) should be actual revenues recovered in 2020 where known, otherwise best estimates.
B16: Adjusted Annual Smoothed Revenue for year t | C16: =C26 -> 690786240.2 | E16: =IF(C6=Input!G8,"n/a",E26) -> n/a | G16: + I factor | L16: =C17 -> -5335273.483
B17: I factor for year t | C17: =Input!D63+Input!D72+Input!D81+Input!D117+Input!D126 -> -5335273.483 | E17: =IF(C6=Input!G8,"n/a",(INDEX(Input!$F$63:$J$63,1,MATCH($E$6,Input!$F$56:$J$56,0))+INDEX(Input!$F$72:$J$72,1,MATCH($E$6,Input!$F$65:$J$65,0))+INDEX(Input!$F$81:$J$81,1,MATCH($E$6,Input!$F$74:$J$74,0))+INDEX(Input!$F$117:$J$117,1,MATCH($E$6,Input!$F$110:$J$110,0))+INDEX(Input!$F$126:$J$126,1,MATCH($E$6,Input!$F$119:$J$119,0)))) -> n/a | G17: + C factor | L17: =C18 -> 2575206.463 | N17: TAR should be as per approved pricing proposal for that year, unless otherwise advised by AER.
B18: C factor for year t | C18: =Input!D90 -> 2575206.463 | E18: =IF(C6=Input!G8,"n/a",INDEX(Input!$F$90:$J$90,1,MATCH($E$6,Input!$F$83:$J$83,0))) -> n/a | G18: + (B factor - under/over recovery adjustment) | L18: =C30 -> 541936.4937
B19: B factor for year t | C19: =C32 -> -27198741.53 | E19: =IF(C6=Input!G8,"n/a",E32) -> n/a
B20: Total Annual Revenue for year t | C20: =C16+C17+C18+C19 -> 660827431.6 | E20: =IF(C6=Input!G8,"n/a",(E16+E17+E18+E19)) -> n/a | G20: (C) Revenue deliberately under-recovered in year | J20: 270235.8208
G21: (A minus B plus C) Under/over recovery of revenue for regulatory year | I21: =IF(Input!E5>2023, "", I11-I14+I20) -> 7520618.566 | J21: =J11-J14+J20 -> 4740059.362 | K21: =K11-K14+K20 -> 10169927.94 | L21: =L11-L14+L20 -> -27740678.13
B22: Table 3 - Adjusted Annual Revenue for year t (AARt)
B23: Adjusted Annual Smoothed Revenue for year t-1 | C23: =E26 -> n/a | E23: =IF(C6=Input!G8,"n/a",INDEX(Input!$F$146:$J$146,1,MATCH($E$6,Input!$F$139:$J$139,0))) -> n/a
B24: CPI for period t | C24: =IF(C6=Input!G8,"n/a",Input!E28) -> n/a | E24: =IF(C6=Input!G8,"n/a",Input!E27) -> n/a
B25: X factor for period t | C25: =Input!D53 -> n/a | E25: =IF(C6=Input!G8,"n/a",INDEX(Input!$G$53:$J$53,1,MATCH($E$6,Input!$G$46:$J$46,0))) -> n/a | G25: Table 7 - Distribution Unders and Overs Account
B26: Adjusted Annual Smoothed Revenue for year t | C26: =IF(C6=Input!G8,Input!F53,(C23*(1+C24)*(1-C25))) -> 690786240.2 | E26: =IF(C6=Input!G8,"n/a",IF(E6=Input!G8,Input!F53,(E23*(1+E24)*(1-E25)))) -> n/a | I26: =IF(Input!E5>2023, "", "Year t-3") -> Year t-3 | J26: Year t-2 | K26: Year t-1 | L26: Year t
I27: =IF(Input!E5>2023, "", "(actual)") -> (actual) | J27: =IF(J28=2020,"(estimate)","(actual)") -> (estimate) | K27: (estimate) | L27: (forecast)
B28: Table 4- B factor for year t | G28: Calendar year | I28: =IF(Input!E5>2023, "", I9) -> 2019 | J28: =J9 -> 2020 | K28: =K9 -> HY21 | L28: =L9 -> 2021/22
B29: DUoS revenue under/over recovery adjustment | C29: =-L32*(1+L30)^0.5 -> -27740678.02 | E29: =IF(C6=Input!G8,"n/a",INDEX(Input!$F$155:$J$155,1,MATCH($E$6,Input!$F$148:$J$148,0))) -> n/a
B30: License Fee Recovery Amount for year t | C30: =C39 -> 541936.4937 | E30: =IF(C6=Input!G8,"n/a",E39) -> n/a | G30: Nominal WACC | I30: =IF(Input!E5>2023, "", (1+Input!$D$43)*(1+Input!$E$25)-1) -> 0.05900425222 | J30: =(1+Input!$D$42)*(1+Input!$E$26)-1 -> 0.05276536977 | K30: =(1+Input!$D$41)*(1+Input!$E$27)-1 -> 0.02428654141 | L30: =(1+Input!$D$40)*(1+Input!$E$28)-1 -> 0.03662410607
B31: P factor (COVID-19 smoothing adjustment for CitiPower only) | C31: =IF(Input!E3="CitiPower",Input!D108,"n/a") -> n/a | E31: =IF(Input!E3="CitiPower",IF(E6=Input!G8,"n/a",IF(C6=Input!G8,"n/a",INDEX(Input!$F$108:$J$108,1,MATCH($E$6,Input!$F$101:$J$101,0)))),"n/a") -> n/a
B32: B factor for year t | C32: =SUM(C29:C31) -> -27198741.53 | E32: =IF(C6=Input!G8,"n/a",SUM(E29:E31)) -> n/a | G32: Opening balance | I32: 3175560.464 | J32: =I37 -> 11102245.09 | K32: =J37 -> 16551566.5 | L32: =K37 -> 27246230.08
G33: Interest on Opening balance | I33: =IF(Input!E5>2023, "", I32*I30) -> 187371.5706 | J33: =J32*J30 -> 585814.0677 | K33: =K32*K30 -> 401980.3053 | L33: =L32*L30 -> 997868.8205
B34: Table 5 - L factor for year t | G34: Under/over recovery of revenue for regulatory year | I34: =IF(Input!E5>2023, "", I21) -> 7520618.566 | J34: =J21 -> 4740059.362 | K34: =K21 -> 10169927.94 | L34: =L21 -> -27740678.13
B35: L (t-2) | C35: =Input!D99 -> 497439 | E35: =IF(C6=Input!G8,"n/a",INDEX(Input!$F$99:$J$99,1,MATCH(Input!D92,Input!$F$92:$J$92,0))) -> n/a | G35: COVID-19 adjustment (CitiPower only) | I35: =IF(Input!E5>2023,"",IF(Input!E3="CitiPower",IF(I28=2020,Input!F103,""),"")) ->  | J35: =IF(Input!E3="CitiPower",IF(J28=2020,Input!F103,""),"") -> 
B36: Nominal WACC (t) | C36: =(1+Input!$D$40)*(1+Input!$E$28)-1 -> 0.03662410607 | E36: =IF(C6=Input!G8,"n/a",(1+Input!$D$41)*(1+Input!$E$27)-1) -> n/a | G36: Interest on under/over recovery for regulatory year | I36: =IF(Input!E5>2023, "", I34*((1+I30)^0.5-1)) -> 218694.4935 | J36: =J34*((1+J30)^0.5-1) -> 123447.9806 | K36: =K34*((1+K30)^0.5-1) -> 122755.3336 | L36: =L34*((1+L30)^0.5-1) -> -503420.8818
B37: Nominal WACC (t-1) | C37: =(1+Input!$D$41)*(1+Input!$E$27)-1 -> 0.02428654141 | E37: =IF(C6=Input!G8,"n/a",(1+Input!$D$42)*(1+Input!$E$26)-1) -> n/a | G37: Closing balance of DUoS overs/ (unders) account | I37: =IF(Input!E5>2023, "", SUM(I32:I36)) -> 11102245.09 | J37: =SUM(J32:J36) -> 16551566.5 | K37: =SUM(K32:K36) -> 27246230.08 | L37: =SUM(L32:L36) -> -0.1085948939
B38: Nominal WACC (t-2) | C38: =IF(C6=Input!G8,((1+Input!$D$42)*(1+Input!$E$26)-1),"n/a") -> 0.05276536977 | E38: =IF(E6=Input!G8,((1+Input!$D$43)*(1+Input!$E$25)-1),"n/a") -> n/a
B39: L factor for year t | C39: =IF(C6=Input!G8,(C35*(1+C36)*(1+C37)*((1+C38)^0.5)),(C35*(1+C36)*(1+C37))) -> 541936.4937 | E39: =IF(C6=Input!G8,"n/a",IF(E6=Input!G8,(E35*(1+E36)*(1+E37)*(1+E38)^0.5),E35*(1+E36)*(1+E37))) -> n/a | G39: The DNSP is expected to achieve a closing balance as close to (but not less than) zero as practicable in its DUoS unders and overs account in each forecast year (t).

Sheet Side constraints
B1: ="Tariff Approval - "&Input!E3 -> Tariff Approval - AusNet Services | C1: Side constraints
D2: =IF(Input!E7=Input!G8,"SIDE CONSTRAINTS NOT APPLICABLE IN YEAR 1","") -> SIDE CONSTRAINTS NOT APPLICABLE IN YEAR 1
B3: =Input!E7&" DISTRIBUTION TARIFF REBALANCING CONTROL" -> 2021/22 DISTRIBUTION TARIFF REBALANCING CONTROL
B6: Distribution tariff rebalancing control
B8: ="CPI "&Input!$E$5 -> CPI 2022 | C8: =Dist.!C24 -> n/a
B9: ="X "& Input!$E$5 -> X 2022 | C9: =MIN(Dist.!C25,0) -> 0
B10: ="It "&Input!$E$5 -> It 2022 | C10: =(Dist.!C17-Dist.!E17)/SUM(C21:C37) -> 
B11: ="Tt "&Input!$E$5 -> Tt 2022 | C11: =(Dist.!C18-Dist.!E18)/SUM(C21:C37) -> 
B12: ="Bt "&Input!$E$5 -> Bt 2022 | C12: =(Dist.!C19-Dist.!E19)/SUM(C21:C37) -> 
C15: =(1+C8)*(1-C9)*(1+0.02)+SUM(C10:C12) -> 
B19: Rebalancing control summary | C19: ="Pt-1*(Qt " &Input!$E$7&")" -> Pt-1*(Qt 2021/22) | D19: ="Pt*(Qt " &Input!$E$7&")" -> Pt*(Qt 2021/22)
B20: Tariff Class (Input Class Name) | C20: Existing ($) | D20: Proposed ($) | E20: Movement
B21: Residential | C21: =IF(B21="","",SUMIF($B$43:$B$128,$B21,$I$43:$I$128)) -> 172244235.4 | D21: =IF(B21="","",SUMIF($B$43:$B$128,$B21,$F$43:$F$128)) -> 359021728.1 | E21: =IF(B21="","",D21/C21) -> 2.08437587 | F21: =IF(B21="","",IF(E21<$C$15,"COMPLIANT","BREACHED")) -> 
B22: Small industrial & commercial | C22: 74888346.76 | D22: 138066955.6 | E22: 1.843637382
B23: Medium industrial & commercial | C23: 42377009.98 | D23: 48239670.7 | E23: 1.138345313
B24: Large industrial & commercial | C24: 83332136.4 | D24: 92286210.38 | E24: 1.107450431
B25: High voltage | C25: 14261251.31 | D25: 15784602.1 | E25: 1.10681747
B26: Sub transmission | C26: 0 | D26: 0 | E26: =IF(B26="","",D26/C26) ->  | F26: =IF(B26="","",IF(E26<$C$15,"COMPLIANT","BREACHED")) -> 
C31: =IF(B31="","",SUMIF($B$43:$B$128,$B31,$I$43:$I$128)) ->  | D31: =IF(B31="","",SUMIF($B$43:$B$128,$B31,$F$43:$F$128)) -> 
B38: Check Total | C38: =IF(ABS(SUM(C21:C37)-I129)<0.01,"Ok","Error") -> Ok | D38: =IF(ABS(SUM(D21:D37)-F129)<0.01,"Ok","Error") -> Ok
C39: =IF(ABS(SUM(C21:C37)-'Prop DUOS'!CC76-IF('Trial tariffs'!P26="",0,'Trial tariffs'!P26))<0.01,"Ok","Error") -> Error | D39: =IF(ABS(SUM(D21:D37)-'Prop DUOS'!BL76-IF('Trial tariffs'!T26="",0,'Trial tariffs'!T26))<0.01,"Ok","Error") -> Error
F41: ="Revenue (Pt "&Input!$E$5&")*(Qt " &Input!$E$5&")" -> Revenue (Pt 2022)*(Qt 2022) | I41: ="Revenue (Pt-1 "&Input!$E$8&")*(Qt " &Input!$E$5&")" -> Revenue (Pt-1 HY21)*(Qt 2022)
A42: New Tariff Test | B42: Destination tariff class | C42: Source tariff class | D42: Proposed tariff | E42: Existing tariff | F42: PropRev Total | I42: ExistRev Total
A43: =OR(EXACT(D43,'Prop DUOS'!C$7:C$75)) -> FALSE | B43: Residential | C43: Residential | D43: =IF('Prop DUOS'!B7="","",'Prop DUOS'!B7) -> NEE11 Small single rate | E43: =IF('Prop DUOS'!C7="","",'Prop DUOS'!C7) -> NEE11 Small Single Rate < 160MWh | F43: ='Prop DUOS'!BL7 -> 188766065.5 | I43: ='Prop DUOS'!CC7 -> 171498480.6
A44: =OR(EXACT(D44,'Prop DUOS'!C$7:C$75)) -> FALSE | B44: Residential | C44: Residential | D44: =IF('Prop DUOS'!B8="","",'Prop DUOS'!B8) -> NEE11S Small single rate standard feed in | E44: =IF('Prop DUOS'!C8="","",'Prop DUOS'!C8) -> NEE11 Small Single Rate < 160MWh | F44: ='Prop DUOS'!BL8 -> 0 | I44: ='Prop DUOS'!CC8 -> 0
A45: =OR(EXACT(D45,'Prop DUOS'!C$7:C$75)) -> FALSE | B45: Residential | C45: Residential | D45: =IF('Prop DUOS'!B9="","",'Prop DUOS'!B9) -> NEE11P Small single rate premium feed in | E45: =IF('Prop DUOS'!C9="","",'Prop DUOS'!C9) -> NEE11 Small Single Rate < 160MWh | F45: ='Prop DUOS'!BL9 -> 0 | I45: ='Prop DUOS'!CC9 -> 0
A46: =OR(EXACT(D46,'Prop DUOS'!C$7:C$75)) -> FALSE | B46: Residential | C46: Residential | D46: =IF('Prop DUOS'!B10="","",'Prop DUOS'!B10) -> NEN11 Small single rate within embedded network | E46: =IF('Prop DUOS'!C10="","",'Prop DUOS'!C10) -> NEN11 Small Single Rate < 160MWh Embedded Network | F46: ='Prop DUOS'!BL10 -> 0 | I46: ='Prop DUOS'!CC10 -> 0
A47: =OR(EXACT(D47,'Prop DUOS'!C$7:C$75)) -> FALSE | B47: Residential | C47: Residential | D47: =IF('Prop DUOS'!B11="","",'Prop DUOS'!B11) -> NEE13 Small single rate & dedicated circuit | E47: =IF('Prop DUOS'!C11="","",'Prop DUOS'!C11) ->  | F47: ='Prop DUOS'!BL11 -> 48027733.94 | I47: ='Prop DUOS'!CC11 -> 0
A48: =OR(EXACT(D48,'Prop DUOS'!C$7:C$75)) -> FALSE | B48: Residential | C48: Residential | D48: =IF('Prop DUOS'!B12="","",'Prop DUOS'!B12) -> NEE14 Small single rate & dedicated circuit with afternoon boost | E48: =IF('Prop DUOS'!C12="","",'Prop DUOS'!C12) ->  | F48: ='Prop DUOS'!BL12 -> 8282561.684 | I48: ='Prop DUOS'!CC12 -> 0
A49: =OR(EXACT(D49,'Prop DUOS'!C$7:C$75)) -> FALSE | B49: Residential | C49: Residential | D49: =IF('Prop DUOS'!B13="","",'Prop DUOS'!B13) -> NEE15 Small single rate & dedicated circuit 8:00 to 8:00 | E49: =IF('Prop DUOS'!C13="","",'Prop DUOS'!C13) ->  | F49: ='Prop DUOS'!BL13 -> 1589748.425 | I49: ='Prop DUOS'!CC13 -> 0
A50: =OR(EXACT(D50,'Prop DUOS'!C$7:C$75)) -> FALSE | B50: Residential | C50: Residential | D50: =IF('Prop DUOS'!B14="","",'Prop DUOS'!B14) -> NAST11 Small residential time of use | E50: =IF('Prop DUOS'!C14="","",'Prop DUOS'!C14) ->  | F50: ='Prop DUOS'!BL14 -> 35225579.27 | I50: ='Prop DUOS'!CC14 -> 0
A51: =OR(EXACT(D51,'Prop DUOS'!C$7:C$75)) -> FALSE | B51: Residential | C51: Residential | D51: =IF('Prop DUOS'!B15="","",'Prop DUOS'!B15) -> NAST11S Small residential time of use standard feed in | E51: =IF('Prop DUOS'!C15="","",'Prop DUOS'!C15) ->  | F51: ='Prop DUOS'!BL15 -> 60901065.13 | I51: ='Prop DUOS'!CC15 -> 0
A52: =OR(EXACT(D52,'Prop DUOS'!C$7:C$75)) -> FALSE | B52: Residential | C52: Residential | D52: =IF('Prop DUOS'!B16="","",'Prop DUOS'!B16) -> NAST11P Small residential time of use premium feed in | E52: =IF('Prop DUOS'!C16="","",'Prop DUOS'!C16) ->  | F52: ='Prop DUOS'!BL16 -> 15243041.76 | I52: ='Prop DUOS'!CC16 -> 0
A53: =OR(EXACT(D53,'Prop DUOS'!C$7:C$75)) -> FALSE | B53: Residential | C53: Residential | D53: =IF('Prop DUOS'!B17="","",'Prop DUOS'!B17) -> NAST13 Small residential time of use & dedicated circuit | E53: =IF('Prop DUOS'!C17="","",'Prop DUOS'!C17) ->  | F53: ='Prop DUOS'!BL17 -> 116546.6028 | I53: ='Prop DUOS'!CC17 -> 0
A54: =OR(EXACT(D54,'Prop DUOS'!C$7:C$75)) -> FALSE | B54: Residential | C54: Residential | D54: =IF('Prop DUOS'!B18="","",'Prop DUOS'!B18) -> NAST14 Small residential time of use & dedicated circuit with afternoon boost | E54: =IF('Prop DUOS'!C18="","",'Prop DUOS'!C18) ->  | F54: ='Prop DUOS'!BL18 -> 14203.10409 | I54: ='Prop DUOS'!CC18 -> 0
A55: =OR(EXACT(D55,'Prop DUOS'!C$7:C$75)) -> FALSE | B55: Residential | C55: Residential | D55: =IF('Prop DUOS'!B19="","",'Prop DUOS'!B19) -> NAST15 Small residential time of use & dedicated circuit 8:00 to 8:00 | E55: =IF('Prop DUOS'!C19="","",'Prop DUOS'!C19) ->  | F55: ='Prop DUOS'!BL19 -> 1615.352944 | I55: ='Prop DUOS'!CC19 -> 0
A56: =OR(EXACT(D56,'Prop DUOS'!C$7:C$75)) -> FALSE | B56: Residential | C56: Residential | D56: =IF('Prop DUOS'!B20="","",'Prop DUOS'!B20) -> NASN11 Small residential single rate demand | E56: =IF('Prop DUOS'!C20="","",'Prop DUOS'!C20) -> NASN11 - Residential Single Rate | F56: ='Prop DUOS'!BL20 -> 43996.45581 | I56: ='Prop DUOS'!CC20 -> 23310.06388
A57: =OR(EXACT(D57,'Prop DUOS'!C$7:C$75)) -> FALSE | B57: Residential | C57: Residential | D57: =IF('Prop DUOS'!B21="","",'Prop DUOS'!B21) -> NASN11S Small residential single rate demand standard feed in | E57: =IF('Prop DUOS'!C21="","",'Prop DUOS'!C21) -> NASN11 - Residential Single Rate | F57: ='Prop DUOS'!BL21 -> 6009.08184 | I57: ='Prop DUOS'!CC21 -> 3128.148816
A58: =OR(EXACT(D58,'Prop DUOS'!C$7:C$75)) -> FALSE | B58: Residential | C58: Residential | D58: =IF('Prop DUOS'!B22="","",'Prop DUOS'!B22) -> NASN11P Small residential single rate demand premium feed in | E58: =IF('Prop DUOS'!C22="","",'Prop DUOS'!C22) -> NASN11 - Residential Single Rate | F58: ='Prop DUOS'!BL22 -> 1502.27046 | I58: ='Prop DUOS'!CC22 -> 782.037204
A59: =OR(EXACT(D59,'Prop DUOS'!C$7:C$75)) -> FALSE | B59: Residential | C59: Residential | D59: =IF('Prop DUOS'!B23="","",'Prop DUOS'!B23) -> NEN20 Small two rate within embedded network | E59: =IF('Prop DUOS'!C23="","",'Prop DUOS'!C23) -> NEN20 Small Two Rate - Embedded Network | F59: ='Prop DUOS'!BL23 -> 0 | I59: ='Prop DUOS'!CC23 -> 0
A60: =OR(EXACT(D60,'Prop DUOS'!C$7:C$75)) -> FALSE | B60: Residential | C60: Residential | D60: =IF('Prop DUOS'!B24="","",'Prop DUOS'!B24) -> NEE24 Small two rate 8:00 to 8:00 | E60: =IF('Prop DUOS'!C24="","",'Prop DUOS'!C24) -> NEE24 Small rate 5 day 8 to 8 | F60: ='Prop DUOS'!BL24 -> 674419.3053 | I60: ='Prop DUOS'!CC24 -> 609554.6244
A61: =OR(EXACT(D61,'Prop DUOS'!C$7:C$75)) -> FALSE | B61: Residential | C61: Residential | D61: =IF('Prop DUOS'!B25="","",'Prop DUOS'!B25) -> NSP20 Small interval meter time of use | E61: =IF('Prop DUOS'!C25="","",'Prop DUOS'!C25) -> NSP20 Small Two Rate | F61: ='Prop DUOS'!BL25 -> 7270.967049 | I61: ='Prop DUOS'!CC25 -> 6565.719544
A62: =OR(EXACT(D62,'Prop DUOS'!C$7:C$75)) -> FALSE | B62: Residential | C62: Residential | D62: =IF('Prop DUOS'!B26="","",'Prop DUOS'!B26) -> NSP23 Small interval meter time of use solar installation standard feed in | E62: =IF('Prop DUOS'!C26="","",'Prop DUOS'!C26) -> NSP23 Photovoltaic | F62: ='Prop DUOS'!BL26 -> 109944.5227 | I62: ='Prop DUOS'!CC26 -> 102414.2076
A63: =OR(EXACT(D63,'Prop DUOS'!C$7:C$75)) -> FALSE | B63: Residential | C63: Residential | D63: =IF('Prop DUOS'!B27="","",'Prop DUOS'!B27) -> SSP23 Small interval meter time of use solar installation premium feed in | E63: =IF('Prop DUOS'!C27="","",'Prop DUOS'!C27) ->  | F63: ='Prop DUOS'!BL27 -> 10424.68804 | I63: ='Prop DUOS'!CC27 -> 0
A64: =OR(EXACT(D64,'Prop DUOS'!C$7:C$75)) -> FALSE | B64: Residential | C64: Residential | D64: =IF('Prop DUOS'!B28="","",'Prop DUOS'!B28) -> NEE30 Small dedicated circuit | E64: =IF('Prop DUOS'!C28="","",'Prop DUOS'!C28) -> NEE30 Small Dedicated | F64: ='Prop DUOS'!BL28 -> 0 | I64: ='Prop DUOS'!CC28 -> 0
A65: =OR(EXACT(D65,'Prop DUOS'!C$7:C$75)) -> FALSE | B65: Residential | C65: Residential | D65: =IF('Prop DUOS'!B29="","",'Prop DUOS'!B29) -> NEE31 Small dedicated circuit with afternoon boost | E65: =IF('Prop DUOS'!C29="","",'Prop DUOS'!C29) -> NEE31 Small Dedicated-afternoon boost | F65: ='Prop DUOS'!BL29 -> 0 | I65: ='Prop DUOS'!CC29 -> 0
A66: =OR(EXACT(D66,'Prop DUOS'!C$7:C$75)) -> FALSE | B66: Residential | C66: Residential | D66: =IF('Prop DUOS'!B30="","",'Prop DUOS'!B30) -> NEE32 Small dedicated circuit 8:00 to 8:00 | E66: =IF('Prop DUOS'!C30="","",'Prop DUOS'!C30) -> NEE32 Dedicated Circuit 8 to 8 | F66: ='Prop DUOS'!BL30 -> 0 | I66: ='Prop DUOS'!CC30 -> 0
A67: =OR(EXACT(D67,'Prop DUOS'!C$7:C$75)) -> FALSE | B67: Small industrial & commercial | C67: Small industrial & commercial | D67: =IF('Prop DUOS'!B31="","",'Prop DUOS'!B31) -> NEE12 Small single rate | E67: =IF('Prop DUOS'!C31="","",'Prop DUOS'!C31) -> NEE12 Small Business Single Rate - new in 2001 | F67: ='Prop DUOS'!BL31 -> 26791343.19 | I67: ='Prop DUOS'!CC31 -> 24188681.04
A68: =OR(EXACT(D68,'Prop DUOS'!C$7:C$75)) -> FALSE | B68: Small industrial & commercial | C68: Small industrial & commercial | D68: =IF('Prop DUOS'!B32="","",'Prop DUOS'!B32) -> NEE12S Small single rate standard feed in | E68: =IF('Prop DUOS'!C32="","",'Prop DUOS'!C32) -> NEE12 Small Business Single Rate - new in 2001 | F68: ='Prop DUOS'!BL32 -> 0 | I68: ='Prop DUOS'!CC32 -> 0
A69: =OR(EXACT(D69,'Prop DUOS'!C$7:C$75)) -> FALSE | B69: Small industrial & commercial | C69: Small industrial & commercial | D69: =IF('Prop DUOS'!B33="","",'Prop DUOS'!B33) -> NEE12P Small single rate premium feed in | E69: =IF('Prop DUOS'!C33="","",'Prop DUOS'!C33) -> NEE12 Small Business Single Rate - new in 2001 | F69: ='Prop DUOS'!BL33 -> 0 | I69: ='Prop DUOS'!CC33 -> 0
A70: =OR(EXACT(D70,'Prop DUOS'!C$7:C$75)) -> FALSE | B70: Small industrial & commercial | C70: Small industrial & commercial | D70: =IF('Prop DUOS'!B34="","",'Prop DUOS'!B34) -> NEN12 Small single rate within embedded network | E70: =IF('Prop DUOS'!C34="","",'Prop DUOS'!C34) -> NEN12 Small Business Single Rate - Embedded Network | F70: ='Prop DUOS'!BL34 -> 0 | I70: ='Prop DUOS'!CC34 -> 0
A71: =OR(EXACT(D71,'Prop DUOS'!C$7:C$75)) -> FALSE | B71: Small industrial & commercial | C71: Small industrial & commercial | D71: =IF('Prop DUOS'!B35="","",'Prop DUOS'!B35) -> NEE16 Small single rate & dedicated circuit | E71: =IF('Prop DUOS'!C35="","",'Prop DUOS'!C35) ->  | F71: ='Prop DUOS'!BL35 -> 188054.5221 | I71: ='Prop DUOS'!CC35 -> 0
A72: =OR(EXACT(D72,'Prop DUOS'!C$7:C$75)) -> FALSE | B72: Small industrial & commercial | C72: Small industrial & commercial | D72: =IF('Prop DUOS'!B36="","",'Prop DUOS'!B36) -> NEE17 Small single rate & dedicated circuit with afternoon boost | E72: =IF('Prop DUOS'!C36="","",'Prop DUOS'!C36) ->  | F72: ='Prop DUOS'!BL36 -> 51887.81091 | I72: ='Prop DUOS'!CC36 -> 0
A73: =OR(EXACT(D73,'Prop DUOS'!C$7:C$75)) -> FALSE | B73: Small industrial & commercial | C73: Small industrial & commercial | D73: =IF('Prop DUOS'!B37="","",'Prop DUOS'!B37) -> NEE18 Small single rate & dedicated circuit 8:00 to 8:00 | E73: =IF('Prop DUOS'!C37="","",'Prop DUOS'!C37) ->  | F73: ='Prop DUOS'!BL37 -> 0 | I73: ='Prop DUOS'!CC37 -> 0
A74: =OR(EXACT(D74,'Prop DUOS'!C$7:C$75)) -> FALSE | B74: Small industrial & commercial | C74: Small industrial & commercial | D74: =IF('Prop DUOS'!B38="","",'Prop DUOS'!B38) -> NAST12 Small business time of use | E74: =IF('Prop DUOS'!C38="","",'Prop DUOS'!C38) ->  | F74: ='Prop DUOS'!BL38 -> 36475469.47 | I74: ='Prop DUOS'!CC38 -> 0
A75: =OR(EXACT(D75,'Prop DUOS'!C$7:C$75)) -> FALSE | B75: Small industrial & commercial | C75: Small industrial & commercial | D75: =IF('Prop DUOS'!B39="","",'Prop DUOS'!B39) -> NAST12S Small business time of use standard feed in | E75: =IF('Prop DUOS'!C39="","",'Prop DUOS'!C39) ->  | F75: ='Prop DUOS'!BL39 -> 4102238.992 | I75: ='Prop DUOS'!CC39 -> 0
A76: =OR(EXACT(D76,'Prop DUOS'!C$7:C$75)) -> FALSE | B76: Small industrial & commercial | C76: Small industrial & commercial | D76: =IF('Prop DUOS'!B40="","",'Prop DUOS'!B40) -> NAST12P Small business time of use premium feed in | E76: =IF('Prop DUOS'!C40="","",'Prop DUOS'!C40) ->  | F76: ='Prop DUOS'!BL40 -> 396422.0678 | I76: ='Prop DUOS'!CC40 -> 0
A77: =OR(EXACT(D77,'Prop DUOS'!C$7:C$75)) -> FALSE | B77: Small industrial & commercial | C77: Small industrial & commercial | D77: =IF('Prop DUOS'!B41="","",'Prop DUOS'!B41) -> NASN12 Small business single rate demand | E77: =IF('Prop DUOS'!C41="","",'Prop DUOS'!C41) -> NASN12 - Business Single Rate | F77: ='Prop DUOS'!BL41 -> 173726.1679 | I77: ='Prop DUOS'!CC41 -> 68022.50609
A78: =OR(EXACT(D78,'Prop DUOS'!C$7:C$75)) -> FALSE | B78: Small industrial & commercial | C78: Small industrial & commercial | D78: =IF('Prop DUOS'!B42="","",'Prop DUOS'!B42) -> NASN12S Small business single rate demand standard feed in | E78: =IF('Prop DUOS'!C42="","",'Prop DUOS'!C42) -> NASN12 - Business Single Rate | F78: ='Prop DUOS'!BL42 -> 19464.65379 | I78: ='Prop DUOS'!CC42 -> 7621.388
A79: =OR(EXACT(D79,'Prop DUOS'!C$7:C$75)) -> FALSE | B79: Small industrial & commercial | C79: Small industrial & commercial | D79: =IF('Prop DUOS'!B43="","",'Prop DUOS'!B43) -> NASN12P Small business single rate demand premium feed in | E79: =IF('Prop DUOS'!C43="","",'Prop DUOS'!C43) -> NASN12 - Business Single Rate | F79: ='Prop DUOS'!BL43 -> 0 | I79: ='Prop DUOS'!CC43 -> 0
A80: =OR(EXACT(D80,'Prop DUOS'!C$7:C$75)) -> FALSE | B80: Small industrial & commercial | C80: Small industrial & commercial | D80: =IF('Prop DUOS'!B44="","",'Prop DUOS'!B44) -> NASN19 Business > 40 MWh single rate demand | E80: =IF('Prop DUOS'!C44="","",'Prop DUOS'!C44) -> NASN19 - Business >40MWh Single Rate | F80: ='Prop DUOS'!BL44 -> 8467871.566 | I80: ='Prop DUOS'!CC44 -> 935958.4543
A81: =OR(EXACT(D81,'Prop DUOS'!C$7:C$75)) -> FALSE | B81: Small industrial & commercial | C81: Small industrial & commercial | D81: =IF('Prop DUOS'!B45="","",'Prop DUOS'!B45) -> NASN21 Business > 40 MWh two rate demand | E81: =IF('Prop DUOS'!C45="","",'Prop DUOS'!C45) -> NASN21 - Business >40MWh Two Rate | F81: ='Prop DUOS'!BL45 -> 48138557.21 | I81: ='Prop DUOS'!CC45 -> 46214340.13
A82: =OR(EXACT(D82,'Prop DUOS'!C$7:C$75)) -> FALSE | B82: Small industrial & commercial | C82: Small industrial & commercial | D82: =IF('Prop DUOS'!B46="","",'Prop DUOS'!B46) -> NASN2S Business > 40 MWh two rate demand standard feed in | E82: =IF('Prop DUOS'!C46="","",'Prop DUOS'!C46) ->  | F82: ='Prop DUOS'!BL46 -> 8679093.016 | I82: ='Prop DUOS'!CC46 -> 0
A83: =OR(EXACT(D83,'Prop DUOS'!C$7:C$75)) -> FALSE | B83: Small industrial & commercial | C83: Small industrial & commercial | D83: =IF('Prop DUOS'!B47="","",'Prop DUOS'!B47) -> NASN2P Business > 40 MWh two rate demand premium feed in | E83: =IF('Prop DUOS'!C47="","",'Prop DUOS'!C47) ->  | F83: ='Prop DUOS'!BL47 -> 475025.2032 | I83: ='Prop DUOS'!CC47 -> 0
A84: =OR(EXACT(D84,'Prop DUOS'!C$7:C$75)) -> FALSE | B84: Small industrial & commercial | C84: Small industrial & commercial | D84: =IF('Prop DUOS'!B48="","",'Prop DUOS'!B48) -> NEN21 Small two rate within embedded network | E84: =IF('Prop DUOS'!C48="","",'Prop DUOS'!C48) -> NEN21 Small Business Two Rate - Embedded Network | F84: ='Prop DUOS'!BL48 -> 0 | I84: ='Prop DUOS'!CC48 -> 0
A85: =OR(EXACT(D85,'Prop DUOS'!C$7:C$75)) -> FALSE | B85: Small industrial & commercial | C85: Small industrial & commercial | D85: =IF('Prop DUOS'!B49="","",'Prop DUOS'!B49) -> NSP21 Small interval meter time of use | E85: =IF('Prop DUOS'!C49="","",'Prop DUOS'!C49) -> NSP21 Small Business Two Rate | F85: ='Prop DUOS'!BL49 -> 29437.92901 | I85: ='Prop DUOS'!CC49 -> 26570.082
A86: =OR(EXACT(D86,'Prop DUOS'!C$7:C$75)) -> FALSE | B86: Small industrial & commercial | C86: Small industrial & commercial | D86: =IF('Prop DUOS'!B50="","",'Prop DUOS'!B50) -> NSP27 Small interval meter low peak time of use | E86: =IF('Prop DUOS'!C50="","",'Prop DUOS'!C50) -> NSP27 Small Business Two Rate | F86: ='Prop DUOS'!BL50 -> 3814165.053 | I86: ='Prop DUOS'!CC50 -> 3447153.152
A87: =OR(EXACT(D87,'Prop DUOS'!C$7:C$75)) -> FALSE | B87: Small industrial & commercial | C87: Small industrial & commercial | D87: =IF('Prop DUOS'!B51="","",'Prop DUOS'!B51) -> SSP27 Small interval meter time of use solar installation standard feed in | E87: =IF('Prop DUOS'!C51="","",'Prop DUOS'!C51) ->  | F87: ='Prop DUOS'!BL51 -> 259793.0911 | I87: ='Prop DUOS'!CC51 -> 0
A88: =OR(EXACT(D88,'Prop DUOS'!C$7:C$75)) -> FALSE | B88: Small industrial & commercial | C88: Small industrial & commercial | D88: =IF('Prop DUOS'!B52="","",'Prop DUOS'!B52) -> SSP21 Small interval meter time of use solar installation premium feed in | E88: =IF('Prop DUOS'!C52="","",'Prop DUOS'!C52) ->  | F88: ='Prop DUOS'!BL52 -> 4405.645675 | I88: ='Prop DUOS'!CC52 -> 0
A89: =OR(EXACT(D89,'Prop DUOS'!C$7:C$75)) -> FALSE | B89: Medium industrial & commercial | C89: Medium industrial & commercial | D89: =IF('Prop DUOS'!B53="","",'Prop DUOS'!B53) -> NEE40 Medium single rate | E89: =IF('Prop DUOS'!C53="","",'Prop DUOS'!C53) -> NEE40 Medium Single Rate - closed to new customers | F89: ='Prop DUOS'!BL53 -> 1204093.919 | I89: ='Prop DUOS'!CC53 -> 23892.7563
A90: =OR(EXACT(D90,'Prop DUOS'!C$7:C$75)) -> FALSE | B90: Medium industrial & commercial | C90: Medium industrial & commercial | D90: =IF('Prop DUOS'!B54="","",'Prop DUOS'!B54) -> NEE41 Medium single rate & dedicated circuit | E90: =IF('Prop DUOS'!C54="","",'Prop DUOS'!C54) ->  | F90: ='Prop DUOS'!BL54 -> 6118.268187 | I90: ='Prop DUOS'!CC54 -> 0
A91: =OR(EXACT(D91,'Prop DUOS'!C$7:C$75)) -> FALSE | B91: Medium industrial & commercial | C91: Medium industrial & commercial | D91: =IF('Prop DUOS'!B55="","",'Prop DUOS'!B55) -> NEE42 Medium single rate & dedicated circuit with afternoon boost | E91: =IF('Prop DUOS'!C55="","",'Prop DUOS'!C55) ->  | F91: ='Prop DUOS'!BL55 -> 115360.5909 | I91: ='Prop DUOS'!CC55 -> 0
A92: =OR(EXACT(D92,'Prop DUOS'!C$7:C$75)) -> FALSE | B92: Medium industrial & commercial | C92: Medium industrial & commercial | D92: =IF('Prop DUOS'!B56="","",'Prop DUOS'!B56) -> NEE43 Medium single rate & dedicated circuit 8:00 to 8:00 | E92: =IF('Prop DUOS'!C56="","",'Prop DUOS'!C56) ->  | F92: ='Prop DUOS'!BL56 -> 0 | I92: ='Prop DUOS'!CC56 -> 0
A93: =OR(EXACT(D93,'Prop DUOS'!C$7:C$75)) -> FALSE | B93: Medium industrial & commercial | C93: Medium industrial & commercial | D93: =IF('Prop DUOS'!B57="","",'Prop DUOS'!B57) -> NEE51 Medium two rate | E93: =IF('Prop DUOS'!C57="","",'Prop DUOS'!C57) -> NEE51 Medium Two Rate 5Day - closed to new customers - <160MWh to NEE21 | F93: ='Prop DUOS'!BL57 -> 9896071.644 | I93: ='Prop DUOS'!CC57 -> 8942070.476
A94: =OR(EXACT(D94,'Prop DUOS'!C$7:C$75)) -> FALSE | B94: Medium industrial & commercial | C94: Medium industrial & commercial | D94: =IF('Prop DUOS'!B58="","",'Prop DUOS'!B58) -> NEE52 Medium unmetered | E94: =IF('Prop DUOS'!C58="","",'Prop DUOS'!C58) -> NEE52 Unmetered | F94: ='Prop DUOS'!BL58 -> 6098369.454 | I94: ='Prop DUOS'!CC58 -> 5510057.065
A95: =OR(EXACT(D95,'Prop DUOS'!C$7:C$75)) -> FALSE | B95: Medium industrial & commercial | C95: Medium industrial & commercial | D95: =IF('Prop DUOS'!B59="","",'Prop DUOS'!B59) -> NEE55 Medium snowfields | E95: =IF('Prop DUOS'!C59="","",'Prop DUOS'!C59) -> NEE55 Snowfields Tariff | F95: ='Prop DUOS'!BL59 -> 17206.15726 | I95: ='Prop DUOS'!CC59 -> 15549.53542
A96: =OR(EXACT(D96,'Prop DUOS'!C$7:C$75)) -> FALSE | B96: Medium industrial & commercial | C96: Medium industrial & commercial | D96: =IF('Prop DUOS'!B60="","",'Prop DUOS'!B60) -> NSP55 Medium interval meter time of use snowfields | E96: =IF('Prop DUOS'!C60="","",'Prop DUOS'!C60) -> NSP55 Snowfields Tariff | F96: ='Prop DUOS'!BL60 -> 97154.87523 | I96: ='Prop DUOS'!CC60 -> 88344.01118
A97: =OR(EXACT(D97,'Prop DUOS'!C$7:C$75)) -> FALSE | B97: Medium industrial & commercial | C97: Medium industrial & commercial | D97: =IF('Prop DUOS'!B61="","",'Prop DUOS'!B61) -> NSP56 Medium critical peak demand 160 MWh to 400 MWh | E97: =IF('Prop DUOS'!C61="","",'Prop DUOS'!C61) -> NSP56 Medium Demand Multi-rate | F97: ='Prop DUOS'!BL61 -> 29749646.37 | I97: ='Prop DUOS'!CC61 -> 26842093.93
A98: =OR(EXACT(D98,'Prop DUOS'!C$7:C$75)) -> FALSE | B98: Medium industrial & commercial | C98: Medium industrial & commercial | D98: =IF('Prop DUOS'!B62="","",'Prop DUOS'!B62) -> NEN56 Medium critical peak demand 160 MWh to 400 MWh within embedded network | E98: =IF('Prop DUOS'!C62="","",'Prop DUOS'!C62) -> NEN56 Medium Demand Multi-rate - Embedded Network | F98: ='Prop DUOS'!BL62 -> 39654.51775 | I98: ='Prop DUOS'!CC62 -> 35810.2301
A99: =OR(EXACT(D99,'Prop DUOS'!C$7:C$75)) -> FALSE | B99: Medium industrial & commercial | C99: Medium industrial & commercial | D99: =IF('Prop DUOS'!B63="","",'Prop DUOS'!B63) -> NEE60 Medium seven day two rate | E99: =IF('Prop DUOS'!C63="","",'Prop DUOS'!C63) -> NEE60 Medium Two Rate 7Day - closed to new customers | F99: ='Prop DUOS'!BL63 -> 1015994.904 | I99: ='Prop DUOS'!CC63 -> 919191.9754
A100: =OR(EXACT(D100,'Prop DUOS'!C$7:C$75)) -> FALSE | B100: Large industrial & commercial | C100: Large industrial & commercial | D100: =IF('Prop DUOS'!B64="","",'Prop DUOS'!B64) -> NEE74 Large two rate | E100: =IF('Prop DUOS'!C64="","",'Prop DUOS'!C64) -> NEE74 LV Large Two Rate 5Day | F100: ='Prop DUOS'!BL64 -> 800184.9578 | I100: ='Prop DUOS'!CC64 -> 722992.4217
A101: =OR(EXACT(D101,'Prop DUOS'!C$7:C$75)) -> FALSE | B101: Large industrial & commercial | C101: Large industrial & commercial | D101: =IF('Prop DUOS'!B65="","",'Prop DUOS'!B65) -> NSP75 Large critical peak demand 400 MWh to 750 MWh | E101: =IF('Prop DUOS'!C65="","",'Prop DUOS'!C65) -> NSP75 Large Multi-rate <750 kVA | F101: ='Prop DUOS'!BL65 -> 30877806.95 | I101: ='Prop DUOS'!CC65 -> 27870838.85
A102: =OR(EXACT(D102,'Prop DUOS'!C$7:C$75)) -> FALSE | B102: Large industrial & commercial | C102: Large industrial & commercial | D102: =IF('Prop DUOS'!B66="","",'Prop DUOS'!B66) -> NSP76 Large critical peak demand 750 MWh to 2000 MWh | E102: =IF('Prop DUOS'!C66="","",'Prop DUOS'!C66) -> NSP76 Large Multi-rate >750 kVA | F102: ='Prop DUOS'!BL66 -> 40665574.87 | I102: ='Prop DUOS'!CC66 -> 36720320.56
A103: =OR(EXACT(D103,'Prop DUOS'!C$7:C$75)) -> FALSE | B103: Large industrial & commercial | C103: Large industrial & commercial | D103: =IF('Prop DUOS'!B67="","",'Prop DUOS'!B67) -> NSP77 Large critical peak demand 2000 MWh to 4000 MWh | E103: =IF('Prop DUOS'!C67="","",'Prop DUOS'!C67) -> NSP77 Large Multi-rate >2 GWh | F103: ='Prop DUOS'!BL67 -> 11651009.23 | I103: ='Prop DUOS'!CC67 -> 10526814.14
A104: =OR(EXACT(D104,'Prop DUOS'!C$7:C$75)) -> FALSE | B104: Large industrial & commercial | C104: Large industrial & commercial | D104: =IF('Prop DUOS'!B68="","",'Prop DUOS'!B68) -> NSP78 Large critical peak demand over 4000 MWh | E104: =IF('Prop DUOS'!C68="","",'Prop DUOS'!C68) -> NSP78 Large Multi-rate >4 GWh | F104: ='Prop DUOS'!BL68 -> 8291634.373 | I104: ='Prop DUOS'!CC68 -> 7491170.424
A105: =OR(EXACT(D105,'Prop DUOS'!C$7:C$75)) -> FALSE | B105: High voltage | C105: High voltage | D105: =IF('Prop DUOS'!B69="","",'Prop DUOS'!B69) -> NSP81 High voltage critical peak demand | E105: =IF('Prop DUOS'!C69="","",'Prop DUOS'!C69) -> NSP81 HV Kva | F105: ='Prop DUOS'!BL69 -> 15065010.34 | I105: ='Prop DUOS'!CC69 -> 13610675.99
A106: =OR(EXACT(D106,'Prop DUOS'!C$7:C$75)) -> FALSE | B106: High voltage | C106: High voltage | D106: =IF('Prop DUOS'!B70="","",'Prop DUOS'!B70) -> NSP82 High voltage critical peak demand traction | E106: =IF('Prop DUOS'!C70="","",'Prop DUOS'!C70) -> NSP82 Traction | F106: ='Prop DUOS'!BL70 -> 0 | I106: ='Prop DUOS'!CC70 -> 0
A107: =OR(EXACT(D107,'Prop DUOS'!C$7:C$75)) -> FALSE | B107: High voltage | C107: High voltage | D107: =IF('Prop DUOS'!B71="","",'Prop DUOS'!B71) -> NSP83 High voltage critical peak demand low energy use | E107: =IF('Prop DUOS'!C71="","",'Prop DUOS'!C71) -> NSP83 Small HV | F107: ='Prop DUOS'!BL71 -> 719591.7556 | I107: ='Prop DUOS'!CC71 -> 650575.324
A108: =OR(EXACT(D108,'Prop DUOS'!C$7:C$75)) -> FALSE | B108: Sub transmission | C108: Sub transmission | D108: =IF('Prop DUOS'!B72="","",'Prop DUOS'!B72) -> NSP91 Sub transmission critical peak demand < 25 MVA & < 20 km from ts | E108: =IF('Prop DUOS'!C72="","",'Prop DUOS'!C72) -> NSP91 ST kVA | F108: ='Prop DUOS'!BL72 -> 0 | I108: ='Prop DUOS'!CC72 -> 0
A109: =OR(EXACT(D109,'Prop DUOS'!C$7:C$75)) -> FALSE | B109: Sub transmission | C109: Sub transmission | D109: =IF('Prop DUOS'!B73="","",'Prop DUOS'!B73) -> NEE93 Large Labtrobe Valley open cut supplies | E109: =IF('Prop DUOS'!C73="","",'Prop DUOS'!C73) -> NEE93 Latrobe Generators kVA (non published) | F109: ='Prop DUOS'!BL73 -> 0 | I109: ='Prop DUOS'!CC73 -> 0
A110: =OR(EXACT(D110,'Prop DUOS'!C$7:C$75)) -> FALSE | B110: Sub transmission | C110: Sub transmission | D110: =IF('Prop DUOS'!B74="","",'Prop DUOS'!B74) -> NSP94 Sub transmission critical peak demand > 25 MVA & < 20 km from ts | E110: =IF('Prop DUOS'!C74="","",'Prop DUOS'!C74) -> NSP94 - ST kVA >25MVA <20kM | F110: ='Prop DUOS'!BL74 -> 0
A111: =OR(EXACT(D111,'Prop DUOS'!C$7:C$75)) -> FALSE | B111: Sub transmission | C111: Sub transmission | D111: =IF('Prop DUOS'!B75="","",'Prop DUOS'!B75) -> NSP95 Sub transmission critical peak demand < 25 MVA & > 20 km from ts | E111: =IF('Prop DUOS'!C75="","",'Prop DUOS'!C75) -> NSP95 - ST kVA <25MVA >20kM | F111: ='Prop DUOS'!BL75 -> 0 | I111: ='Prop DUOS'!CC74 -> 0
B112: Trial tariffs
B113: =IF('Trial tariffs'!C10="","",'Trial tariffs'!C10) ->  | C113: =IF('Trial tariffs'!C10="","",'Trial tariffs'!C10) ->  | D113: =IF('Trial tariffs'!B10="","",'Trial tariffs'!B10) ->  | E113: =IF('Trial tariffs'!B10="","",'Trial tariffs'!B10) ->  | F113: ='Trial tariffs'!T10 -> 0 | I113: ='Trial tariffs'!P10 -> 0
B114: =IF('Trial tariffs'!C11="","",'Trial tariffs'!C11) ->  | C114: =IF('Trial tariffs'!C11="","",'Trial tariffs'!C11) ->  | D114: =IF('Trial tariffs'!B11="","",'Trial tariffs'!B11) ->  | E114: =IF('Trial tariffs'!B11="","",'Trial tariffs'!B11) ->  | F114: ='Trial tariffs'!T11 -> 0 | I114: ='Trial tariffs'!P11 -> 0
B115: =IF('Trial tariffs'!C12="","",'Trial tariffs'!C12) ->  | C115: =IF('Trial tariffs'!C12="","",'Trial tariffs'!C12) ->  | D115: =IF('Trial tariffs'!B12="","",'Trial tariffs'!B12) ->  | E115: =IF('Trial tariffs'!B12="","",'Trial tariffs'!B12) ->  | F115: ='Trial tariffs'!T12 -> 0 | I115: ='Trial tariffs'!P12 -> 0
B116: =IF('Trial tariffs'!C13="","",'Trial tariffs'!C13) ->  | C116: =IF('Trial tariffs'!C13="","",'Trial tariffs'!C13) ->  | D116: =IF('Trial tariffs'!B13="","",'Trial tariffs'!B13) ->  | E116: =IF('Trial tariffs'!B13="","",'Trial tariffs'!B13) ->  | F116: ='Trial tariffs'!T13 -> 0 | I116: ='Trial tariffs'!P13 -> 0
B117: =IF('Trial tariffs'!C14="","",'Trial tariffs'!C14) ->  | C117: =IF('Trial tariffs'!C14="","",'Trial tariffs'!C14) ->  | D117: =IF('Trial tariffs'!B14="","",'Trial tariffs'!B14) ->  | E117: =IF('Trial tariffs'!B14="","",'Trial tariffs'!B14) ->  | F117: ='Trial tariffs'!T14 -> 0 | I117: ='Trial tariffs'!P14 -> 0
B118: =IF('Trial tariffs'!C15="","",'Trial tariffs'!C15) ->  | C118: =IF('Trial tariffs'!C15="","",'Trial tariffs'!C15) ->  | D118: =IF('Trial tariffs'!B15="","",'Trial tariffs'!B15) ->  | E118: =IF('Trial tariffs'!B15="","",'Trial tariffs'!B15) ->  | F118: ='Trial tariffs'!T15 -> 0 | I118: ='Trial tariffs'!P15 -> 0
B119: =IF('Trial tariffs'!C16="","",'Trial tariffs'!C16) ->  | C119: =IF('Trial tariffs'!C16="","",'Trial tariffs'!C16) ->  | D119: =IF('Trial tariffs'!B16="","",'Trial tariffs'!B16) ->  | E119: =IF('Trial tariffs'!B16="","",'Trial tariffs'!B16) ->  | F119: ='Trial tariffs'!T16 -> 0 | I119: ='Trial tariffs'!P16 -> 0
B120: =IF('Trial tariffs'!C17="","",'Trial tariffs'!C17) ->  | C120: =IF('Trial tariffs'!C17="","",'Trial tariffs'!C17) ->  | D120: =IF('Trial tariffs'!B17="","",'Trial tariffs'!B17) ->  | E120: =IF('Trial tariffs'!B17="","",'Trial tariffs'!B17) ->  | F120: ='Trial tariffs'!T17 -> 0 | I120: ='Trial tariffs'!P17 -> 0
B121: =IF('Trial tariffs'!C18="","",'Trial tariffs'!C18) ->  | C121: =IF('Trial tariffs'!C18="","",'Trial tariffs'!C18) ->  | D121: =IF('Trial tariffs'!B18="","",'Trial tariffs'!B18) ->  | E121: =IF('Trial tariffs'!B18="","",'Trial tariffs'!B18) ->  | F121: ='Trial tariffs'!T18 -> 0 | I121: ='Trial tariffs'!P18 -> 0
B122: =IF('Trial tariffs'!C19="","",'Trial tariffs'!C19) ->  | C122: =IF('Trial tariffs'!C19="","",'Trial tariffs'!C19) ->  | D122: =IF('Trial tariffs'!B19="","",'Trial tariffs'!B19) ->  | E122: =IF('Trial tariffs'!B19="","",'Trial tariffs'!B19) ->  | F122: ='Trial tariffs'!T19 -> 0 | I122: ='Trial tariffs'!P19 -> 0
B123: =IF('Trial tariffs'!C20="","",'Trial tariffs'!C20) ->  | C123: =IF('Trial tariffs'!C20="","",'Trial tariffs'!C20) ->  | D123: =IF('Trial tariffs'!B20="","",'Trial tariffs'!B20) ->  | E123: =IF('Trial tariffs'!B20="","",'Trial tariffs'!B20) ->  | F123: ='Trial tariffs'!T20 -> 0 | I123: ='Trial tariffs'!P20 -> 0
B124: =IF('Trial tariffs'!C21="","",'Trial tariffs'!C21) ->  | C124: =IF('Trial tariffs'!C21="","",'Trial tariffs'!C21) ->  | D124: =IF('Trial tariffs'!B21="","",'Trial tariffs'!B21) ->  | E124: =IF('Trial tariffs'!B21="","",'Trial tariffs'!B21) ->  | F124: ='Trial tariffs'!T21 -> 0 | I124: ='Trial tariffs'!P21 -> 0
B125: =IF('Trial tariffs'!C22="","",'Trial tariffs'!C22) ->  | C125: =IF('Trial tariffs'!C22="","",'Trial tariffs'!C22) ->  | D125: =IF('Trial tariffs'!B22="","",'Trial tariffs'!B22) ->  | E125: =IF('Trial tariffs'!B22="","",'Trial tariffs'!B22) ->  | F125: ='Trial tariffs'!T22 -> 0 | I125: ='Trial tariffs'!P22 -> 0
B126: =IF('Trial tariffs'!C23="","",'Trial tariffs'!C23) ->  | C126: =IF('Trial tariffs'!C23="","",'Trial tariffs'!C23) ->  | D126: =IF('Trial tariffs'!B23="","",'Trial tariffs'!B23) ->  | E126: =IF('Trial tariffs'!B23="","",'Trial tariffs'!B23) ->  | F126: ='Trial tariffs'!T23 -> 0 | I126: ='Trial tariffs'!P23 -> 0
B127: =IF('Trial tariffs'!C24="","",'Trial tariffs'!C24) ->  | C127: =IF('Trial tariffs'!C24="","",'Trial tariffs'!C24) ->  | D127: =IF('Trial tariffs'!B24="","",'Trial tariffs'!B24) ->  | E127: =IF('Trial tariffs'!B24="","",'Trial tariffs'!B24) ->  | F127: ='Trial tariffs'!T24 -> 0 | I127: ='Trial tariffs'!P24 -> 0
B128: =IF('Trial tariffs'!C25="","",'Trial tariffs'!C25) ->  | C128: =IF('Trial tariffs'!C25="","",'Trial tariffs'!C25) ->  | D128: =IF('Trial tariffs'!B25="","",'Trial tariffs'!B25) ->  | E128: =IF('Trial tariffs'!B25="","",'Trial tariffs'!B25) ->  | F128: ='Trial tariffs'!T25 -> 0 | I128: ='Trial tariffs'!P25 -> 0
F129: =SUM(F43:F128) -> 653399166.8 | I129: =SUM(I43:I128) -> 387102979.9 | BJ129: =SUM(BJ43:BJ128) -> 0

Sheet Prop DUOS
B1: ="Tariff Approval - "&Input!$E$3 -> Tariff Approval - AusNet Services | C1: Prop DUOS
E2: Tariff names and tariff charging component names can be input on this page
B3: ="PROPOSED "&Input!$E$7&" DISTRIBUTION TARIFFS" -> PROPOSED 2021/22 DISTRIBUTION TARIFFS
E4: ="Proposed Distribution Tariffs (Pt) for "&Input!$E$7 -> Proposed Distribution Tariffs (Pt) for 2021/22 | T4: ="Forecast Quantities (Qt) for "&Input!$E$7 -> Forecast Quantities (Qt) for 2021/22 | AI4: ="Current Distribution Tariffs (Pt-1) for "&Input!$E$8 -> Current Distribution Tariffs (Pt-1) for HY21 | AX4: ="Forecast Revenue (Pt "&Input!$E$7&")*(Qt " &Input!$E$7&")" -> Forecast Revenue (Pt 2021/22)*(Qt 2021/22) | BO4: ="Revenue (Pt-1 "&Input!$E$8&")*(Qt " &Input!$E$7&")" -> Revenue (Pt-1 HY21)*(Qt 2021/22)
E5: Fixed charges | F5: Consumption charges | N5: Demand charges
B6: Proposed tariff | C6: Existing tariff | E6: Standing charge | F6: Anytime | G6: Pk / Blk1 | H6: Off Pk / Blk2 | I6: Shoulder | J6: SummerPk | K6: WinterPk | L6: FeedIn | M6: DedCirc | N6: Dem1 | O6: Capacity | P6: CriticalPk | Q6: MonthlyPkDem | R6: MonthlyOPkDem | T6: =E6 -> Standing charge | U6: Anytime | V6: Pk / Blk1 | W6: Off Pk / Blk2 | X6: Shoulder | Y6: SummerPk | Z6: WinterPk | AA6: FeedIn | AB6: DedCirc | AC6: Dem1 | AD6: Capacity | AE6: CriticalPk | AF6: MonthlyPkDem | AG6: MonthlyOPkDem | AI6: =E6 -> Standing charge | AJ6: Anytime | AK6: Pk / Blk1 | AL6: Off Pk / Blk2 | AM6: Shoulder | AN6: SummerPk | AO6: WinterPk | AP6: FeedIn | AQ6: DedCirc | AR6: Dem1 | AS6: Capacity | AT6: CriticalPk | AU6: MonthlyPkDem | AV6: MonthlyOPkDem | AX6: =E6 -> Standing charge | AY6: Anytime | AZ6: Pk / Blk1 | BA6: Off Pk / Blk2 | BB6: Shoulder | BC6: SummerPk | BD6: WinterPk | BE6: FeedIn | BF6: DedCirc | BG6: Dem1 | BH6: Capacity | BI6: CriticalPk | BJ6: MonthlyPkDem | BK6: MonthlyOPkDem | BL6: Total | BM6: % | BO6: =E6 -> Standing charge | BP6: Anytime | BQ6: Pk / Blk1 | BR6: Off Pk / Blk2 | BS6: Shoulder | BT6: SummerPk | BU6: WinterPk | BV6: FeedIn | BW6: DedCirc | BX6: Dem1 | BY6: Capacity | BZ6: CriticalPk | CA6: MonthlyPkDem | CB6: MonthlyOPkDem | CC6: Total
A7: NEE11 | B7: NEE11 Small single rate | C7: NEE11 Small Single Rate < 160MWh | D7: =IF(B7="","",INDEX('Side constraints'!$B$33:$B$111,MATCH('Prop DUOS'!B7,'Side constraints'!$D$33:$D$111,0),1)) -> Residential | E7: 111.1130286 | F7: 0 | G7: 8.848511589 | H7: 10.23645892 | I7: 0 | J7: 0 | K7: 0 | L7: 0 | M7: 0 | N7: 0 | O7: 0 | P7: 0 | Q7: 0 | R7: 0 | T7: 377745.5552 | U7: 0 | V7: 1130774768 | W7: 456572695.7 | X7: 0 | Y7: 0 | Z7: 0 | AA7: 0 | AB7: 0 | AC7: 0 | AD7: 0 | AE7: 0 | AF7: 0 | AG7: 0 | AI7: =IFERROR(VLOOKUP($C7,'t-1 DUOS'!$B$7:$Q$55,3,FALSE),0) -> 106 | AJ7: =IFERROR(VLOOKUP($C7,'t-1 DUOS'!$B$7:$Q$55,4,FALSE),0) -> 0 | AK7: =IFERROR(VLOOKUP($C7,'t-1 DUOS'!$B$7:$Q$55,5,FALSE),0) -> 7.839 | AL7: =IFERROR(VLOOKUP($C7,'t-1 DUOS'!$B$7:$Q$55,6,FALSE),0) -> 9.3777 | AM7: =IFERROR(VLOOKUP($C7,'t-1 DUOS'!$B$7:$Q$55,7,FALSE),0) -> 0 | AN7: =IFERROR(VLOOKUP($C7,'t-1 DUOS'!$B$7:$Q$55,8,FALSE),0) -> 0 | AO7: =IFERROR(VLOOKUP($C7,'t-1 DUOS'!$B$7:$Q$55,9,FALSE),0) -> 0 | AP7: =IFERROR(VLOOKUP($C7,'t-1 DUOS'!$B$7:$Q$55,10,FALSE),0) -> 0 | AQ7: =IFERROR(VLOOKUP($C7,'t-1 DUOS'!$B$7:$Q$55,11,FALSE),0) -> 0 | AR7: =IFERROR(VLOOKUP($C7,'t-1 DUOS'!$B$7:$Q$55,12,FALSE),0) -> 0 | AS7: =IFERROR(VLOOKUP($C7,'t-1 DUOS'!$B$7:$Q$55,13,FALSE),0) -> 0 | AT7: =IFERROR(VLOOKUP($C7,'t-1 DUOS'!$B$7:$Q$55,14,FALSE),0) -> 0 | AU7: =IFERROR(VLOOKUP($C7,'t-1 DUOS'!$B$7:$Q$55,15,FALSE),0) -> 0 | AV7: =IFERROR(VLOOKUP($C7,'t-1 DUOS'!$B$7:$Q$55,16,FALSE),0) -> 0 | AX7: =IF($E$78="cents",E7/100,E7)*IF($E$80="day",T7*$D$83,T7) -> 41972452.67 | AY7: =IF(F$78="cents",F7/100,F7)*U7 -> 0 | AZ7: =IF(G$78="cents",G7/100,G7)*V7 -> 100056736.4 | BA7: =IF(H$78="cents",H7/100,H7)*W7 -> 46736876.44 | BB7: =IF(I$78="cents",I7/100,I7)*X7 -> 0 | BC7: =IF(J$78="cents",J7/100,J7)*Y7 -> 0 | BD7: =IF(K$78="cents",K7/100,K7)*Z7 -> 0 | BE7: =IF(L$78="cents",L7/100,L7)*AA7 -> 0 | BF7: =IF(M$78="cents",M7/100,M7)*AB7 -> 0 | BG7: =IF(N$78="cents",N7/100,N7)*IF(N$80="day",AC7*$D$83,IF(N$80="month",AC7*12,AC7)) -> 0 | BH7: =IF(O$78="cents",O7/100,O7)*IF(O$80="day",AD7*$D$83,IF(O$80="month",AD7*12,AD7)) -> 0 | BI7: =IF(P$78="cents",P7/100,P7)*IF(P$80="day",AE7*$D$83,IF(P$80="month",AE7*12,AE7)) -> 0 | BJ7: =IF(Q$78="cents",Q7/100,Q7)*IF(Q$80="day",AF7*$D$83,IF(Q$80="month",AF7*12,AF7)) -> 0 | BK7: =IF(R$78="cents",R7/100,R7)*IF(R$80="day",AG7*$D$83,IF(R$80="month",AG7*12,AG7)) -> 0 | BL7: =SUM(AX7:BK7) -> 188766065.5 | BM7: =IF(BL7=0,"",BL7/$BL$76) -> 0.285651074 | BO7: =IF($E$78="cents",AI7/100,AI7)*IF($E$80="day",T7*$D$83,T7) -> 40041028.85 | BP7: =IF(F$78="cents",AJ7/100,AJ7)*U7 -> 0 | BQ7: =IF(G$78="cents",AK7/100,AK7)*V7 -> 88641434.09 | BR7: =IF(H$78="cents",AL7/100,AL7)*W7 -> 42816017.69 | BS7: =IF(I$78="cents",AM7/100,AM7)*X7 -> 0 | BT7: =IF(J$78="cents",AN7/100,AN7)*Y7 -> 0 | BU7: =IF(K$78="cents",AO7/100,AO7)*Z7 -> 0 | BV7: =IF(L$78="cents",AP7/100,AP7)*AA7 -> 0 | BW7: =IF(M$78="cents",AQ7/100,AQ7)*AB7 -> 0 | BX7: =IF(N$78="cents",AR7/100,AR7)*IF(N$80="day",AC7*$D$83,IF(N$80="month",AC7*12,AC7)) -> 0 | BY7: =IF(O$78="cents",AS7/100,AS7)*IF(O$80="day",AD7*$D$83,IF(O$80="month",AD7*12,AD7)) -> 0 | BZ7: =IF(P$78="cents",AT7/100,AT7)*IF(P$80="day",AE7*$D$83,IF(P$80="month",AE7*12,AE7)) -> 0 | CA7: =IF(Q$78="cents",AU7/100,AU7)*IF(Q$80="day",AF7*$D$83,IF(Q$80="month",AF7*12,AF7)) -> 0 | CB7: =IF(R$78="cents",AV7/100,AV7)*IF(R$80="day",AG7*$D$83,IF(R$80="month",AG7*12,AG7)) -> 0 | CC7: =SUM(BO7:CB7) -> 171498480.6
A8: NEE11S | B8: NEE11S Small single rate standard feed in | C8: NEE11 Small Single Rate < 160MWh | D8: =IF(B8="","",INDEX('Side constraints'!$B$33:$B$111,MATCH('Prop DUOS'!B8,'Side constraints'!$D$33:$D$111,0),1)) -> Residential | E8: 111.1130286 | F8: 0 | G8: 8.848511589 | H8: 10.23645892 | I8: 0 | J8: 0 | K8: 0 | L8: 0 | M8: 0 | N8: 0 | O8: 0 | P8: 0 | Q8: 0 | R8: 0 | T8: 0 | U8: 0 | V8: 0 | W8: 0 | X8: 0 | Y8: 0 | Z8: 0 | AA8: 0 | AB8: 0 | AC8: 0 | AD8: 0 | AE8: 0 | AF8: 0 | AG8: 0 | AI8: =IFERROR(VLOOKUP(C8,'t-1 DUOS'!$B$7:$Q$55,3,FALSE),0) -> 106 | AJ8: =IFERROR(VLOOKUP($C8,'t-1 DUOS'!$B$7:$Q$55,4,FALSE),0) -> 0 | AK8: =IFERROR(VLOOKUP($C8,'t-1 DUOS'!$B$7:$Q$55,5,FALSE),0) -> 7.839 | AL8: =IFERROR(VLOOKUP($C8,'t-1 DUOS'!$B$7:$Q$55,6,FALSE),0) -> 9.3777 | AM8: =IFERROR(VLOOKUP($C8,'t-1 DUOS'!$B$7:$Q$55,7,FALSE),0) -> 0 | AN8: =IFERROR(VLOOKUP($C8,'t-1 DUOS'!$B$7:$Q$55,8,FALSE),0) -> 0 | AO8: =IFERROR(VLOOKUP($C8,'t-1 DUOS'!$B$7:$Q$55,9,FALSE),0) -> 0 | AP8: =IFERROR(VLOOKUP($C8,'t-1 DUOS'!$B$7:$Q$55,10,FALSE),0) -> 0 | AQ8: =IFERROR(VLOOKUP($C8,'t-1 DUOS'!$B$7:$Q$55,11,FALSE),0) -> 0 | AR8: =IFERROR(VLOOKUP($C8,'t-1 DUOS'!$B$7:$Q$55,12,FALSE),0) -> 0 | AS8: =IFERROR(VLOOKUP($C8,'t-1 DUOS'!$B$7:$Q$55,13,FALSE),0) -> 0 | AT8: =IFERROR(VLOOKUP($C8,'t-1 DUOS'!$B$7:$Q$55,14,FALSE),0) -> 0 | AU8: =IFERROR(VLOOKUP($C8,'t-1 DUOS'!$B$7:$Q$55,15,FALSE),0) -> 0 | AV8: =IFERROR(VLOOKUP($C8,'t-1 DUOS'!$B$7:$Q$55,16,FALSE),0) -> 0 | AX8: 0 | AY8: 0 | AZ8: 0 | BA8: 0 | BB8: 0 | BC8: 0 | BD8: 0 | BE8: 0 | BF8: 0 | BG8: 0 | BH8: 0 | BI8: 0 | BJ8: 0 | BK8: 0 | BL8: =SUM(AX8:BK8) -> 0 | BO8: 0 | BP8: 0 | BQ8: 0 | BR8: 0 | BS8: 0 | BT8: 0 | BU8: 0 | BV8: 0 | BW8: 0 | BX8: 0 | BY8: 0 | BZ8: 0 | CA8: 0 | CB8: 0 | CC8: =SUM(BO8:CB8) -> 0
A9: NEE11P | B9: NEE11P Small single rate premium feed in | C9: NEE11 Small Single Rate < 160MWh | D9: =IF(B9="","",INDEX('Side constraints'!$B$33:$B$111,MATCH('Prop DUOS'!B9,'Side constraints'!$D$33:$D$111,0),1)) -> Residential | E9: 111.1130286 | F9: 0 | G9: 8.848511589 | H9: 10.23645892 | I9: 0 | J9: 0 | K9: 0 | L9: 0 | M9: 0 | N9: 0 | O9: 0 | P9: 0 | Q9: 0 | R9: 0 | T9: 0 | U9: 0 | V9: 0 | W9: 0 | X9: 0 | Y9: 0 | Z9: 0 | AA9: 0 | AB9: 0 | AC9: 0 | AD9: 0 | AE9: 0 | AF9: 0 | AG9: 0 | AI9: =IFERROR(VLOOKUP(C9,'t-1 DUOS'!$B$7:$Q$55,3,FALSE),0) -> 106 | AJ9: =IFERROR(VLOOKUP($C9,'t-1 DUOS'!$B$7:$Q$55,4,FALSE),0) -> 0 | AK9: =IFERROR(VLOOKUP($C9,'t-1 DUOS'!$B$7:$Q$55,5,FALSE),0) -> 7.839 | AL9: =IFERROR(VLOOKUP($C9,'t-1 DUOS'!$B$7:$Q$55,6,FALSE),0) -> 9.3777 | AM9: =IFERROR(VLOOKUP($C9,'t-1 DUOS'!$B$7:$Q$55,7,FALSE),0) -> 0 | AN9: =IFERROR(VLOOKUP($C9,'t-1 DUOS'!$B$7:$Q$55,8,FALSE),0) -> 0 | AO9: =IFERROR(VLOOKUP($C9,'t-1 DUOS'!$B$7:$Q$55,9,FALSE),0) -> 0 | AP9: =IFERROR(VLOOKUP($C9,'t-1 DUOS'!$B$7:$Q$55,10,FALSE),0) -> 0 | AQ9: =IFERROR(VLOOKUP($C9,'t-1 DUOS'!$B$7:$Q$55,11,FALSE),0) -> 0 | AR9: =IFERROR(VLOOKUP($C9,'t-1 DUOS'!$B$7:$Q$55,12,FALSE),0) -> 0 | AS9: =IFERROR(VLOOKUP($C9,'t-1 DUOS'!$B$7:$Q$55,13,FALSE),0) -> 0 | AT9: =IFERROR(VLOOKUP($C9,'t-1 DUOS'!$B$7:$Q$55,14,FALSE),0) -> 0 | AU9: =IFERROR(VLOOKUP($C9,'t-1 DUOS'!$B$7:$Q$55,15,FALSE),0) -> 0 | AV9: =IFERROR(VLOOKUP($C9,'t-1 DUOS'!$B$7:$Q$55,16,FALSE),0) -> 0 | AX9: 0 | AY9: 0 | AZ9: 0 | BA9: 0 | BB9: 0 | BC9: 0 | BD9: 0 | BE9: 0 | BF9: 0 | BG9: 0 | BH9: 0 | BI9: 0 | BJ9: 0 | BK9: 0 | BL9: 0 | BO9: 0 | BP9: 0 | BQ9: 0 | BR9: 0 | BS9: 0 | BT9: 0 | BU9: 0 | BV9: 0 | BW9: 0 | BX9: 0 | BY9: 0 | BZ9: 0 | CA9: 0 | CB9: 0 | CC9: 0
A10: NEN11 | B10: NEN11 Small single rate within embedded network | C10: NEN11 Small Single Rate < 160MWh Embedded Network | D10: =IF(B10="","",INDEX('Side constraints'!$B$33:$B$111,MATCH('Prop DUOS'!B10,'Side constraints'!$D$33:$D$111,0),1)) -> Residential | E10: 111.1130286 | F10: 0 | G10: 5.474453559 | H10: 6.016577578 | I10: 0 | J10: 0 | K10: 0 | L10: 0 | M10: 0 | N10: 0 | O10: 0 | P10: 0 | Q10: 0 | R10: 0 | T10: 0 | U10: 0 | V10: 0 | W10: 0 | X10: 0 | Y10: 0 | Z10: 0 | AA10: 0 | AB10: 0 | AC10: 0 | AD10: 0 | AE10: 0 | AF10: 0 | AG10: 0 | AI10: =IFERROR(VLOOKUP(C10,'t-1 DUOS'!$B$7:$Q$55,3,FALSE),0) -> 106 | AJ10: =IFERROR(VLOOKUP($C10,'t-1 DUOS'!$B$7:$Q$55,4,FALSE),0) -> 0 | AK10: =IFERROR(VLOOKUP($C10,'t-1 DUOS'!$B$7:$Q$55,5,FALSE),0) -> 4.8059 | AL10: =IFERROR(VLOOKUP($C10,'t-1 DUOS'!$B$7:$Q$55,6,FALSE),0) -> 5.2818 | AM10: =IFERROR(VLOOKUP($C10,'t-1 DUOS'!$B$7:$Q$55,7,FALSE),0) -> 0 | AN10: =IFERROR(VLOOKUP($C10,'t-1 DUOS'!$B$7:$Q$55,8,FALSE),0) -> 0 | AO10: =IFERROR(VLOOKUP($C10,'t-1 DUOS'!$B$7:$Q$55,9,FALSE),0) -> 0 | AP10: =IFERROR(VLOOKUP($C10,'t-1 DUOS'!$B$7:$Q$55,10,FALSE),0) -> 0 | AQ10: =IFERROR(VLOOKUP($C10,'t-1 DUOS'!$B$7:$Q$55,11,FALSE),0) -> 0 | AR10: =IFERROR(VLOOKUP($C10,'t-1 DUOS'!$B$7:$Q$55,12,FALSE),0) -> 0 | AS10: =IFERROR(VLOOKUP($C10,'t-1 DUOS'!$B$7:$Q$55,13,FALSE),0) -> 0 | AT10: =IFERROR(VLOOKUP($C10,'t-1 DUOS'!$B$7:$Q$55,14,FALSE),0) -> 0 | AU10: =IFERROR(VLOOKUP($C10,'t-1 DUOS'!$B$7:$Q$55,15,FALSE),0) -> 0 | AV10: =IFERROR(VLOOKUP($C10,'t-1 DUOS'!$B$7:$Q$55,16,FALSE),0) -> 0 | AX10: 0 | AY10: 0 | AZ10: 0 | BA10: 0 | BB10: 0 | BC10: 0 | BD10: 0 | BE10: 0 | BF10: 0 | BG10: 0 | BH10: 0 | BI10: 0 | BJ10: 0 | BK10: 0 | BL10: 0 | BO10: 0 | BP10: 0 | BQ10: 0 | BR10: 0 | BS10: 0 | BT10: 0 | BU10: 0 | BV10: 0 | BW10: 0 | BX10: 0 | BY10: 0 | BZ10: 0 | CA10: 0 | CB10: 0 | CC10: 0
A11: NEE13 | B11: NEE13 Small single rate & dedicated circuit | D11: =IF(B11="","",INDEX('Side constraints'!$B$33:$B$111,MATCH('Prop DUOS'!B11,'Side constraints'!$D$33:$D$111,0),1)) -> Residential | E11: 111.1130286 | F11: 0 | G11: 8.848511589 | H11: 10.23645892 | I11: 0 | J11: 0 | K11: 0 | L11: 0 | M11: 3.238880222 | N11: 0 | O11: 0 | P11: 0 | Q11: 0 | R11: 0 | T11: 84027.53449 | U11: 0 | V11: 248619338.6 | W11: 126453757.4 | X11: 0 | Y11: 0 | Z11: 0 | AA11: 0 | AB11: 115709193.5 | AC11: 0 | AD11: 0 | AE11: 0 | AF11: 0 | AG11: 0 | AI11: =IFERROR(VLOOKUP(C11,'t-1 DUOS'!$B$7:$Q$55,3,FALSE),0) -> 0 | AJ11: =IFERROR(VLOOKUP($C11,'t-1 DUOS'!$B$7:$Q$55,4,FALSE),0) -> 0 | AK11: =IFERROR(VLOOKUP($C11,'t-1 DUOS'!$B$7:$Q$55,5,FALSE),0) -> 0 | AL11: =IFERROR(VLOOKUP($C11,'t-1 DUOS'!$B$7:$Q$55,6,FALSE),0) -> 0 | AM11: =IFERROR(VLOOKUP($C11,'t-1 DUOS'!$B$7:$Q$55,7,FALSE),0) -> 0 | AN11: =IFERROR(VLOOKUP($C11,'t-1 DUOS'!$B$7:$Q$55,8,FALSE),0) -> 0 | AO11: =IFERROR(VLOOKUP($C11,'t-1 DUOS'!$B$7:$Q$55,9,FALSE),0) -> 0 | AP11: =IFERROR(VLOOKUP($C11,'t-1 DUOS'!$B$7:$Q$55,10,FALSE),0) -> 0 | AQ11: =IFERROR(VLOOKUP($C11,'t-1 DUOS'!$B$7:$Q$55,11,FALSE),0) -> 0 | AR11: =IFERROR(VLOOKUP($C11,'t-1 DUOS'!$B$7:$Q$55,12,FALSE),0) -> 0 | AS11: =IFERROR(VLOOKUP($C11,'t-1 DUOS'!$B$7:$Q$55,13,FALSE),0) -> 0 | AT11: =IFERROR(VLOOKUP($C11,'t-1 DUOS'!$B$7:$Q$55,14,FALSE),0) -> 0 | AU11: =IFERROR(VLOOKUP($C11,'t-1 DUOS'!$B$7:$Q$55,15,FALSE),0) -> 0 | AV11: =IFERROR(VLOOKUP($C11,'t-1 DUOS'!$B$7:$Q$55,16,FALSE),0) -> 0 | AX11: 9336553.842 | AY11: 0 | AZ11: 21999110.99 | BA11: 12944386.93 | BB11: 0 | BC11: 0 | BD11: 0 | BE11: 0 | BF11: 3747682.185 | BG11: 0 | BH11: 0 | BI11: 0 | BJ11: 0 | BK11: 0 | BL11: 48027733.94 | BM11: 0.07267817838 | BO11: 0 | BP11: 0 | BQ11: 0 | BR11: 0 | BS11: 0 | BT11: 0 | BU11: 0 | BV11: 0 | BW11: 0 | BX11: 0 | BY11: 0 | BZ11: 0 | CA11: 0 | CB11: 0 | CC11: 0
A12: NEE14 | B12: NEE14 Small single rate & dedicated circuit with afternoon boost | D12: =IF(B12="","",INDEX('Side constraints'!$B$33:$B$111,MATCH('Prop DUOS'!B12,'Side constraints'!$D$33:$D$111,0),1)) -> Residential | E12: 111.1130286 | F12: 0 | G12: 8.848511589 | H12: 10.23645892 | I12: 0 | J12: 0 | K12: 0 | L12: 0 | M12: 3.238880222 | N12: 0 | O12: 0 | P12: 0 | Q12: 0 | R12: 0 | T12: 12420.23362 | U12: 0 | V12: 37720999.99 | W12: 22895715.68 | X12: 0 | Y12: 0 | Z12: 0 | AA12: 0 | AB12: 37699891.35 | AC12: 0 | AD12: 0 | AE12: 0 | AF12: 0 | AG12: 0 | AI12: =IFERROR(VLOOKUP(C12,'t-1 DUOS'!$B$7:$Q$55,3,FALSE),0) -> 0 | AJ12: =IFERROR(VLOOKUP($C12,'t-1 DUOS'!$B$7:$Q$55,4,FALSE),0) -> 0 | AK12: =IFERROR(VLOOKUP($C12,'t-1 DUOS'!$B$7:$Q$55,5,FALSE),0) -> 0 | AL12: =IFERROR(VLOOKUP($C12,'t-1 DUOS'!$B$7:$Q$55,6,FALSE),0) -> 0 | AM12: =IFERROR(VLOOKUP($C12,'t-1 DUOS'!$B$7:$Q$55,7,FALSE),0) -> 0 | AN12: =IFERROR(VLOOKUP($C12,'t-1 DUOS'!$B$7:$Q$55,8,FALSE),0) -> 0 | AO12: =IFERROR(VLOOKUP($C12,'t-1 DUOS'!$B$7:$Q$55,9,FALSE),0) -> 0 | AP12: =IFERROR(VLOOKUP($C12,'t-1 DUOS'!$B$7:$Q$55,10,FALSE),0) -> 0 | AQ12: =IFERROR(VLOOKUP($C12,'t-1 DUOS'!$B$7:$Q$55,11,FALSE),0) -> 0 | AR12: =IFERROR(VLOOKUP($C12,'t-1 DUOS'!$B$7:$Q$55,12,FALSE),0) -> 0 | AS12: =IFERROR(VLOOKUP($C12,'t-1 DUOS'!$B$7:$Q$55,13,FALSE),0) -> 0 | AT12: =IFERROR(VLOOKUP($C12,'t-1 DUOS'!$B$7:$Q$55,14,FALSE),0) -> 0 | AU12: =IFERROR(VLOOKUP($C12,'t-1 DUOS'!$B$7:$Q$55,15,FALSE),0) -> 0 | AV12: =IFERROR(VLOOKUP($C12,'t-1 DUOS'!$B$7:$Q$55,16,FALSE),0) -> 0 | AX12: 1380049.774 | AY12: 0 | AZ12: 3337747.055 | BA12: 2343710.53 | BB12: 0 | BC12: 0 | BD12: 0 | BE12: 0 | BF12: 1221054.325 | BG12: 0 | BH12: 0 | BI12: 0 | BJ12: 0 | BK12: 0 | BL12: 8282561.684 | BM12: 0.01253362268 | BO12: 0 | BP12: 0 | BQ12: 0 | BR12: 0 | BS12: 0 | BT12: 0 | BU12: 0 | BV12: 0 | BW12: 0 | BX12: 0 | BY12: 0 | BZ12: 0 | CA12: 0 | CB12: 0 | CC12: 0
A13: NEE15 | B13: NEE15 Small single rate & dedicated circuit 8:00 to 8:00 | D13: =IF(B13="","",INDEX('Side constraints'!$B$33:$B$111,MATCH('Prop DUOS'!B13,'Side constraints'!$D$33:$D$111,0),1)) -> Residential | E13: 111.1130286 | F13: 0 | G13: 8.848511589 | H13: 10.23645892 | I13: 0 | J13: 0 | K13: 0 | L13: 0 | M13: 3.238880222 | N13: 0 | O13: 0 | P13: 0 | Q13: 0 | R13: 0 | T13: 3608.629806 | U13: 0 | V13: 8362757.46 | W13: 2885912.968 | X13: 0 | Y13: 0 | Z13: 0 | AA13: 0 | AB13: 4735827.493 | AC13: 0 | AD13: 0 | AE13: 0 | AF13: 0 | AG13: 0 | AI13: =IFERROR(VLOOKUP(C13,'t-1 DUOS'!$B$7:$Q$55,3,FALSE),0) -> 0 | AJ13: =IFERROR(VLOOKUP($C13,'t-1 DUOS'!$B$7:$Q$55,4,FALSE),0) -> 0 | AK13: =IFERROR(VLOOKUP($C13,'t-1 DUOS'!$B$7:$Q$55,5,FALSE),0) -> 0 | AL13: =IFERROR(VLOOKUP($C13,'t-1 DUOS'!$B$7:$Q$55,6,FALSE),0) -> 0 | AM13: =IFERROR(VLOOKUP($C13,'t-1 DUOS'!$B$7:$Q$55,7,FALSE),0) -> 0 | AN13: =IFERROR(VLOOKUP($C13,'t-1 DUOS'!$B$7:$Q$55,8,FALSE),0) -> 0 | AO13: =IFERROR(VLOOKUP($C13,'t-1 DUOS'!$B$7:$Q$55,9,FALSE),0) -> 0 | AP13: =IFERROR(VLOOKUP($C13,'t-1 DUOS'!$B$7:$Q$55,10,FALSE),0) -> 0 | AQ13: =IFERROR(VLOOKUP($C13,'t-1 DUOS'!$B$7:$Q$55,11,FALSE),0) -> 0 | AR13: =IFERROR(VLOOKUP($C13,'t-1 DUOS'!$B$7:$Q$55,12,FALSE),0) -> 0 | AS13: =IFERROR(VLOOKUP($C13,'t-1 DUOS'!$B$7:$Q$55,13,FALSE),0) -> 0 | AT13: =IFERROR(VLOOKUP($C13,'t-1 DUOS'!$B$7:$Q$55,14,FALSE),0) -> 0 | AU13: =IFERROR(VLOOKUP($C13,'t-1 DUOS'!$B$7:$Q$55,15,FALSE),0) -> 0 | AV13: =IFERROR(VLOOKUP($C13,'t-1 DUOS'!$B$7:$Q$55,16,FALSE),0) -> 0 | AX13: 400965.7868 | AY13: 0 | AZ13: 739979.563 | BA13: 295415.2955 | BB13: 0 | BC13: 0 | BD13: 0 | BE13: 0 | BF13: 153387.78 | BG13: 0 | BH13: 0 | BI13: 0 | BJ13: 0 | BK13: 0 | BL13: 1589748.425 | BM13: 0.002405693755 | BO13: 0 | BP13: 0 | BQ13: 0 | BR13: 0 | BS13: 0 | BT13: 0 | BU13: 0 | BV13: 0 | BW13: 0 | BX13: 0 | BY13: 0 | BZ13: 0 | CA13: 0 | CB13: 0 | CC13: 0
A14: NAST11 | B14: NAST11 Small residential time of use | D14: =IF(B14="","",INDEX('Side constraints'!$B$33:$B$111,MATCH('Prop DUOS'!B14,'Side constraints'!$D$33:$D$111,0),1)) -> Residential | E14: 111.1130286 | F14: 0 | G14: 18.25149678 | H14: 3.318453959 | I14: 0 | J14: 0 | K14: 0 | L14: 0 | M14: 0 | N14: 0 | O14: 0 | P14: 0 | Q14: 0 | R14: 0 | T14: 60822.65631 | U14: 0 | V14: 105611798.9 | W14: 276986083.7 | X14: 0 | Y14: 0 | Z14: 0 | AA14: 0 | AB14: 0 | AC14: 0 | AD14: 0 | AE14: 0 | AF14: 0 | AG14: 0 | AI14: =IFERROR(VLOOKUP(C14,'t-1 DUOS'!$B$7:$Q$55,3,FALSE),0) -> 0 | AJ14: =IFERROR(VLOOKUP($C14,'t-1 DUOS'!$B$7:$Q$55,4,FALSE),0) -> 0 | AK14: =IFERROR(VLOOKUP($C14,'t-1 DUOS'!$B$7:$Q$55,5,FALSE),0) -> 0 | AL14: =IFERROR(VLOOKUP($C14,'t-1 DUOS'!$B$7:$Q$55,6,FALSE),0) -> 0 | AM14: =IFERROR(VLOOKUP($C14,'t-1 DUOS'!$B$7:$Q$55,7,FALSE),0) -> 0 | AN14: =IFERROR(VLOOKUP($C14,'t-1 DUOS'!$B$7:$Q$55,8,FALSE),0) -> 0 | AO14: =IFERROR(VLOOKUP($C14,'t-1 DUOS'!$B$7:$Q$55,9,FALSE),0) -> 0 | AP14: =IFERROR(VLOOKUP($C14,'t-1 DUOS'!$B$7:$Q$55,10,FALSE),0) -> 0 | AQ14: =IFERROR(VLOOKUP($C14,'t-1 DUOS'!$B$7:$Q$55,11,FALSE),0) -> 0 | AR14: =IFERROR(VLOOKUP($C14,'t-1 DUOS'!$B$7:$Q$55,12,FALSE),0) -> 0 | AS14: =IFERROR(VLOOKUP($C14,'t-1 DUOS'!$B$7:$Q$55,13,FALSE),0) -> 0 | AT14: =IFERROR(VLOOKUP($C14,'t-1 DUOS'!$B$7:$Q$55,14,FALSE),0) -> 0 | AU14: =IFERROR(VLOOKUP($C14,'t-1 DUOS'!$B$7:$Q$55,15,FALSE),0) -> 0 | AV14: =IFERROR(VLOOKUP($C14,'t-1 DUOS'!$B$7:$Q$55,16,FALSE),0) -> 0 | AX14: 6758189.549 | AY14: 0 | AZ14: 19275734.06 | BA14: 9191655.662 | BB14: 0 | BC14: 0 | BD14: 0 | BE14: 0 | BF14: 0 | BG14: 0 | BH14: 0 | BI14: 0 | BJ14: 0 | BK14: 0 | BL14: 35225579.27 | BM14: 0.05330526185 | BO14: 0 | BP14: 0 | BQ14: 0 | BR14: 0 | BS14: 0 | BT14: 0 | BU14: 0 | BV14: 0 | BW14: 0 | BX14: 0 | BY14: 0 | BZ14: 0 | CA14: 0 | CB14: 0 | CC14: 0
A15: NAST11S | B15: NAST11S Small residential time of use standard feed in | D15: =IF(B15="","",INDEX('Side constraints'!$B$33:$B$111,MATCH('Prop DUOS'!B15,'Side constraints'!$D$33:$D$111,0),1)) -> Residential | E15: 111.1130286 | F15: 0 | G15: 18.25149678 | H15: 3.318453959 | I15: 0 | J15: 0 | K15: 0 | L15: 0 | M15: 0 | N15: 0 | O15: 0 | P15: 0 | Q15: 0 | R15: 0 | T15: 135629.2384 | U15: 0 | V15: 183010995.1 | W15: 374531151.1 | X15: 0 | Y15: 0 | Z15: 0 | AA15: 0 | AB15: 0 | AC15: 0 | AD15: 0 | AE15: 0 | AF15: 0 | AG15: 0 | AI15: =IFERROR(VLOOKUP(C15,'t-1 DUOS'!$B$7:$Q$55,3,FALSE),0) -> 0 | AJ15: =IFERROR(VLOOKUP($C15,'t-1 DUOS'!$B$7:$Q$55,4,FALSE),0) -> 0 | AK15: =IFERROR(VLOOKUP($C15,'t-1 DUOS'!$B$7:$Q$55,5,FALSE),0) -> 0 | AL15: =IFERROR(VLOOKUP($C15,'t-1 DUOS'!$B$7:$Q$55,6,FALSE),0) -> 0 | AM15: =IFERROR(VLOOKUP($C15,'t-1 DUOS'!$B$7:$Q$55,7,FALSE),0) -> 0 | AN15: =IFERROR(VLOOKUP($C15,'t-1 DUOS'!$B$7:$Q$55,8,FALSE),0) -> 0 | AO15: =IFERROR(VLOOKUP($C15,'t-1 DUOS'!$B$7:$Q$55,9,FALSE),0) -> 0 | AP15: =IFERROR(VLOOKUP($C15,'t-1 DUOS'!$B$7:$Q$55,10,FALSE),0) -> 0 | AQ15: =IFERROR(VLOOKUP($C15,'t-1 DUOS'!$B$7:$Q$55,11,FALSE),0) -> 0 | AR15: =IFERROR(VLOOKUP($C15,'t-1 DUOS'!$B$7:$Q$55,12,FALSE),0) -> 0 | AS15: =IFERROR(VLOOKUP($C15,'t-1 DUOS'!$B$7:$Q$55,13,FALSE),0) -> 0 | AT15: =IFERROR(VLOOKUP($C15,'t-1 DUOS'!$B$7:$Q$55,14,FALSE),0) -> 0 | AU15: =IFERROR(VLOOKUP($C15,'t-1 DUOS'!$B$7:$Q$55,15,FALSE),0) -> 0 | AV15: =IFERROR(VLOOKUP($C15,'t-1 DUOS'!$B$7:$Q$55,16,FALSE),0) -> 0 | AX15: 15070175.45 | AY15: 0 | AZ15: 33402245.87 | BA15: 12428643.81 | BB15: 0 | BC15: 0 | BD15: 0 | BE15: 0 | BF15: 0 | BG15: 0 | BH15: 0 | BI15: 0 | BJ15: 0 | BK15: 0 | BL15: 60901065.13 | BM15: 0.09215880308 | BO15: 0 | BP15: 0 | BQ15: 0 | BR15: 0 | BS15: 0 | BT15: 0 | BU15: 0 | BV15: 0 | BW15: 0 | BX15: 0 | BY15: 0 | BZ15: 0 | CA15: 0 | CB15: 0 | CC15: 0
A16: NAST11P | B16: NAST11P Small residential time of use premium feed in | D16: =IF(B16="","",INDEX('Side constraints'!$B$33:$B$111,MATCH('Prop DUOS'!B16,'Side constraints'!$D$33:$D$111,0),1)) -> Residential | E16: 111.1130286 | F16: 0 | G16: 18.25149678 | H16: 3.318453959 | I16: 0 | J16: 0 | K16: 0 | L16: 0 | M16: 0 | N16: 0 | O16: 0 | P16: 0 | Q16: 0 | R16: 0 | T16: 28810.77868 | U16: 0 | V16: 48815123.27 | W16: 94390287.49 | X16: 0 | Y16: 0 | Z16: 0 | AA16: 0 | AB16: 0 | AC16: 0 | AD16: 0 | AE16: 0 | AF16: 0 | AG16: 0 | AI16: =IFERROR(VLOOKUP(C16,'t-1 DUOS'!$B$7:$Q$55,3,FALSE),0) -> 0 | AJ16: =IFERROR(VLOOKUP($C16,'t-1 DUOS'!$B$7:$Q$55,4,FALSE),0) -> 0 | AK16: =IFERROR(VLOOKUP($C16,'t-1 DUOS'!$B$7:$Q$55,5,FALSE),0) -> 0 | AL16: =IFERROR(VLOOKUP($C16,'t-1 DUOS'!$B$7:$Q$55,6,FALSE),0) -> 0 | AM16: =IFERROR(VLOOKUP($C16,'t-1 DUOS'!$B$7:$Q$55,7,FALSE),0) -> 0 | AN16: =IFERROR(VLOOKUP($C16,'t-1 DUOS'!$B$7:$Q$55,8,FALSE),0) -> 0 | AO16: =IFERROR(VLOOKUP($C16,'t-1 DUOS'!$B$7:$Q$55,9,FALSE),0) -> 0 | AP16: =IFERROR(VLOOKUP($C16,'t-1 DUOS'!$B$7:$Q$55,10,FALSE),0) -> 0 | AQ16: =IFERROR(VLOOKUP($C16,'t-1 DUOS'!$B$7:$Q$55,11,FALSE),0) -> 0 | AR16: =IFERROR(VLOOKUP($C16,'t-1 DUOS'!$B$7:$Q$55,12,FALSE),0) -> 0 | AS16: =IFERROR(VLOOKUP($C16,'t-1 DUOS'!$B$7:$Q$55,13,FALSE),0) -> 0 | AT16: =IFERROR(VLOOKUP($C16,'t-1 DUOS'!$B$7:$Q$55,14,FALSE),0) -> 0 | AU16: =IFERROR(VLOOKUP($C16,'t-1 DUOS'!$B$7:$Q$55,15,FALSE),0) -> 0 | AV16: =IFERROR(VLOOKUP($C16,'t-1 DUOS'!$B$7:$Q$55,16,FALSE),0) -> 0 | AX16: 3201252.875 | AY16: 0 | AZ16: 8909490.649 | BA16: 3132298.232 | BB16: 0 | BC16: 0 | BD16: 0 | BE16: 0 | BF16: 0 | BG16: 0 | BH16: 0 | BI16: 0 | BJ16: 0 | BK16: 0 | BL16: 15243041.76 | BM16: 0.02306659958 | BO16: 0 | BP16: 0 | BQ16: 0 | BR16: 0 | BS16: 0 | BT16: 0 | BU16: 0 | BV16: 0 | BW16: 0 | BX16: 0 | BY16: 0 | BZ16: 0 | CA16: 0 | CB16: 0 | CC16: 0
A17: NAST13 | B17: NAST13 Small residential time of use & dedicated circuit | D17: =IF(B17="","",INDEX('Side constraints'!$B$33:$B$111,MATCH('Prop DUOS'!B17,'Side constraints'!$D$33:$D$111,0),1)) -> Residential | E17: 111.1130286 | F17: 0 | G17: 18.25149678 | H17: 3.318453959 | I17: 0 | J17: 0 | K17: 0 | L17: 0 | M17: 3.238880222 | N17: 0 | O17: 0 | P17: 0 | Q17: 0 | R17: 0 | T17: 107 | U17: 0 | V17: 552344.2533 | W17: 73662.04081 | X17: 0 | Y17: 0 | Z17: 0 | AA17: 0 | AB17: 43285.77102 | AC17: 0 | AD17: 0 | AE17: 0 | AF17: 0 | AG17: 0 | AI17: =IFERROR(VLOOKUP(C17,'t-1 DUOS'!$B$7:$Q$55,3,FALSE),0) -> 0 | AJ17: =IFERROR(VLOOKUP($C17,'t-1 DUOS'!$B$7:$Q$55,4,FALSE),0) -> 0 | AK17: =IFERROR(VLOOKUP($C17,'t-1 DUOS'!$B$7:$Q$55,5,FALSE),0) -> 0 | AL17: =IFERROR(VLOOKUP($C17,'t-1 DUOS'!$B$7:$Q$55,6,FALSE),0) -> 0 | AM17: =IFERROR(VLOOKUP($C17,'t-1 DUOS'!$B$7:$Q$55,7,FALSE),0) -> 0 | AN17: =IFERROR(VLOOKUP($C17,'t-1 DUOS'!$B$7:$Q$55,8,FALSE),0) -> 0 | AO17: =IFERROR(VLOOKUP($C17,'t-1 DUOS'!$B$7:$Q$55,9,FALSE),0) -> 0 | AP17: =IFERROR(VLOOKUP($C17,'t-1 DUOS'!$B$7:$Q$55,10,FALSE),0) -> 0 | AQ17: =IFERROR(VLOOKUP($C17,'t-1 DUOS'!$B$7:$Q$55,11,FALSE),0) -> 0 | AR17: =IFERROR(VLOOKUP($C17,'t-1 DUOS'!$B$7:$Q$55,12,FALSE),0) -> 0 | AS17: =IFERROR(VLOOKUP($C17,'t-1 DUOS'!$B$7:$Q$55,13,FALSE),0) -> 0 | AT17: =IFERROR(VLOOKUP($C17,'t-1 DUOS'!$B$7:$Q$55,14,FALSE),0) -> 0 | AU17: =IFERROR(VLOOKUP($C17,'t-1 DUOS'!$B$7:$Q$55,15,FALSE),0) -> 0 | AV17: =IFERROR(VLOOKUP($C17,'t-1 DUOS'!$B$7:$Q$55,16,FALSE),0) -> 0 | AX17: 11889.09406 | AY17: 0 | AZ17: 100811.0936 | BA17: 2444.44091 | BB17: 0 | BC17: 0 | BD17: 0 | BE17: 0 | BF17: 1401.974277 | BG17: 0 | BH17: 0 | BI17: 0 | BJ17: 0 | BK17: 0 | BL17: =SUM(AX17:BK17) -> 116546.6028 | BM17: 0.0001763646563 | BO17: =IF($E$78="cents",AI17/100,AI17)*IF($E$80="day",T17*$D$83,T17) -> 0 | BP17: 0 | BQ17: 0 | BR17: 0 | BS17: 0 | BT17: 0 | BU17: 0 | BV17: 0 | BW17: 0 | BX17: 0 | BY17: 0 | BZ17: 0 | CA17: 0 | CB17: 0 | CC17: =SUM(BO17:CB17) -> 0
A18: NAST14 | B18: NAST14 Small residential time of use & dedicated circuit with afternoon boost | D18: =IF(B18="","",INDEX('Side constraints'!$B$33:$B$111,MATCH('Prop DUOS'!B18,'Side constraints'!$D$33:$D$111,0),1)) -> Residential | E18: 111.1130286 | F18: 0 | G18: 18.25149678 | H18: 3.318453959 | I18: 0 | J18: 0 | K18: 0 | L18: 0 | M18: 3.238880222 | N18: 0 | O18: 0 | P18: 0 | Q18: 0 | R18: 0 | T18: 9 | U18: 0 | V18: 69688.29364 | W18: 7578.157719 | X18: 0 | Y18: 0 | Z18: 0 | AA18: 0 | AB18: 7176.940036 | AC18: 0 | AD18: 0 | AE18: 0 | AF18: 0 | AG18: 0 | AI18: =IFERROR(VLOOKUP(C18,'t-1 DUOS'!$B$7:$Q$55,3,FALSE),0) -> 0 | AJ18: =IFERROR(VLOOKUP($C18,'t-1 DUOS'!$B$7:$Q$55,4,FALSE),0) -> 0 | AK18: =IFERROR(VLOOKUP($C18,'t-1 DUOS'!$B$7:$Q$55,5,FALSE),0) -> 0 | AL18: =IFERROR(VLOOKUP($C18,'t-1 DUOS'!$B$7:$Q$55,6,FALSE),0) -> 0 | AM18: =IFERROR(VLOOKUP($C18,'t-1 DUOS'!$B$7:$Q$55,7,FALSE),0) -> 0 | AN18: =IFERROR(VLOOKUP($C18,'t-1 DUOS'!$B$7:$Q$55,8,FALSE),0) -> 0 | AO18: =IFERROR(VLOOKUP($C18,'t-1 DUOS'!$B$7:$Q$55,9,FALSE),0) -> 0 | AP18: =IFERROR(VLOOKUP($C18,'t-1 DUOS'!$B$7:$Q$55,10,FALSE),0) -> 0 | AQ18: =IFERROR(VLOOKUP($C18,'t-1 DUOS'!$B$7:$Q$55,11,FALSE),0) -> 0 | AR18: =IFERROR(VLOOKUP($C18,'t-1 DUOS'!$B$7:$Q$55,12,FALSE),0) -> 0 | AS18: =IFERROR(VLOOKUP($C18,'t-1 DUOS'!$B$7:$Q$55,13,FALSE),0) -> 0 | AT18: =IFERROR(VLOOKUP($C18,'t-1 DUOS'!$B$7:$Q$55,14,FALSE),0) -> 0 | AU18: =IFERROR(VLOOKUP($C18,'t-1 DUOS'!$B$7:$Q$55,15,FALSE),0) -> 0 | AV18: =IFERROR(VLOOKUP($C18,'t-1 DUOS'!$B$7:$Q$55,16,FALSE),0) -> 0 | AX18: 1000.017257 | AY18: 0 | AZ18: 12719.15667 | BA18: 251.4776749 | BB18: 0 | BC18: 0 | BD18: 0 | BE18: 0 | BF18: 232.4524914 | BG18: 0 | BH18: 0 | BI18: 0 | BJ18: 0 | BK18: 0 | BL18: 14203.10409 | BM18: 2.149290936e-05 | BO18: 0 | BP18: 0 | BQ18: 0 | BR18: 0 | BS18: 0 | BT18: 0 | BU18: 0 | BV18: 0 | BW18: 0 | BX18: 0 | BY18: 0 | BZ18: 0 | CA18: 0 | CB18: 0 | CC18: 0
A19: NAST15 | B19: NAST15 Small residential time of use & dedicated circuit 8:00 to 8:00 | D19: =IF(B19="","",INDEX('Side constraints'!$B$33:$B$111,MATCH('Prop DUOS'!B19,'Side constraints'!$D$33:$D$111,0),1)) -> Residential | E19: 111.1130286 | F19: 0 | G19: 18.25149678 | H19: 3.318453959 | I19: 0 | J19: 0 | K19: 0 | L19: 0 | M19: 3.238880222 | N19: 0 | O19: 0 | P19: 0 | Q19: 0 | R19: 0 | T19: 2 | U19: 0 | V19: 6939.232267 | W19: 3328.260195 | X19: 0 | Y19: 0 | Z19: 0 | AA19: 0 | AB19: 499.1339769 | AC19: 0 | AD19: 0 | AE19: 0 | AF19: 0 | AG19: 0 | AI19: =IFERROR(VLOOKUP(C19,'t-1 DUOS'!$B$7:$Q$55,3,FALSE),0) -> 0 | AJ19: =IFERROR(VLOOKUP($C19,'t-1 DUOS'!$B$7:$Q$55,4,FALSE),0) -> 0 | AK19: =IFERROR(VLOOKUP($C19,'t-1 DUOS'!$B$7:$Q$55,5,FALSE),0) -> 0 | AL19: =IFERROR(VLOOKUP($C19,'t-1 DUOS'!$B$7:$Q$55,6,FALSE),0) -> 0 | AM19: =IFERROR(VLOOKUP($C19,'t-1 DUOS'!$B$7:$Q$55,7,FALSE),0) -> 0 | AN19: =IFERROR(VLOOKUP($C19,'t-1 DUOS'!$B$7:$Q$55,8,FALSE),0) -> 0 | AO19: =IFERROR(VLOOKUP($C19,'t-1 DUOS'!$B$7:$Q$55,9,FALSE),0) -> 0 | AP19: =IFERROR(VLOOKUP($C19,'t-1 DUOS'!$B$7:$Q$55,10,FALSE),0) -> 0 | AQ19: =IFERROR(VLOOKUP($C19,'t-1 DUOS'!$B$7:$Q$55,11,FALSE),0) -> 0 | AR19: =IFERROR(VLOOKUP($C19,'t-1 DUOS'!$B$7:$Q$55,12,FALSE),0) -> 0 | AS19: =IFERROR(VLOOKUP($C19,'t-1 DUOS'!$B$7:$Q$55,13,FALSE),0) -> 0 | AT19: =IFERROR(VLOOKUP($C19,'t-1 DUOS'!$B$7:$Q$55,14,FALSE),0) -> 0 | AU19: =IFERROR(VLOOKUP($C19,'t-1 DUOS'!$B$7:$Q$55,15,FALSE),0) -> 0 | AV19: =IFERROR(VLOOKUP($C19,'t-1 DUOS'!$B$7:$Q$55,16,FALSE),0) -> 0 | AX19: 222.2260572 | AY19: 0 | AZ19: 1266.513753 | BA19: 110.4467822 | BB19: 0 | BC19: 0 | BD19: 0 | BE19: 0 | BF19: 16.16635166 | BG19: 0 | BH19: 0 | BI19: 0 | BJ19: 0 | BK19: 0 | BL19: 1615.352944 | BM19: 2.444439906e-06 | BO19: 0 | BP19: 0 | BQ19: 0 | BR19: 0 | BS19: 0 | BT19: 0 | BU19: 0 | BV19: 0 | BW19: 0 | BX19: 0 | BY19: 0 | BZ19: 0 | CA19: 0 | CB19: 0 | CC19: 0
A20: NASN11 | B20: NASN11 Small residential single rate demand | C20: NASN11 - Residential Single Rate | D20: =IF(B20="","",INDEX('Side constraints'!$B$33:$B$111,MATCH('Prop DUOS'!B20,'Side constraints'!$D$33:$D$111,0),1)) -> Residential | E20: 111.1130286 | F20: 5.155261702 | G20: 0 | H20: 0 | I20: 0 | J20: 0 | K20: 0 | L20: 0 | M20: 0 | N20: 0 | O20: 0 | P20: 0 | Q20: 9.670599729 | R20: 2.412644446 | T20: 89.1150024 | U20: 360516.8558 | V20: 0 | W20: 0 | X20: 0 | Y20: 0 | Z20: 0 | AA20: 0 | AB20: 0 | AC20: 0 | AD20: 0 | AE20: 0 | AF20: 1177.143578 | AG20: 1709.8857 | AI20: =IFERROR(VLOOKUP(C20,'t-1 DUOS'!$B$7:$Q$55,3,FALSE),0) -> 106 | AJ20: =IFERROR(VLOOKUP($C20,'t-1 DUOS'!$B$7:$Q$55,4,FALSE),0) -> 0 | AK20: =IFERROR(VLOOKUP($C20,'t-1 DUOS'!$B$7:$Q$55,5,FALSE),0) -> 4.9494 | AL20: =IFERROR(VLOOKUP($C20,'t-1 DUOS'!$B$7:$Q$55,6,FALSE),0) -> 4.9494 | AM20: =IFERROR(VLOOKUP($C20,'t-1 DUOS'!$B$7:$Q$55,7,FALSE),0) -> 0 | AN20: =IFERROR(VLOOKUP($C20,'t-1 DUOS'!$B$7:$Q$55,8,FALSE),0) -> 0 | AO20: =IFERROR(VLOOKUP($C20,'t-1 DUOS'!$B$7:$Q$55,9,FALSE),0) -> 0 | AP20: =IFERROR(VLOOKUP($C20,'t-1 DUOS'!$B$7:$Q$55,10,FALSE),0) -> 0 | AQ20: =IFERROR(VLOOKUP($C20,'t-1 DUOS'!$B$7:$Q$55,11,FALSE),0) -> 0 | AR20: =IFERROR(VLOOKUP($C20,'t-1 DUOS'!$B$7:$Q$55,12,FALSE),0) -> 0 | AS20: =IFERROR(VLOOKUP($C20,'t-1 DUOS'!$B$7:$Q$55,13,FALSE),0) -> 0 | AT20: =IFERROR(VLOOKUP($C20,'t-1 DUOS'!$B$7:$Q$55,14,FALSE),0) -> 0 | AU20: =IFERROR(VLOOKUP($C20,'t-1 DUOS'!$B$7:$Q$55,15,FALSE),0) -> 8.64 | AV20: =IFERROR(VLOOKUP($C20,'t-1 DUOS'!$B$7:$Q$55,16,FALSE),0) -> 2.16 | AX20: 9901.837809 | AY20: 18585.5874 | AZ20: 0 | BA20: 0 | BB20: 0 | BC20: 0 | BD20: 0 | BE20: 0 | BF20: 0 | BG20: 0 | BH20: 0 | BI20: 0 | BJ20: 11383.68436 | BK20: 4125.346237 | BL20: 43996.45581 | BM20: 6.657782911e-05 | BO20: 9446.190254 | BP20: 0 | BQ20: 0 | BR20: 0 | BS20: 0 | BT20: 0 | BU20: 0 | BV20: 0 | BW20: 0 | BX20: 0 | BY20: 0 | BZ20: 0 | CA20: 10170.52051 | CB20: 3693.353112 | CC20: 23310.06388
A21: NASN11S | B21: NASN11S Small residential single rate demand standard feed in | C21: NASN11 - Residential Single Rate | D21: =IF(B21="","",INDEX('Side constraints'!$B$33:$B$111,MATCH('Prop DUOS'!B21,'Side constraints'!$D$33:$D$111,0),1)) -> Residential | E21: 111.1130286 | F21: 5.155261702 | G21: 0 | H21: 0 | I21: 0 | J21: 0 | K21: 0 | L21: 0 | M21: 0 | N21: 0 | O21: 0 | P21: 0 | Q21: 9.670599729 | R21: 2.412644446 | T21: 12 | U21: 50421.04585 | V21: 0 | W21: 0 | X21: 0 | Y21: 0 | Z21: 0 | AA21: 0 | AB21: 0 | AC21: 0 | AD21: 0 | AE21: 0 | AF21: 156.5946154 | AG21: 232.9496939 | AI21: =IFERROR(VLOOKUP(C21,'t-1 DUOS'!$B$7:$Q$55,3,FALSE),0) -> 106 | AJ21: =IFERROR(VLOOKUP($C21,'t-1 DUOS'!$B$7:$Q$55,4,FALSE),0) -> 0 | AK21: =IFERROR(VLOOKUP($C21,'t-1 DUOS'!$B$7:$Q$55,5,FALSE),0) -> 4.9494 | AL21: =IFERROR(VLOOKUP($C21,'t-1 DUOS'!$B$7:$Q$55,6,FALSE),0) -> 4.9494 | AM21: =IFERROR(VLOOKUP($C21,'t-1 DUOS'!$B$7:$Q$55,7,FALSE),0) -> 0 | AN21: =IFERROR(VLOOKUP($C21,'t-1 DUOS'!$B$7:$Q$55,8,FALSE),0) -> 0 | AO21: =IFERROR(VLOOKUP($C21,'t-1 DUOS'!$B$7:$Q$55,9,FALSE),0) -> 0 | AP21: =IFERROR(VLOOKUP($C21,'t-1 DUOS'!$B$7:$Q$55,10,FALSE),0) -> 0 | AQ21: =IFERROR(VLOOKUP($C21,'t-1 DUOS'!$B$7:$Q$55,11,FALSE),0) -> 0 | AR21: =IFERROR(VLOOKUP($C21,'t-1 DUOS'!$B$7:$Q$55,12,FALSE),0) -> 0 | AS21: =IFERROR(VLOOKUP($C21,'t-1 DUOS'!$B$7:$Q$55,13,FALSE),0) -> 0 | AT21: =IFERROR(VLOOKUP($C21,'t-1 DUOS'!$B$7:$Q$55,14,FALSE),0) -> 0 | AU21: =IFERROR(VLOOKUP($C21,'t-1 DUOS'!$B$7:$Q$55,15,FALSE),0) -> 8.64 | AV21: =IFERROR(VLOOKUP($C21,'t-1 DUOS'!$B$7:$Q$55,16,FALSE),0) -> 2.16 | AX21: 1333.356343 | AY21: 2599.336867 | AZ21: 0 | BA21: 0 | BB21: 0 | BC21: 0 | BD21: 0 | BE21: 0 | BF21: 0 | BG21: 0 | BH21: 0 | BI21: 0 | BJ21: 1514.363845 | BK21: 562.0247853 | BL21: 6009.08184 | BM21: 9.093269367e-06 | BO21: 1272 | BP21: 0 | BQ21: 0 | BR21: 0 | BS21: 0 | BT21: 0 | BU21: 0 | BV21: 0 | BW21: 0 | BX21: 0 | BY21: 0 | BZ21: 0 | CA21: 1352.977477 | CB21: 503.1713389 | CC21: 3128.148816
A22: NASN11P | B22: NASN11P Small residential single rate demand premium feed in | C22: NASN11 - Residential Single Rate | D22: =IF(B22="","",INDEX('Side constraints'!$B$33:$B$111,MATCH('Prop DUOS'!B22,'Side constraints'!$D$33:$D$111,0),1)) -> Residential | E22: 111.1130286 | F22: 5.155261702 | G22: 0 | H22: 0 | I22: 0 | J22: 0 | K22: 0 | L22: 0 | M22: 0 | N22: 0 | O22: 0 | P22: 0 | Q22: 9.670599729 | R22: 2.412644446 | T22: 3 | U22: 12605.26146 | V22: 0 | W22: 0 | X22: 0 | Y22: 0 | Z22: 0 | AA22: 0 | AB22: 0 | AC22: 0 | AD22: 0 | AE22: 0 | AF22: 39.14865385 | AG22: 58.23742349 | AI22: =IFERROR(VLOOKUP(C22,'t-1 DUOS'!$B$7:$Q$55,3,FALSE),0) -> 106 | AJ22: =IFERROR(VLOOKUP($C22,'t-1 DUOS'!$B$7:$Q$55,4,FALSE),0) -> 0 | AK22: =IFERROR(VLOOKUP($C22,'t-1 DUOS'!$B$7:$Q$55,5,FALSE),0) -> 4.9494 | AL22: =IFERROR(VLOOKUP($C22,'t-1 DUOS'!$B$7:$Q$55,6,FALSE),0) -> 4.9494 | AM22: =IFERROR(VLOOKUP($C22,'t-1 DUOS'!$B$7:$Q$55,7,FALSE),0) -> 0 | AN22: =IFERROR(VLOOKUP($C22,'t-1 DUOS'!$B$7:$Q$55,8,FALSE),0) -> 0 | AO22: =IFERROR(VLOOKUP($C22,'t-1 DUOS'!$B$7:$Q$55,9,FALSE),0) -> 0 | AP22: =IFERROR(VLOOKUP($C22,'t-1 DUOS'!$B$7:$Q$55,10,FALSE),0) -> 0 | AQ22: =IFERROR(VLOOKUP($C22,'t-1 DUOS'!$B$7:$Q$55,11,FALSE),0) -> 0 | AR22: =IFERROR(VLOOKUP($C22,'t-1 DUOS'!$B$7:$Q$55,12,FALSE),0) -> 0 | AS22: =IFERROR(VLOOKUP($C22,'t-1 DUOS'!$B$7:$Q$55,13,FALSE),0) -> 0 | AT22: =IFERROR(VLOOKUP($C22,'t-1 DUOS'!$B$7:$Q$55,14,FALSE),0) -> 0 | AU22: =IFERROR(VLOOKUP($C22,'t-1 DUOS'!$B$7:$Q$55,15,FALSE),0) -> 8.64 | AV22: =IFERROR(VLOOKUP($C22,'t-1 DUOS'!$B$7:$Q$55,16,FALSE),0) -> 2.16 | AX22: 333.3390858 | AY22: 649.8342167 | AZ22: 0 | BA22: 0 | BB22: 0 | BC22: 0 | BD22: 0 | BE22: 0 | BF22: 0 | BG22: 0 | BH22: 0 | BI22: 0 | BJ22: 378.5909613 | BK22: 140.5061963 | BL22: 1502.27046 | BM22: 2.273317342e-06 | BO22: =IF($E$78="cents",AI22/100,AI22)*IF($E$80="day",T22*$D$83,T22) -> 318 | BP22: 0 | BQ22: 0 | BR22: 0 | BS22: 0 | BT22: 0 | BU22: 0 | BV22: 0 | BW22: 0 | BX22: 0 | BY22: 0 | BZ22: 0 | CA22: 338.2443692 | CB22: 125.7928347 | CC22: 782.037204
A23: NEN20 | B23: NEN20 Small two rate within embedded network | C23: NEN20 Small Two Rate - Embedded Network | D23: =IF(B23="","",INDEX('Side constraints'!$B$33:$B$111,MATCH('Prop DUOS'!B23,'Side constraints'!$D$33:$D$111,0),1)) -> Residential | E23: 111.1130286 | F23: 0 | G23: 10.27437106 | H23: 3.358544457 | I23: 0 | J23: 0 | K23: 0 | L23: 0 | M23: 0 | N23: 0 | O23: 0 | P23: 0 | Q23: 0 | R23: 0 | T23: 0 | U23: 0 | V23: 0 | W23: 0 | X23: 0 | Y23: 0 | Z23: 0 | AA23: 0 | AB23: 0 | AC23: 0 | AD23: 0 | AE23: 0 | AF23: 0 | AG23: 0 | AI23: =IFERROR(VLOOKUP(C23,'t-1 DUOS'!$B$7:$Q$55,3,FALSE),0) -> 106 | AJ23: =IFERROR(VLOOKUP($C23,'t-1 DUOS'!$B$7:$Q$55,4,FALSE),0) -> 0 | AK23: =IFERROR(VLOOKUP($C23,'t-1 DUOS'!$B$7:$Q$55,5,FALSE),0) -> 9.0125 | AL23: =IFERROR(VLOOKUP($C23,'t-1 DUOS'!$B$7:$Q$55,6,FALSE),0) -> 2.9461 | AM23: =IFERROR(VLOOKUP($C23,'t-1 DUOS'!$B$7:$Q$55,7,FALSE),0) -> 0 | AN23: =IFERROR(VLOOKUP($C23,'t-1 DUOS'!$B$7:$Q$55,8,FALSE),0) -> 0 | AO23: =IFERROR(VLOOKUP($C23,'t-1 DUOS'!$B$7:$Q$55,9,FALSE),0) -> 0 | AP23: =IFERROR(VLOOKUP($C23,'t-1 DUOS'!$B$7:$Q$55,10,FALSE),0) -> 0 | AQ23: =IFERROR(VLOOKUP($C23,'t-1 DUOS'!$B$7:$Q$55,11,FALSE),0) -> 0 | AR23: =IFERROR(VLOOKUP($C23,'t-1 DUOS'!$B$7:$Q$55,12,FALSE),0) -> 0 | AS23: =IFERROR(VLOOKUP($C23,'t-1 DUOS'!$B$7:$Q$55,13,FALSE),0) -> 0 | AT23: =IFERROR(VLOOKUP($C23,'t-1 DUOS'!$B$7:$Q$55,14,FALSE),0) -> 0 | AU23: =IFERROR(VLOOKUP($C23,'t-1 DUOS'!$B$7:$Q$55,15,FALSE),0) -> 0 | AV23: =IFERROR(VLOOKUP($C23,'t-1 DUOS'!$B$7:$Q$55,16,FALSE),0) -> 0 | AX23: 0 | AY23: 0 | AZ23: 0 | BA23: 0 | BB23: 0 | BC23: 0 | BD23: 0 | BE23: 0 | BF23: 0 | BG23: 0 | BH23: 0 | BI23: 0 | BJ23: 0 | BK23: 0 | BL23: 0 | BO23: 0 | BP23: 0 | BQ23: 0 | BR23: 0 | BS23: 0 | BT23: 0 | BU23: 0 | BV23: 0 | BW23: 0 | BX23: 0 | BY23: 0 | BZ23: 0 | CA23: 0 | CB23: 0 | CC23: 0
A24: NEE24 | B24: NEE24 Small two rate 8:00 to 8:00 | C24: NEE24 Small rate 5 day 8 to 8 | D24: =IF(B24="","",INDEX('Side constraints'!$B$33:$B$111,MATCH('Prop DUOS'!B24,'Side constraints'!$D$33:$D$111,0),1)) -> Residential | E24: 111.1130286 | F24: 0 | G24: 7.504997396 | H24: 3.160683301 | I24: 0 | J24: 0 | K24: 0 | L24: 0 | M24: 0 | N24: 0 | O24: 0 | P24: 0 | Q24: 0 | R24: 0 | T24: 2262.150024 | U24: 0 | V24: 2749782.063 | W24: 6855919.185 | X24: 0 | Y24: 0 | Z24: 0 | AA24: 0 | AB24: 0 | AC24: 0 | AD24: 0 | AE24: 0 | AF24: 0 | AG24: 0 | AI24: =IFERROR(VLOOKUP(C24,'t-1 DUOS'!$B$7:$Q$55,3,FALSE),0) -> 106 | AJ24: =IFERROR(VLOOKUP($C24,'t-1 DUOS'!$B$7:$Q$55,4,FALSE),0) -> 0 | AK24: =IFERROR(VLOOKUP($C24,'t-1 DUOS'!$B$7:$Q$55,5,FALSE),0) -> 6.5595 | AL24: =IFERROR(VLOOKUP($C24,'t-1 DUOS'!$B$7:$Q$55,6,FALSE),0) -> 2.7625 | AM24: =IFERROR(VLOOKUP($C24,'t-1 DUOS'!$B$7:$Q$55,7,FALSE),0) -> 0 | AN24: =IFERROR(VLOOKUP($C24,'t-1 DUOS'!$B$7:$Q$55,8,FALSE),0) -> 0 | AO24: =IFERROR(VLOOKUP($C24,'t-1 DUOS'!$B$7:$Q$55,9,FALSE),0) -> 0 | AP24: =IFERROR(VLOOKUP($C24,'t-1 DUOS'!$B$7:$Q$55,10,FALSE),0) -> 0 | AQ24: =IFERROR(VLOOKUP($C24,'t-1 DUOS'!$B$7:$Q$55,11,FALSE),0) -> 0 | AR24: =IFERROR(VLOOKUP($C24,'t-1 DUOS'!$B$7:$Q$55,12,FALSE),0) -> 0 | AS24: =IFERROR(VLOOKUP($C24,'t-1 DUOS'!$B$7:$Q$55,13,FALSE),0) -> 0 | AT24: =IFERROR(VLOOKUP($C24,'t-1 DUOS'!$B$7:$Q$55,14,FALSE),0) -> 0 | AU24: =IFERROR(VLOOKUP($C24,'t-1 DUOS'!$B$7:$Q$55,15,FALSE),0) -> 0 | AV24: =IFERROR(VLOOKUP($C24,'t-1 DUOS'!$B$7:$Q$55,16,FALSE),0) -> 0 | AX24: 251354.3403 | AY24: 0 | AZ24: 206371.0722 | BA24: 216693.8928 | BB24: 0 | BC24: 0 | BD24: 0 | BE24: 0 | BF24: 0 | BG24: 0 | BH24: 0 | BI24: 0 | BJ24: 0 | BK24: 0 | BL24: 674419.3053 | BM24: 0.001020567962 | BO24: 239787.9025 | BP24: 0 | BQ24: 180371.9544 | BR24: 189394.7675 | BS24: 0 | BT24: 0 | BU24: 0 | BV24: 0 | BW24: 0 | BX24: 0 | BY24: 0 | BZ24: 0 | CA24: 0 | CB24: 0 | CC24: 609554.6244
A25: NSP20 | B25: NSP20 Small interval meter time of use | C25: NSP20 Small Two Rate | D25: =IF(B25="","",INDEX('Side constraints'!$B$33:$B$111,MATCH('Prop DUOS'!B25,'Side constraints'!$D$33:$D$111,0),1)) -> Residential | E25: 111.1130286 | F25: 0 | G25: 0 | H25: 3.360232402 | I25: 34.47418179 | J25: 39.39735773 | K25: 30.17150446 | L25: 0 | M25: 0 | N25: 0 | O25: 0 | P25: 0 | Q25: 0 | R25: 0 | T25: 18 | U25: 0 | V25: 0 | W25: 105681.2572 | X25: 1635.809499 | Y25: 2015.996162 | Z25: 1198.533297 | AA25: 0 | AB25: 0 | AC25: 0 | AD25: 0 | AE25: 0 | AF25: 0 | AG25: 0 | AI25: =IFERROR(VLOOKUP(C25,'t-1 DUOS'!$B$7:$Q$55,3,FALSE),0) -> 106 | AJ25: =IFERROR(VLOOKUP($C25,'t-1 DUOS'!$B$7:$Q$55,4,FALSE),0) -> 0 | AK25: =IFERROR(VLOOKUP($C25,'t-1 DUOS'!$B$7:$Q$55,5,FALSE),0) -> 0 | AL25: =IFERROR(VLOOKUP($C25,'t-1 DUOS'!$B$7:$Q$55,6,FALSE),0) -> 2.9693 | AM25: =IFERROR(VLOOKUP($C25,'t-1 DUOS'!$B$7:$Q$55,7,FALSE),0) -> 30.4637 | AN25: =IFERROR(VLOOKUP($C25,'t-1 DUOS'!$B$7:$Q$55,8,FALSE),0) -> 34.8141 | AO25: =IFERROR(VLOOKUP($C25,'t-1 DUOS'!$B$7:$Q$55,9,FALSE),0) -> 26.6615 | AP25: =IFERROR(VLOOKUP($C25,'t-1 DUOS'!$B$7:$Q$55,10,FALSE),0) -> 0 | AQ25: =IFERROR(VLOOKUP($C25,'t-1 DUOS'!$B$7:$Q$55,11,FALSE),0) -> 0 | AR25: =IFERROR(VLOOKUP($C25,'t-1 DUOS'!$B$7:$Q$55,12,FALSE),0) -> 0 | AS25: =IFERROR(VLOOKUP($C25,'t-1 DUOS'!$B$7:$Q$55,13,FALSE),0) -> 0 | AT25: =IFERROR(VLOOKUP($C25,'t-1 DUOS'!$B$7:$Q$55,14,FALSE),0) -> 0 | AU25: =IFERROR(VLOOKUP($C25,'t-1 DUOS'!$B$7:$Q$55,15,FALSE),0) -> 0 | AV25: =IFERROR(VLOOKUP($C25,'t-1 DUOS'!$B$7:$Q$55,16,FALSE),0) -> 0 | AX25: 2000.034515 | AY25: 0 | AZ25: 0 | BA25: 3551.135848 | BB25: 563.9319404 | BC25: 794.2492196 | BD25: 361.6155273 | BE25: 0 | BF25: 0 | BG25: 0 | BH25: 0 | BI25: 0 | BJ25: 0 | BK25: 0 | BL25: 7270.967049 | BM25: 1.100282268e-05 | BO25: 1908 | BP25: 0 | BQ25: 0 | BR25: 3137.99357 | BS25: 498.3280984 | BT25: 701.8509197 | BU25: 319.5469551 | BV25: 0 | BW25: 0 | BX25: 0 | BY25: 0 | BZ25: 0 | CA25: 0 | CB25: 0 | CC25: 6565.719544
A26: NSP23 | B26: NSP23 Small interval meter time of use solar installation standard feed in | C26: NSP23 Photovoltaic | D26: =IF(B26="","",INDEX('Side constraints'!$B$33:$B$111,MATCH('Prop DUOS'!B26,'Side constraints'!$D$33:$D$111,0),1)) -> Residential | E26: 111.1130286 | F26: 0 | G26: 0 | H26: 3.360232402 | I26: 34.47418179 | J26: 39.39735773 | K26: 30.17150446 | L26: 0 | M26: 0 | N26: 0 | O26: 0 | P26: 0 | Q26: 0 | R26: 0 | T26: 295.303478 | U26: 0 | V26: 0 | W26: 1262668.016 | X26: 2054.164557 | Y26: 2013.307034 | Z26: 110045.9971 | AA26: 0 | AB26: 0 | AC26: 0 | AD26: 0 | AE26: 0 | AF26: 0 | AG26: 0 | AI26: =IFERROR(VLOOKUP(C26,'t-1 DUOS'!$B$7:$Q$55,3,FALSE),0) -> 116 | AJ26: =IFERROR(VLOOKUP($C26,'t-1 DUOS'!$B$7:$Q$55,4,FALSE),0) -> 0 | AK26: =IFERROR(VLOOKUP($C26,'t-1 DUOS'!$B$7:$Q$55,5,FALSE),0) -> 0 | AL26: =IFERROR(VLOOKUP($C26,'t-1 DUOS'!$B$7:$Q$55,6,FALSE),0) -> 2.9693 | AM26: =IFERROR(VLOOKUP($C26,'t-1 DUOS'!$B$7:$Q$55,7,FALSE),0) -> 30.4637 | AN26: =IFERROR(VLOOKUP($C26,'t-1 DUOS'!$B$7:$Q$55,8,FALSE),0) -> 34.8141 | AO26: =IFERROR(VLOOKUP($C26,'t-1 DUOS'!$B$7:$Q$55,9,FALSE),0) -> 26.6615 | AP26: =IFERROR(VLOOKUP($C26,'t-1 DUOS'!$B$7:$Q$55,10,FALSE),0) -> 0 | AQ26: =IFERROR(VLOOKUP($C26,'t-1 DUOS'!$B$7:$Q$55,11,FALSE),0) -> 0 | AR26: =IFERROR(VLOOKUP($C26,'t-1 DUOS'!$B$7:$Q$55,12,FALSE),0) -> 0 | AS26: =IFERROR(VLOOKUP($C26,'t-1 DUOS'!$B$7:$Q$55,13,FALSE),0) -> 0 | AT26: =IFERROR(VLOOKUP($C26,'t-1 DUOS'!$B$7:$Q$55,14,FALSE),0) -> 0 | AU26: =IFERROR(VLOOKUP($C26,'t-1 DUOS'!$B$7:$Q$55,15,FALSE),0) -> 0 | AV26: =IFERROR(VLOOKUP($C26,'t-1 DUOS'!$B$7:$Q$55,16,FALSE),0) -> 0 | AX26: 32812.06379 | AY26: 0 | AZ26: 0 | BA26: 42428.57979 | BB26: 708.1564235 | BC26: 793.1897743 | BD26: 33202.53292 | BE26: 0 | BF26: 0 | BG26: 0 | BH26: 0 | BI26: 0 | BJ26: 0 | BK26: 0 | BL26: 109944.5227 | BM26: 0.0001663740297 | BO26: 34255.20345 | BP26: 0 | BQ26: 0 | BR26: 37492.40139 | BS26: 625.7745281 | BT26: 700.9147241 | BU26: 29339.91352 | BV26: 0 | BW26: 0 | BX26: 0 | BY26: 0 | BZ26: 0 | CA26: 0 | CB26: 0 | CC26: 102414.2076
A27: SSP23 | B27: SSP23 Small interval meter time of use solar installation premium feed in | D27: =IF(B27="","",INDEX('Side constraints'!$B$33:$B$111,MATCH('Prop DUOS'!B27,'Side constraints'!$D$33:$D$111,0),1)) -> Residential | E27: 111.1130286 | F27: 0 | G27: 0 | H27: 3.360232402 | I27: 34.47418179 | J27: 39.39735773 | K27: 30.17150446 | L27: 0 | M27: 0 | N27: 0 | O27: 0 | P27: 0 | Q27: 0 | R27: 0 | T27: 28 | U27: 0 | V27: 0 | W27: 119723.2917 | X27: 194.7711824 | Y27: 190.8971656 | Z27: 10434.30961 | AA27: 0 | AB27: 0 | AC27: 0 | AD27: 0 | AE27: 0 | AF27: 0 | AG27: 0 | AI27: =IFERROR(VLOOKUP(C27,'t-1 DUOS'!$B$7:$Q$55,3,FALSE),0) -> 0 | AJ27: =IFERROR(VLOOKUP($C27,'t-1 DUOS'!$B$7:$Q$55,4,FALSE),0) -> 0 | AK27: =IFERROR(VLOOKUP($C27,'t-1 DUOS'!$B$7:$Q$55,5,FALSE),0) -> 0 | AL27: =IFERROR(VLOOKUP($C27,'t-1 DUOS'!$B$7:$Q$55,6,FALSE),0) -> 0 | AM27: =IFERROR(VLOOKUP($C27,'t-1 DUOS'!$B$7:$Q$55,7,FALSE),0) -> 0 | AN27: =IFERROR(VLOOKUP($C27,'t-1 DUOS'!$B$7:$Q$55,8,FALSE),0) -> 0 | AO27: =IFERROR(VLOOKUP($C27,'t-1 DUOS'!$B$7:$Q$55,9,FALSE),0) -> 0 | AP27: =IFERROR(VLOOKUP($C27,'t-1 DUOS'!$B$7:$Q$55,10,FALSE),0) -> 0 | AQ27: =IFERROR(VLOOKUP($C27,'t-1 DUOS'!$B$7:$Q$55,11,FALSE),0) -> 0 | AR27: =IFERROR(VLOOKUP($C27,'t-1 DUOS'!$B$7:$Q$55,12,FALSE),0) -> 0 | AS27: =IFERROR(VLOOKUP($C27,'t-1 DUOS'!$B$7:$Q$55,13,FALSE),0) -> 0 | AT27: =IFERROR(VLOOKUP($C27,'t-1 DUOS'!$B$7:$Q$55,14,FALSE),0) -> 0 | AU27: =IFERROR(VLOOKUP($C27,'t-1 DUOS'!$B$7:$Q$55,15,FALSE),0) -> 0 | AV27: =IFERROR(VLOOKUP($C27,'t-1 DUOS'!$B$7:$Q$55,16,FALSE),0) -> 0 | AX27: 3111.1648 | AY27: 0 | AZ27: 0 | BA27: 4022.98084 | BB27: 67.1457715 | BC27: 75.20843923 | BD27: 3148.188189 | BE27: 0 | BF27: 0 | BG27: 0 | BH27: 0 | BI27: 0 | BJ27: 0 | BK27: 0 | BL27: 10424.68804 | BM27: 1.577520476e-05 | BO27: 0 | BP27: 0 | BQ27: 0 | BR27: 0 | BS27: 0 | BT27: 0 | BU27: 0 | BV27: 0 | BW27: 0 | BX27: 0 | BY27: 0 | BZ27: 0 | CA27: 0 | CB27: 0 | CC27: 0
A28: NEE30 | B28: NEE30 Small dedicated circuit | C28: NEE30 Small Dedicated | D28: =IF(B28="","",INDEX('Side constraints'!$B$33:$B$111,MATCH('Prop DUOS'!B28,'Side constraints'!$D$33:$D$111,0),1)) -> Residential | E28: 0 | F28: 0 | G28: 0 | H28: 0 | I28: 0 | J28: 0 | K28: 0 | L28: 0 | M28: 3.238880222 | N28: 0 | O28: 0 | P28: 0 | Q28: 0 | R28: 0 | T28: 0 | U28: 0 | V28: 0 | W28: 0 | X28: 0 | Y28: 0 | Z28: 0 | AA28: 0 | AB28: 0 | AC28: 0 | AD28: 0 | AE28: 0 | AF28: 0 | AG28: 0 | AI28: =IFERROR(VLOOKUP(C28,'t-1 DUOS'!$B$7:$Q$55,3,FALSE),0) -> 0 | AJ28: =IFERROR(VLOOKUP($C28,'t-1 DUOS'!$B$7:$Q$55,4,FALSE),0) -> 0 | AK28: =IFERROR(VLOOKUP($C28,'t-1 DUOS'!$B$7:$Q$55,5,FALSE),0) -> 0 | AL28: =IFERROR(VLOOKUP($C28,'t-1 DUOS'!$B$7:$Q$55,6,FALSE),0) -> 0 | AM28: =IFERROR(VLOOKUP($C28,'t-1 DUOS'!$B$7:$Q$55,7,FALSE),0) -> 0 | AN28: =IFERROR(VLOOKUP($C28,'t-1 DUOS'!$B$7:$Q$55,8,FALSE),0) -> 0 | AO28: =IFERROR(VLOOKUP($C28,'t-1 DUOS'!$B$7:$Q$55,9,FALSE),0) -> 0 | AP28: =IFERROR(VLOOKUP($C28,'t-1 DUOS'!$B$7:$Q$55,10,FALSE),0) -> 0 | AQ28: =IFERROR(VLOOKUP($C28,'t-1 DUOS'!$B$7:$Q$55,11,FALSE),0) -> 2.7869 | AR28: =IFERROR(VLOOKUP($C28,'t-1 DUOS'!$B$7:$Q$55,12,FALSE),0) -> 0 | AS28: =IFERROR(VLOOKUP($C28,'t-1 DUOS'!$B$7:$Q$55,13,FALSE),0) -> 0 | AT28: =IFERROR(VLOOKUP($C28,'t-1 DUOS'!$B$7:$Q$55,14,FALSE),0) -> 0 | AU28: =IFERROR(VLOOKUP($C28,'t-1 DUOS'!$B$7:$Q$55,15,FALSE),0) -> 0 | AV28: =IFERROR(VLOOKUP($C28,'t-1 DUOS'!$B$7:$Q$55,16,FALSE),0) -> 0 | AX28: 0 | AY28: 0 | AZ28: 0 | BA28: 0 | BB28: 0 | BC28: 0 | BD28: 0 | BE28: 0 | BF28: 0 | BG28: 0 | BH28: 0 | BI28: 0 | BJ28: 0 | BK28: 0 | BL28: 0 | BO28: 0 | BP28: 0 | BQ28: 0 | BR28: 0 | BS28: 0 | BT28: 0 | BU28: 0 | BV28: 0 | BW28: 0 | BX28: 0 | BY28: 0 | BZ28: 0 | CA28: 0 | CB28: 0 | CC28: 0
A29: NEE31 | B29: NEE31 Small dedicated circuit with afternoon boost | C29: NEE31 Small Dedicated-afternoon boost | D29: =IF(B29="","",INDEX('Side constraints'!$B$33:$B$111,MATCH('Prop DUOS'!B29,'Side constraints'!$D$33:$D$111,0),1)) -> Residential | E29: 0 | F29: 0 | G29: 0 | H29: 0 | I29: 0 | J29: 0 | K29: 0 | L29: 0 | M29: 3.238880222 | N29: 0 | O29: 0 | P29: 0 | Q29: 0 | R29: 0 | T29: 0 | U29: 0 | V29: 0 | W29: 0 | X29: 0 | Y29: 0 | Z29: 0 | AA29: 0 | AB29: 0 | AC29: 0 | AD29: 0 | AE29: 0 | AF29: 0 | AG29: 0 | AI29: =IFERROR(VLOOKUP(C29,'t-1 DUOS'!$B$7:$Q$55,3,FALSE),0) -> 0 | AJ29: =IFERROR(VLOOKUP($C29,'t-1 DUOS'!$B$7:$Q$55,4,FALSE),0) -> 0 | AK29: =IFERROR(VLOOKUP($C29,'t-1 DUOS'!$B$7:$Q$55,5,FALSE),0) -> 0 | AL29: =IFERROR(VLOOKUP($C29,'t-1 DUOS'!$B$7:$Q$55,6,FALSE),0) -> 0 | AM29: =IFERROR(VLOOKUP($C29,'t-1 DUOS'!$B$7:$Q$55,7,FALSE),0) -> 0 | AN29: =IFERROR(VLOOKUP($C29,'t-1 DUOS'!$B$7:$Q$55,8,FALSE),0) -> 0 | AO29: =IFERROR(VLOOKUP($C29,'t-1 DUOS'!$B$7:$Q$55,9,FALSE),0) -> 0 | AP29: =IFERROR(VLOOKUP($C29,'t-1 DUOS'!$B$7:$Q$55,10,FALSE),0) -> 0 | AQ29: =IFERROR(VLOOKUP($C29,'t-1 DUOS'!$B$7:$Q$55,11,FALSE),0) -> 2.7869 | AR29: =IFERROR(VLOOKUP($C29,'t-1 DUOS'!$B$7:$Q$55,12,FALSE),0) -> 0 | AS29: =IFERROR(VLOOKUP($C29,'t-1 DUOS'!$B$7:$Q$55,13,FALSE),0) -> 0 | AT29: =IFERROR(VLOOKUP($C29,'t-1 DUOS'!$B$7:$Q$55,14,FALSE),0) -> 0 | AU29: =IFERROR(VLOOKUP($C29,'t-1 DUOS'!$B$7:$Q$55,15,FALSE),0) -> 0 | AV29: =IFERROR(VLOOKUP($C29,'t-1 DUOS'!$B$7:$Q$55,16,FALSE),0) -> 0 | AX29: 0 | AY29: 0 | AZ29: 0 | BA29: 0 | BB29: 0 | BC29: 0 | BD29: 0 | BE29: 0 | BF29: 0 | BG29: 0 | BH29: 0 | BI29: 0 | BJ29: 0 | BK29: 0 | BL29: 0 | BO29: 0 | BP29: 0 | BQ29: 0 | BR29: 0 | BS29: 0 | BT29: 0 | BU29: 0 | BV29: 0 | BW29: 0 | BX29: 0 | BY29: 0 | BZ29: 0 | CA29: 0 | CB29: 0 | CC29: 0
A30: NEE32 | B30: NEE32 Small dedicated circuit 8:00 to 8:00 | C30: NEE32 Dedicated Circuit 8 to 8 | D30: =IF(B30="","",INDEX('Side constraints'!$B$33:$B$111,MATCH('Prop DUOS'!B30,'Side constraints'!$D$33:$D$111,0),1)) -> Residential | E30: 0 | F30: 0 | G30: 0 | H30: 0 | I30: 0 | J30: 0 | K30: 0 | L30: 0 | M30: 3.238880222 | N30: 0 | O30: 0 | P30: 0 | Q30: 0 | R30: 0 | T30: 0 | U30: 0 | V30: 0 | W30: 0 | X30: 0 | Y30: 0 | Z30: 0 | AA30: 0 | AB30: 0 | AC30: 0 | AD30: 0 | AE30: 0 | AF30: 0 | AG30: 0 | AI30: =IFERROR(VLOOKUP(C30,'t-1 DUOS'!$B$7:$Q$55,3,FALSE),0) -> 0 | AJ30: =IFERROR(VLOOKUP($C30,'t-1 DUOS'!$B$7:$Q$55,4,FALSE),0) -> 0 | AK30: =IFERROR(VLOOKUP($C30,'t-1 DUOS'!$B$7:$Q$55,5,FALSE),0) -> 0 | AL30: =IFERROR(VLOOKUP($C30,'t-1 DUOS'!$B$7:$Q$55,6,FALSE),0) -> 0 | AM30: =IFERROR(VLOOKUP($C30,'t-1 DUOS'!$B$7:$Q$55,7,FALSE),0) -> 0 | AN30: =IFERROR(VLOOKUP($C30,'t-1 DUOS'!$B$7:$Q$55,8,FALSE),0) -> 0 | AO30: =IFERROR(VLOOKUP($C30,'t-1 DUOS'!$B$7:$Q$55,9,FALSE),0) -> 0 | AP30: =IFERROR(VLOOKUP($C30,'t-1 DUOS'!$B$7:$Q$55,10,FALSE),0) -> 0 | AQ30: =IFERROR(VLOOKUP($C30,'t-1 DUOS'!$B$7:$Q$55,11,FALSE),0) -> 2.7869 | AR30: =IFERROR(VLOOKUP($C30,'t-1 DUOS'!$B$7:$Q$55,12,FALSE),0) -> 0 | AS30: =IFERROR(VLOOKUP($C30,'t-1 DUOS'!$B$7:$Q$55,13,FALSE),0) -> 0 | AT30: =IFERROR(VLOOKUP($C30,'t-1 DUOS'!$B$7:$Q$55,14,FALSE),0) -> 0 | AU30: =IFERROR(VLOOKUP($C30,'t-1 DUOS'!$B$7:$Q$55,15,FALSE),0) -> 0 | AV30: =IFERROR(VLOOKUP($C30,'t-1 DUOS'!$B$7:$Q$55,16,FALSE),0) -> 0 | AX30: 0 | AY30: 0 | AZ30: 0 | BA30: 0 | BB30: 0 | BC30: 0 | BD30: 0 | BE30: 0 | BF30: 0 | BG30: 0 | BH30: 0 | BI30: 0 | BJ30: 0 | BK30: 0 | BL30: 0 | BO30: 0 | BP30: 0 | BQ30: 0 | BR30: 0 | BS30: 0 | BT30: 0 | BU30: 0 | BV30: 0 | BW30: 0 | BX30: 0 | BY30: 0 | BZ30: 0 | CA30: 0 | CB30: 0 | CC30: 0
A31: NEE12 | B31: NEE12 Small single rate | C31: NEE12 Small Business Single Rate - new in 2001 | D31: =IF(B31="","",INDEX('Side constraints'!$B$33:$B$111,MATCH('Prop DUOS'!B31,'Side constraints'!$D$33:$D$111,0),1)) -> Small industrial & commercial | E31: 111.1130286 | F31: 0 | G31: 12.93681848 | H31: 15.66493318 | I31: 0 | J31: 0 | K31: 0 | L31: 0 | M31: 0 | N31: 0 | O31: 0 | P31: 0 | Q31: 0 | R31: 0 | T31: 29207.84979 | U31: 0 | V31: 62604223.03 | W31: 98608628.99 | X31: 0 | Y31: 0 | Z31: 0 | AA31: 0 | AB31: 0 | AC31: 0 | AD31: 0 | AE31: 0 | AF31: 0 | AG31: 0 | AI31: =IFERROR(VLOOKUP(C31,'t-1 DUOS'!$B$7:$Q$55,3,FALSE),0) -> 106 | AJ31: =IFERROR(VLOOKUP($C31,'t-1 DUOS'!$B$7:$Q$55,4,FALSE),0) -> 0 | AK31: =IFERROR(VLOOKUP($C31,'t-1 DUOS'!$B$7:$Q$55,5,FALSE),0) -> 11.2642 | AL31: =IFERROR(VLOOKUP($C31,'t-1 DUOS'!$B$7:$Q$55,6,FALSE),0) -> 14.2389 | AM31: =IFERROR(VLOOKUP($C31,'t-1 DUOS'!$B$7:$Q$55,7,FALSE),0) -> 0 | AN31: =IFERROR(VLOOKUP($C31,'t-1 DUOS'!$B$7:$Q$55,8,FALSE),0) -> 0 | AO31: =IFERROR(VLOOKUP($C31,'t-1 DUOS'!$B$7:$Q$55,9,FALSE),0) -> 0 | AP31: =IFERROR(VLOOKUP($C31,'t-1 DUOS'!$B$7:$Q$55,10,FALSE),0) -> 0 | AQ31: =IFERROR(VLOOKUP($C31,'t-1 DUOS'!$B$7:$Q$55,11,FALSE),0) -> 0 | AR31: =IFERROR(VLOOKUP($C31,'t-1 DUOS'!$B$7:$Q$55,12,FALSE),0) -> 0 | AS31: =IFERROR(VLOOKUP($C31,'t-1 DUOS'!$B$7:$Q$55,13,FALSE),0) -> 0 | AT31: =IFERROR(VLOOKUP($C31,'t-1 DUOS'!$B$7:$Q$55,14,FALSE),0) -> 0 | AU31: =IFERROR(VLOOKUP($C31,'t-1 DUOS'!$B$7:$Q$55,15,FALSE),0) -> 0 | AV31: =IFERROR(VLOOKUP($C31,'t-1 DUOS'!$B$7:$Q$55,16,FALSE),0) -> 0 | AX31: 3245372.649 | AY31: 0 | AZ31: 8098994.697 | BA31: 15446975.84 | BB31: 0 | BC31: 0 | BD31: 0 | BE31: 0 | BF31: 0 | BG31: 0 | BH31: 0 | BI31: 0 | BJ31: 0 | BK31: 0 | BL31: 26791343.19 | BM31: 0.04054211721 | BO31: 3096032.078 | BP31: 0 | BQ31: 7051864.891 | BR31: 14040784.07 | BS31: 0 | BT31: 0 | BU31: 0 | BV31: 0 | BW31: 0 | BX31: 0 | BY31: 0 | BZ31: 0 | CA31: 0 | CB31: 0 | CC31: 24188681.04
A32: NEE12S | B32: NEE12S Small single rate standard feed in | C32: NEE12 Small Business Single Rate - new in 2001 | D32: =IF(B32="","",INDEX('Side constraints'!$B$33:$B$111,MATCH('Prop DUOS'!B32,'Side constraints'!$D$33:$D$111,0),1)) -> Small industrial & commercial | E32: 111.1130286 | F32: 0 | G32: 12.93681848 | H32: 15.66493318 | I32: 0 | J32: 0 | K32: 0 | L32: 0 | M32: 0 | N32: 0 | O32: 0 | P32: 0 | Q32: 0 | R32: 0 | T32: 0 | U32: 0 | V32: 0 | W32: 0 | X32: 0 | Y32: 0 | Z32: 0 | AA32: 0 | AB32: 0 | AC32: 0 | AD32: 0 | AE32: 0 | AF32: 0 | AG32: 0 | AI32: =IFERROR(VLOOKUP(C32,'t-1 DUOS'!$B$7:$Q$55,3,FALSE),0) -> 106 | AJ32: =IFERROR(VLOOKUP($C32,'t-1 DUOS'!$B$7:$Q$55,4,FALSE),0) -> 0 | AK32: =IFERROR(VLOOKUP($C32,'t-1 DUOS'!$B$7:$Q$55,5,FALSE),0) -> 11.2642 | AL32: =IFERROR(VLOOKUP($C32,'t-1 DUOS'!$B$7:$Q$55,6,FALSE),0) -> 14.2389 | AM32: =IFERROR(VLOOKUP($C32,'t-1 DUOS'!$B$7:$Q$55,7,FALSE),0) -> 0 | AN32: =IFERROR(VLOOKUP($C32,'t-1 DUOS'!$B$7:$Q$55,8,FALSE),0) -> 0 | AO32: =IFERROR(VLOOKUP($C32,'t-1 DUOS'!$B$7:$Q$55,9,FALSE),0) -> 0 | AP32: =IFERROR(VLOOKUP($C32,'t-1 DUOS'!$B$7:$Q$55,10,FALSE),0) -> 0 | AQ32: =IFERROR(VLOOKUP($C32,'t-1 DUOS'!$B$7:$Q$55,11,FALSE),0) -> 0 | AR32: =IFERROR(VLOOKUP($C32,'t-1 DUOS'!$B$7:$Q$55,12,FALSE),0) -> 0 | AS32: =IFERROR(VLOOKUP($C32,'t-1 DUOS'!$B$7:$Q$55,13,FALSE),0) -> 0 | AT32: =IFERROR(VLOOKUP($C32,'t-1 DUOS'!$B$7:$Q$55,14,FALSE),0) -> 0 | AU32: =IFERROR(VLOOKUP($C32,'t-1 DUOS'!$B$7:$Q$55,15,FALSE),0) -> 0 | AV32: =IFERROR(VLOOKUP($C32,'t-1 DUOS'!$B$7:$Q$55,16,FALSE),0) -> 0 | AX32: 0 | AY32: 0 | AZ32: 0 | BA32: 0 | BB32: 0 | BC32: 0 | BD32: 0 | BE32: 0 | BF32: 0 | BG32: 0 | BH32: 0 | BI32: 0 | BJ32: 0 | BK32: 0 | BL32: 0 | BO32: 0 | BP32: 0 | BQ32: 0 | BR32: 0 | BS32: 0 | BT32: 0 | BU32: 0 | BV32: 0 | BW32: 0 | BX32: 0 | BY32: 0 | BZ32: 0 | CA32: 0 | CB32: 0 | CC32: 0
A33: NEE12P | B33: NEE12P Small single rate premium feed in | C33: NEE12 Small Business Single Rate - new in 2001 | D33: =IF(B33="","",INDEX('Side constraints'!$B$33:$B$111,MATCH('Prop DUOS'!B33,'Side constraints'!$D$33:$D$111,0),1)) -> Small industrial & commercial | E33: 111.1130286 | F33: 0 | G33: 12.93681848 | H33: 15.66493318 | I33: 0 | J33: 0 | K33: 0 | L33: 0 | M33: 0 | N33: 0 | O33: 0 | P33: 0 | Q33: 0 | R33: 0 | T33: 0 | U33: 0 | V33: 0 | W33: 0 | X33: 0 | Y33: 0 | Z33: 0 | AA33: 0 | AB33: 0 | AC33: 0 | AD33: 0 | AE33: 0 | AF33: 0 | AG33: 0 | AI33: =IFERROR(VLOOKUP(C33,'t-1 DUOS'!$B$7:$Q$55,3,FALSE),0) -> 106 | AJ33: =IFERROR(VLOOKUP($C33,'t-1 DUOS'!$B$7:$Q$55,4,FALSE),0) -> 0 | AK33: =IFERROR(VLOOKUP($C33,'t-1 DUOS'!$B$7:$Q$55,5,FALSE),0) -> 11.2642 | AL33: =IFERROR(VLOOKUP($C33,'t-1 DUOS'!$B$7:$Q$55,6,FALSE),0) -> 14.2389 | AM33: =IFERROR(VLOOKUP($C33,'t-1 DUOS'!$B$7:$Q$55,7,FALSE),0) -> 0 | AN33: =IFERROR(VLOOKUP($C33,'t-1 DUOS'!$B$7:$Q$55,8,FALSE),0) -> 0 | AO33: =IFERROR(VLOOKUP($C33,'t-1 DUOS'!$B$7:$Q$55,9,FALSE),0) -> 0 | AP33: =IFERROR(VLOOKUP($C33,'t-1 DUOS'!$B$7:$Q$55,10,FALSE),0) -> 0 | AQ33: =IFERROR(VLOOKUP($C33,'t-1 DUOS'!$B$7:$Q$55,11,FALSE),0) -> 0 | AR33: =IFERROR(VLOOKUP($C33,'t-1 DUOS'!$B$7:$Q$55,12,FALSE),0) -> 0 | AS33: =IFERROR(VLOOKUP($C33,'t-1 DUOS'!$B$7:$Q$55,13,FALSE),0) -> 0 | AT33: =IFERROR(VLOOKUP($C33,'t-1 DUOS'!$B$7:$Q$55,14,FALSE),0) -> 0 | AU33: =IFERROR(VLOOKUP($C33,'t-1 DUOS'!$B$7:$Q$55,15,FALSE),0) -> 0 | AV33: =IFERROR(VLOOKUP($C33,'t-1 DUOS'!$B$7:$Q$55,16,FALSE),0) -> 0 | AX33: 0 | AY33: 0 | AZ33: 0 | BA33: 0 | BB33: 0 | BC33: 0 | BD33: 0 | BE33: 0 | BF33: 0 | BG33: 0 | BH33: 0 | BI33: 0 | BJ33: 0 | BK33: 0 | BL33: 0 | BO33: 0 | BP33: 0 | BQ33: 0 | BR33: 0 | BS33: 0 | BT33: 0 | BU33: 0 | BV33: 0 | BW33: 0 | BX33: 0 | BY33: 0 | BZ33: 0 | CA33: 0 | CB33: 0 | CC33: 0
A34: NEN12 | B34: NEN12 Small single rate within embedded network | C34: NEN12 Small Business Single Rate - Embedded Network | D34: =IF(B34="","",INDEX('Side constraints'!$B$33:$B$111,MATCH('Prop DUOS'!B34,'Side constraints'!$D$33:$D$111,0),1)) -> Small industrial & commercial | E34: 111.1130286 | F34: 0 | G34: 18.01612178 | H34: 20.97240614 | I34: 0 | J34: 0 | K34: 0 | L34: 0 | M34: 0 | N34: 0 | O34: 0 | P34: 0 | Q34: 0 | R34: 0 | T34: 0 | U34: 0 | V34: 0 | W34: 0 | X34: 0 | Y34: 0 | Z34: 0 | AA34: 0 | AB34: 0 | AC34: 0 | AD34: 0 | AE34: 0 | AF34: 0 | AG34: 0 | AI34: =IFERROR(VLOOKUP(C34,'t-1 DUOS'!$B$7:$Q$55,3,FALSE),0) -> 106 | AJ34: =IFERROR(VLOOKUP($C34,'t-1 DUOS'!$B$7:$Q$55,4,FALSE),0) -> 0 | AK34: =IFERROR(VLOOKUP($C34,'t-1 DUOS'!$B$7:$Q$55,5,FALSE),0) -> 16.3826 | AL34: =IFERROR(VLOOKUP($C34,'t-1 DUOS'!$B$7:$Q$55,6,FALSE),0) -> 19.0708 | AM34: =IFERROR(VLOOKUP($C34,'t-1 DUOS'!$B$7:$Q$55,7,FALSE),0) -> 0 | AN34: =IFERROR(VLOOKUP($C34,'t-1 DUOS'!$B$7:$Q$55,8,FALSE),0) -> 0 | AO34: =IFERROR(VLOOKUP($C34,'t-1 DUOS'!$B$7:$Q$55,9,FALSE),0) -> 0 | AP34: =IFERROR(VLOOKUP($C34,'t-1 DUOS'!$B$7:$Q$55,10,FALSE),0) -> 0 | AQ34: =IFERROR(VLOOKUP($C34,'t-1 DUOS'!$B$7:$Q$55,11,FALSE),0) -> 0 | AR34: =IFERROR(VLOOKUP($C34,'t-1 DUOS'!$B$7:$Q$55,12,FALSE),0) -> 0 | AS34: =IFERROR(VLOOKUP($C34,'t-1 DUOS'!$B$7:$Q$55,13,FALSE),0) -> 0 | AT34: =IFERROR(VLOOKUP($C34,'t-1 DUOS'!$B$7:$Q$55,14,FALSE),0) -> 0 | AU34: =IFERROR(VLOOKUP($C34,'t-1 DUOS'!$B$7:$Q$55,15,FALSE),0) -> 0 | AV34: =IFERROR(VLOOKUP($C34,'t-1 DUOS'!$B$7:$Q$55,16,FALSE),0) -> 0 | AW34: ='t-1 DUOS'!R34 -> 0 | AX34: 0 | AY34: 0 | AZ34: 0 | BA34: 0 | BB34: 0 | BC34: 0 | BD34: 0 | BE34: 0 | BF34: 0 | BG34: 0 | BH34: 0 | BI34: 0 | BJ34: 0 | BK34: 0 | BL34: 0 | BO34: 0 | BP34: 0 | BQ34: 0 | BR34: 0 | BS34: 0 | BT34: 0 | BU34: 0 | BV34: 0 | BW34: 0 | BX34: 0 | BY34: 0 | BZ34: 0 | CA34: 0 | CB34: 0 | CC34: 0
A35: NEE16 | B35: NEE16 Small single rate & dedicated circuit | D35: =IF(B35="","",INDEX('Side constraints'!$B$33:$B$111,MATCH('Prop DUOS'!B35,'Side constraints'!$D$33:$D$111,0),1)) -> Small industrial & commercial | E35: 111.1130286 | F35: 0 | G35: 12.93681848 | H35: 15.66493318 | I35: 0 | J35: 0 | K35: 0 | L35: 0 | M35: 3.238880222 | N35: 0 | O35: 0 | P35: 0 | Q35: 0 | R35: 0 | T35: 238.2454427 | U35: 0 | V35: 384024.0565 | W35: 607632.9346 | X35: 0 | Y35: 0 | Z35: 0 | AA35: 0 | AB35: 516121.6206 | AC35: 0 | AD35: 0 | AE35: 0 | AF35: 0 | AG35: 0 | AI35: =IFERROR(VLOOKUP(C35,'t-1 DUOS'!$B$7:$Q$55,3,FALSE),0) -> 0 | AJ35: =IFERROR(VLOOKUP($C35,'t-1 DUOS'!$B$7:$Q$55,4,FALSE),0) -> 0 | AK35: =IFERROR(VLOOKUP($C35,'t-1 DUOS'!$B$7:$Q$55,5,FALSE),0) -> 0 | AL35: =IFERROR(VLOOKUP($C35,'t-1 DUOS'!$B$7:$Q$55,6,FALSE),0) -> 0 | AM35: =IFERROR(VLOOKUP($C35,'t-1 DUOS'!$B$7:$Q$55,7,FALSE),0) -> 0 | AN35: =IFERROR(VLOOKUP($C35,'t-1 DUOS'!$B$7:$Q$55,8,FALSE),0) -> 0 | AO35: =IFERROR(VLOOKUP($C35,'t-1 DUOS'!$B$7:$Q$55,9,FALSE),0) -> 0 | AP35: =IFERROR(VLOOKUP($C35,'t-1 DUOS'!$B$7:$Q$55,10,FALSE),0) -> 0 | AQ35: =IFERROR(VLOOKUP($C35,'t-1 DUOS'!$B$7:$Q$55,11,FALSE),0) -> 0 | AR35: =IFERROR(VLOOKUP($C35,'t-1 DUOS'!$B$7:$Q$55,12,FALSE),0) -> 0 | AS35: =IFERROR(VLOOKUP($C35,'t-1 DUOS'!$B$7:$Q$55,13,FALSE),0) -> 0 | AT35: =IFERROR(VLOOKUP($C35,'t-1 DUOS'!$B$7:$Q$55,14,FALSE),0) -> 0 | AU35: =IFERROR(VLOOKUP($C35,'t-1 DUOS'!$B$7:$Q$55,15,FALSE),0) -> 0 | AV35: =IFERROR(VLOOKUP($C35,'t-1 DUOS'!$B$7:$Q$55,16,FALSE),0) -> 0 | AW35: ='t-1 DUOS'!R35 -> 0 | AX35: 26472.17269 | AY35: 0 | AZ35: 49680.49512 | BA35: 95185.29317 | BB35: 0 | BC35: 0 | BD35: 0 | BE35: 0 | BF35: 16716.56109 | BG35: 0 | BH35: 0 | BI35: 0 | BJ35: 0 | BK35: 0 | BL35: 188054.5221 | BM35: 0.0002845743277 | BO35: 0 | BP35: 0 | BQ35: 0 | BR35: 0 | BS35: 0 | BT35: 0 | BU35: 0 | BV35: 0 | BW35: 0 | BX35: 0 | BY35: 0 | BZ35: 0 | CA35: 0 | CB35: 0 | CC35: 0
A36: NEE17 | B36: NEE17 Small single rate & dedicated circuit with afternoon boost | D36: =IF(B36="","",INDEX('Side constraints'!$B$33:$B$111,MATCH('Prop DUOS'!B36,'Side constraints'!$D$33:$D$111,0),1)) -> Small industrial & commercial | E36: 111.1130286 | F36: 0 | G36: 12.93681848 | H36: 15.66493318 | I36: 0 | J36: 0 | K36: 0 | L36: 0 | M36: 3.238880222 | N36: 0 | O36: 0 | P36: 0 | Q36: 0 | R36: 0 | T36: 23.84 | U36: 0 | V36: 81187.06995 | W36: 223394.9661 | X36: 0 | Y36: 0 | Z36: 0 | AA36: 0 | AB36: 115508.448 | AC36: 0 | AD36: 0 | AE36: 0 | AF36: 0 | AG36: 0 | AI36: =IFERROR(VLOOKUP(C36,'t-1 DUOS'!$B$7:$Q$55,3,FALSE),0) -> 0 | AJ36: =IFERROR(VLOOKUP($C36,'t-1 DUOS'!$B$7:$Q$55,4,FALSE),0) -> 0 | AK36: =IFERROR(VLOOKUP($C36,'t-1 DUOS'!$B$7:$Q$55,5,FALSE),0) -> 0 | AL36: =IFERROR(VLOOKUP($C36,'t-1 DUOS'!$B$7:$Q$55,6,FALSE),0) -> 0 | AM36: =IFERROR(VLOOKUP($C36,'t-1 DUOS'!$B$7:$Q$55,7,FALSE),0) -> 0 | AN36: =IFERROR(VLOOKUP($C36,'t-1 DUOS'!$B$7:$Q$55,8,FALSE),0) -> 0 | AO36: =IFERROR(VLOOKUP($C36,'t-1 DUOS'!$B$7:$Q$55,9,FALSE),0) -> 0 | AP36: =IFERROR(VLOOKUP($C36,'t-1 DUOS'!$B$7:$Q$55,10,FALSE),0) -> 0 | AQ36: =IFERROR(VLOOKUP($C36,'t-1 DUOS'!$B$7:$Q$55,11,FALSE),0) -> 0 | AR36: =IFERROR(VLOOKUP($C36,'t-1 DUOS'!$B$7:$Q$55,12,FALSE),0) -> 0 | AS36: =IFERROR(VLOOKUP($C36,'t-1 DUOS'!$B$7:$Q$55,13,FALSE),0) -> 0 | AT36: =IFERROR(VLOOKUP($C36,'t-1 DUOS'!$B$7:$Q$55,14,FALSE),0) -> 0 | AU36: =IFERROR(VLOOKUP($C36,'t-1 DUOS'!$B$7:$Q$55,15,FALSE),0) -> 0 | AV36: =IFERROR(VLOOKUP($C36,'t-1 DUOS'!$B$7:$Q$55,16,FALSE),0) -> 0 | AW36: ='t-1 DUOS'!R36 -> 0 | AX36: 2648.934602 | AY36: 0 | AZ36: 10503.02387 | BA36: 34994.67216 | BB36: 0 | BC36: 0 | BD36: 0 | BE36: 0 | BF36: 3741.180279 | BG36: 0 | BH36: 0 | BI36: 0 | BJ36: 0 | BK36: 0 | BL36: 51887.81091 | BM36: 7.851945672e-05 | BO36: 0 | BP36: 0 | BQ36: 0 | BR36: 0 | BS36: 0 | BT36: 0 | BU36: 0 | BV36: 0 | BW36: 0 | BX36: 0 | BY36: 0 | BZ36: 0 | CA36: 0 | CB36: 0 | CC36: 0
A37: NEE18 | B37: NEE18 Small single rate & dedicated circuit 8:00 to 8:00 | D37: =IF(B37="","",INDEX('Side constraints'!$B$33:$B$111,MATCH('Prop DUOS'!B37,'Side constraints'!$D$33:$D$111,0),1)) -> Small industrial & commercial | E37: 111.1130286 | F37: 0 | G37: 12.93681848 | H37: 15.66493318 | I37: 0 | J37: 0 | K37: 0 | L37: 0 | M37: 3.238880222 | N37: 0 | O37: 0 | P37: 0 | Q37: 0 | R37: 0 | T37: 0 | U37: 0 | V37: 0 | W37: 0 | X37: 0 | Y37: 0 | Z37: 0 | AA37: 0 | AB37: 0 | AC37: 0 | AD37: 0 | AE37: 0 | AF37: 0 | AG37: 0 | AI37: =IFERROR(VLOOKUP(C37,'t-1 DUOS'!$B$7:$Q$55,3,FALSE),0) -> 0 | AJ37: =IFERROR(VLOOKUP($C37,'t-1 DUOS'!$B$7:$Q$55,4,FALSE),0) -> 0 | AK37: =IFERROR(VLOOKUP($C37,'t-1 DUOS'!$B$7:$Q$55,5,FALSE),0) -> 0 | AL37: =IFERROR(VLOOKUP($C37,'t-1 DUOS'!$B$7:$Q$55,6,FALSE),0) -> 0 | AM37: =IFERROR(VLOOKUP($C37,'t-1 DUOS'!$B$7:$Q$55,7,FALSE),0) -> 0 | AN37: =IFERROR(VLOOKUP($C37,'t-1 DUOS'!$B$7:$Q$55,8,FALSE),0) -> 0 | AO37: =IFERROR(VLOOKUP($C37,'t-1 DUOS'!$B$7:$Q$55,9,FALSE),0) -> 0 | AP37: =IFERROR(VLOOKUP($C37,'t-1 DUOS'!$B$7:$Q$55,10,FALSE),0) -> 0 | AQ37: =IFERROR(VLOOKUP($C37,'t-1 DUOS'!$B$7:$Q$55,11,FALSE),0) -> 0 | AR37: =IFERROR(VLOOKUP($C37,'t-1 DUOS'!$B$7:$Q$55,12,FALSE),0) -> 0 | AS37: =IFERROR(VLOOKUP($C37,'t-1 DUOS'!$B$7:$Q$55,13,FALSE),0) -> 0 | AT37: =IFERROR(VLOOKUP($C37,'t-1 DUOS'!$B$7:$Q$55,14,FALSE),0) -> 0 | AU37: =IFERROR(VLOOKUP($C37,'t-1 DUOS'!$B$7:$Q$55,15,FALSE),0) -> 0 | AV37: =IFERROR(VLOOKUP($C37,'t-1 DUOS'!$B$7:$Q$55,16,FALSE),0) -> 0 | AX37: 0 | AY37: 0 | AZ37: 0 | BA37: 0 | BB37: 0 | BC37: 0 | BD37: 0 | BE37: 0 | BF37: 0 | BG37: 0 | BH37: 0 | BI37: 0 | BJ37: 0 | BK37: 0 | BL37: 0 | BO37: 0 | BP37: 0 | BQ37: 0 | BR37: 0 | BS37: 0 | BT37: 0 | BU37: 0 | BV37: 0 | BW37: 0 | BX37: 0 | BY37: 0 | BZ37: 0 | CA37: 0 | CB37: 0 | CC37: 0
A38: NAST12 | B38: NAST12 Small business time of use | D38: =IF(B38="","",INDEX('Side constraints'!$B$33:$B$111,MATCH('Prop DUOS'!B38,'Side constraints'!$D$33:$D$111,0),1)) -> Small industrial & commercial | E38: 111.1130286 | F38: 0 | G38: 14.90699804 | H38: 3.242244958 | I38: 0 | J38: 0 | K38: 0 | L38: 0 | M38: 0 | N38: 0 | O38: 0 | P38: 0 | Q38: 0 | R38: 0 | T38: 25196.03001 | U38: 0 | V38: 201798088.1 | W38: 110843729.3 | X38: 0 | Y38: 0 | Z38: 0 | AA38: 0 | AB38: 0 | AC38: 0 | AD38: 0 | AE38: 0 | AF38: 0 | AG38: 0 | AI38: =IFERROR(VLOOKUP(C38,'t-1 DUOS'!$B$7:$Q$55,3,FALSE),0) -> 0 | AJ38: =IFERROR(VLOOKUP($C38,'t-1 DUOS'!$B$7:$Q$55,4,FALSE),0) -> 0 | AK38: =IFERROR(VLOOKUP($C38,'t-1 DUOS'!$B$7:$Q$55,5,FALSE),0) -> 0 | AL38: =IFERROR(VLOOKUP($C38,'t-1 DUOS'!$B$7:$Q$55,6,FALSE),0) -> 0 | AM38: =IFERROR(VLOOKUP($C38,'t-1 DUOS'!$B$7:$Q$55,7,FALSE),0) -> 0 | AN38: =IFERROR(VLOOKUP($C38,'t-1 DUOS'!$B$7:$Q$55,8,FALSE),0) -> 0 | AO38: =IFERROR(VLOOKUP($C38,'t-1 DUOS'!$B$7:$Q$55,9,FALSE),0) -> 0 | AP38: =IFERROR(VLOOKUP($C38,'t-1 DUOS'!$B$7:$Q$55,10,FALSE),0) -> 0 | AQ38: =IFERROR(VLOOKUP($C38,'t-1 DUOS'!$B$7:$Q$55,11,FALSE),0) -> 0 | AR38: =IFERROR(VLOOKUP($C38,'t-1 DUOS'!$B$7:$Q$55,12,FALSE),0) -> 0 | AS38: =IFERROR(VLOOKUP($C38,'t-1 DUOS'!$B$7:$Q$55,13,FALSE),0) -> 0 | AT38: =IFERROR(VLOOKUP($C38,'t-1 DUOS'!$B$7:$Q$55,14,FALSE),0) -> 0 | AU38: =IFERROR(VLOOKUP($C38,'t-1 DUOS'!$B$7:$Q$55,15,FALSE),0) -> 0 | AV38: =IFERROR(VLOOKUP($C38,'t-1 DUOS'!$B$7:$Q$55,16,FALSE),0) -> 0 | AX38: 2799607.203 | AY38: 0 | AZ38: 30082037.04 | BA38: 3593825.223 | BB38: 0 | BC38: 0 | BD38: 0 | BE38: 0 | BF38: 0 | BG38: 0 | BH38: 0 | BI38: 0 | BJ38: 0 | BK38: 0 | BL38: 36475469.47 | BM38: 0.05519666365 | BO38: 0 | BP38: 0 | BQ38: 0 | BR38: 0 | BS38: 0 | BT38: 0 | BU38: 0 | BV38: 0 | BW38: 0 | BX38: 0 | BY38: 0 | BZ38: 0 | CA38: 0 | CB38: 0 | CC38: 0
A39: NAST12S | B39: NAST12S Small business time of use standard feed in | D39: =IF(B39="","",INDEX('Side constraints'!$B$33:$B$111,MATCH('Prop DUOS'!B39,'Side constraints'!$D$33:$D$111,0),1)) -> Small industrial & commercial | E39: 111.1130286 | F39: 0 | G39: 14.90699804 | H39: 3.242244958 | I39: 0 | J39: 0 | K39: 0 | L39: 0 | M39: 0 | N39: 0 | O39: 0 | P39: 0 | Q39: 0 | R39: 0 | T39: 3934.776345 | U39: 0 | V39: 22087988.81 | W39: 11485190.71 | X39: 0 | Y39: 0 | Z39: 0 | AA39: 0 | AB39: 0 | AC39: 0 | AD39: 0 | AE39: 0 | AF39: 0 | AG39: 0 | AI39: =IFERROR(VLOOKUP(C39,'t-1 DUOS'!$B$7:$Q$55,3,FALSE),0) -> 0 | AJ39: =IFERROR(VLOOKUP($C39,'t-1 DUOS'!$B$7:$Q$55,4,FALSE),0) -> 0 | AK39: =IFERROR(VLOOKUP($C39,'t-1 DUOS'!$B$7:$Q$55,5,FALSE),0) -> 0 | AL39: =IFERROR(VLOOKUP($C39,'t-1 DUOS'!$B$7:$Q$55,6,FALSE),0) -> 0 | AM39: =IFERROR(VLOOKUP($C39,'t-1 DUOS'!$B$7:$Q$55,7,FALSE),0) -> 0 | AN39: =IFERROR(VLOOKUP($C39,'t-1 DUOS'!$B$7:$Q$55,8,FALSE),0) -> 0 | AO39: =IFERROR(VLOOKUP($C39,'t-1 DUOS'!$B$7:$Q$55,9,FALSE),0) -> 0 | AP39: =IFERROR(VLOOKUP($C39,'t-1 DUOS'!$B$7:$Q$55,10,FALSE),0) -> 0 | AQ39: =IFERROR(VLOOKUP($C39,'t-1 DUOS'!$B$7:$Q$55,11,FALSE),0) -> 0 | AR39: =IFERROR(VLOOKUP($C39,'t-1 DUOS'!$B$7:$Q$55,12,FALSE),0) -> 0 | AS39: =IFERROR(VLOOKUP($C39,'t-1 DUOS'!$B$7:$Q$55,13,FALSE),0) -> 0 | AT39: =IFERROR(VLOOKUP($C39,'t-1 DUOS'!$B$7:$Q$55,14,FALSE),0) -> 0 | AU39: =IFERROR(VLOOKUP($C39,'t-1 DUOS'!$B$7:$Q$55,15,FALSE),0) -> 0 | AV39: =IFERROR(VLOOKUP($C39,'t-1 DUOS'!$B$7:$Q$55,16,FALSE),0) -> 0 | AX39: =IF($E$78="cents",E39/100,E39)*IF($E$80="day",T39*$D$83,T39) -> 437204.9165 | AY39: =IF(F$78="cents",F39/100,F39)*U39 -> 0 | AZ39: =IF(G$78="cents",G39/100,G39)*V39 -> 3292656.059 | BA39: =IF(H$78="cents",H39/100,H39)*W39 -> 372378.0166 | BB39: =IF(I$78="cents",I39/100,I39)*X39 -> 0 | BC39: =IF(J$78="cents",J39/100,J39)*Y39 -> 0 | BD39: =IF(K$78="cents",K39/100,K39)*Z39 -> 0 | BE39: =IF(L$78="cents",L39/100,L39)*AA39 -> 0 | BF39: =IF(M$78="cents",M39/100,M39)*AB39 -> 0 | BG39: =IF(N$78="cents",N39/100,N39)*IF(N$80="day",AC39*$D$83,IF(N$80="month",AC39*12,AC39)) -> 0 | BH39: =IF(O$78="cents",O39/100,O39)*IF(O$80="day",AD39*$D$83,IF(O$80="month",AD39*12,AD39)) -> 0 | BI39: =IF(P$78="cents",P39/100,P39)*IF(P$80="day",AE39*$D$83,IF(P$80="month",AE39*12,AE39)) -> 0 | BJ39: =IF(Q$78="cents",Q39/100,Q39)*IF(Q$80="day",AF39*$D$83,IF(Q$80="month",AF39*12,AF39)) -> 0 | BK39: =IF(R$78="cents",R39/100,R39)*IF(R$80="day",AG39*$D$83,IF(R$80="month",AG39*12,AG39)) -> 0 | BL39: 4102238.992 | BM39: 0.00620773109 | BO39: 0 | BP39: =IF(F$78="cents",AJ39/100,AJ39)*U39 -> 0 | BQ39: =IF(G$78="cents",AK39/100,AK39)*V39 -> 0 | BR39: =IF(H$78="cents",AL39/100,AL39)*W39 -> 0 | BS39: =IF(I$78="cents",AM39/100,AM39)*X39 -> 0 | BT39: =IF(J$78="cents",AN39/100,AN39)*Y39 -> 0 | BU39: =IF(K$78="cents",AO39/100,AO39)*Z39 -> 0 | BV39: =IF(L$78="cents",AP39/100,AP39)*AA39 -> 0 | BW39: =IF(M$78="cents",AQ39/100,AQ39)*AB39 -> 0 | BX39: =IF(N$78="cents",AR39/100,AR39)*IF(N$80="day",AC39*$D$83,IF(N$80="month",AC39*12,AC39)) -> 0 | BY39: =IF(O$78="cents",AS39/100,AS39)*IF(O$80="day",AD39*$D$83,IF(O$80="month",AD39*12,AD39)) -> 0 | BZ39: =IF(P$78="cents",AT39/100,AT39)*IF(P$80="day",AE39*$D$83,IF(P$80="month",AE39*12,AE39)) -> 0 | CA39: =IF(Q$78="cents",AU39/100,AU39)*IF(Q$80="day",AF39*$D$83,IF(Q$80="month",AF39*12,AF39)) -> 0 | CB39: =IF(R$78="cents",AV39/100,AV39)*IF(R$80="day",AG39*$D$83,IF(R$80="month",AG39*12,AG39)) -> 0 | CC39: 0
A40: NAST12P | B40: NAST12P Small business time of use premium feed in | D40: =IF(B40="","",INDEX('Side constraints'!$B$33:$B$111,MATCH('Prop DUOS'!B40,'Side constraints'!$D$33:$D$111,0),1)) -> Small industrial & commercial | E40: 111.1130286 | F40: 0 | G40: 14.90699804 | H40: 3.242244958 | I40: 0 | J40: 0 | K40: 0 | L40: 0 | M40: 0 | N40: 0 | O40: 0 | P40: 0 | Q40: 0 | R40: 0 | T40: 388.3744856 | U40: 0 | V40: 2116914.721 | W40: 1162779.709 | X40: 0 | Y40: 0 | Z40: 0 | AA40: 0 | AB40: 0 | AC40: 0 | AD40: 0 | AE40: 0 | AF40: 0 | AG40: 0 | AI40: =IFERROR(VLOOKUP(C40,'t-1 DUOS'!$B$7:$Q$55,3,FALSE),0) -> 0 | AJ40: =IFERROR(VLOOKUP($C40,'t-1 DUOS'!$B$7:$Q$55,4,FALSE),0) -> 0 | AK40: =IFERROR(VLOOKUP($C40,'t-1 DUOS'!$B$7:$Q$55,5,FALSE),0) -> 0 | AL40: =IFERROR(VLOOKUP($C40,'t-1 DUOS'!$B$7:$Q$55,6,FALSE),0) -> 0 | AM40: =IFERROR(VLOOKUP($C40,'t-1 DUOS'!$B$7:$Q$55,7,FALSE),0) -> 0 | AN40: =IFERROR(VLOOKUP($C40,'t-1 DUOS'!$B$7:$Q$55,8,FALSE),0) -> 0 | AO40: =IFERROR(VLOOKUP($C40,'t-1 DUOS'!$B$7:$Q$55,9,FALSE),0) -> 0 | AP40: =IFERROR(VLOOKUP($C40,'t-1 DUOS'!$B$7:$Q$55,10,FALSE),0) -> 0 | AQ40: =IFERROR(VLOOKUP($C40,'t-1 DUOS'!$B$7:$Q$55,11,FALSE),0) -> 0 | AR40: =IFERROR(VLOOKUP($C40,'t-1 DUOS'!$B$7:$Q$55,12,FALSE),0) -> 0 | AS40: =IFERROR(VLOOKUP($C40,'t-1 DUOS'!$B$7:$Q$55,13,FALSE),0) -> 0 | AT40: =IFERROR(VLOOKUP($C40,'t-1 DUOS'!$B$7:$Q$55,14,FALSE),0) -> 0 | AU40: =IFERROR(VLOOKUP($C40,'t-1 DUOS'!$B$7:$Q$55,15,FALSE),0) -> 0 | AV40: =IFERROR(VLOOKUP($C40,'t-1 DUOS'!$B$7:$Q$55,16,FALSE),0) -> 0 | AX40: 43153.46532 | AY40: 0 | AZ40: 315568.436 | BA40: 37700.16648 | BB40: 0 | BC40: 0 | BD40: 0 | BE40: 0 | BF40: 0 | BG40: 0 | BH40: 0 | BI40: 0 | BJ40: 0 | BK40: 0 | BL40: 396422.0678 | BM40: 0.0005998874272 | BO40: 0 | BP40: 0 | BQ40: 0 | BR40: 0 | BS40: 0 | BT40: 0 | BU40: 0 | BV40: 0 | BW40: 0 | BX40: 0 | BY40: 0 | BZ40: 0 | CA40: 0 | CB40: 0 | CC40: 0
A41: NASN12 | B41: NASN12 Small business single rate demand | C41: NASN12 - Business Single Rate | D41: =IF(B41="","",INDEX('Side constraints'!$B$33:$B$111,MATCH('Prop DUOS'!B41,'Side constraints'!$D$33:$D$111,0),1)) -> Small industrial & commercial | E41: 111.1130286 | F41: 11.43465053 | G41: 0 | H41: 0 | I41: 0 | J41: 0 | K41: 0 | L41: 0 | M41: 0 | N41: 0 | O41: 0 | P41: 0 | Q41: 9.222671406 | R41: 2.300894212 | T41: 44.62606161 | U41: 885357.2784 | V41: 0 | W41: 0 | X41: 0 | Y41: 0 | Z41: 0 | AA41: 0 | AB41: 0 | AC41: 0 | AD41: 0 | AE41: 0 | AF41: 5734.932366 | AG41: 6362.18885 | AI41: =IFERROR(VLOOKUP(C41,'t-1 DUOS'!$B$7:$Q$55,3,FALSE),0) -> 106 | AJ41: =IFERROR(VLOOKUP($C41,'t-1 DUOS'!$B$7:$Q$55,4,FALSE),0) -> 0 | AK41: =IFERROR(VLOOKUP($C41,'t-1 DUOS'!$B$7:$Q$55,5,FALSE),0) -> 10.1744 | AL41: =IFERROR(VLOOKUP($C41,'t-1 DUOS'!$B$7:$Q$55,6,FALSE),0) -> 10.1744 | AM41: =IFERROR(VLOOKUP($C41,'t-1 DUOS'!$B$7:$Q$55,7,FALSE),0) -> 0 | AN41: =IFERROR(VLOOKUP($C41,'t-1 DUOS'!$B$7:$Q$55,8,FALSE),0) -> 0 | AO41: =IFERROR(VLOOKUP($C41,'t-1 DUOS'!$B$7:$Q$55,9,FALSE),0) -> 0 | AP41: =IFERROR(VLOOKUP($C41,'t-1 DUOS'!$B$7:$Q$55,10,FALSE),0) -> 0 | AQ41: =IFERROR(VLOOKUP($C41,'t-1 DUOS'!$B$7:$Q$55,11,FALSE),0) -> 0 | AR41: =IFERROR(VLOOKUP($C41,'t-1 DUOS'!$B$7:$Q$55,12,FALSE),0) -> 0 | AS41: =IFERROR(VLOOKUP($C41,'t-1 DUOS'!$B$7:$Q$55,13,FALSE),0) -> 0 | AT41: =IFERROR(VLOOKUP($C41,'t-1 DUOS'!$B$7:$Q$55,14,FALSE),0) -> 0 | AU41: =IFERROR(VLOOKUP($C41,'t-1 DUOS'!$B$7:$Q$55,15,FALSE),0) -> 8.64 | AV41: =IFERROR(VLOOKUP($C41,'t-1 DUOS'!$B$7:$Q$55,16,FALSE),0) -> 2.16 | AX41: 4958.536859 | AY41: 101237.5108 | AZ41: 0 | BA41: 0 | BB41: 0 | BC41: 0 | BD41: 0 | BE41: 0 | BF41: 0 | BG41: 0 | BH41: 0 | BI41: 0 | BJ41: 52891.39675 | BK41: 14638.7235 | BL41: 173726.1679 | BM41: 0.0002628918831 | BO41: 4730.362531 | BP41: 0 | BQ41: 0 | BR41: 0 | BS41: 0 | BT41: 0 | BU41: 0 | BV41: 0 | BW41: 0 | BX41: 0 | BY41: 0 | BZ41: 0 | CA41: 49549.81564 | CB41: 13742.32792 | CC41: 68022.50609
A42: NASN12S | B42: NASN12S Small business single rate demand standard feed in | C42: NASN12 - Business Single Rate | D42: =IF(B42="","",INDEX('Side constraints'!$B$33:$B$111,MATCH('Prop DUOS'!B42,'Side constraints'!$D$33:$D$111,0),1)) -> Small industrial & commercial | E42: 111.1130286 | F42: 11.43465053 | G42: 0 | H42: 0 | I42: 0 | J42: 0 | K42: 0 | L42: 0 | M42: 0 | N42: 0 | O42: 0 | P42: 0 | Q42: 9.222671406 | R42: 2.300894212 | T42: 5 | U42: 99197.3352 | V42: 0 | W42: 0 | X42: 0 | Y42: 0 | Z42: 0 | AA42: 0 | AB42: 0 | AC42: 0 | AD42: 0 | AE42: 0 | AF42: 642.5541667 | AG42: 712.8333333 | AI42: =IFERROR(VLOOKUP(C42,'t-1 DUOS'!$B$7:$Q$55,3,FALSE),0) -> 106 | AJ42: =IFERROR(VLOOKUP($C42,'t-1 DUOS'!$B$7:$Q$55,4,FALSE),0) -> 0 | AK42: =IFERROR(VLOOKUP($C42,'t-1 DUOS'!$B$7:$Q$55,5,FALSE),0) -> 10.1744 | AL42: =IFERROR(VLOOKUP($C42,'t-1 DUOS'!$B$7:$Q$55,6,FALSE),0) -> 10.1744 | AM42: =IFERROR(VLOOKUP($C42,'t-1 DUOS'!$B$7:$Q$55,7,FALSE),0) -> 0 | AN42: =IFERROR(VLOOKUP($C42,'t-1 DUOS'!$B$7:$Q$55,8,FALSE),0) -> 0 | AO42: =IFERROR(VLOOKUP($C42,'t-1 DUOS'!$B$7:$Q$55,9,FALSE),0) -> 0 | AP42: =IFERROR(VLOOKUP($C42,'t-1 DUOS'!$B$7:$Q$55,10,FALSE),0) -> 0 | AQ42: =IFERROR(VLOOKUP($C42,'t-1 DUOS'!$B$7:$Q$55,11,FALSE),0) -> 0 | AR42: =IFERROR(VLOOKUP($C42,'t-1 DUOS'!$B$7:$Q$55,12,FALSE),0) -> 0 | AS42: =IFERROR(VLOOKUP($C42,'t-1 DUOS'!$B$7:$Q$55,13,FALSE),0) -> 0 | AT42: =IFERROR(VLOOKUP($C42,'t-1 DUOS'!$B$7:$Q$55,14,FALSE),0) -> 0 | AU42: =IFERROR(VLOOKUP($C42,'t-1 DUOS'!$B$7:$Q$55,15,FALSE),0) -> 8.64 | AV42: =IFERROR(VLOOKUP($C42,'t-1 DUOS'!$B$7:$Q$55,16,FALSE),0) -> 2.16 | AX42: 555.5651429 | AY42: 11342.86862 | AZ42: 0 | BA42: 0 | BB42: 0 | BC42: 0 | BD42: 0 | BE42: 0 | BF42: 0 | BG42: 0 | BH42: 0 | BI42: 0 | BJ42: 5926.06594 | BK42: 1640.154091 | BL42: 19464.65379 | BM42: 2.945497245e-05 | BO42: 530 | BP42: 0 | BQ42: 0 | BR42: 0 | BS42: 0 | BT42: 0 | BU42: 0 | BV42: 0 | BW42: 0 | BX42: 0 | BY42: 0 | BZ42: 0 | CA42: 5551.668 | CB42: 1539.72 | CC42: 7621.388
A43: NASN12P | B43: NASN12P Small business single rate demand premium feed in | C43: NASN12 - Business Single Rate | D43: =IF(B43="","",INDEX('Side constraints'!$B$33:$B$111,MATCH('Prop DUOS'!B43,'Side constraints'!$D$33:$D$111,0),1)) -> Small industrial & commercial | E43: 111.1130286 | F43: 11.43465053 | G43: 0 | H43: 0 | I43: 0 | J43: 0 | K43: 0 | L43: 0 | M43: 0 | N43: 0 | O43: 0 | P43: 0 | Q43: 9.222671406 | R43: 2.300894212 | T43: 0 | U43: 0 | V43: 0 | W43: 0 | X43: 0 | Y43: 0 | Z43: 0 | AA43: 0 | AB43: 0 | AC43: 0 | AD43: 0 | AE43: 0 | AF43: 0 | AG43: 0 | AI43: =IFERROR(VLOOKUP(C43,'t-1 DUOS'!$B$7:$Q$55,3,FALSE),0) -> 106 | AJ43: =IFERROR(VLOOKUP($C43,'t-1 DUOS'!$B$7:$Q$55,4,FALSE),0) -> 0 | AK43: =IFERROR(VLOOKUP($C43,'t-1 DUOS'!$B$7:$Q$55,5,FALSE),0) -> 10.1744 | AL43: =IFERROR(VLOOKUP($C43,'t-1 DUOS'!$B$7:$Q$55,6,FALSE),0) -> 10.1744 | AM43: =IFERROR(VLOOKUP($C43,'t-1 DUOS'!$B$7:$Q$55,7,FALSE),0) -> 0 | AN43: =IFERROR(VLOOKUP($C43,'t-1 DUOS'!$B$7:$Q$55,8,FALSE),0) -> 0 | AO43: =IFERROR(VLOOKUP($C43,'t-1 DUOS'!$B$7:$Q$55,9,FALSE),0) -> 0 | AP43: =IFERROR(VLOOKUP($C43,'t-1 DUOS'!$B$7:$Q$55,10,FALSE),0) -> 0 | AQ43: =IFERROR(VLOOKUP($C43,'t-1 DUOS'!$B$7:$Q$55,11,FALSE),0) -> 0 | AR43: =IFERROR(VLOOKUP($C43,'t-1 DUOS'!$B$7:$Q$55,12,FALSE),0) -> 0 | AS43: =IFERROR(VLOOKUP($C43,'t-1 DUOS'!$B$7:$Q$55,13,FALSE),0) -> 0 | AT43: =IFERROR(VLOOKUP($C43,'t-1 DUOS'!$B$7:$Q$55,14,FALSE),0) -> 0 | AU43: =IFERROR(VLOOKUP($C43,'t-1 DUOS'!$B$7:$Q$55,15,FALSE),0) -> 8.64 | AV43: =IFERROR(VLOOKUP($C43,'t-1 DUOS'!$B$7:$Q$55,16,FALSE),0) -> 2.16 | AX43: 0 | AY43: 0 | AZ43: 0 | BA43: 0 | BB43: 0 | BC43: 0 | BD43: 0 | BE43: 0 | BF43: 0 | BG43: 0 | BH43: 0 | BI43: 0 | BJ43: 0 | BK43: 0 | BL43: 0 | BO43: 0 | BP43: 0 | BQ43: 0 | BR43: 0 | BS43: 0 | BT43: 0 | BU43: 0 | BV43: 0 | BW43: 0 | BX43: 0 | BY43: 0 | BZ43: 0 | CA43: 0 | CB43: 0 | CC43: 0
A44: NASN19 | B44: NASN19 Business > 40 MWh single rate demand | C44: NASN19 - Business >40MWh Single Rate | D44: =IF(B44="","",INDEX('Side constraints'!$B$33:$B$111,MATCH('Prop DUOS'!B44,'Side constraints'!$D$33:$D$111,0),1)) -> Small industrial & commercial | E44: 111.1130286 | F44: 13.25800977 | G44: 0 | H44: 0 | I44: 0 | J44: 0 | K44: 0 | L44: 0 | M44: 0 | N44: 0 | O44: 0 | P44: 0 | Q44: 7.378137125 | R44: 1.84071537 | T44: 1136.252123 | U44: 56356591.37 | V44: 0 | W44: 0 | X44: 0 | Y44: 0 | Z44: 0 | AA44: 0 | AB44: 0 | AC44: 0 | AD44: 0 | AE44: 0 | AF44: 82969.57113 | AG44: 139997.6836 | AI44: =IFERROR(VLOOKUP(C44,'t-1 DUOS'!$B$7:$Q$55,3,FALSE),0) -> 106 | AJ44: =IFERROR(VLOOKUP($C44,'t-1 DUOS'!$B$7:$Q$55,4,FALSE),0) -> 0 | AK44: =IFERROR(VLOOKUP($C44,'t-1 DUOS'!$B$7:$Q$55,5,FALSE),0) -> 12.5484 | AL44: =IFERROR(VLOOKUP($C44,'t-1 DUOS'!$B$7:$Q$55,6,FALSE),0) -> 12.5484 | AM44: =IFERROR(VLOOKUP($C44,'t-1 DUOS'!$B$7:$Q$55,7,FALSE),0) -> 0 | AN44: =IFERROR(VLOOKUP($C44,'t-1 DUOS'!$B$7:$Q$55,8,FALSE),0) -> 0 | AO44: =IFERROR(VLOOKUP($C44,'t-1 DUOS'!$B$7:$Q$55,9,FALSE),0) -> 0 | AP44: =IFERROR(VLOOKUP($C44,'t-1 DUOS'!$B$7:$Q$55,10,FALSE),0) -> 0 | AQ44: =IFERROR(VLOOKUP($C44,'t-1 DUOS'!$B$7:$Q$55,11,FALSE),0) -> 0 | AR44: =IFERROR(VLOOKUP($C44,'t-1 DUOS'!$B$7:$Q$55,12,FALSE),0) -> 0 | AS44: =IFERROR(VLOOKUP($C44,'t-1 DUOS'!$B$7:$Q$55,13,FALSE),0) -> 0 | AT44: =IFERROR(VLOOKUP($C44,'t-1 DUOS'!$B$7:$Q$55,14,FALSE),0) -> 0 | AU44: =IFERROR(VLOOKUP($C44,'t-1 DUOS'!$B$7:$Q$55,15,FALSE),0) -> 6.91 | AV44: =IFERROR(VLOOKUP($C44,'t-1 DUOS'!$B$7:$Q$55,16,FALSE),0) -> 1.73 | AX44: 126252.4146 | AY44: 7471762.39 | AZ44: 0 | BA44: 0 | BB44: 0 | BC44: 0 | BD44: 0 | BE44: 0 | BF44: 0 | BG44: 0 | BH44: 0 | BI44: 0 | BJ44: 612160.873 | BK44: 257695.888 | BL44: 8467871.566 | BM44: 0.01281404367 | BO44: 120442.7251 | BP44: 0 | BQ44: 0 | BR44: 0 | BS44: 0 | BT44: 0 | BU44: 0 | BV44: 0 | BW44: 0 | BX44: 0 | BY44: 0 | BZ44: 0 | CA44: 573319.7365 | CB44: 242195.9927 | CC44: 935958.4543
A45: NASN21 | B45: NASN21 Business > 40 MWh two rate demand | C45: NASN21 - Business >40MWh Two Rate | D45: =IF(B45="","",INDEX('Side constraints'!$B$33:$B$111,MATCH('Prop DUOS'!B45,'Side constraints'!$D$33:$D$111,0),1)) -> Small industrial & commercial | E45: 111.1130286 | F45: 0 | G45: 13.23669544 | H45: 3.047387913 | I45: 0 | J45: 0 | K45: 0 | L45: 0 | M45: 0 | N45: 0 | O45: 0 | P45: 0 | Q45: 7.378137125 | R45: 1.84071537 | T45: 7029.504246 | U45: 0 | V45: 253424935 | W45: 210340093.1 | X45: 0 | Y45: 0 | Z45: 0 | AA45: 0 | AB45: 0 | AC45: 0 | AD45: 0 | AE45: 0 | AF45: 714145.7137 | AG45: 1159037.052 | AI45: =IFERROR(VLOOKUP(C45,'t-1 DUOS'!$B$7:$Q$55,3,FALSE),0) -> 106 | AJ45: =IFERROR(VLOOKUP($C45,'t-1 DUOS'!$B$7:$Q$55,4,FALSE),0) -> 0 | AK45: =IFERROR(VLOOKUP($C45,'t-1 DUOS'!$B$7:$Q$55,5,FALSE),0) -> 12.8906 | AL45: =IFERROR(VLOOKUP($C45,'t-1 DUOS'!$B$7:$Q$55,6,FALSE),0) -> 2.7866 | AM45: =IFERROR(VLOOKUP($C45,'t-1 DUOS'!$B$7:$Q$55,7,FALSE),0) -> 0 | AN45: =IFERROR(VLOOKUP($C45,'t-1 DUOS'!$B$7:$Q$55,8,FALSE),0) -> 0 | AO45: =IFERROR(VLOOKUP($C45,'t-1 DUOS'!$B$7:$Q$55,9,FALSE),0) -> 0 | AP45: =IFERROR(VLOOKUP($C45,'t-1 DUOS'!$B$7:$Q$55,10,FALSE),0) -> 0 | AQ45: =IFERROR(VLOOKUP($C45,'t-1 DUOS'!$B$7:$Q$55,11,FALSE),0) -> 0 | AR45: =IFERROR(VLOOKUP($C45,'t-1 DUOS'!$B$7:$Q$55,12,FALSE),0) -> 0 | AS45: =IFERROR(VLOOKUP($C45,'t-1 DUOS'!$B$7:$Q$55,13,FALSE),0) -> 0 | AT45: =IFERROR(VLOOKUP($C45,'t-1 DUOS'!$B$7:$Q$55,14,FALSE),0) -> 0 | AU45: =IFERROR(VLOOKUP($C45,'t-1 DUOS'!$B$7:$Q$55,15,FALSE),0) -> 6.91 | AV45: =IFERROR(VLOOKUP($C45,'t-1 DUOS'!$B$7:$Q$55,16,FALSE),0) -> 1.73 | AX45: 781069.5063 | AY45: 0 | AZ45: 33545086.81 | BA45: 6409878.573 | BB45: 0 | BC45: 0 | BD45: 0 | BE45: 0 | BF45: 0 | BG45: 0 | BH45: 0 | BI45: 0 | BJ45: 5269065.003 | BK45: 2133457.315 | BL45: 48138557.21 | BM45: 0.07284588216 | BO45: 745127.4501 | BP45: 0 | BQ45: 32667994.67 | BR45: 5861337.034 | BS45: 0 | BT45: 0 | BU45: 0 | BV45: 0 | BW45: 0 | BX45: 0 | BY45: 0 | BZ45: 0 | CA45: 4934746.882 | CB45: 2005134.099 | CC45: 46214340.13
A46: NASN2S | B46: NASN2S Business > 40 MWh two rate demand standard feed in | D46: =IF(B46="","",INDEX('Side constraints'!$B$33:$B$111,MATCH('Prop DUOS'!B46,'Side constraints'!$D$33:$D$111,0),1)) -> Small industrial & commercial | E46: 111.1130286 | F46: 0 | G46: 13.23669544 | H46: 3.047387913 | I46: 0 | J46: 0 | K46: 0 | L46: 0 | M46: 0 | N46: 0 | O46: 0 | P46: 0 | Q46: 7.378137125 | R46: 1.84071537 | T46: 1452.071649 | U46: 0 | V46: 43557019.03 | W46: 39552182.7 | X46: 0 | Y46: 0 | Z46: 0 | AA46: 0 | AB46: 0 | AC46: 0 | AD46: 0 | AE46: 0 | AF46: 144763.3589 | AG46: 260141.5984 | AI46: =IFERROR(VLOOKUP(C46,'t-1 DUOS'!$B$7:$Q$55,3,FALSE),0) -> 0 | AJ46: =IFERROR(VLOOKUP($C46,'t-1 DUOS'!$B$7:$Q$55,4,FALSE),0) -> 0 | AK46: =IFERROR(VLOOKUP($C46,'t-1 DUOS'!$B$7:$Q$55,5,FALSE),0) -> 0 | AL46: =IFERROR(VLOOKUP($C46,'t-1 DUOS'!$B$7:$Q$55,6,FALSE),0) -> 0 | AM46: =IFERROR(VLOOKUP($C46,'t-1 DUOS'!$B$7:$Q$55,7,FALSE),0) -> 0 | AN46: =IFERROR(VLOOKUP($C46,'t-1 DUOS'!$B$7:$Q$55,8,FALSE),0) -> 0 | AO46: =IFERROR(VLOOKUP($C46,'t-1 DUOS'!$B$7:$Q$55,9,FALSE),0) -> 0 | AP46: =IFERROR(VLOOKUP($C46,'t-1 DUOS'!$B$7:$Q$55,10,FALSE),0) -> 0 | AQ46: =IFERROR(VLOOKUP($C46,'t-1 DUOS'!$B$7:$Q$55,11,FALSE),0) -> 0 | AR46: =IFERROR(VLOOKUP($C46,'t-1 DUOS'!$B$7:$Q$55,12,FALSE),0) -> 0 | AS46: =IFERROR(VLOOKUP($C46,'t-1 DUOS'!$B$7:$Q$55,13,FALSE),0) -> 0 | AT46: =IFERROR(VLOOKUP($C46,'t-1 DUOS'!$B$7:$Q$55,14,FALSE),0) -> 0 | AU46: =IFERROR(VLOOKUP($C46,'t-1 DUOS'!$B$7:$Q$55,15,FALSE),0) -> 0 | AV46: =IFERROR(VLOOKUP($C46,'t-1 DUOS'!$B$7:$Q$55,16,FALSE),0) -> 0 | AX46: 161344.0787 | AY46: 0 | AZ46: 5765509.952 | BA46: 1205308.435 | BB46: 0 | BC46: 0 | BD46: 0 | BE46: 0 | BF46: 0 | BG46: 0 | BH46: 0 | BI46: 0 | BJ46: 1068083.913 | BK46: 478846.6384 | BL46: 8679093.016 | BM46: 0.01313367545 | BO46: 0 | BP46: 0 | BQ46: 0 | BR46: 0 | BS46: 0 | BT46: 0 | BU46: 0 | BV46: 0 | BW46: 0 | BX46: 0 | BY46: 0 | BZ46: 0 | CA46: 0 | CB46: 0 | CC46: 0
A47: NASN2P | B47: NASN2P Business > 40 MWh two rate demand premium feed in | D47: =IF(B47="","",INDEX('Side constraints'!$B$33:$B$111,MATCH('Prop DUOS'!B47,'Side constraints'!$D$33:$D$111,0),1)) -> Small industrial & commercial | E47: 111.1130286 | F47: 0 | G47: 13.23669544 | H47: 3.047387913 | I47: 0 | J47: 0 | K47: 0 | L47: 0 | M47: 0 | N47: 0 | O47: 0 | P47: 0 | Q47: 7.378137125 | R47: 1.84071537 | T47: 63 | U47: 0 | V47: 2551137.93 | W47: 1495337.352 | X47: 0 | Y47: 0 | Z47: 0 | AA47: 0 | AB47: 0 | AC47: 0 | AD47: 0 | AE47: 0 | AF47: 8515.195592 | AG47: 11921.2966 | AI47: =IFERROR(VLOOKUP(C47,'t-1 DUOS'!$B$7:$Q$55,3,FALSE),0) -> 0 | AJ47: =IFERROR(VLOOKUP($C47,'t-1 DUOS'!$B$7:$Q$55,4,FALSE),0) -> 0 | AK47: =IFERROR(VLOOKUP($C47,'t-1 DUOS'!$B$7:$Q$55,5,FALSE),0) -> 0 | AL47: =IFERROR(VLOOKUP($C47,'t-1 DUOS'!$B$7:$Q$55,6,FALSE),0) -> 0 | AM47: =IFERROR(VLOOKUP($C47,'t-1 DUOS'!$B$7:$Q$55,7,FALSE),0) -> 0 | AN47: =IFERROR(VLOOKUP($C47,'t-1 DUOS'!$B$7:$Q$55,8,FALSE),0) -> 0 | AO47: =IFERROR(VLOOKUP($C47,'t-1 DUOS'!$B$7:$Q$55,9,FALSE),0) -> 0 | AP47: =IFERROR(VLOOKUP($C47,'t-1 DUOS'!$B$7:$Q$55,10,FALSE),0) -> 0 | AQ47: =IFERROR(VLOOKUP($C47,'t-1 DUOS'!$B$7:$Q$55,11,FALSE),0) -> 0 | AR47: =IFERROR(VLOOKUP($C47,'t-1 DUOS'!$B$7:$Q$55,12,FALSE),0) -> 0 | AS47: =IFERROR(VLOOKUP($C47,'t-1 DUOS'!$B$7:$Q$55,13,FALSE),0) -> 0 | AT47: =IFERROR(VLOOKUP($C47,'t-1 DUOS'!$B$7:$Q$55,14,FALSE),0) -> 0 | AU47: =IFERROR(VLOOKUP($C47,'t-1 DUOS'!$B$7:$Q$55,15,FALSE),0) -> 0 | AV47: =IFERROR(VLOOKUP($C47,'t-1 DUOS'!$B$7:$Q$55,16,FALSE),0) -> 0 | AX47: 7000.120801 | AY47: 0 | AZ47: 337686.3581 | BA47: 45568.72972 | BB47: 0 | BC47: 0 | BD47: 0 | BE47: 0 | BF47: 0 | BG47: 0 | BH47: 0 | BI47: 0 | BJ47: 62826.28073 | BK47: 21943.71387 | BL47: 475025.2032 | BM47: 0.0007188339657 | BO47: 0 | BP47: 0 | BQ47: 0 | BR47: 0 | BS47: 0 | BT47: 0 | BU47: 0 | BV47: 0 | BW47: 0 | BX47: 0 | BY47: 0 | BZ47: 0 | CA47: 0 | CB47: 0 | CC47: 0
A48: NEN21 | B48: NEN21 Small two rate within embedded network | C48: NEN21 Small Business Two Rate - Embedded Network | D48: =IF(B48="","",INDEX('Side constraints'!$B$33:$B$111,MATCH('Prop DUOS'!B48,'Side constraints'!$D$33:$D$111,0),1)) -> Small industrial & commercial | E48: 111.1130286 | F48: 0 | G48: 11.38780498 | H48: 5.1883474 | I48: 0 | J48: 0 | K48: 0 | L48: 0 | M48: 0 | N48: 0 | O48: 0 | P48: 0 | Q48: 0 | R48: 0 | T48: 0 | U48: 0 | V48: 0 | W48: 0 | X48: 0 | Y48: 0 | Z48: 0 | AA48: 0 | AB48: 0 | AC48: 0 | AD48: 0 | AE48: 0 | AF48: 0 | AG48: 0 | AI48: =IFERROR(VLOOKUP(C48,'t-1 DUOS'!$B$7:$Q$55,3,FALSE),0) -> 106 | AJ48: =IFERROR(VLOOKUP($C48,'t-1 DUOS'!$B$7:$Q$55,4,FALSE),0) -> 0 | AK48: =IFERROR(VLOOKUP($C48,'t-1 DUOS'!$B$7:$Q$55,5,FALSE),0) -> 10.0993 | AL48: =IFERROR(VLOOKUP($C48,'t-1 DUOS'!$B$7:$Q$55,6,FALSE),0) -> 4.6013 | AM48: =IFERROR(VLOOKUP($C48,'t-1 DUOS'!$B$7:$Q$55,7,FALSE),0) -> 0 | AN48: =IFERROR(VLOOKUP($C48,'t-1 DUOS'!$B$7:$Q$55,8,FALSE),0) -> 0 | AO48: =IFERROR(VLOOKUP($C48,'t-1 DUOS'!$B$7:$Q$55,9,FALSE),0) -> 0 | AP48: =IFERROR(VLOOKUP($C48,'t-1 DUOS'!$B$7:$Q$55,10,FALSE),0) -> 0 | AQ48: =IFERROR(VLOOKUP($C48,'t-1 DUOS'!$B$7:$Q$55,11,FALSE),0) -> 0 | AR48: =IFERROR(VLOOKUP($C48,'t-1 DUOS'!$B$7:$Q$55,12,FALSE),0) -> 0 | AS48: =IFERROR(VLOOKUP($C48,'t-1 DUOS'!$B$7:$Q$55,13,FALSE),0) -> 0 | AT48: =IFERROR(VLOOKUP($C48,'t-1 DUOS'!$B$7:$Q$55,14,FALSE),0) -> 0 | AU48: =IFERROR(VLOOKUP($C48,'t-1 DUOS'!$B$7:$Q$55,15,FALSE),0) -> 0 | AV48: =IFERROR(VLOOKUP($C48,'t-1 DUOS'!$B$7:$Q$55,16,FALSE),0) -> 0 | AX48: 0 | AY48: 0 | AZ48: 0 | BA48: 0 | BB48: 0 | BC48: 0 | BD48: 0 | BE48: 0 | BF48: 0 | BG48: 0 | BH48: 0 | BI48: 0 | BJ48: 0 | BK48: 0 | BL48: 0 | BO48: 0 | BP48: 0 | BQ48: 0 | BR48: 0 | BS48: 0 | BT48: 0 | BU48: 0 | BV48: 0 | BW48: 0 | BX48: 0 | BY48: 0 | BZ48: 0 | CA48: 0 | CB48: 0 | CC48: 0
A49: NSP21 | B49: NSP21 Small interval meter time of use | C49: NSP21 Small Business Two Rate | D49: =IF(B49="","",INDEX('Side constraints'!$B$33:$B$111,MATCH('Prop DUOS'!B49,'Side constraints'!$D$33:$D$111,0),1)) -> Small industrial & commercial | E49: 111.1130286 | F49: 0 | G49: 0 | H49: 3.308791308 | I49: 33.94642376 | J49: 38.79423184 | K49: 29.70961522 | L49: 0 | M49: 0 | N49: 0 | O49: 0 | P49: 0 | Q49: 0 | R49: 0 | T49: 24.25212322 | U49: 0 | V49: 0 | W49: 455210.8786 | X49: 16277.11894 | Y49: 4448.03726 | Z49: 14911.47724 | AA49: 0 | AB49: 0 | AC49: 0 | AD49: 0 | AE49: 0 | AF49: 0 | AG49: 0 | AI49: =IFERROR(VLOOKUP(C49,'t-1 DUOS'!$B$7:$Q$55,3,FALSE),0) -> 106 | AJ49: =IFERROR(VLOOKUP($C49,'t-1 DUOS'!$B$7:$Q$55,4,FALSE),0) -> 0 | AK49: =IFERROR(VLOOKUP($C49,'t-1 DUOS'!$B$7:$Q$55,5,FALSE),0) -> 0 | AL49: =IFERROR(VLOOKUP($C49,'t-1 DUOS'!$B$7:$Q$55,6,FALSE),0) -> 2.9693 | AM49: =IFERROR(VLOOKUP($C49,'t-1 DUOS'!$B$7:$Q$55,7,FALSE),0) -> 30.4637 | AN49: =IFERROR(VLOOKUP($C49,'t-1 DUOS'!$B$7:$Q$55,8,FALSE),0) -> 34.8141 | AO49: =IFERROR(VLOOKUP($C49,'t-1 DUOS'!$B$7:$Q$55,9,FALSE),0) -> 26.6615 | AP49: =IFERROR(VLOOKUP($C49,'t-1 DUOS'!$B$7:$Q$55,10,FALSE),0) -> 0 | AQ49: =IFERROR(VLOOKUP($C49,'t-1 DUOS'!$B$7:$Q$55,11,FALSE),0) -> 0 | AR49: =IFERROR(VLOOKUP($C49,'t-1 DUOS'!$B$7:$Q$55,12,FALSE),0) -> 0 | AS49: =IFERROR(VLOOKUP($C49,'t-1 DUOS'!$B$7:$Q$55,13,FALSE),0) -> 0 | AT49: =IFERROR(VLOOKUP($C49,'t-1 DUOS'!$B$7:$Q$55,14,FALSE),0) -> 0 | AU49: =IFERROR(VLOOKUP($C49,'t-1 DUOS'!$B$7:$Q$55,15,FALSE),0) -> 0 | AV49: =IFERROR(VLOOKUP($C49,'t-1 DUOS'!$B$7:$Q$55,16,FALSE),0) -> 0 | AX49: 2694.726861 | AY49: 0 | AZ49: 0 | BA49: 15061.97798 | BB49: 5525.499772 | BC49: 1725.581887 | BD49: 4430.14251 | BE49: 0 | BF49: 0 | BG49: 0 | BH49: 0 | BI49: 0 | BJ49: 0 | BK49: 0 | BL49: 29437.92901 | BM49: 4.454707479e-05 | BO49: 2570.725061 | BP49: 0 | BQ49: 0 | BR49: 13516.57662 | BS49: 4958.612683 | BT49: 1548.54414 | BU49: 3975.623503 | BV49: 0 | BW49: 0 | BX49: 0 | BY49: 0 | BZ49: 0 | CA49: 0 | CB49: 0 | CC49: 26570.082
A50: NSP27 | B50: NSP27 Small interval meter low peak time of use | C50: NSP27 Small Business Two Rate | D50: =IF(B50="","",INDEX('Side constraints'!$B$33:$B$111,MATCH('Prop DUOS'!B50,'Side constraints'!$D$33:$D$111,0),1)) -> Small industrial & commercial | E50: 111.1130286 | F50: 0 | G50: 0 | H50: 5.984082244 | I50: 19.10793247 | J50: 21.79769062 | K50: 16.7585835 | L50: 0 | M50: 0 | N50: 0 | O50: 0 | P50: 0 | Q50: 0 | R50: 0 | T50: 843.8781848 | U50: 0 | V50: 0 | W50: 58998201.14 | X50: 159959.562 | Y50: 159297.5542 | Z50: 743560.2177 | AA50: 0 | AB50: 0 | AC50: 0 | AD50: 0 | AE50: 0 | AF50: 0 | AG50: 0 | AI50: =IFERROR(VLOOKUP(C50,'t-1 DUOS'!$B$7:$Q$55,3,FALSE),0) -> 106 | AJ50: =IFERROR(VLOOKUP($C50,'t-1 DUOS'!$B$7:$Q$55,4,FALSE),0) -> 0 | AK50: =IFERROR(VLOOKUP($C50,'t-1 DUOS'!$B$7:$Q$55,5,FALSE),0) -> 0 | AL50: =IFERROR(VLOOKUP($C50,'t-1 DUOS'!$B$7:$Q$55,6,FALSE),0) -> 5.4007 | AM50: =IFERROR(VLOOKUP($C50,'t-1 DUOS'!$B$7:$Q$55,7,FALSE),0) -> 17.2452 | AN50: =IFERROR(VLOOKUP($C50,'t-1 DUOS'!$B$7:$Q$55,8,FALSE),0) -> 19.6727 | AO50: =IFERROR(VLOOKUP($C50,'t-1 DUOS'!$B$7:$Q$55,9,FALSE),0) -> 15.1249 | AP50: =IFERROR(VLOOKUP($C50,'t-1 DUOS'!$B$7:$Q$55,10,FALSE),0) -> 0 | AQ50: =IFERROR(VLOOKUP($C50,'t-1 DUOS'!$B$7:$Q$55,11,FALSE),0) -> 0 | AR50: =IFERROR(VLOOKUP($C50,'t-1 DUOS'!$B$7:$Q$55,12,FALSE),0) -> 0 | AS50: =IFERROR(VLOOKUP($C50,'t-1 DUOS'!$B$7:$Q$55,13,FALSE),0) -> 0 | AT50: =IFERROR(VLOOKUP($C50,'t-1 DUOS'!$B$7:$Q$55,14,FALSE),0) -> 0 | AU50: =IFERROR(VLOOKUP($C50,'t-1 DUOS'!$B$7:$Q$55,15,FALSE),0) -> 0 | AV50: =IFERROR(VLOOKUP($C50,'t-1 DUOS'!$B$7:$Q$55,16,FALSE),0) -> 0 | AX50: 93765.86087 | AY50: 0 | AZ50: 0 | BA50: 3530500.879 | BB50: 30564.96507 | BC50: 34723.18804 | BD50: 124610.16 | BE50: 0 | BF50: 0 | BG50: 0 | BH50: 0 | BI50: 0 | BJ50: 0 | BK50: 0 | BL50: 3814165.053 | BM50: 0.005771801942 | BO50: 89451.08759 | BP50: 0 | BQ50: 0 | BR50: 3186315.849 | BS50: 27585.34638 | BT50: 31338.12995 | BU50: 112462.7394 | BV50: 0 | BW50: 0 | BX50: 0 | BY50: 0 | BZ50: 0 | CA50: 0 | CB50: 0 | CC50: 3447153.152
A51: SSP27 | B51: SSP27 Small interval meter time of use solar installation standard feed in | D51: =IF(B51="","",INDEX('Side constraints'!$B$33:$B$111,MATCH('Prop DUOS'!B51,'Side constraints'!$D$33:$D$111,0),1)) -> Small industrial & commercial | E51: 111.1130286 | F51: 0 | G51: 0 | H51: 5.984082244 | I51: 19.10793247 | J51: 21.79769062 | K51: 16.7585835 | L51: 0 | M51: 0 | N51: 0 | O51: 0 | P51: 0 | Q51: 0 | R51: 0 | T51: 86 | U51: 0 | V51: 0 | W51: 3968271.674 | X51: 10759.02292 | Y51: 10714.49569 | Z51: 50012.52398 | AA51: 0 | AB51: 0 | AC51: 0 | AD51: 0 | AE51: 0 | AF51: 0 | AG51: 0 | AI51: =IFERROR(VLOOKUP(C51,'t-1 DUOS'!$B$7:$Q$55,3,FALSE),0) -> 0 | AJ51: =IFERROR(VLOOKUP($C51,'t-1 DUOS'!$B$7:$Q$55,4,FALSE),0) -> 0 | AK51: =IFERROR(VLOOKUP($C51,'t-1 DUOS'!$B$7:$Q$55,5,FALSE),0) -> 0 | AL51: =IFERROR(VLOOKUP($C51,'t-1 DUOS'!$B$7:$Q$55,6,FALSE),0) -> 0 | AM51: =IFERROR(VLOOKUP($C51,'t-1 DUOS'!$B$7:$Q$55,7,FALSE),0) -> 0 | AN51: =IFERROR(VLOOKUP($C51,'t-1 DUOS'!$B$7:$Q$55,8,FALSE),0) -> 0 | AO51: =IFERROR(VLOOKUP($C51,'t-1 DUOS'!$B$7:$Q$55,9,FALSE),0) -> 0 | AP51: =IFERROR(VLOOKUP($C51,'t-1 DUOS'!$B$7:$Q$55,10,FALSE),0) -> 0 | AQ51: =IFERROR(VLOOKUP($C51,'t-1 DUOS'!$B$7:$Q$55,11,FALSE),0) -> 0 | AR51: =IFERROR(VLOOKUP($C51,'t-1 DUOS'!$B$7:$Q$55,12,FALSE),0) -> 0 | AS51: =IFERROR(VLOOKUP($C51,'t-1 DUOS'!$B$7:$Q$55,13,FALSE),0) -> 0 | AT51: =IFERROR(VLOOKUP($C51,'t-1 DUOS'!$B$7:$Q$55,14,FALSE),0) -> 0 | AU51: =IFERROR(VLOOKUP($C51,'t-1 DUOS'!$B$7:$Q$55,15,FALSE),0) -> 0 | AV51: =IFERROR(VLOOKUP($C51,'t-1 DUOS'!$B$7:$Q$55,16,FALSE),0) -> 0 | AX51: 9555.720458 | AY51: 0 | AZ51: 0 | BA51: 237464.6406 | BB51: 2055.826835 | BC51: 2335.512623 | BD51: 8381.390594 | BE51: 0 | BF51: 0 | BG51: 0 | BH51: 0 | BI51: 0 | BJ51: 0 | BK51: 0 | BL51: 259793.0911 | BM51: 0.000393133031 | BO51: 0 | BP51: 0 | BQ51: 0 | BR51: 0 | BS51: 0 | BT51: 0 | BU51: 0 | BV51: 0 | BW51: 0 | BX51: 0 | BY51: 0 | BZ51: 0 | CA51: 0 | CB51: 0 | CC51: 0
A52: SSP21 | B52: SSP21 Small interval meter time of use solar installation premium feed in | D52: =IF(B52="","",INDEX('Side constraints'!$B$33:$B$111,MATCH('Prop DUOS'!B52,'Side constraints'!$D$33:$D$111,0),1)) -> Small industrial & commercial | E52: 111.1130286 | F52: 0 | G52: 0 | H52: 5.984082244 | I52: 19.10793247 | J52: 21.79769062 | K52: 16.7585835 | L52: 0 | M52: 0 | N52: 0 | O52: 0 | P52: 0 | Q52: 0 | R52: 0 | T52: 2 | U52: 0 | V52: 0 | W52: 56309.81763 | X52: 2013.487907 | Y52: 550.2244756 | Z52: 1844.557332 | AA52: 0 | AB52: 0 | AC52: 0 | AD52: 0 | AE52: 0 | AF52: 0 | AG52: 0 | AI52: =IFERROR(VLOOKUP(C52,'t-1 DUOS'!$B$7:$Q$55,3,FALSE),0) -> 0 | AJ52: =IFERROR(VLOOKUP($C52,'t-1 DUOS'!$B$7:$Q$55,4,FALSE),0) -> 0 | AK52: =IFERROR(VLOOKUP($C52,'t-1 DUOS'!$B$7:$Q$55,5,FALSE),0) -> 0 | AL52: =IFERROR(VLOOKUP($C52,'t-1 DUOS'!$B$7:$Q$55,6,FALSE),0) -> 0 | AM52: =IFERROR(VLOOKUP($C52,'t-1 DUOS'!$B$7:$Q$55,7,FALSE),0) -> 0 | AN52: =IFERROR(VLOOKUP($C52,'t-1 DUOS'!$B$7:$Q$55,8,FALSE),0) -> 0 | AO52: =IFERROR(VLOOKUP($C52,'t-1 DUOS'!$B$7:$Q$55,9,FALSE),0) -> 0 | AP52: =IFERROR(VLOOKUP($C52,'t-1 DUOS'!$B$7:$Q$55,10,FALSE),0) -> 0 | AQ52: =IFERROR(VLOOKUP($C52,'t-1 DUOS'!$B$7:$Q$55,11,FALSE),0) -> 0 | AR52: =IFERROR(VLOOKUP($C52,'t-1 DUOS'!$B$7:$Q$55,12,FALSE),0) -> 0 | AS52: =IFERROR(VLOOKUP($C52,'t-1 DUOS'!$B$7:$Q$55,13,FALSE),0) -> 0 | AT52: =IFERROR(VLOOKUP($C52,'t-1 DUOS'!$B$7:$Q$55,14,FALSE),0) -> 0 | AU52: =IFERROR(VLOOKUP($C52,'t-1 DUOS'!$B$7:$Q$55,15,FALSE),0) -> 0 | AV52: =IFERROR(VLOOKUP($C52,'t-1 DUOS'!$B$7:$Q$55,16,FALSE),0) -> 0 | AX52: 222.2260572 | AY52: 0 | AZ52: 0 | BA52: 3369.625798 | BB52: 384.7359095 | BC52: 119.9362289 | BD52: 309.1216808 | BE52: 0 | BF52: 0 | BG52: 0 | BH52: 0 | BI52: 0 | BJ52: 0 | BK52: 0 | BL52: 4405.645675 | BM52: 6.666862579e-06 | BO52: 0 | BP52: 0 | BQ52: 0 | BR52: 0 | BS52: 0 | BT52: 0 | BU52: 0 | BV52: 0 | BW52: 0 | BX52: 0 | BY52: 0 | BZ52: 0 | CA52: 0 | CB52: 0 | CC52: 0
A53: NEE40 | B53: NEE40 Medium single rate | C53: NEE40 Medium Single Rate - closed to new customers | D53: =IF(B53="","",INDEX('Side constraints'!$B$33:$B$111,MATCH('Prop DUOS'!B53,'Side constraints'!$D$33:$D$111,0),1)) -> Medium industrial & commercial | E53: 111.1130286 | F53: 22.5268114 | G53: 0 | H53: 0 | I53: 0 | J53: 0 | K53: 0 | L53: 0 | M53: 0 | N53: 0 | O53: 0 | P53: 0 | Q53: 0 | R53: 0 | T53: 225.4033613 | U53: 5233979.401 | V53: 0 | W53: 0 | X53: 0 | Y53: 0 | Z53: 0 | AA53: 0 | AB53: 0 | AC53: 0 | AD53: 0 | AE53: 0 | AF53: 0 | AG53: 0 | AI53: =IFERROR(VLOOKUP(C53,'t-1 DUOS'!$B$7:$Q$55,3,FALSE),0) -> 106 | AJ53: =IFERROR(VLOOKUP($C53,'t-1 DUOS'!$B$7:$Q$55,4,FALSE),0) -> 0 | AK53: =IFERROR(VLOOKUP($C53,'t-1 DUOS'!$B$7:$Q$55,5,FALSE),0) -> 20.3491 | AL53: =IFERROR(VLOOKUP($C53,'t-1 DUOS'!$B$7:$Q$55,6,FALSE),0) -> 0 | AM53: =IFERROR(VLOOKUP($C53,'t-1 DUOS'!$B$7:$Q$55,7,FALSE),0) -> 0 | AN53: =IFERROR(VLOOKUP($C53,'t-1 DUOS'!$B$7:$Q$55,8,FALSE),0) -> 0 | AO53: =IFERROR(VLOOKUP($C53,'t-1 DUOS'!$B$7:$Q$55,9,FALSE),0) -> 0 | AP53: =IFERROR(VLOOKUP($C53,'t-1 DUOS'!$B$7:$Q$55,10,FALSE),0) -> 0 | AQ53: =IFERROR(VLOOKUP($C53,'t-1 DUOS'!$B$7:$Q$55,11,FALSE),0) -> 0 | AR53: =IFERROR(VLOOKUP($C53,'t-1 DUOS'!$B$7:$Q$55,12,FALSE),0) -> 0 | AS53: =IFERROR(VLOOKUP($C53,'t-1 DUOS'!$B$7:$Q$55,13,FALSE),0) -> 0 | AT53: =IFERROR(VLOOKUP($C53,'t-1 DUOS'!$B$7:$Q$55,14,FALSE),0) -> 0 | AU53: =IFERROR(VLOOKUP($C53,'t-1 DUOS'!$B$7:$Q$55,15,FALSE),0) -> 0 | AV53: =IFERROR(VLOOKUP($C53,'t-1 DUOS'!$B$7:$Q$55,16,FALSE),0) -> 0 | AX53: 25045.25013 | AY53: 1179048.669 | AZ53: 0 | BA53: 0 | BB53: 0 | BC53: 0 | BD53: 0 | BE53: 0 | BF53: 0 | BG53: 0 | BH53: 0 | BI53: 0 | BJ53: 0 | BK53: 0 | BL53: 1204093.919 | BM53: 0.001822100387 | BO53: 23892.7563 | BP53: 0 | BQ53: 0 | BR53: 0 | BS53: 0 | BT53: 0 | BU53: 0 | BV53: 0 | BW53: 0 | BX53: 0 | BY53: 0 | BZ53: 0 | CA53: 0 | CB53: 0 | CC53: 23892.7563
A54: NEE41 | B54: NEE41 Medium single rate & dedicated circuit | D54: =IF(B54="","",INDEX('Side constraints'!$B$33:$B$111,MATCH('Prop DUOS'!B54,'Side constraints'!$D$33:$D$111,0),1)) -> Medium industrial & commercial | E54: 111.1130286 | F54: 22.5268114 | G54: 0 | H54: 0 | I54: 0 | J54: 0 | K54: 0 | L54: 0 | M54: 3.238880222 | N54: 0 | O54: 0 | P54: 0 | Q54: 0 | R54: 0 | T54: 9.717948718 | U54: 22261.38503 | V54: 0 | W54: 0 | X54: 0 | Y54: 0 | Z54: 0 | AA54: 0 | AB54: 731.6494968 | AC54: 0 | AD54: 0 | AE54: 0 | AF54: 0 | AG54: 0 | AI54: =IFERROR(VLOOKUP(C54,'t-1 DUOS'!$B$7:$Q$55,3,FALSE),0) -> 0 | AJ54: =IFERROR(VLOOKUP($C54,'t-1 DUOS'!$B$7:$Q$55,4,FALSE),0) -> 0 | AK54: =IFERROR(VLOOKUP($C54,'t-1 DUOS'!$B$7:$Q$55,5,FALSE),0) -> 0 | AL54: =IFERROR(VLOOKUP($C54,'t-1 DUOS'!$B$7:$Q$55,6,FALSE),0) -> 0 | AM54: =IFERROR(VLOOKUP($C54,'t-1 DUOS'!$B$7:$Q$55,7,FALSE),0) -> 0 | AN54: =IFERROR(VLOOKUP($C54,'t-1 DUOS'!$B$7:$Q$55,8,FALSE),0) -> 0 | AO54: =IFERROR(VLOOKUP($C54,'t-1 DUOS'!$B$7:$Q$55,9,FALSE),0) -> 0 | AP54: =IFERROR(VLOOKUP($C54,'t-1 DUOS'!$B$7:$Q$55,10,FALSE),0) -> 0 | AQ54: =IFERROR(VLOOKUP($C54,'t-1 DUOS'!$B$7:$Q$55,11,FALSE),0) -> 0 | AR54: =IFERROR(VLOOKUP($C54,'t-1 DUOS'!$B$7:$Q$55,12,FALSE),0) -> 0 | AS54: =IFERROR(VLOOKUP($C54,'t-1 DUOS'!$B$7:$Q$55,13,FALSE),0) -> 0 | AT54: =IFERROR(VLOOKUP($C54,'t-1 DUOS'!$B$7:$Q$55,14,FALSE),0) -> 0 | AU54: =IFERROR(VLOOKUP($C54,'t-1 DUOS'!$B$7:$Q$55,15,FALSE),0) -> 0 | AV54: =IFERROR(VLOOKUP($C54,'t-1 DUOS'!$B$7:$Q$55,16,FALSE),0) -> 0 | AX54: 1079.790714 | AY54: 5014.780223 | AZ54: 0 | BA54: 0 | BB54: 0 | BC54: 0 | BD54: 0 | BE54: 0 | BF54: 23.69725085 | BG54: 0 | BH54: 0 | BI54: 0 | BJ54: 0 | BK54: 0 | BL54: 6118.268187 | BM54: 9.258496084e-06 | BO54: 0 | BP54: 0 | BQ54: 0 | BR54: 0 | BS54: 0 | BT54: 0 | BU54: 0 | BV54: 0 | BW54: 0 | BX54: 0 | BY54: 0 | BZ54: 0 | CA54: 0 | CB54: 0 | CC54: 0
A55: NEE42 | B55: NEE42 Medium single rate & dedicated circuit with afternoon boost | D55: =IF(B55="","",INDEX('Side constraints'!$B$33:$B$111,MATCH('Prop DUOS'!B55,'Side constraints'!$D$33:$D$111,0),1)) -> Medium industrial & commercial | E55: 111.1130286 | F55: 22.5268114 | G55: 0 | H55: 0 | I55: 0 | J55: 0 | K55: 0 | L55: 0 | M55: 3.238880222 | N55: 0 | O55: 0 | P55: 0 | Q55: 0 | R55: 0 | T55: 4.861111111 | U55: 459881.0869 | V55: 0 | W55: 0 | X55: 0 | Y55: 0 | Z55: 0 | AA55: 0 | AB55: 346536.8336 | AC55: 0 | AD55: 0 | AE55: 0 | AF55: 0 | AG55: 0 | AI55: =IFERROR(VLOOKUP(C55,'t-1 DUOS'!$B$7:$Q$55,3,FALSE),0) -> 0 | AJ55: =IFERROR(VLOOKUP($C55,'t-1 DUOS'!$B$7:$Q$55,4,FALSE),0) -> 0 | AK55: =IFERROR(VLOOKUP($C55,'t-1 DUOS'!$B$7:$Q$55,5,FALSE),0) -> 0 | AL55: =IFERROR(VLOOKUP($C55,'t-1 DUOS'!$B$7:$Q$55,6,FALSE),0) -> 0 | AM55: =IFERROR(VLOOKUP($C55,'t-1 DUOS'!$B$7:$Q$55,7,FALSE),0) -> 0 | AN55: =IFERROR(VLOOKUP($C55,'t-1 DUOS'!$B$7:$Q$55,8,FALSE),0) -> 0 | AO55: =IFERROR(VLOOKUP($C55,'t-1 DUOS'!$B$7:$Q$55,9,FALSE),0) -> 0 | AP55: =IFERROR(VLOOKUP($C55,'t-1 DUOS'!$B$7:$Q$55,10,FALSE),0) -> 0 | AQ55: =IFERROR(VLOOKUP($C55,'t-1 DUOS'!$B$7:$Q$55,11,FALSE),0) -> 0 | AR55: =IFERROR(VLOOKUP($C55,'t-1 DUOS'!$B$7:$Q$55,12,FALSE),0) -> 0 | AS55: =IFERROR(VLOOKUP($C55,'t-1 DUOS'!$B$7:$Q$55,13,FALSE),0) -> 0 | AT55: =IFERROR(VLOOKUP($C55,'t-1 DUOS'!$B$7:$Q$55,14,FALSE),0) -> 0 | AU55: =IFERROR(VLOOKUP($C55,'t-1 DUOS'!$B$7:$Q$55,15,FALSE),0) -> 0 | AV55: =IFERROR(VLOOKUP($C55,'t-1 DUOS'!$B$7:$Q$55,16,FALSE),0) -> 0 | AX55: 540.1327779 | AY55: 103596.5451 | AZ55: 0 | BA55: 0 | BB55: 0 | BC55: 0 | BD55: 0 | BE55: 0 | BF55: 11223.91297 | BG55: 0 | BH55: 0 | BI55: 0 | BJ55: 0 | BK55: 0 | BL55: 115360.5909 | BM55: 0.0001745699185 | BO55: 0 | BP55: 0 | BQ55: 0 | BR55: 0 | BS55: 0 | BT55: 0 | BU55: 0 | BV55: 0 | BW55: 0 | BX55: 0 | BY55: 0 | BZ55: 0 | CA55: 0 | CB55: 0 | CC55: 0
A56: NEE43 | B56: NEE43 Medium single rate & dedicated circuit 8:00 to 8:00 | D56: =IF(B56="","",INDEX('Side constraints'!$B$33:$B$111,MATCH('Prop DUOS'!B56,'Side constraints'!$D$33:$D$111,0),1)) -> Medium industrial & commercial | E56: 111.1130286 | F56: 22.5268114 | G56: 0 | H56: 0 | I56: 0 | J56: 0 | K56: 0 | L56: 0 | M56: 3.238880222 | N56: 0 | O56: 0 | P56: 0 | Q56: 0 | R56: 0 | T56: 0 | U56: 0 | V56: 0 | W56: 0 | X56: 0 | Y56: 0 | Z56: 0 | AA56: 0 | AB56: 0 | AC56: 0 | AD56: 0 | AE56: 0 | AF56: 0 | AG56: 0 | AI56: =IFERROR(VLOOKUP(C56,'t-1 DUOS'!$B$7:$Q$55,3,FALSE),0) -> 0 | AJ56: =IFERROR(VLOOKUP($C56,'t-1 DUOS'!$B$7:$Q$55,4,FALSE),0) -> 0 | AK56: =IFERROR(VLOOKUP($C56,'t-1 DUOS'!$B$7:$Q$55,5,FALSE),0) -> 0 | AL56: =IFERROR(VLOOKUP($C56,'t-1 DUOS'!$B$7:$Q$55,6,FALSE),0) -> 0 | AM56: =IFERROR(VLOOKUP($C56,'t-1 DUOS'!$B$7:$Q$55,7,FALSE),0) -> 0 | AN56: =IFERROR(VLOOKUP($C56,'t-1 DUOS'!$B$7:$Q$55,8,FALSE),0) -> 0 | AO56: =IFERROR(VLOOKUP($C56,'t-1 DUOS'!$B$7:$Q$55,9,FALSE),0) -> 0 | AP56: =IFERROR(VLOOKUP($C56,'t-1 DUOS'!$B$7:$Q$55,10,FALSE),0) -> 0 | AQ56: =IFERROR(VLOOKUP($C56,'t-1 DUOS'!$B$7:$Q$55,11,FALSE),0) -> 0 | AR56: =IFERROR(VLOOKUP($C56,'t-1 DUOS'!$B$7:$Q$55,12,FALSE),0) -> 0 | AS56: =IFERROR(VLOOKUP($C56,'t-1 DUOS'!$B$7:$Q$55,13,FALSE),0) -> 0 | AT56: =IFERROR(VLOOKUP($C56,'t-1 DUOS'!$B$7:$Q$55,14,FALSE),0) -> 0 | AU56: =IFERROR(VLOOKUP($C56,'t-1 DUOS'!$B$7:$Q$55,15,FALSE),0) -> 0 | AV56: =IFERROR(VLOOKUP($C56,'t-1 DUOS'!$B$7:$Q$55,16,FALSE),0) -> 0 | AX56: 0 | AY56: 0 | AZ56: 0 | BA56: 0 | BB56: 0 | BC56: 0 | BD56: 0 | BE56: 0 | BF56: 0 | BG56: 0 | BH56: 0 | BI56: 0 | BJ56: 0 | BK56: 0 | BL56: 0 | BO56: 0 | BP56: 0 | BQ56: 0 | BR56: 0 | BS56: 0 | BT56: 0 | BU56: 0 | BV56: 0 | BW56: 0 | BX56: 0 | BY56: 0 | BZ56: 0 | CA56: 0 | CB56: 0 | CC56: 0
A57: NEE51 | B57: NEE51 Medium two rate | C57: NEE51 Medium Two Rate 5Day - closed to new customers - <160MWh to NEE21 | D57: =IF(B57="","",INDEX('Side constraints'!$B$33:$B$111,MATCH('Prop DUOS'!B57,'Side constraints'!$D$33:$D$111,0),1)) -> Medium industrial & commercial | E57: 111.1130286 | F57: 0 | G57: 19.46296334 | H57: 4.122116454 | I57: 0 | J57: 0 | K57: 0 | L57: 0 | M57: 0 | N57: 0 | O57: 0 | P57: 0 | Q57: 0 | R57: 0 | T57: 353.0320641 | U57: 0 | V57: 43043746.52 | W57: 35885851.24 | X57: 0 | Y57: 0 | Z57: 0 | AA57: 0 | AB57: 0 | AC57: 0 | AD57: 0 | AE57: 0 | AF57: 0 | AG57: 0 | AI57: =IFERROR(VLOOKUP(C57,'t-1 DUOS'!$B$7:$Q$55,3,FALSE),0) -> 106 | AJ57: =IFERROR(VLOOKUP($C57,'t-1 DUOS'!$B$7:$Q$55,4,FALSE),0) -> 0 | AK57: =IFERROR(VLOOKUP($C57,'t-1 DUOS'!$B$7:$Q$55,5,FALSE),0) -> 17.5828 | AL57: =IFERROR(VLOOKUP($C57,'t-1 DUOS'!$B$7:$Q$55,6,FALSE),0) -> 3.7239 | AM57: =IFERROR(VLOOKUP($C57,'t-1 DUOS'!$B$7:$Q$55,7,FALSE),0) -> 0 | AN57: =IFERROR(VLOOKUP($C57,'t-1 DUOS'!$B$7:$Q$55,8,FALSE),0) -> 0 | AO57: =IFERROR(VLOOKUP($C57,'t-1 DUOS'!$B$7:$Q$55,9,FALSE),0) -> 0 | AP57: =IFERROR(VLOOKUP($C57,'t-1 DUOS'!$B$7:$Q$55,10,FALSE),0) -> 0 | AQ57: =IFERROR(VLOOKUP($C57,'t-1 DUOS'!$B$7:$Q$55,11,FALSE),0) -> 0 | AR57: =IFERROR(VLOOKUP($C57,'t-1 DUOS'!$B$7:$Q$55,12,FALSE),0) -> 0 | AS57: =IFERROR(VLOOKUP($C57,'t-1 DUOS'!$B$7:$Q$55,13,FALSE),0) -> 0 | AT57: =IFERROR(VLOOKUP($C57,'t-1 DUOS'!$B$7:$Q$55,14,FALSE),0) -> 0 | AU57: =IFERROR(VLOOKUP($C57,'t-1 DUOS'!$B$7:$Q$55,15,FALSE),0) -> 0 | AV57: =IFERROR(VLOOKUP($C57,'t-1 DUOS'!$B$7:$Q$55,16,FALSE),0) -> 0 | AX57: 39226.46183 | AY57: 0 | AZ57: 8377588.604 | BA57: 1479256.579 | BB57: 0 | BC57: 0 | BD57: 0 | BE57: 0 | BF57: 0 | BG57: 0 | BH57: 0 | BI57: 0 | BJ57: 0 | BK57: 0 | BL57: 9896071.644 | BM57: 0.01497527368 | BO57: 37421.3988 | BP57: 0 | BQ57: 7568295.863 | BR57: 1336353.214 | BS57: 0 | BT57: 0 | BU57: 0 | BV57: 0 | BW57: 0 | BX57: 0 | BY57: 0 | BZ57: 0 | CA57: 0 | CB57: 0 | CC57: 8942070.476
A58: NEE52 | B58: NEE52 Medium unmetered | C58: NEE52 Unmetered | D58: =IF(B58="","",INDEX('Side constraints'!$B$33:$B$111,MATCH('Prop DUOS'!B58,'Side constraints'!$D$33:$D$111,0),1)) -> Medium industrial & commercial | E58: 0 | F58: 0 | G58: 16.73486487 | H58: 8.484307083 | I58: 0 | J58: 0 | K58: 0 | L58: 0 | M58: 0 | N58: 0 | O58: 0 | P58: 0 | Q58: 0 | R58: 0 | T58: 89 | U58: 0 | V58: 16182336.03 | W58: 39959390.34 | X58: 0 | Y58: 0 | Z58: 0 | AA58: 0 | AB58: 0 | AC58: 0 | AD58: 0 | AE58: 0 | AF58: 0 | AG58: 0 | AI58: =IFERROR(VLOOKUP(C58,'t-1 DUOS'!$B$7:$Q$55,3,FALSE),0) -> 0 | AJ58: =IFERROR(VLOOKUP($C58,'t-1 DUOS'!$B$7:$Q$55,4,FALSE),0) -> 0 | AK58: =IFERROR(VLOOKUP($C58,'t-1 DUOS'!$B$7:$Q$55,5,FALSE),0) -> 15.1205 | AL58: =IFERROR(VLOOKUP($C58,'t-1 DUOS'!$B$7:$Q$55,6,FALSE),0) -> 7.6658 | AM58: =IFERROR(VLOOKUP($C58,'t-1 DUOS'!$B$7:$Q$55,7,FALSE),0) -> 0 | AN58: =IFERROR(VLOOKUP($C58,'t-1 DUOS'!$B$7:$Q$55,8,FALSE),0) -> 0 | AO58: =IFERROR(VLOOKUP($C58,'t-1 DUOS'!$B$7:$Q$55,9,FALSE),0) -> 0 | AP58: =IFERROR(VLOOKUP($C58,'t-1 DUOS'!$B$7:$Q$55,10,FALSE),0) -> 0 | AQ58: =IFERROR(VLOOKUP($C58,'t-1 DUOS'!$B$7:$Q$55,11,FALSE),0) -> 0 | AR58: =IFERROR(VLOOKUP($C58,'t-1 DUOS'!$B$7:$Q$55,12,FALSE),0) -> 0 | AS58: =IFERROR(VLOOKUP($C58,'t-1 DUOS'!$B$7:$Q$55,13,FALSE),0) -> 0 | AT58: =IFERROR(VLOOKUP($C58,'t-1 DUOS'!$B$7:$Q$55,14,FALSE),0) -> 0 | AU58: =IFERROR(VLOOKUP($C58,'t-1 DUOS'!$B$7:$Q$55,15,FALSE),0) -> 0 | AV58: =IFERROR(VLOOKUP($C58,'t-1 DUOS'!$B$7:$Q$55,16,FALSE),0) -> 0 | AX58: 0 | AY58: 0 | AZ58: 2708092.068 | BA58: 3390277.385 | BB58: 0 | BC58: 0 | BD58: 0 | BE58: 0 | BF58: 0 | BG58: 0 | BH58: 0 | BI58: 0 | BJ58: 0 | BK58: 0 | BL58: 6098369.454 | BM58: 0.009228384239 | BO58: 0 | BP58: 0 | BQ58: 2446850.12 | BR58: 3063206.945 | BS58: 0 | BT58: 0 | BU58: 0 | BV58: 0 | BW58: 0 | BX58: 0 | BY58: 0 | BZ58: 0 | CA58: 0 | CB58: 0 | CC58: 5510057.065
A59: NEE55 | B59: NEE55 Medium snowfields | C59: NEE55 Snowfields Tariff | D59: =IF(B59="","",INDEX('Side constraints'!$B$33:$B$111,MATCH('Prop DUOS'!B59,'Side constraints'!$D$33:$D$111,0),1)) -> Medium industrial & commercial | E59: 111.1130286 | F59: 0 | G59: 14.50939027 | H59: 4.057743578 | I59: 0 | J59: 0 | K59: 0 | L59: 0 | M59: 0 | N59: 0 | O59: 0 | P59: 0 | Q59: 0 | R59: 0 | T59: 1 | U59: 0 | V59: 98278.07058 | W59: 69878.62524 | X59: 0 | Y59: 0 | Z59: 0 | AA59: 0 | AB59: 0 | AC59: 0 | AD59: 0 | AE59: 0 | AF59: 0 | AG59: 0 | AI59: =IFERROR(VLOOKUP(C59,'t-1 DUOS'!$B$7:$Q$55,3,FALSE),0) -> 106 | AJ59: =IFERROR(VLOOKUP($C59,'t-1 DUOS'!$B$7:$Q$55,4,FALSE),0) -> 0 | AK59: =IFERROR(VLOOKUP($C59,'t-1 DUOS'!$B$7:$Q$55,5,FALSE),0) -> 13.1077 | AL59: =IFERROR(VLOOKUP($C59,'t-1 DUOS'!$B$7:$Q$55,6,FALSE),0) -> 3.6657 | AM59: =IFERROR(VLOOKUP($C59,'t-1 DUOS'!$B$7:$Q$55,7,FALSE),0) -> 0 | AN59: =IFERROR(VLOOKUP($C59,'t-1 DUOS'!$B$7:$Q$55,8,FALSE),0) -> 0 | AO59: =IFERROR(VLOOKUP($C59,'t-1 DUOS'!$B$7:$Q$55,9,FALSE),0) -> 0 | AP59: =IFERROR(VLOOKUP($C59,'t-1 DUOS'!$B$7:$Q$55,10,FALSE),0) -> 0 | AQ59: =IFERROR(VLOOKUP($C59,'t-1 DUOS'!$B$7:$Q$55,11,FALSE),0) -> 0 | AR59: =IFERROR(VLOOKUP($C59,'t-1 DUOS'!$B$7:$Q$55,12,FALSE),0) -> 0 | AS59: =IFERROR(VLOOKUP($C59,'t-1 DUOS'!$B$7:$Q$55,13,FALSE),0) -> 0 | AT59: =IFERROR(VLOOKUP($C59,'t-1 DUOS'!$B$7:$Q$55,14,FALSE),0) -> 0 | AU59: =IFERROR(VLOOKUP($C59,'t-1 DUOS'!$B$7:$Q$55,15,FALSE),0) -> 0 | AV59: =IFERROR(VLOOKUP($C59,'t-1 DUOS'!$B$7:$Q$55,16,FALSE),0) -> 0 | AX59: 111.1130286 | AY59: 0 | AZ59: 14259.54881 | BA59: 2835.495428 | BB59: 0 | BC59: 0 | BD59: 0 | BE59: 0 | BF59: 0 | BG59: 0 | BH59: 0 | BI59: 0 | BJ59: 0 | BK59: 0 | BL59: 17206.15726 | BM59: 2.60372927e-05 | BO59: 106 | BP59: 0 | BQ59: 12881.99466 | BR59: 2561.540765 | BS59: 0 | BT59: 0 | BU59: 0 | BV59: 0 | BW59: 0 | BX59: 0 | BY59: 0 | BZ59: 0 | CA59: 0 | CB59: 0 | CC59: 15549.53542
A60: NSP55 | B60: NSP55 Medium interval meter time of use snowfields | C60: NSP55 Snowfields Tariff | D60: =IF(B60="","",INDEX('Side constraints'!$B$33:$B$111,MATCH('Prop DUOS'!B60,'Side constraints'!$D$33:$D$111,0),1)) -> Medium industrial & commercial | E60: 111.1130286 | F60: 0 | G60: 0 | H60: 2.332229352 | I60: 33.67919163 | J60: 38.48897161 | K60: 29.47570463 | L60: 0 | M60: 0 | N60: 0 | O60: 0 | P60: 0 | Q60: 0 | R60: 0 | T60: 7 | U60: 0 | V60: 0 | W60: 1500136.634 | X60: 80637.06635 | Y60: 14230.07053 | Z60: 97556.74237 | AA60: 0 | AB60: 0 | AC60: 0 | AD60: 0 | AE60: 0 | AF60: 0 | AG60: 0 | AI60: =IFERROR(VLOOKUP(C60,'t-1 DUOS'!$B$7:$Q$55,3,FALSE),0) -> 106 | AJ60: =IFERROR(VLOOKUP($C60,'t-1 DUOS'!$B$7:$Q$55,4,FALSE),0) -> 0 | AK60: =IFERROR(VLOOKUP($C60,'t-1 DUOS'!$B$7:$Q$55,5,FALSE),0) -> 0 | AL60: =IFERROR(VLOOKUP($C60,'t-1 DUOS'!$B$7:$Q$55,6,FALSE),0) -> 2.1199 | AM60: =IFERROR(VLOOKUP($C60,'t-1 DUOS'!$B$7:$Q$55,7,FALSE),0) -> 30.6126 | AN60: =IFERROR(VLOOKUP($C60,'t-1 DUOS'!$B$7:$Q$55,8,FALSE),0) -> 34.9844 | AO60: =IFERROR(VLOOKUP($C60,'t-1 DUOS'!$B$7:$Q$55,9,FALSE),0) -> 26.7918 | AP60: =IFERROR(VLOOKUP($C60,'t-1 DUOS'!$B$7:$Q$55,10,FALSE),0) -> 0 | AQ60: =IFERROR(VLOOKUP($C60,'t-1 DUOS'!$B$7:$Q$55,11,FALSE),0) -> 0 | AR60: =IFERROR(VLOOKUP($C60,'t-1 DUOS'!$B$7:$Q$55,12,FALSE),0) -> 0 | AS60: =IFERROR(VLOOKUP($C60,'t-1 DUOS'!$B$7:$Q$55,13,FALSE),0) -> 0 | AT60: =IFERROR(VLOOKUP($C60,'t-1 DUOS'!$B$7:$Q$55,14,FALSE),0) -> 0 | AU60: =IFERROR(VLOOKUP($C60,'t-1 DUOS'!$B$7:$Q$55,15,FALSE),0) -> 0 | AV60: =IFERROR(VLOOKUP($C60,'t-1 DUOS'!$B$7:$Q$55,16,FALSE),0) -> 0 | AX60: 777.7912001 | AY60: 0 | AZ60: 0 | BA60: 34986.6269 | BB60: 27157.9121 | BC60: 5477.007808 | BD60: 28755.53723 | BE60: 0 | BF60: 0 | BG60: 0 | BH60: 0 | BI60: 0 | BJ60: 0 | BK60: 0 | BL60: 97154.87523 | BM60: 0.0001470200397 | BO60: 742 | BP60: 0 | BQ60: 0 | BR60: 31801.3965 | BS60: 24685.10257 | BT60: 4978.304796 | BU60: 26137.2073 | BV60: 0 | BW60: 0 | BX60: 0 | BY60: 0 | BZ60: 0 | CA60: 0 | CB60: 0 | CC60: 88344.01118
A61: NSP56 | B61: NSP56 Medium critical peak demand 160 MWh to 400 MWh | C61: NSP56 Medium Demand Multi-rate | D61: =IF(B61="","",INDEX('Side constraints'!$B$33:$B$111,MATCH('Prop DUOS'!B61,'Side constraints'!$D$33:$D$111,0),1)) -> Medium industrial & commercial | E61: 2676.594092 | F61: 0 | G61: 10.97740023 | H61: 3.751200087 | I61: 7.992667531 | J61: 0 | K61: 0 | L61: 0 | M61: 0 | N61: 0 | O61: 19.10101049 | P61: 31.83830114 | Q61: 0 | R61: 0 | T61: 1278.084158 | U61: 0 | V61: 91243552.21 | W61: 114571269.4 | X61: 69136566.39 | Y61: 0 | Z61: 0 | AA61: 0 | AB61: 0 | AC61: 0 | AD61: 213426.7672 | AE61: 75765.46132 | AF61: 0 | AG61: 0 | AI61: =IFERROR(VLOOKUP(C61,'t-1 DUOS'!$B$7:$Q$55,3,FALSE),0) -> 2282 | AJ61: =IFERROR(VLOOKUP($C61,'t-1 DUOS'!$B$7:$Q$55,4,FALSE),0) -> 0 | AK61: =IFERROR(VLOOKUP($C61,'t-1 DUOS'!$B$7:$Q$55,5,FALSE),0) -> 9.9768 | AL61: =IFERROR(VLOOKUP($C61,'t-1 DUOS'!$B$7:$Q$55,6,FALSE),0) -> 3.4093 | AM61: =IFERROR(VLOOKUP($C61,'t-1 DUOS'!$B$7:$Q$55,7,FALSE),0) -> 7.2641 | AN61: =IFERROR(VLOOKUP($C61,'t-1 DUOS'!$B$7:$Q$55,8,FALSE),0) -> 0 | AO61: =IFERROR(VLOOKUP($C61,'t-1 DUOS'!$B$7:$Q$55,9,FALSE),0) -> 0 | AP61: =IFERROR(VLOOKUP($C61,'t-1 DUOS'!$B$7:$Q$55,10,FALSE),0) -> 0 | AQ61: =IFERROR(VLOOKUP($C61,'t-1 DUOS'!$B$7:$Q$55,11,FALSE),0) -> 0 | AR61: =IFERROR(VLOOKUP($C61,'t-1 DUOS'!$B$7:$Q$55,12,FALSE),0) -> 0 | AS61: =IFERROR(VLOOKUP($C61,'t-1 DUOS'!$B$7:$Q$55,13,FALSE),0) -> 17.35 | AT61: =IFERROR(VLOOKUP($C61,'t-1 DUOS'!$B$7:$Q$55,14,FALSE),0) -> 28.92 | AU61: =IFERROR(VLOOKUP($C61,'t-1 DUOS'!$B$7:$Q$55,15,FALSE),0) -> 0 | AV61: =IFERROR(VLOOKUP($C61,'t-1 DUOS'!$B$7:$Q$55,16,FALSE),0) -> 0 | AX61: 3420912.508 | AY61: 0 | AZ61: 10016169.91 | BA61: 4297797.558 | BB61: 5525855.894 | BC61: 0 | BD61: 0 | BE61: 0 | BF61: 0 | BG61: 0 | BH61: 4076666.92 | BI61: 2412243.573 | BJ61: 0 | BK61: 0 | BL61: 29749646.37 | BM61: 0.04501878243 | BO61: 2916588.049 | BP61: 0 | BQ61: 9103186.717 | BR61: 3906078.289 | BS61: 5022149.319 | BT61: 0 | BU61: 0 | BV61: 0 | BW61: 0 | BX61: 0 | BY61: 3702954.411 | BZ61: 2191137.141 | CA61: 0 | CB61: 0 | CC61: 26842093.93
A62: NEN56 | B62: NEN56 Medium critical peak demand 160 MWh to 400 MWh within embedded network | C62: NEN56 Medium Demand Multi-rate - Embedded Network | D62: =IF(B62="","",INDEX('Side constraints'!$B$33:$B$111,MATCH('Prop DUOS'!B62,'Side constraints'!$D$33:$D$111,0),1)) -> Medium industrial & commercial | E62: 2676.594092 | F62: 0 | G62: 8.802187562 | H62: 3.815683164 | I62: 6.134679754 | J62: 0 | K62: 0 | L62: 0 | M62: 0 | N62: 0 | O62: 19.10101049 | P62: 31.83830114 | Q62: 0 | R62: 0 | T62: 2 | U62: 0 | V62: 104858.8359 | W62: 101150.1827 | X62: 107679.9155 | Y62: 0 | Z62: 0 | AA62: 0 | AB62: 0 | AC62: 0 | AD62: 520 | AE62: 146.79 | AF62: 0 | AG62: 0 | AI62: =IFERROR(VLOOKUP(C62,'t-1 DUOS'!$B$7:$Q$55,3,FALSE),0) -> 2282 | AJ62: =IFERROR(VLOOKUP($C62,'t-1 DUOS'!$B$7:$Q$55,4,FALSE),0) -> 0 | AK62: =IFERROR(VLOOKUP($C62,'t-1 DUOS'!$B$7:$Q$55,5,FALSE),0) -> 8.0352 | AL62: =IFERROR(VLOOKUP($C62,'t-1 DUOS'!$B$7:$Q$55,6,FALSE),0) -> 3.4832 | AM62: =IFERROR(VLOOKUP($C62,'t-1 DUOS'!$B$7:$Q$55,7,FALSE),0) -> 5.6001 | AN62: =IFERROR(VLOOKUP($C62,'t-1 DUOS'!$B$7:$Q$55,8,FALSE),0) -> 0 | AO62: =IFERROR(VLOOKUP($C62,'t-1 DUOS'!$B$7:$Q$55,9,FALSE),0) -> 0 | AP62: =IFERROR(VLOOKUP($C62,'t-1 DUOS'!$B$7:$Q$55,10,FALSE),0) -> 0 | AQ62: =IFERROR(VLOOKUP($C62,'t-1 DUOS'!$B$7:$Q$55,11,FALSE),0) -> 0 | AR62: =IFERROR(VLOOKUP($C62,'t-1 DUOS'!$B$7:$Q$55,12,FALSE),0) -> 0 | AS62: =IFERROR(VLOOKUP($C62,'t-1 DUOS'!$B$7:$Q$55,13,FALSE),0) -> 17.35 | AT62: =IFERROR(VLOOKUP($C62,'t-1 DUOS'!$B$7:$Q$55,14,FALSE),0) -> 28.92 | AU62: =IFERROR(VLOOKUP($C62,'t-1 DUOS'!$B$7:$Q$55,15,FALSE),0) -> 0 | AV62: =IFERROR(VLOOKUP($C62,'t-1 DUOS'!$B$7:$Q$55,16,FALSE),0) -> 0 | AX62: 5353.188184 | AY62: 0 | AZ62: 9229.871415 | BA62: 3859.570491 | BB62: 6605.817978 | BC62: 0 | BD62: 0 | BE62: 0 | BF62: 0 | BG62: 0 | BH62: 9932.525454 | BI62: 4673.544224 | BJ62: 0 | BK62: 0 | BL62: 39654.51775 | BM62: 6.000737235e-05 | BO62: 4564 | BP62: 0 | BQ62: 8425.617186 | BR62: 3523.263163 | BS62: 6030.18295 | BT62: 0 | BU62: 0 | BV62: 0 | BW62: 0 | BX62: 0 | BY62: 9022 | BZ62: 4245.1668 | CA62: 0 | CB62: 0 | CC62: 35810.2301
A63: NEE60 | B63: NEE60 Medium seven day two rate | C63: NEE60 Medium Two Rate 7Day - closed to new customers | D63: =IF(B63="","",INDEX('Side constraints'!$B$33:$B$111,MATCH('Prop DUOS'!B63,'Side constraints'!$D$33:$D$111,0),1)) -> Medium industrial & commercial | E63: 111.1130286 | F63: 0 | G63: 10.08078724 | H63: 3.920251094 | I63: 0 | J63: 0 | K63: 0 | L63: 0 | M63: 0 | N63: 0 | O63: 0 | P63: 0 | Q63: 0 | R63: 0 | T63: 304.2883523 | U63: 0 | V63: 8482052.251 | W63: 3242824.484 | X63: 0 | Y63: 0 | Z63: 0 | AA63: 0 | AB63: 0 | AC63: 0 | AD63: 0 | AE63: 0 | AF63: 0 | AG63: 0 | AI63: =IFERROR(VLOOKUP(C63,'t-1 DUOS'!$B$7:$Q$55,3,FALSE),0) -> 106 | AJ63: =IFERROR(VLOOKUP($C63,'t-1 DUOS'!$B$7:$Q$55,4,FALSE),0) -> 0 | AK63: =IFERROR(VLOOKUP($C63,'t-1 DUOS'!$B$7:$Q$55,5,FALSE),0) -> 9.1032 | AL63: =IFERROR(VLOOKUP($C63,'t-1 DUOS'!$B$7:$Q$55,6,FALSE),0) -> 3.5401 | AM63: =IFERROR(VLOOKUP($C63,'t-1 DUOS'!$B$7:$Q$55,7,FALSE),0) -> 0 | AN63: =IFERROR(VLOOKUP($C63,'t-1 DUOS'!$B$7:$Q$55,8,FALSE),0) -> 0 | AO63: =IFERROR(VLOOKUP($C63,'t-1 DUOS'!$B$7:$Q$55,9,FALSE),0) -> 0 | AP63: =IFERROR(VLOOKUP($C63,'t-1 DUOS'!$B$7:$Q$55,10,FALSE),0) -> 0 | AQ63: =IFERROR(VLOOKUP($C63,'t-1 DUOS'!$B$7:$Q$55,11,FALSE),0) -> 0 | AR63: =IFERROR(VLOOKUP($C63,'t-1 DUOS'!$B$7:$Q$55,12,FALSE),0) -> 0 | AS63: =IFERROR(VLOOKUP($C63,'t-1 DUOS'!$B$7:$Q$55,13,FALSE),0) -> 0 | AT63: =IFERROR(VLOOKUP($C63,'t-1 DUOS'!$B$7:$Q$55,14,FALSE),0) -> 0 | AU63: =IFERROR(VLOOKUP($C63,'t-1 DUOS'!$B$7:$Q$55,15,FALSE),0) -> 0 | AV63: =IFERROR(VLOOKUP($C63,'t-1 DUOS'!$B$7:$Q$55,16,FALSE),0) -> 0 | AX63: 33810.40038 | AY63: 0 | AZ63: 855057.6413 | BA63: 127126.8623 | BB63: 0 | BC63: 0 | BD63: 0 | BE63: 0 | BF63: 0 | BG63: 0 | BH63: 0 | BI63: 0 | BJ63: 0 | BK63: 0 | BL63: 1015994.904 | BM63: 0.001537458731 | BO63: 32254.56534 | BP63: 0 | BQ63: 772138.1805 | BR63: 114799.2296 | BS63: 0 | BT63: 0 | BU63: 0 | BV63: 0 | BW63: 0 | BX63: 0 | BY63: 0 | BZ63: 0 | CA63: 0 | CB63: 0 | CC63: 919191.9754
A64: NEE74 | B64: NEE74 Large two rate | C64: NEE74 LV Large Two Rate 5Day | D64: =IF(B64="","",INDEX('Side constraints'!$B$33:$B$111,MATCH('Prop DUOS'!B64,'Side constraints'!$D$33:$D$111,0),1)) -> Large industrial & commercial | E64: 149.0495534 | F64: 0 | G64: 24.93731701 | H64: 7.084752048 | I64: 0 | J64: 0 | K64: 0 | L64: 0 | M64: 0 | N64: 0 | O64: 0 | P64: 0 | Q64: 0 | R64: 0 | T64: 7 | U64: 0 | V64: 2414171.592 | W64: 2782200.231 | X64: 0 | Y64: 0 | Z64: 0 | AA64: 0 | AB64: 0 | AC64: 0 | AD64: 0 | AE64: 0 | AF64: 0 | AG64: 0 | AI64: =IFERROR(VLOOKUP(C64,'t-1 DUOS'!$B$7:$Q$55,3,FALSE),0) -> 127 | AJ64: =IFERROR(VLOOKUP($C64,'t-1 DUOS'!$B$7:$Q$55,4,FALSE),0) -> 0 | AK64: =IFERROR(VLOOKUP($C64,'t-1 DUOS'!$B$7:$Q$55,5,FALSE),0) -> 22.5333 | AL64: =IFERROR(VLOOKUP($C64,'t-1 DUOS'!$B$7:$Q$55,6,FALSE),0) -> 6.4018 | AM64: =IFERROR(VLOOKUP($C64,'t-1 DUOS'!$B$7:$Q$55,7,FALSE),0) -> 0 | AN64: =IFERROR(VLOOKUP($C64,'t-1 DUOS'!$B$7:$Q$55,8,FALSE),0) -> 0 | AO64: =IFERROR(VLOOKUP($C64,'t-1 DUOS'!$B$7:$Q$55,9,FALSE),0) -> 0 | AP64: =IFERROR(VLOOKUP($C64,'t-1 DUOS'!$B$7:$Q$55,10,FALSE),0) -> 0 | AQ64: =IFERROR(VLOOKUP($C64,'t-1 DUOS'!$B$7:$Q$55,11,FALSE),0) -> 0 | AR64: =IFERROR(VLOOKUP($C64,'t-1 DUOS'!$B$7:$Q$55,12,FALSE),0) -> 0 | AS64: =IFERROR(VLOOKUP($C64,'t-1 DUOS'!$B$7:$Q$55,13,FALSE),0) -> 0 | AT64: =IFERROR(VLOOKUP($C64,'t-1 DUOS'!$B$7:$Q$55,14,FALSE),0) -> 0 | AU64: =IFERROR(VLOOKUP($C64,'t-1 DUOS'!$B$7:$Q$55,15,FALSE),0) -> 0 | AV64: =IFERROR(VLOOKUP($C64,'t-1 DUOS'!$B$7:$Q$55,16,FALSE),0) -> 0 | AX64: 1043.346874 | AY64: 0 | AZ64: 602029.623 | BA64: 197111.9879 | BB64: 0 | BC64: 0 | BD64: 0 | BE64: 0 | BF64: 0 | BG64: 0 | BH64: 0 | BI64: 0 | BJ64: 0 | BK64: 0 | BL64: 800184.9578 | BM64: 0.001210883386 | BO64: 889 | BP64: 0 | BQ64: 543992.5273 | BR64: 178110.8944 | BS64: 0 | BT64: 0 | BU64: 0 | BV64: 0 | BW64: 0 | BX64: 0 | BY64: 0 | BZ64: 0 | CA64: 0 | CB64: 0 | CC64: 722992.4217
A65: NSP75 | B65: NSP75 Large critical peak demand 400 MWh to 750 MWh | C65: NSP75 Large Multi-rate <750 kVA | D65: =IF(B65="","",INDEX('Side constraints'!$B$33:$B$111,MATCH('Prop DUOS'!B65,'Side constraints'!$D$33:$D$111,0),1)) -> Large industrial & commercial | E65: 5984.024674 | F65: 0 | G65: 3.158888543 | H65: 1.220840611 | I65: 2.140417122 | J65: 0 | K65: 0 | L65: 0 | M65: 0 | N65: 0 | O65: 46.40787025 | P65: 77.83243109 | Q65: 0 | R65: 0 | T65: 803.7489109 | U65: 0 | V65: 139065686.2 | W65: 184517802.9 | X65: 99731308.57 | Y65: 0 | Z65: 0 | AA65: 0 | AB65: 0 | AC65: 0 | AD65: 213436.2675 | AE65: 94854.63342 | AF65: 0 | AG65: 0 | AI65: =IFERROR(VLOOKUP(C65,'t-1 DUOS'!$B$7:$Q$55,3,FALSE),0) -> 5102 | AJ65: =IFERROR(VLOOKUP($C65,'t-1 DUOS'!$B$7:$Q$55,4,FALSE),0) -> 0 | AK65: =IFERROR(VLOOKUP($C65,'t-1 DUOS'!$B$7:$Q$55,5,FALSE),0) -> 2.9014 | AL65: =IFERROR(VLOOKUP($C65,'t-1 DUOS'!$B$7:$Q$55,6,FALSE),0) -> 1.1213 | AM65: =IFERROR(VLOOKUP($C65,'t-1 DUOS'!$B$7:$Q$55,7,FALSE),0) -> 1.9659 | AN65: =IFERROR(VLOOKUP($C65,'t-1 DUOS'!$B$7:$Q$55,8,FALSE),0) -> 0 | AO65: =IFERROR(VLOOKUP($C65,'t-1 DUOS'!$B$7:$Q$55,9,FALSE),0) -> 0 | AP65: =IFERROR(VLOOKUP($C65,'t-1 DUOS'!$B$7:$Q$55,10,FALSE),0) -> 0 | AQ65: =IFERROR(VLOOKUP($C65,'t-1 DUOS'!$B$7:$Q$55,11,FALSE),0) -> 0 | AR65: =IFERROR(VLOOKUP($C65,'t-1 DUOS'!$B$7:$Q$55,12,FALSE),0) -> 0 | AS65: =IFERROR(VLOOKUP($C65,'t-1 DUOS'!$B$7:$Q$55,13,FALSE),0) -> 42.16 | AT65: =IFERROR(VLOOKUP($C65,'t-1 DUOS'!$B$7:$Q$55,14,FALSE),0) -> 70.71 | AU65: =IFERROR(VLOOKUP($C65,'t-1 DUOS'!$B$7:$Q$55,15,FALSE),0) -> 0 | AV65: =IFERROR(VLOOKUP($C65,'t-1 DUOS'!$B$7:$Q$55,16,FALSE),0) -> 0 | AX65: 4809653.315 | AY65: 0 | AZ65: 4392930.027 | BA65: 2252668.272 | BB65: 2134666.004 | BC65: 0 | BD65: 0 | BE65: 0 | BF65: 0 | BG65: 0 | BH65: 9905122.609 | BI65: 7382766.719 | BJ65: 0 | BK65: 0 | BL65: 30877806.95 | BM65: 0.04672597636 | BO65: 4100726.943 | BP65: 0 | BQ65: 4034851.818 | BR65: 2068998.124 | BS65: 1960617.795 | BT65: 0 | BU65: 0 | BV65: 0 | BW65: 0 | BX65: 0 | BY65: 8998473.038 | BZ65: 6707171.129 | CA65: 0 | CB65: 0 | CC65: 27870838.85
A66: NSP76 | B66: NSP76 Large critical peak demand 750 MWh to 2000 MWh | C66: NSP76 Large Multi-rate >750 kVA | D66: =IF(B66="","",INDEX('Side constraints'!$B$33:$B$111,MATCH('Prop DUOS'!B66,'Side constraints'!$D$33:$D$111,0),1)) -> Large industrial & commercial | E66: 5984.024674 | F66: 0 | G66: 2.961684466 | H66: 1.100576573 | I66: 1.940955776 | J66: 0 | K66: 0 | L66: 0 | M66: 0 | N66: 0 | O66: 48.38791311 | P66: 81.83192065 | Q66: 0 | R66: 0 | T66: 563.8679208 | U66: 0 | V66: 208649617.9 | W66: 268630957.7 | X66: 152064782.2 | Y66: 0 | Z66: 0 | AA66: 0 | AB66: 0 | AC66: 0 | AD66: 296762.8578 | AE66: 132516.712 | AF66: 0 | AG66: 0 | AI66: =IFERROR(VLOOKUP(C66,'t-1 DUOS'!$B$7:$Q$55,3,FALSE),0) -> 5102 | AJ66: =IFERROR(VLOOKUP($C66,'t-1 DUOS'!$B$7:$Q$55,4,FALSE),0) -> 0 | AK66: =IFERROR(VLOOKUP($C66,'t-1 DUOS'!$B$7:$Q$55,5,FALSE),0) -> 2.6821 | AL66: =IFERROR(VLOOKUP($C66,'t-1 DUOS'!$B$7:$Q$55,6,FALSE),0) -> 0.9967 | AM66: =IFERROR(VLOOKUP($C66,'t-1 DUOS'!$B$7:$Q$55,7,FALSE),0) -> 1.7577 | AN66: =IFERROR(VLOOKUP($C66,'t-1 DUOS'!$B$7:$Q$55,8,FALSE),0) -> 0 | AO66: =IFERROR(VLOOKUP($C66,'t-1 DUOS'!$B$7:$Q$55,9,FALSE),0) -> 0 | AP66: =IFERROR(VLOOKUP($C66,'t-1 DUOS'!$B$7:$Q$55,10,FALSE),0) -> 0 | AQ66: =IFERROR(VLOOKUP($C66,'t-1 DUOS'!$B$7:$Q$55,11,FALSE),0) -> 0 | AR66: =IFERROR(VLOOKUP($C66,'t-1 DUOS'!$B$7:$Q$55,12,FALSE),0) -> 0 | AS66: =IFERROR(VLOOKUP($C66,'t-1 DUOS'!$B$7:$Q$55,13,FALSE),0) -> 43.96 | AT66: =IFERROR(VLOOKUP($C66,'t-1 DUOS'!$B$7:$Q$55,14,FALSE),0) -> 74.34 | AU66: =IFERROR(VLOOKUP($C66,'t-1 DUOS'!$B$7:$Q$55,15,FALSE),0) -> 0 | AV66: =IFERROR(VLOOKUP($C66,'t-1 DUOS'!$B$7:$Q$55,16,FALSE),0) -> 0 | AX66: 3374199.551 | AY66: 0 | AZ66: 6179543.321 | BA66: 2956489.388 | BB66: 2951510.172 | BC66: 0 | BD66: 0 | BE66: 0 | BF66: 0 | BG66: 0 | BH66: 14359735.38 | BI66: 10844097.06 | BJ66: 0 | BK66: 0 | BL66: 40665574.87 | BM66: 0.06153735896 | BO66: 2876854.132 | BP66: 0 | BQ66: 5596191.401 | BR66: 2677444.755 | BS66: 2672842.676 | BT66: 0 | BU66: 0 | BV66: 0 | BW66: 0 | BX66: 0 | BY66: 13045695.23 | BZ66: 9851292.368 | CA66: 0 | CB66: 0 | CC66: 36720320.56
A67: NSP77 | B67: NSP77 Large critical peak demand 2000 MWh to 4000 MWh | C67: NSP77 Large Multi-rate >2 GWh | D67: =IF(B67="","",INDEX('Side constraints'!$B$33:$B$111,MATCH('Prop DUOS'!B67,'Side constraints'!$D$33:$D$111,0),1)) -> Large industrial & commercial | E67: 5984.024674 | F67: 0 | G67: 2.919619026 | H67: 1.042706884 | I67: 1.925907043 | J67: 0 | K67: 0 | L67: 0 | M67: 0 | N67: 0 | O67: 53.04741696 | P67: 88.05772706 | Q67: 0 | R67: 0 | T67: 82.74891089 | U67: 0 | V67: 67299988.17 | W67: 85795679.26 | X67: 46926578.59 | Y67: 0 | Z67: 0 | AA67: 0 | AB67: 0 | AC67: 0 | AD67: 76986.04031 | AE67: 37573.80806 | AF67: 0 | AG67: 0 | AI67: =IFERROR(VLOOKUP(C67,'t-1 DUOS'!$B$7:$Q$55,3,FALSE),0) -> 5102 | AJ67: =IFERROR(VLOOKUP($C67,'t-1 DUOS'!$B$7:$Q$55,4,FALSE),0) -> 0 | AK67: =IFERROR(VLOOKUP($C67,'t-1 DUOS'!$B$7:$Q$55,5,FALSE),0) -> 2.6291 | AL67: =IFERROR(VLOOKUP($C67,'t-1 DUOS'!$B$7:$Q$55,6,FALSE),0) -> 0.9389 | AM67: =IFERROR(VLOOKUP($C67,'t-1 DUOS'!$B$7:$Q$55,7,FALSE),0) -> 1.7343 | AN67: =IFERROR(VLOOKUP($C67,'t-1 DUOS'!$B$7:$Q$55,8,FALSE),0) -> 0 | AO67: =IFERROR(VLOOKUP($C67,'t-1 DUOS'!$B$7:$Q$55,9,FALSE),0) -> 0 | AP67: =IFERROR(VLOOKUP($C67,'t-1 DUOS'!$B$7:$Q$55,10,FALSE),0) -> 0 | AQ67: =IFERROR(VLOOKUP($C67,'t-1 DUOS'!$B$7:$Q$55,11,FALSE),0) -> 0 | AR67: =IFERROR(VLOOKUP($C67,'t-1 DUOS'!$B$7:$Q$55,12,FALSE),0) -> 0 | AS67: =IFERROR(VLOOKUP($C67,'t-1 DUOS'!$B$7:$Q$55,13,FALSE),0) -> 48.19 | AT67: =IFERROR(VLOOKUP($C67,'t-1 DUOS'!$B$7:$Q$55,14,FALSE),0) -> 80 | AU67: =IFERROR(VLOOKUP($C67,'t-1 DUOS'!$B$7:$Q$55,15,FALSE),0) -> 0 | AV67: =IFERROR(VLOOKUP($C67,'t-1 DUOS'!$B$7:$Q$55,16,FALSE),0) -> 0 | AX67: 495171.5245 | AY67: 0 | AZ67: 1964903.259 | BA67: 894597.4534 | BB67: 903762.2821 | BC67: 0 | BD67: 0 | BE67: 0 | BF67: 0 | BG67: 0 | BH67: 4083910.58 | BI67: 3308664.135 | BJ67: 0 | BK67: 0 | BL67: 11651009.23 | BM67: 0.01763094066 | BO67: 422184.9434 | BP67: 0 | BQ67: 1769383.989 | BR67: 805535.6325 | BS67: 813847.6524 | BT67: 0 | BU67: 0 | BV67: 0 | BW67: 0 | BX67: 0 | BY67: 3709957.283 | BZ67: 3005904.645 | CA67: 0 | CB67: 0 | CC67: 10526814.14
A68: NSP78 | B68: NSP78 Large critical peak demand over 4000 MWh | C68: NSP78 Large Multi-rate >4 GWh | D68: =IF(B68="","",INDEX('Side constraints'!$B$33:$B$111,MATCH('Prop DUOS'!B68,'Side constraints'!$D$33:$D$111,0),1)) -> Large industrial & commercial | E68: 5984.024674 | F68: 0 | G68: 2.621029823 | H68: 0.9046915617 | I68: 1.729915624 | J68: 0 | K68: 0 | L68: 0 | M68: 0 | N68: 0 | O68: 58.35708414 | P68: 96.54925415 | Q68: 0 | R68: 0 | T68: 32.74891089 | U68: 0 | V68: 50392909.01 | W68: 64674462.08 | X68: 34868044.17 | Y68: 0 | Z68: 0 | AA68: 0 | AB68: 0 | AC68: 0 | AD68: 46474.55736 | AE68: 29771.7381 | AF68: 0 | AG68: 0 | AI68: =IFERROR(VLOOKUP(C68,'t-1 DUOS'!$B$7:$Q$55,3,FALSE),0) -> 5102 | AJ68: =IFERROR(VLOOKUP($C68,'t-1 DUOS'!$B$7:$Q$55,4,FALSE),0) -> 0 | AK68: =IFERROR(VLOOKUP($C68,'t-1 DUOS'!$B$7:$Q$55,5,FALSE),0) -> 2.3495 | AL68: =IFERROR(VLOOKUP($C68,'t-1 DUOS'!$B$7:$Q$55,6,FALSE),0) -> 0.811 | AM68: =IFERROR(VLOOKUP($C68,'t-1 DUOS'!$B$7:$Q$55,7,FALSE),0) -> 1.5507 | AN68: =IFERROR(VLOOKUP($C68,'t-1 DUOS'!$B$7:$Q$55,8,FALSE),0) -> 0 | AO68: =IFERROR(VLOOKUP($C68,'t-1 DUOS'!$B$7:$Q$55,9,FALSE),0) -> 0 | AP68: =IFERROR(VLOOKUP($C68,'t-1 DUOS'!$B$7:$Q$55,10,FALSE),0) -> 0 | AQ68: =IFERROR(VLOOKUP($C68,'t-1 DUOS'!$B$7:$Q$55,11,FALSE),0) -> 0 | AR68: =IFERROR(VLOOKUP($C68,'t-1 DUOS'!$B$7:$Q$55,12,FALSE),0) -> 0 | AS68: =IFERROR(VLOOKUP($C68,'t-1 DUOS'!$B$7:$Q$55,13,FALSE),0) -> 53.01 | AT68: =IFERROR(VLOOKUP($C68,'t-1 DUOS'!$B$7:$Q$55,14,FALSE),0) -> 87.71 | AU68: =IFERROR(VLOOKUP($C68,'t-1 DUOS'!$B$7:$Q$55,15,FALSE),0) -> 0 | AV68: =IFERROR(VLOOKUP($C68,'t-1 DUOS'!$B$7:$Q$55,16,FALSE),0) -> 0 | AX68: 195970.2908 | AY68: 0 | AZ68: 1320813.174 | BA68: 585104.401 | BB68: 603187.7438 | BC68: 0 | BD68: 0 | BE68: 0 | BF68: 0 | BG68: 0 | BH68: 2712119.654 | BI68: 2874439.109 | BJ68: 0 | BK68: 0 | BL68: 8291634.373 | BM68: 0.01254735197 | BO68: 167084.9434 | BP68: 0 | BQ68: 1183981.397 | BR68: 524509.8875 | BS68: 540698.761 | BT68: 0 | BU68: 0 | BV68: 0 | BW68: 0 | BX68: 0 | BY68: 2463616.286 | BZ68: 2611279.149 | CA68: 0 | CB68: 0 | CC68: 7491170.424
A69: NSP81 | B69: NSP81 High voltage critical peak demand | C69: NSP81 HV Kva | D69: =IF(B69="","",INDEX('Side constraints'!$B$33:$B$111,MATCH('Prop DUOS'!B69,'Side constraints'!$D$33:$D$111,0),1)) -> High voltage | E69: 5984.024674 | F69: 0 | G69: 0.5730476925 | H69: 0.2318238392 | I69: 0 | J69: 0 | K69: 0 | L69: 0 | M69: 0 | N69: 0 | O69: 38.26705663 | P69: 62.71572809 | Q69: 0 | R69: 0 | T69: 58.74891089 | U69: 0 | V69: 291161255.7 | W69: 246989660.7 | X69: 0 | Y69: 0 | Z69: 0 | AA69: 0 | AB69: 0 | AC69: 0 | AD69: 190346.4713 | AE69: 82728.56904 | AF69: 0 | AG69: 0 | AI69: =IFERROR(VLOOKUP(C69,'t-1 DUOS'!$B$7:$Q$55,3,FALSE),0) -> 5102 | AJ69: =IFERROR(VLOOKUP($C69,'t-1 DUOS'!$B$7:$Q$55,4,FALSE),0) -> 0 | AK69: =IFERROR(VLOOKUP($C69,'t-1 DUOS'!$B$7:$Q$55,5,FALSE),0) -> 0.5119 | AL69: =IFERROR(VLOOKUP($C69,'t-1 DUOS'!$B$7:$Q$55,6,FALSE),0) -> 0.2071 | AM69: =IFERROR(VLOOKUP($C69,'t-1 DUOS'!$B$7:$Q$55,7,FALSE),0) -> 0 | AN69: =IFERROR(VLOOKUP($C69,'t-1 DUOS'!$B$7:$Q$55,8,FALSE),0) -> 0 | AO69: =IFERROR(VLOOKUP($C69,'t-1 DUOS'!$B$7:$Q$55,9,FALSE),0) -> 0 | AP69: =IFERROR(VLOOKUP($C69,'t-1 DUOS'!$B$7:$Q$55,10,FALSE),0) -> 0 | AQ69: =IFERROR(VLOOKUP($C69,'t-1 DUOS'!$B$7:$Q$55,11,FALSE),0) -> 0 | AR69: =IFERROR(VLOOKUP($C69,'t-1 DUOS'!$B$7:$Q$55,12,FALSE),0) -> 0 | AS69: =IFERROR(VLOOKUP($C69,'t-1 DUOS'!$B$7:$Q$55,13,FALSE),0) -> 34.7 | AT69: =IFERROR(VLOOKUP($C69,'t-1 DUOS'!$B$7:$Q$55,14,FALSE),0) -> 56.86 | AU69: =IFERROR(VLOOKUP($C69,'t-1 DUOS'!$B$7:$Q$55,15,FALSE),0) -> 0 | AV69: =IFERROR(VLOOKUP($C69,'t-1 DUOS'!$B$7:$Q$55,16,FALSE),0) -> 0 | AX69: 351554.9323 | AY69: 0 | AZ69: 1668492.857 | BA69: 572580.9139 | BB69: 0 | BC69: 0 | BD69: 0 | BE69: 0 | BF69: 0 | BG69: 0 | BH69: 7283999.195 | BI69: 5188382.441 | BJ69: 0 | BK69: 0 | BL69: 15065010.34 | BM69: 0.02279719276 | BO69: 299736.9434 | BP69: 0 | BQ69: 1490454.468 | BR69: 511515.5873 | BS69: 0 | BT69: 0 | BU69: 0 | BV69: 0 | BW69: 0 | BX69: 0 | BY69: 6605022.553 | BZ69: 4703946.436 | CA69: 0 | CB69: 0 | CC69: 13610675.99
A70: NSP82 | B70: NSP82 High voltage critical peak demand traction | C70: NSP82 Traction | D70: =IF(B70="","",INDEX('Side constraints'!$B$33:$B$111,MATCH('Prop DUOS'!B70,'Side constraints'!$D$33:$D$111,0),1)) -> High voltage | E70: 5984.024674 | F70: 0 | G70: 0.5116169658 | H70: 0.4358845186 | I70: 0.5116169658 | J70: 0 | K70: 0 | L70: 0 | M70: 0 | N70: 0 | O70: 35.07895776 | P70: 57.40552008 | Q70: 0 | R70: 0
A71: NSP83 | B71: NSP83 High voltage critical peak demand low energy use | C71: NSP83 Small HV | D71: =IF(B71="","",INDEX('Side constraints'!$B$33:$B$111,MATCH('Prop DUOS'!B71,'Side constraints'!$D$33:$D$111,0),1)) -> High voltage | E71: 5984.024674 | F71: 0 | G71: 9.445505331 | H71: 1.029263937 | I71: 3.305153719 | J71: 0 | K71: 0 | L71: 0 | M71: 0 | N71: 0 | O71: 4.078297237 | P71: 6.738056305 | Q71: 0 | R71: 0 | T71: 17.74891089 | U71: 0 | V71: 3515802.984 | W71: 4761963.006 | X71: 3204262.979 | Y71: 0 | Z71: 0 | AA71: 0 | AB71: 0 | AC71: 0 | AD71: 22314.32519 | AE71: 5249.739584 | AF71: 0 | AG71: 0 | AI71: =IFERROR(VLOOKUP(C71,'t-1 DUOS'!$B$7:$Q$55,3,FALSE),0) -> 5102 | AJ71: =IFERROR(VLOOKUP($C71,'t-1 DUOS'!$B$7:$Q$55,4,FALSE),0) -> 0 | AK71: =IFERROR(VLOOKUP($C71,'t-1 DUOS'!$B$7:$Q$55,5,FALSE),0) -> 8.6372 | AL71: =IFERROR(VLOOKUP($C71,'t-1 DUOS'!$B$7:$Q$55,6,FALSE),0) -> 0.9412 | AM71: =IFERROR(VLOOKUP($C71,'t-1 DUOS'!$B$7:$Q$55,7,FALSE),0) -> 3.0223 | AN71: =IFERROR(VLOOKUP($C71,'t-1 DUOS'!$B$7:$Q$55,8,FALSE),0) -> 0 | AO71: =IFERROR(VLOOKUP($C71,'t-1 DUOS'!$B$7:$Q$55,9,FALSE),0) -> 0 | AP71: =IFERROR(VLOOKUP($C71,'t-1 DUOS'!$B$7:$Q$55,10,FALSE),0) -> 0 | AQ71: =IFERROR(VLOOKUP($C71,'t-1 DUOS'!$B$7:$Q$55,11,FALSE),0) -> 0 | AR71: =IFERROR(VLOOKUP($C71,'t-1 DUOS'!$B$7:$Q$55,12,FALSE),0) -> 0 | AS71: =IFERROR(VLOOKUP($C71,'t-1 DUOS'!$B$7:$Q$55,13,FALSE),0) -> 3.7 | AT71: =IFERROR(VLOOKUP($C71,'t-1 DUOS'!$B$7:$Q$55,14,FALSE),0) -> 6.12 | AU71: =IFERROR(VLOOKUP($C71,'t-1 DUOS'!$B$7:$Q$55,15,FALSE),0) -> 0 | AV71: =IFERROR(VLOOKUP($C71,'t-1 DUOS'!$B$7:$Q$55,16,FALSE),0) -> 0 | AX71: 106209.9207 | AY71: 0 | AZ71: 332085.3583 | BA71: 49013.16789 | BB71: 105905.817 | BC71: 0 | BD71: 0 | BE71: 0 | BF71: 0 | BG71: 0 | BH71: 91004.45077 | BI71: 35373.0409 | BJ71: 0 | BK71: 0 | BL71: 719591.7556 | BM71: =IF(BL71=0,"",BL71/$BL$76) -> 0.00108892537 | BO71: 90554.94336 | BP71: 0 | BQ71: 303666.9354 | BR71: 44819.59581 | BS71: 96842.44001 | BT71: 0 | BU71: 0 | BV71: 0 | BW71: 0 | BX71: 0 | BY71: 82563.0032 | BZ71: 32128.40625 | CA71: 0 | CB71: 0 | CC71: 650575.324
A72: NSP91 | B72: NSP91 Sub transmission critical peak demand < 25 MVA & < 20 km from ts | C72: NSP91 ST kVA | D72: =IF(B72="","",INDEX('Side constraints'!$B$33:$B$111,MATCH('Prop DUOS'!B72,'Side constraints'!$D$33:$D$111,0),1)) -> Sub transmission | E72: 21327.73151 | F72: 0 | G72: 0.511173671 | H72: 0.04806411396 | I72: 0 | J72: 0 | K72: 0 | L72: 0 | M72: 0 | N72: 0 | O72: 2.551398513 | P72: 4.206359711 | Q72: 0 | R72: 0
A73: NEE93 | B73: NEE93 Large Labtrobe Valley open cut supplies | C73: NEE93 Latrobe Generators kVA (non published) | D73: =IF(B73="","",INDEX('Side constraints'!$B$33:$B$111,MATCH('Prop DUOS'!B73,'Side constraints'!$D$33:$D$111,0),1)) -> Sub transmission | E73: 0 | F73: 0 | G73: 1.009975243 | H73: 1.009876197 | I73: 0 | J73: 0 | K73: 0 | L73: 0 | M73: 0 | N73: 0 | O73: 0 | P73: 0 | Q73: 0 | R73: 0
A74: NSP94 | B74: NSP94 Sub transmission critical peak demand > 25 MVA & < 20 km from ts | C74: NSP94 - ST kVA >25MVA <20kM | D74: =IF(B74="","",INDEX('Side constraints'!$B$33:$B$111,MATCH('Prop DUOS'!B74,'Side constraints'!$D$33:$D$111,0),1)) -> Sub transmission | E74: 21327.73151 | F74: 0 | G74: 0.4780641827 | H74: 0.03070227815 | I74: 0 | J74: 0 | K74: 0 | L74: 0 | M74: 0 | N74: 0 | O74: 1.901235185 | P74: 3.162158003 | Q74: 0 | R74: 0
A75: NSP95 | B75: NSP95 Sub transmission critical peak demand < 25 MVA & > 20 km from ts | C75: NSP95 - ST kVA <25MVA >20kM | D75: =IF(B75="","",INDEX('Side constraints'!$B$33:$B$111,MATCH('Prop DUOS'!B75,'Side constraints'!$D$33:$D$111,0),1)) -> Sub transmission | E75: 21327.73151 | F75: 0 | G75: 0.5432889043 | H75: 0.06838398099 | I75: 0 | J75: 0 | K75: 0 | L75: 0 | M75: 0 | N75: 0 | O75: 3.950234763 | P75: 6.560739033 | Q75: 0 | R75: 0
T76: 779447.6439 | U76: 63480811.02 | V76: 3589177130 | W76: 3294565249 | X76: 425462562.5 | Y76: 193460.5825 | Z76: 1029564.359 | AA76: 0 | AB76: 159174772.8 | AC76: 0 | AD76: 1247903.562 | AE76: 530349.9094 | AF76: 958144.2127 | AG76: 1580173.725 | AX76: 99363447.38 | AY76: 8893837.522 | AZ76: 310029124.4 | BA76: 136446438.4 | BB76: 12396495.58 | BC76: 46043.87402 | BD76: 203198.6886 | BE76: 0 | BF76: 5155480.234 | BG76: 0 | BH76: 44964529.21 | BI76: 33331555.78 | BJ76: 7084230.171 | BK76: 2913050.31 | BL76: 660827431.5 | BO76: 55639568.14 | BP76: 0 | BQ76: 165229815.1 | BR76: 82530205.2 | BS76: 11259490.26 | BT76: 39267.74453 | BU76: 172235.0306 | BV76: 0 | BW76: 0 | BX76: 0 | BY76: 40832673.41 | BZ76: 30268788.33 | CA76: 5575029.844 | CB76: 2266934.457 | CC76: 393814007.5
Z77: Total consumption | AB77: 7533.08355
D78: Charging parameters | E78: $ | F78: cents | G78: cents | H78: cents | I78: cents | J78: cents | K78: cents | L78: cents | M78: cents | N78: $ | O78: $ | P78: $ | Q78: $ | R78: $
F79: kWh | G79: kWh | H79: kWh | I79: kWh | J79: kWh | K79: kWh | L79: kWh | M79: kWh | N79: kVA | O79: kVA | P79: kVA | Q79: kW | R79: kW
E80: year | N80: year | O80: year | P80: year | Q80: year | R80: year
D82: Days in year | E82: cents | F82: cents | G82: cents | H82: cents | I82: cents | J82: cents | K82: cents | L82: cents | M82: cents | N82: cents | O82: cents | P82: cents | R82: cents
D83: =IF(Input!E5=2024,366,365) -> 365 | E83: $ | F83: $ | G83: $ | H83: $ | I83: $ | J83: $ | K83: $ | L83: $ | M83: $ | N83: $ | O83: $ | P83: $ | R83: $
E85: day | N85: day | O85: day | P85: day | R85: day
E86: year | N86: month | O86: month | P86: month | R86: month
N87: year | O87: year | P87: year | R87: year
N89: kW | O89: kW | P89: kW | R89: kW
N90: kVA | O90: kVA | P90: kVA | R90: kVA

Sheet t-1 DUOS
B1: ="Tariff Approval - "&Input!E3 -> Tariff Approval - AusNet Services | D1: t-1 DUOS
B3: ="ESTIMATED "&Input!$E$8&" Distribution Revenue" -> ESTIMATED HY21 Distribution Revenue
D5: ="Current Distribution Tariffs (Pt-1) for "&Input!$E$8 -> Current Distribution Tariffs (Pt-1) for HY21 | S5: =" Estimated Distribution Quantities for "&Input!$E$8&" (Qt-1)" -> Estimated Distribution Quantities for HY21 (Qt-1) | AH5: ="Estimated Revenue (Pt-1 "&Input!$E$8&")*(Qt-1 " &Input!$E$8&")" -> Estimated Revenue (Pt-1 HY21)*(Qt-1 HY21)
B6: ="Tariffs "&Input!E8 -> Tariffs HY21 | D6: ='Prop DUOS'!E6 -> Standing charge | E6: ='Prop DUOS'!F6 -> Anytime | F6: ='Prop DUOS'!G6 -> Pk / Blk1 | G6: ='Prop DUOS'!H6 -> Off Pk / Blk2 | H6: ='Prop DUOS'!I6 -> Shoulder | I6: ='Prop DUOS'!J6 -> SummerPk | J6: ='Prop DUOS'!K6 -> WinterPk | K6: ='Prop DUOS'!L6 -> FeedIn | L6: ='Prop DUOS'!M6 -> DedCirc | M6: ='Prop DUOS'!N6 -> Dem1 | N6: ='Prop DUOS'!O6 -> Capacity | O6: ='Prop DUOS'!P6 -> CriticalPk | P6: ='Prop DUOS'!Q6 -> MonthlyPkDem | Q6: ='Prop DUOS'!R6 -> MonthlyOPkDem | S6: ='Prop DUOS'!E6 -> Standing charge | T6: ='Prop DUOS'!F6 -> Anytime | U6: ='Prop DUOS'!G6 -> Pk / Blk1 | V6: ='Prop DUOS'!H6 -> Off Pk / Blk2 | W6: ='Prop DUOS'!I6 -> Shoulder | X6: ='Prop DUOS'!J6 -> SummerPk | Y6: ='Prop DUOS'!K6 -> WinterPk | Z6: ='Prop DUOS'!L6 -> FeedIn | AA6: ='Prop DUOS'!M6 -> DedCirc | AB6: ='Prop DUOS'!N6 -> Dem1 | AC6: ='Prop DUOS'!O6 -> Capacity | AD6: ='Prop DUOS'!P6 -> CriticalPk | AE6: ='Prop DUOS'!Q6 -> MonthlyPkDem | AF6: ='Prop DUOS'!R6 -> MonthlyOPkDem | AH6: ='Prop DUOS'!E6 -> Standing charge | AI6: ='Prop DUOS'!F6 -> Anytime | AJ6: ='Prop DUOS'!G6 -> Pk / Blk1 | AK6: ='Prop DUOS'!H6 -> Off Pk / Blk2 | AL6: ='Prop DUOS'!I6 -> Shoulder | AM6: ='Prop DUOS'!J6 -> SummerPk | AN6: ='Prop DUOS'!K6 -> WinterPk | AO6: ='Prop DUOS'!L6 -> FeedIn | AP6: ='Prop DUOS'!M6 -> DedCirc | AQ6: ='Prop DUOS'!N6 -> Dem1 | AR6: ='Prop DUOS'!O6 -> Capacity | AS6: ='Prop DUOS'!P6 -> CriticalPk | AT6: ='Prop DUOS'!Q6 -> MonthlyPkDem | AU6: ='Prop DUOS'!R6 -> MonthlyOPkDem | AV6: Total
B7: NEE11 Small Single Rate < 160MWh | D7: 106 | E7: 0 | F7: 7.839 | G7: 9.3777 | H7: 0 | I7: 0 | J7: 0 | K7: 0 | L7: 0 | M7: 0 | N7: 0 | O7: 0 | P7: 0 | Q7: 0 | S7: 239330.3491 | T7: 0 | U7: 677538125 | V7: 335993559 | W7: 0 | X7: 0 | Y7: 0 | Z7: 0 | AA7: 0 | AB7: 0 | AC7: 0 | AD7: 0 | AE7: 0 | AF7: 0 | AH7: =IF('Prop DUOS'!$E$78="cents",D7/100,D7)*IF('Prop DUOS'!$E$80="day",S7*'Prop DUOS'!$D$83,S7) -> 25369017 | AI7: =IF('Prop DUOS'!F$78="cents",E7/100,E7)*T7 -> 0 | AJ7: =IF('Prop DUOS'!G$78="cents",F7/100,F7)*U7 -> 53112213.62 | AK7: =IF('Prop DUOS'!H$78="cents",G7/100,G7)*V7 -> 31508467.99 | AL7: =IF('Prop DUOS'!I$78="cents",H7/100,H7)*W7 -> 0 | AM7: =IF('Prop DUOS'!J$78="cents",I7/100,I7)*X7 -> 0 | AN7: =IF('Prop DUOS'!K$78="cents",J7/100,J7)*Y7 -> 0 | AO7: =IF('Prop DUOS'!L$78="cents",K7/100,K7)*Z7 -> 0 | AP7: =IF('Prop DUOS'!M$78="cents",L7/100,L7)*AA7 -> 0 | AQ7: =IF('Prop DUOS'!N$78="cents",M7/100,M7)*IF('Prop DUOS'!N$80="day",AB7*'Prop DUOS'!$D$83,IF('Prop DUOS'!N$80="month",AB7*12,AB7)) -> 0 | AR7: =IF('Prop DUOS'!O$78="cents",N7/100,N7)*IF('Prop DUOS'!O$80="day",AC7*'Prop DUOS'!$D$83,IF('Prop DUOS'!O$80="month",AC7*12,AC7)) -> 0 | AS7: =IF('Prop DUOS'!P$78="cents",O7/100,O7)*IF('Prop DUOS'!P$80="day",AD7*'Prop DUOS'!$D$83,IF('Prop DUOS'!P$80="month",AD7*12,AD7)) -> 0 | AT7: =IF('Prop DUOS'!Q$78="cents",P7/100,P7)*IF('Prop DUOS'!Q$80="day",AE7*'Prop DUOS'!$D$83,IF('Prop DUOS'!Q$80="month",AE7*12,AE7)) -> 0 | AU7: =IF('Prop DUOS'!R$78="cents",Q7/100,Q7)*IF('Prop DUOS'!R$80="day",AF7*'Prop DUOS'!$D$83,IF('Prop DUOS'!R$80="month",AF7*12,AF7)) -> 0 | AV7: =SUM(AH7:AU7) -> 109989698.6
B8: NGT11 Small Interval Single Rate < 160MWh | D8: 106 | E8: 0 | F8: 10.4568 | G8: 0 | H8: 0 | I8: 0 | J8: 0 | K8: 0 | L8: 0 | M8: 0 | N8: 0 | O8: 0 | P8: 0 | Q8: 0 | S8: 11.1521092 | T8: 0 | U8: 40077.82132 | V8: 0 | W8: 0 | X8: 0 | Y8: 0 | Z8: 0 | AA8: 0 | AB8: 0 | AC8: 0 | AD8: 0 | AE8: 0 | AF8: 0 | AH8: =IF('Prop DUOS'!$E$78="cents",D8/100,D8)*IF('Prop DUOS'!$E$80="day",S8*'Prop DUOS'!$D$83,S8) -> 1182.123575 | AI8: =IF('Prop DUOS'!F$78="cents",E8/100,E8)*T8 -> 0 | AJ8: =IF('Prop DUOS'!G$78="cents",F8/100,F8)*U8 -> 4190.857619 | AK8: =IF('Prop DUOS'!H$78="cents",G8/100,G8)*V8 -> 0 | AL8: =IF('Prop DUOS'!I$78="cents",H8/100,H8)*W8 -> 0 | AM8: =IF('Prop DUOS'!J$78="cents",I8/100,I8)*X8 -> 0 | AN8: =IF('Prop DUOS'!K$78="cents",J8/100,J8)*Y8 -> 0 | AO8: =IF('Prop DUOS'!L$78="cents",K8/100,K8)*Z8 -> 0 | AP8: =IF('Prop DUOS'!M$78="cents",L8/100,L8)*AA8 -> 0 | AQ8: =IF('Prop DUOS'!N$78="cents",M8/100,M8)*IF('Prop DUOS'!N$80="day",AB8*'Prop DUOS'!$D$83,IF('Prop DUOS'!N$80="month",AB8*12,AB8)) -> 0 | AR8: =IF('Prop DUOS'!O$78="cents",N8/100,N8)*IF('Prop DUOS'!O$80="day",AC8*'Prop DUOS'!$D$83,IF('Prop DUOS'!O$80="month",AC8*12,AC8)) -> 0 | AS8: =IF('Prop DUOS'!P$78="cents",O8/100,O8)*IF('Prop DUOS'!P$80="day",AD8*'Prop DUOS'!$D$83,IF('Prop DUOS'!P$80="month",AD8*12,AD8)) -> 0 | AT8: =IF('Prop DUOS'!Q$78="cents",P8/100,P8)*IF('Prop DUOS'!Q$80="day",AE8*'Prop DUOS'!$D$83,IF('Prop DUOS'!Q$80="month",AE8*12,AE8)) -> 0 | AU8: =IF('Prop DUOS'!R$78="cents",Q8/100,Q8)*IF('Prop DUOS'!R$80="day",AF8*'Prop DUOS'!$D$83,IF('Prop DUOS'!R$80="month",AF8*12,AF8)) -> 0 | AV8: =SUM(AH8:AU8) -> 5372.981194
B9: NSP11 Small Single Rate < 160MWh | D9: 106 | E9: 0 | F9: 0 | G9: 2.9693 | H9: 30.4637 | I9: 34.8141 | J9: 26.6615 | K9: 0 | L9: 0 | M9: 0 | N9: 0 | O9: 0 | P9: 0 | Q9: 0 | S9: 0 | T9: 0 | U9: 0 | V9: 0 | W9: 0 | X9: 0 | Y9: 0 | Z9: 0 | AA9: 0 | AB9: 0 | AC9: 0 | AD9: 0 | AE9: 0 | AF9: 0 | AH9: =IF('Prop DUOS'!$E$78="cents",D9/100,D9)*IF('Prop DUOS'!$E$80="day",S9*'Prop DUOS'!$D$83,S9) -> 0 | AI9: =IF('Prop DUOS'!F$78="cents",E9/100,E9)*T9 -> 0 | AJ9: =IF('Prop DUOS'!G$78="cents",F9/100,F9)*U9 -> 0 | AK9: =IF('Prop DUOS'!H$78="cents",G9/100,G9)*V9 -> 0 | AL9: =IF('Prop DUOS'!I$78="cents",H9/100,H9)*W9 -> 0 | AM9: =IF('Prop DUOS'!J$78="cents",I9/100,I9)*X9 -> 0 | AN9: =IF('Prop DUOS'!K$78="cents",J9/100,J9)*Y9 -> 0 | AO9: =IF('Prop DUOS'!L$78="cents",K9/100,K9)*Z9 -> 0 | AP9: =IF('Prop DUOS'!M$78="cents",L9/100,L9)*AA9 -> 0 | AQ9: =IF('Prop DUOS'!N$78="cents",M9/100,M9)*IF('Prop DUOS'!N$80="day",AB9*'Prop DUOS'!$D$83,IF('Prop DUOS'!N$80="month",AB9*12,AB9)) -> 0 | AR9: =IF('Prop DUOS'!O$78="cents",N9/100,N9)*IF('Prop DUOS'!O$80="day",AC9*'Prop DUOS'!$D$83,IF('Prop DUOS'!O$80="month",AC9*12,AC9)) -> 0 | AS9: =IF('Prop DUOS'!P$78="cents",O9/100,O9)*IF('Prop DUOS'!P$80="day",AD9*'Prop DUOS'!$D$83,IF('Prop DUOS'!P$80="month",AD9*12,AD9)) -> 0 | AT9: =IF('Prop DUOS'!Q$78="cents",P9/100,P9)*IF('Prop DUOS'!Q$80="day",AE9*'Prop DUOS'!$D$83,IF('Prop DUOS'!Q$80="month",AE9*12,AE9)) -> 0 | AU9: =IF('Prop DUOS'!R$78="cents",Q9/100,Q9)*IF('Prop DUOS'!R$80="day",AF9*'Prop DUOS'!$D$83,IF('Prop DUOS'!R$80="month",AF9*12,AF9)) -> 0 | AV9: 0
B10: NEN11 Small Single Rate < 160MWh Embedded Network | D10: 106 | E10: 0 | F10: 4.8059 | G10: 5.2818 | H10: 0 | I10: 0 | J10: 0 | K10: 0 | L10: 0 | M10: 0 | N10: 0 | O10: 0 | P10: 0 | Q10: 0 | S10: 0 | T10: 0 | U10: 0 | V10: 0 | W10: 0 | X10: 0 | Y10: 0 | Z10: 0 | AA10: 0 | AB10: 0 | AC10: 0 | AD10: 0 | AE10: 0 | AF10: 0 | AH10: =IF('Prop DUOS'!$E$78="cents",D10/100,D10)*IF('Prop DUOS'!$E$80="day",S10*'Prop DUOS'!$D$83,S10) -> 0 | AI10: =IF('Prop DUOS'!F$78="cents",E10/100,E10)*T10 -> 0 | AJ10: =IF('Prop DUOS'!G$78="cents",F10/100,F10)*U10 -> 0 | AK10: =IF('Prop DUOS'!H$78="cents",G10/100,G10)*V10 -> 0 | AL10: =IF('Prop DUOS'!I$78="cents",H10/100,H10)*W10 -> 0 | AM10: =IF('Prop DUOS'!J$78="cents",I10/100,I10)*X10 -> 0 | AN10: =IF('Prop DUOS'!K$78="cents",J10/100,J10)*Y10 -> 0 | AO10: =IF('Prop DUOS'!L$78="cents",K10/100,K10)*Z10 -> 0 | AP10: =IF('Prop DUOS'!M$78="cents",L10/100,L10)*AA10 -> 0 | AQ10: =IF('Prop DUOS'!N$78="cents",M10/100,M10)*IF('Prop DUOS'!N$80="day",AB10*'Prop DUOS'!$D$83,IF('Prop DUOS'!N$80="month",AB10*12,AB10)) -> 0 | AR10: =IF('Prop DUOS'!O$78="cents",N10/100,N10)*IF('Prop DUOS'!O$80="day",AC10*'Prop DUOS'!$D$83,IF('Prop DUOS'!O$80="month",AC10*12,AC10)) -> 0 | AS10: =IF('Prop DUOS'!P$78="cents",O10/100,O10)*IF('Prop DUOS'!P$80="day",AD10*'Prop DUOS'!$D$83,IF('Prop DUOS'!P$80="month",AD10*12,AD10)) -> 0 | AT10: =IF('Prop DUOS'!Q$78="cents",P10/100,P10)*IF('Prop DUOS'!Q$80="day",AE10*'Prop DUOS'!$D$83,IF('Prop DUOS'!Q$80="month",AE10*12,AE10)) -> 0 | AU10: =IF('Prop DUOS'!R$78="cents",Q10/100,Q10)*IF('Prop DUOS'!R$80="day",AF10*'Prop DUOS'!$D$83,IF('Prop DUOS'!R$80="month",AF10*12,AF10)) -> 0 | AV10: 0
B11: NEE12 Small Business Single Rate - new in 2001 | D11: 106 | E11: 0 | F11: 11.2642 | G11: 14.2389 | H11: 0 | I11: 0 | J11: 0 | K11: 0 | L11: 0 | M11: 0 | N11: 0 | O11: 0 | P11: 0 | Q11: 0 | S11: 14407.02965 | T11: 0 | U11: 29018359.21 | V11: 49737653.35 | W11: 0 | X11: 0 | Y11: 0 | Z11: 0 | AA11: 0 | AB11: 0 | AC11: 0 | AD11: 0 | AE11: 0 | AF11: 0 | AH11: =IF('Prop DUOS'!$E$78="cents",D11/100,D11)*IF('Prop DUOS'!$E$80="day",S11*'Prop DUOS'!$D$83,S11) -> 1527145.143 | AI11: =IF('Prop DUOS'!F$78="cents",E11/100,E11)*T11 -> 0 | AJ11: =IF('Prop DUOS'!G$78="cents",F11/100,F11)*U11 -> 3268686.019 | AK11: =IF('Prop DUOS'!H$78="cents",G11/100,G11)*V11 -> 7082094.723 | AL11: =IF('Prop DUOS'!I$78="cents",H11/100,H11)*W11 -> 0 | AM11: =IF('Prop DUOS'!J$78="cents",I11/100,I11)*X11 -> 0 | AN11: =IF('Prop DUOS'!K$78="cents",J11/100,J11)*Y11 -> 0 | AO11: =IF('Prop DUOS'!L$78="cents",K11/100,K11)*Z11 -> 0 | AP11: =IF('Prop DUOS'!M$78="cents",L11/100,L11)*AA11 -> 0 | AQ11: =IF('Prop DUOS'!N$78="cents",M11/100,M11)*IF('Prop DUOS'!N$80="day",AB11*'Prop DUOS'!$D$83,IF('Prop DUOS'!N$80="month",AB11*12,AB11)) -> 0 | AR11: =IF('Prop DUOS'!O$78="cents",N11/100,N11)*IF('Prop DUOS'!O$80="day",AC11*'Prop DUOS'!$D$83,IF('Prop DUOS'!O$80="month",AC11*12,AC11)) -> 0 | AS11: =IF('Prop DUOS'!P$78="cents",O11/100,O11)*IF('Prop DUOS'!P$80="day",AD11*'Prop DUOS'!$D$83,IF('Prop DUOS'!P$80="month",AD11*12,AD11)) -> 0 | AT11: =IF('Prop DUOS'!Q$78="cents",P11/100,P11)*IF('Prop DUOS'!Q$80="day",AE11*'Prop DUOS'!$D$83,IF('Prop DUOS'!Q$80="month",AE11*12,AE11)) -> 0 | AU11: =IF('Prop DUOS'!R$78="cents",Q11/100,Q11)*IF('Prop DUOS'!R$80="day",AF11*'Prop DUOS'!$D$83,IF('Prop DUOS'!R$80="month",AF11*12,AF11)) -> 0 | AV11: 11877925.88
B12: NSP12 Small Business Single Rate - new in 2001 | D12: 106 | E12: 0 | F12: 0 | G12: 2.9693 | H12: 30.4637 | I12: 34.8141 | J12: 26.6615 | K12: 0 | L12: 0 | M12: 0 | N12: 0 | O12: 0 | P12: 0 | Q12: 0 | S12: 0 | T12: 0 | U12: 0 | V12: 0 | W12: 0 | X12: 0 | Y12: 0 | Z12: 0 | AA12: 0 | AB12: 0 | AC12: 0 | AD12: 0 | AE12: 0 | AF12: 0 | AH12: =IF('Prop DUOS'!$E$78="cents",D12/100,D12)*IF('Prop DUOS'!$E$80="day",S12*'Prop DUOS'!$D$83,S12) -> 0 | AI12: =IF('Prop DUOS'!F$78="cents",E12/100,E12)*T12 -> 0 | AJ12: =IF('Prop DUOS'!G$78="cents",F12/100,F12)*U12 -> 0 | AK12: =IF('Prop DUOS'!H$78="cents",G12/100,G12)*V12 -> 0 | AL12: =IF('Prop DUOS'!I$78="cents",H12/100,H12)*W12 -> 0 | AM12: =IF('Prop DUOS'!J$78="cents",I12/100,I12)*X12 -> 0 | AN12: =IF('Prop DUOS'!K$78="cents",J12/100,J12)*Y12 -> 0 | AO12: =IF('Prop DUOS'!L$78="cents",K12/100,K12)*Z12 -> 0 | AP12: =IF('Prop DUOS'!M$78="cents",L12/100,L12)*AA12 -> 0 | AQ12: =IF('Prop DUOS'!N$78="cents",M12/100,M12)*IF('Prop DUOS'!N$80="day",AB12*'Prop DUOS'!$D$83,IF('Prop DUOS'!N$80="month",AB12*12,AB12)) -> 0 | AR12: =IF('Prop DUOS'!O$78="cents",N12/100,N12)*IF('Prop DUOS'!O$80="day",AC12*'Prop DUOS'!$D$83,IF('Prop DUOS'!O$80="month",AC12*12,AC12)) -> 0 | AS12: =IF('Prop DUOS'!P$78="cents",O12/100,O12)*IF('Prop DUOS'!P$80="day",AD12*'Prop DUOS'!$D$83,IF('Prop DUOS'!P$80="month",AD12*12,AD12)) -> 0 | AT12: =IF('Prop DUOS'!Q$78="cents",P12/100,P12)*IF('Prop DUOS'!Q$80="day",AE12*'Prop DUOS'!$D$83,IF('Prop DUOS'!Q$80="month",AE12*12,AE12)) -> 0 | AU12: =IF('Prop DUOS'!R$78="cents",Q12/100,Q12)*IF('Prop DUOS'!R$80="day",AF12*'Prop DUOS'!$D$83,IF('Prop DUOS'!R$80="month",AF12*12,AF12)) -> 0 | AV12: 0
B13: NEN12 Small Business Single Rate - Embedded Network | D13: 106 | E13: 0 | F13: 16.3826 | G13: 19.0708 | H13: 0 | I13: 0 | J13: 0 | K13: 0 | L13: 0 | M13: 0 | N13: 0 | O13: 0 | P13: 0 | Q13: 0 | S13: 0 | T13: 0 | U13: 0 | V13: 0 | W13: 0 | X13: 0 | Y13: 0 | Z13: 0 | AA13: 0 | AB13: 0 | AC13: 0 | AD13: 0 | AE13: 0 | AF13: 0 | AH13: =IF('Prop DUOS'!$E$78="cents",D13/100,D13)*IF('Prop DUOS'!$E$80="day",S13*'Prop DUOS'!$D$83,S13) -> 0 | AI13: =IF('Prop DUOS'!F$78="cents",E13/100,E13)*T13 -> 0 | AJ13: =IF('Prop DUOS'!G$78="cents",F13/100,F13)*U13 -> 0 | AK13: =IF('Prop DUOS'!H$78="cents",G13/100,G13)*V13 -> 0 | AL13: =IF('Prop DUOS'!I$78="cents",H13/100,H13)*W13 -> 0 | AM13: =IF('Prop DUOS'!J$78="cents",I13/100,I13)*X13 -> 0 | AN13: =IF('Prop DUOS'!K$78="cents",J13/100,J13)*Y13 -> 0 | AO13: =IF('Prop DUOS'!L$78="cents",K13/100,K13)*Z13 -> 0 | AP13: =IF('Prop DUOS'!M$78="cents",L13/100,L13)*AA13 -> 0 | AQ13: =IF('Prop DUOS'!N$78="cents",M13/100,M13)*IF('Prop DUOS'!N$80="day",AB13*'Prop DUOS'!$D$83,IF('Prop DUOS'!N$80="month",AB13*12,AB13)) -> 0 | AR13: =IF('Prop DUOS'!O$78="cents",N13/100,N13)*IF('Prop DUOS'!O$80="day",AC13*'Prop DUOS'!$D$83,IF('Prop DUOS'!O$80="month",AC13*12,AC13)) -> 0 | AS13: =IF('Prop DUOS'!P$78="cents",O13/100,O13)*IF('Prop DUOS'!P$80="day",AD13*'Prop DUOS'!$D$83,IF('Prop DUOS'!P$80="month",AD13*12,AD13)) -> 0 | AT13: =IF('Prop DUOS'!Q$78="cents",P13/100,P13)*IF('Prop DUOS'!Q$80="day",AE13*'Prop DUOS'!$D$83,IF('Prop DUOS'!Q$80="month",AE13*12,AE13)) -> 0 | AU13: =IF('Prop DUOS'!R$78="cents",Q13/100,Q13)*IF('Prop DUOS'!R$80="day",AF13*'Prop DUOS'!$D$83,IF('Prop DUOS'!R$80="month",AF13*12,AF13)) -> 0 | AV13: 0
B14: NEE20 Small Two Rate | D14: 106 | E14: 0 | F14: 15.6003 | G14: 2.8691 | H14: 0 | I14: 0 | J14: 0 | K14: 0 | L14: 0 | M14: 0 | N14: 0 | O14: 0 | P14: 0 | Q14: 0 | S14: 25985.6778 | T14: 0 | U14: 71573774.58 | V14: 92547796.96 | W14: 0 | X14: 0 | Y14: 0 | Z14: 0 | AA14: 0 | AB14: 0 | AC14: 0 | AD14: 0 | AE14: 0 | AF14: 0 | AH14: =IF('Prop DUOS'!$E$78="cents",D14/100,D14)*IF('Prop DUOS'!$E$80="day",S14*'Prop DUOS'!$D$83,S14) -> 2754481.846 | AI14: =IF('Prop DUOS'!F$78="cents",E14/100,E14)*T14 -> 0 | AJ14: =IF('Prop DUOS'!G$78="cents",F14/100,F14)*U14 -> 11165723.56 | AK14: =IF('Prop DUOS'!H$78="cents",G14/100,G14)*V14 -> 2655288.843 | AL14: =IF('Prop DUOS'!I$78="cents",H14/100,H14)*W14 -> 0 | AM14: =IF('Prop DUOS'!J$78="cents",I14/100,I14)*X14 -> 0 | AN14: =IF('Prop DUOS'!K$78="cents",J14/100,J14)*Y14 -> 0 | AO14: =IF('Prop DUOS'!L$78="cents",K14/100,K14)*Z14 -> 0 | AP14: =IF('Prop DUOS'!M$78="cents",L14/100,L14)*AA14 -> 0 | AQ14: =IF('Prop DUOS'!N$78="cents",M14/100,M14)*IF('Prop DUOS'!N$80="day",AB14*'Prop DUOS'!$D$83,IF('Prop DUOS'!N$80="month",AB14*12,AB14)) -> 0 | AR14: =IF('Prop DUOS'!O$78="cents",N14/100,N14)*IF('Prop DUOS'!O$80="day",AC14*'Prop DUOS'!$D$83,IF('Prop DUOS'!O$80="month",AC14*12,AC14)) -> 0 | AS14: =IF('Prop DUOS'!P$78="cents",O14/100,O14)*IF('Prop DUOS'!P$80="day",AD14*'Prop DUOS'!$D$83,IF('Prop DUOS'!P$80="month",AD14*12,AD14)) -> 0 | AT14: =IF('Prop DUOS'!Q$78="cents",P14/100,P14)*IF('Prop DUOS'!Q$80="day",AE14*'Prop DUOS'!$D$83,IF('Prop DUOS'!Q$80="month",AE14*12,AE14)) -> 0 | AU14: =IF('Prop DUOS'!R$78="cents",Q14/100,Q14)*IF('Prop DUOS'!R$80="day",AF14*'Prop DUOS'!$D$83,IF('Prop DUOS'!R$80="month",AF14*12,AF14)) -> 0 | AV14: 16575494.25
B15: NSP20 Small Two Rate | D15: 106 | E15: 0 | F15: 0 | G15: 2.9693 | H15: 30.4637 | I15: 34.8141 | J15: 26.6615 | K15: 0 | L15: 0 | M15: 0 | N15: 0 | O15: 0 | P15: 0 | Q15: 0 | S15: 6.3352607 | U15: 0 | V15: 40554.82804 | W15: 3019.16 | X15: 3217.71 | Y15: 316.8537882 | Z15: 0 | AA15: 0 | AB15: 0 | AC15: 0 | AD15: 0 | AE15: 0 | AF15: 0 | AH15: =IF('Prop DUOS'!$E$78="cents",D15/100,D15)*IF('Prop DUOS'!$E$80="day",S15*'Prop DUOS'!$D$83,S15) -> 671.5376342 | AI15: =IF('Prop DUOS'!F$78="cents",E15/100,E15)*T15 -> 0 | AJ15: =IF('Prop DUOS'!G$78="cents",F15/100,F15)*U15 -> 0 | AK15: =IF('Prop DUOS'!H$78="cents",G15/100,G15)*V15 -> 1204.194509 | AL15: =IF('Prop DUOS'!I$78="cents",H15/100,H15)*W15 -> 919.7478449 | AM15: =IF('Prop DUOS'!J$78="cents",I15/100,I15)*X15 -> 1120.216777 | AN15: =IF('Prop DUOS'!K$78="cents",J15/100,J15)*Y15 -> 84.47797274 | AO15: =IF('Prop DUOS'!L$78="cents",K15/100,K15)*Z15 -> 0 | AP15: =IF('Prop DUOS'!M$78="cents",L15/100,L15)*AA15 -> 0 | AQ15: =IF('Prop DUOS'!N$78="cents",M15/100,M15)*IF('Prop DUOS'!N$80="day",AB15*'Prop DUOS'!$D$83,IF('Prop DUOS'!N$80="month",AB15*12,AB15)) -> 0 | AR15: =IF('Prop DUOS'!O$78="cents",N15/100,N15)*IF('Prop DUOS'!O$80="day",AC15*'Prop DUOS'!$D$83,IF('Prop DUOS'!O$80="month",AC15*12,AC15)) -> 0 | AS15: =IF('Prop DUOS'!P$78="cents",O15/100,O15)*IF('Prop DUOS'!P$80="day",AD15*'Prop DUOS'!$D$83,IF('Prop DUOS'!P$80="month",AD15*12,AD15)) -> 0 | AT15: =IF('Prop DUOS'!Q$78="cents",P15/100,P15)*IF('Prop DUOS'!Q$80="day",AE15*'Prop DUOS'!$D$83,IF('Prop DUOS'!Q$80="month",AE15*12,AE15)) -> 0 | AU15: =IF('Prop DUOS'!R$78="cents",Q15/100,Q15)*IF('Prop DUOS'!R$80="day",AF15*'Prop DUOS'!$D$83,IF('Prop DUOS'!R$80="month",AF15*12,AF15)) -> 0 | AV15: 4000.174738
B16: NGT26 Small Interval Multi Rate | D16: 106 | E16: 0 | F16: 11.2356 | G16: 3.05 | H16: 8.2333 | I16: 0 | J16: 0 | K16: 0 | L16: 0 | M16: 0 | N16: 0 | O16: 0 | P16: 0 | Q16: 0 | S16: 858.8045428 | T16: 0 | U16: 664513.98 | V16: 1294451.386 | W16: 2245286.56 | X16: 0 | Y16: 0 | Z16: 0 | AA16: 0 | AB16: 0 | AC16: 0 | AD16: 0 | AE16: 0 | AF16: 0 | AH16: =IF('Prop DUOS'!$E$78="cents",D16/100,D16)*IF('Prop DUOS'!$E$80="day",S16*'Prop DUOS'!$D$83,S16) -> 91033.28154 | AI16: =IF('Prop DUOS'!F$78="cents",E16/100,E16)*T16 -> 0 | AJ16: =IF('Prop DUOS'!G$78="cents",F16/100,F16)*U16 -> 74662.13274 | AK16: =IF('Prop DUOS'!H$78="cents",G16/100,G16)*V16 -> 39480.76729 | AL16: =IF('Prop DUOS'!I$78="cents",H16/100,H16)*W16 -> 184861.1783 | AM16: =IF('Prop DUOS'!J$78="cents",I16/100,I16)*X16 -> 0 | AN16: =IF('Prop DUOS'!K$78="cents",J16/100,J16)*Y16 -> 0 | AO16: =IF('Prop DUOS'!L$78="cents",K16/100,K16)*Z16 -> 0 | AP16: =IF('Prop DUOS'!M$78="cents",L16/100,L16)*AA16 -> 0 | AQ16: =IF('Prop DUOS'!N$78="cents",M16/100,M16)*IF('Prop DUOS'!N$80="day",AB16*'Prop DUOS'!$D$83,IF('Prop DUOS'!N$80="month",AB16*12,AB16)) -> 0 | AR16: =IF('Prop DUOS'!O$78="cents",N16/100,N16)*IF('Prop DUOS'!O$80="day",AC16*'Prop DUOS'!$D$83,IF('Prop DUOS'!O$80="month",AC16*12,AC16)) -> 0 | AS16: =IF('Prop DUOS'!P$78="cents",O16/100,O16)*IF('Prop DUOS'!P$80="day",AD16*'Prop DUOS'!$D$83,IF('Prop DUOS'!P$80="month",AD16*12,AD16)) -> 0 | AT16: =IF('Prop DUOS'!Q$78="cents",P16/100,P16)*IF('Prop DUOS'!Q$80="day",AE16*'Prop DUOS'!$D$83,IF('Prop DUOS'!Q$80="month",AE16*12,AE16)) -> 0 | AU16: =IF('Prop DUOS'!R$78="cents",Q16/100,Q16)*IF('Prop DUOS'!R$80="day",AF16*'Prop DUOS'!$D$83,IF('Prop DUOS'!R$80="month",AF16*12,AF16)) -> 0 | AV16: 390037.3599
B17: NEN20 Small Two Rate - Embedded Network | D17: 106 | E17: 0 | F17: 9.0125 | G17: 2.9461 | H17: 0 | I17: 0 | J17: 0 | K17: 0 | L17: 0 | M17: 0 | N17: 0 | O17: 0 | P17: 0 | Q17: 0 | S17: 0 | T17: 0 | U17: 0 | V17: 0 | W17: 0 | X17: 0 | Y17: 0 | Z17: 0 | AA17: 0 | AB17: 0 | AC17: 0 | AD17: 0 | AE17: 0 | AF17: 0 | AH17: =IF('Prop DUOS'!$E$78="cents",D17/100,D17)*IF('Prop DUOS'!$E$80="day",S17*'Prop DUOS'!$D$83,S17) -> 0 | AI17: =IF('Prop DUOS'!F$78="cents",E17/100,E17)*T17 -> 0 | AJ17: =IF('Prop DUOS'!G$78="cents",F17/100,F17)*U17 -> 0 | AK17: =IF('Prop DUOS'!H$78="cents",G17/100,G17)*V17 -> 0 | AL17: =IF('Prop DUOS'!I$78="cents",H17/100,H17)*W17 -> 0 | AM17: =IF('Prop DUOS'!J$78="cents",I17/100,I17)*X17 -> 0 | AN17: =IF('Prop DUOS'!K$78="cents",J17/100,J17)*Y17 -> 0 | AO17: =IF('Prop DUOS'!L$78="cents",K17/100,K17)*Z17 -> 0 | AP17: =IF('Prop DUOS'!M$78="cents",L17/100,L17)*AA17 -> 0 | AQ17: =IF('Prop DUOS'!N$78="cents",M17/100,M17)*IF('Prop DUOS'!N$80="day",AB17*'Prop DUOS'!$D$83,IF('Prop DUOS'!N$80="month",AB17*12,AB17)) -> 0 | AR17: =IF('Prop DUOS'!O$78="cents",N17/100,N17)*IF('Prop DUOS'!O$80="day",AC17*'Prop DUOS'!$D$83,IF('Prop DUOS'!O$80="month",AC17*12,AC17)) -> 0 | AS17: =IF('Prop DUOS'!P$78="cents",O17/100,O17)*IF('Prop DUOS'!P$80="day",AD17*'Prop DUOS'!$D$83,IF('Prop DUOS'!P$80="month",AD17*12,AD17)) -> 0 | AT17: =IF('Prop DUOS'!Q$78="cents",P17/100,P17)*IF('Prop DUOS'!Q$80="day",AE17*'Prop DUOS'!$D$83,IF('Prop DUOS'!Q$80="month",AE17*12,AE17)) -> 0 | AU17: =IF('Prop DUOS'!R$78="cents",Q17/100,Q17)*IF('Prop DUOS'!R$80="day",AF17*'Prop DUOS'!$D$83,IF('Prop DUOS'!R$80="month",AF17*12,AF17)) -> 0 | AV17: 0
B18: NEE21 Small Business Two Rate | D18: 106 | E18: 0 | F18: 14.5435 | G18: 3.0126 | H18: 0 | I18: 0 | J18: 0 | K18: 0 | L18: 0 | M18: 0 | N18: 0 | O18: 0 | P18: 0 | Q18: 0 | S18: 14376.38917 | U18: 97703040.08 | V18: 73182406.76 | W18: 0 | X18: 0 | Y18: 0 | Z18: -3442235.72 | AA18: 0 | AB18: 0 | AC18: 0 | AD18: 0 | AE18: 0 | AF18: 0 | AH18: =IF('Prop DUOS'!$E$78="cents",D18/100,D18)*IF('Prop DUOS'!$E$80="day",S18*'Prop DUOS'!$D$83,S18) -> 1523897.252 | AI18: =IF('Prop DUOS'!F$78="cents",E18/100,E18)*T18 -> 0 | AJ18: =IF('Prop DUOS'!G$78="cents",F18/100,F18)*U18 -> 14209441.63 | AK18: =IF('Prop DUOS'!H$78="cents",G18/100,G18)*V18 -> 2204693.186 | AL18: =IF('Prop DUOS'!I$78="cents",H18/100,H18)*W18 -> 0 | AM18: =IF('Prop DUOS'!J$78="cents",I18/100,I18)*X18 -> 0 | AN18: =IF('Prop DUOS'!K$78="cents",J18/100,J18)*Y18 -> 0 | AO18: =IF('Prop DUOS'!L$78="cents",K18/100,K18)*Z18 -> 0 | AP18: =IF('Prop DUOS'!M$78="cents",L18/100,L18)*AA18 -> 0 | AQ18: =IF('Prop DUOS'!N$78="cents",M18/100,M18)*IF('Prop DUOS'!N$80="day",AB18*'Prop DUOS'!$D$83,IF('Prop DUOS'!N$80="month",AB18*12,AB18)) -> 0 | AR18: =IF('Prop DUOS'!O$78="cents",N18/100,N18)*IF('Prop DUOS'!O$80="day",AC18*'Prop DUOS'!$D$83,IF('Prop DUOS'!O$80="month",AC18*12,AC18)) -> 0 | AS18: =IF('Prop DUOS'!P$78="cents",O18/100,O18)*IF('Prop DUOS'!P$80="day",AD18*'Prop DUOS'!$D$83,IF('Prop DUOS'!P$80="month",AD18*12,AD18)) -> 0 | AT18: =IF('Prop DUOS'!Q$78="cents",P18/100,P18)*IF('Prop DUOS'!Q$80="day",AE18*'Prop DUOS'!$D$83,IF('Prop DUOS'!Q$80="month",AE18*12,AE18)) -> 0 | AU18: =IF('Prop DUOS'!R$78="cents",Q18/100,Q18)*IF('Prop DUOS'!R$80="day",AF18*'Prop DUOS'!$D$83,IF('Prop DUOS'!R$80="month",AF18*12,AF18)) -> 0 | AV18: 17938032.07
B19: NSP21 Small Business Two Rate | D19: 106 | E19: 0 | F19: 0 | G19: 2.9693 | H19: 30.4637 | I19: 34.8141 | J19: 26.6615 | K19: 0 | L19: 0 | M19: 0 | N19: 0 | O19: 0 | P19: 0 | Q19: 0 | S19: 18.2627125 | T19: 0 | U19: 0 | V19: 377359.0474 | W19: 47324.05 | X19: 47147.97 | Y19: 4515.92243 | Z19: -4138.75 | AA19: 0 | AB19: 0 | AC19: 0 | AD19: 0 | AE19: 0 | AF19: 0 | AH19: =IF('Prop DUOS'!$E$78="cents",D19/100,D19)*IF('Prop DUOS'!$E$80="day",S19*'Prop DUOS'!$D$83,S19) -> 1935.847525 | AI19: =IF('Prop DUOS'!F$78="cents",E19/100,E19)*T19 -> 0 | AJ19: =IF('Prop DUOS'!G$78="cents",F19/100,F19)*U19 -> 0 | AK19: =IF('Prop DUOS'!H$78="cents",G19/100,G19)*V19 -> 11204.92219 | AL19: =IF('Prop DUOS'!I$78="cents",H19/100,H19)*W19 -> 14416.65662 | AM19: =IF('Prop DUOS'!J$78="cents",I19/100,I19)*X19 -> 16414.14142 | AN19: =IF('Prop DUOS'!K$78="cents",J19/100,J19)*Y19 -> 1204.012659 | AO19: =IF('Prop DUOS'!L$78="cents",K19/100,K19)*Z19 -> 0 | AP19: =IF('Prop DUOS'!M$78="cents",L19/100,L19)*AA19 -> 0 | AQ19: =IF('Prop DUOS'!N$78="cents",M19/100,M19)*IF('Prop DUOS'!N$80="day",AB19*'Prop DUOS'!$D$83,IF('Prop DUOS'!N$80="month",AB19*12,AB19)) -> 0 | AR19: =IF('Prop DUOS'!O$78="cents",N19/100,N19)*IF('Prop DUOS'!O$80="day",AC19*'Prop DUOS'!$D$83,IF('Prop DUOS'!O$80="month",AC19*12,AC19)) -> 0 | AS19: =IF('Prop DUOS'!P$78="cents",O19/100,O19)*IF('Prop DUOS'!P$80="day",AD19*'Prop DUOS'!$D$83,IF('Prop DUOS'!P$80="month",AD19*12,AD19)) -> 0 | AT19: =IF('Prop DUOS'!Q$78="cents",P19/100,P19)*IF('Prop DUOS'!Q$80="day",AE19*'Prop DUOS'!$D$83,IF('Prop DUOS'!Q$80="month",AE19*12,AE19)) -> 0 | AU19: =IF('Prop DUOS'!R$78="cents",Q19/100,Q19)*IF('Prop DUOS'!R$80="day",AF19*'Prop DUOS'!$D$83,IF('Prop DUOS'!R$80="month",AF19*12,AF19)) -> 0 | AV19: 45175.58042
B20: NSP27 Small Business Two Rate | D20: 106 | E20: 0 | F20: 0 | G20: 5.4007 | H20: 17.2452 | I20: 19.6727 | J20: 15.1249 | K20: 0 | L20: 0 | M20: 0 | N20: 0 | O20: 0 | P20: 0 | Q20: 0 | S20: 137.7271456 | T20: 0 | U20: 0 | V20: 8763860.129 | W20: 986832.4 | X20: 1002934.32 | Y20: 62935.40367 | Z20: 0 | AA20: 0 | AB20: 0 | AC20: 0 | AD20: 0 | AE20: 0 | AF20: 0 | AH20: =IF('Prop DUOS'!$E$78="cents",D20/100,D20)*IF('Prop DUOS'!$E$80="day",S20*'Prop DUOS'!$D$83,S20) -> 14599.07743 | AI20: =IF('Prop DUOS'!F$78="cents",E20/100,E20)*T20 -> 0 | AJ20: =IF('Prop DUOS'!G$78="cents",F20/100,F20)*U20 -> 0 | AK20: =IF('Prop DUOS'!H$78="cents",G20/100,G20)*V20 -> 473309.794 | AL20: =IF('Prop DUOS'!I$78="cents",H20/100,H20)*W20 -> 170181.221 | AM20: =IF('Prop DUOS'!J$78="cents",I20/100,I20)*X20 -> 197304.26 | AN20: =IF('Prop DUOS'!K$78="cents",J20/100,J20)*Y20 -> 9518.916869 | AO20: =IF('Prop DUOS'!L$78="cents",K20/100,K20)*Z20 -> 0 | AP20: =IF('Prop DUOS'!M$78="cents",L20/100,L20)*AA20 -> 0 | AQ20: =IF('Prop DUOS'!N$78="cents",M20/100,M20)*IF('Prop DUOS'!N$80="day",AB20*'Prop DUOS'!$D$83,IF('Prop DUOS'!N$80="month",AB20*12,AB20)) -> 0 | AR20: =IF('Prop DUOS'!O$78="cents",N20/100,N20)*IF('Prop DUOS'!O$80="day",AC20*'Prop DUOS'!$D$83,IF('Prop DUOS'!O$80="month",AC20*12,AC20)) -> 0 | AS20: =IF('Prop DUOS'!P$78="cents",O20/100,O20)*IF('Prop DUOS'!P$80="day",AD20*'Prop DUOS'!$D$83,IF('Prop DUOS'!P$80="month",AD20*12,AD20)) -> 0 | AT20: =IF('Prop DUOS'!Q$78="cents",P20/100,P20)*IF('Prop DUOS'!Q$80="day",AE20*'Prop DUOS'!$D$83,IF('Prop DUOS'!Q$80="month",AE20*12,AE20)) -> 0 | AU20: =IF('Prop DUOS'!R$78="cents",Q20/100,Q20)*IF('Prop DUOS'!R$80="day",AF20*'Prop DUOS'!$D$83,IF('Prop DUOS'!R$80="month",AF20*12,AF20)) -> 0 | AV20: 864913.2693
B21: NEN21 Small Business Two Rate - Embedded Network | D21: 106 | E21: 0 | F21: 10.0993 | G21: 4.6013 | H21: 0 | I21: 0 | J21: 0 | K21: 0 | L21: 0 | M21: 0 | N21: 0 | O21: 0 | P21: 0 | Q21: 0 | S21: 0 | T21: 0 | U21: 0 | V21: 0 | W21: 0 | X21: 0 | Y21: 0 | Z21: 0 | AA21: 0 | AB21: 0 | AC21: 0 | AD21: 0 | AE21: 0 | AF21: 0 | AH21: =IF('Prop DUOS'!$E$78="cents",D21/100,D21)*IF('Prop DUOS'!$E$80="day",S21*'Prop DUOS'!$D$83,S21) -> 0 | AI21: =IF('Prop DUOS'!F$78="cents",E21/100,E21)*T21 -> 0 | AJ21: =IF('Prop DUOS'!G$78="cents",F21/100,F21)*U21 -> 0 | AK21: =IF('Prop DUOS'!H$78="cents",G21/100,G21)*V21 -> 0 | AL21: =IF('Prop DUOS'!I$78="cents",H21/100,H21)*W21 -> 0 | AM21: =IF('Prop DUOS'!J$78="cents",I21/100,I21)*X21 -> 0 | AN21: =IF('Prop DUOS'!K$78="cents",J21/100,J21)*Y21 -> 0 | AO21: =IF('Prop DUOS'!L$78="cents",K21/100,K21)*Z21 -> 0 | AP21: =IF('Prop DUOS'!M$78="cents",L21/100,L21)*AA21 -> 0 | AQ21: =IF('Prop DUOS'!N$78="cents",M21/100,M21)*IF('Prop DUOS'!N$80="day",AB21*'Prop DUOS'!$D$83,IF('Prop DUOS'!N$80="month",AB21*12,AB21)) -> 0 | AR21: =IF('Prop DUOS'!O$78="cents",N21/100,N21)*IF('Prop DUOS'!O$80="day",AC21*'Prop DUOS'!$D$83,IF('Prop DUOS'!O$80="month",AC21*12,AC21)) -> 0 | AS21: =IF('Prop DUOS'!P$78="cents",O21/100,O21)*IF('Prop DUOS'!P$80="day",AD21*'Prop DUOS'!$D$83,IF('Prop DUOS'!P$80="month",AD21*12,AD21)) -> 0 | AT21: =IF('Prop DUOS'!Q$78="cents",P21/100,P21)*IF('Prop DUOS'!Q$80="day",AE21*'Prop DUOS'!$D$83,IF('Prop DUOS'!Q$80="month",AE21*12,AE21)) -> 0 | AU21: =IF('Prop DUOS'!R$78="cents",Q21/100,Q21)*IF('Prop DUOS'!R$80="day",AF21*'Prop DUOS'!$D$83,IF('Prop DUOS'!R$80="month",AF21*12,AF21)) -> 0 | AV21: 0
B22: NEE23 Photovoltaic | D22: 116 | E22: 0 | F22: 15.6003 | G22: 2.8691 | H22: 0 | I22: 0 | J22: 0 | K22: 0 | L22: 0 | M22: 0 | N22: 0 | O22: 0 | P22: 0 | Q22: 0 | S22: 78442.12147 | T22: 0 | U22: 164130530.8 | V22: 200213818.4 | W22: 0 | X22: 0 | Y22: 0 | Z22: -61989842.07 | AA22: 0 | AB22: 0 | AC22: 0 | AD22: 0 | AE22: 0 | AF22: 0 | AH22: =IF('Prop DUOS'!$E$78="cents",D22/100,D22)*IF('Prop DUOS'!$E$80="day",S22*'Prop DUOS'!$D$83,S22) -> 9099286.091 | AI22: =IF('Prop DUOS'!F$78="cents",E22/100,E22)*T22 -> 0 | AJ22: =IF('Prop DUOS'!G$78="cents",F22/100,F22)*U22 -> 25604855.19 | AK22: =IF('Prop DUOS'!H$78="cents",G22/100,G22)*V22 -> 5744334.665 | AL22: =IF('Prop DUOS'!I$78="cents",H22/100,H22)*W22 -> 0 | AM22: =IF('Prop DUOS'!J$78="cents",I22/100,I22)*X22 -> 0 | AN22: =IF('Prop DUOS'!K$78="cents",J22/100,J22)*Y22 -> 0 | AO22: =IF('Prop DUOS'!L$78="cents",K22/100,K22)*Z22 -> 0 | AP22: =IF('Prop DUOS'!M$78="cents",L22/100,L22)*AA22 -> 0 | AQ22: =IF('Prop DUOS'!N$78="cents",M22/100,M22)*IF('Prop DUOS'!N$80="day",AB22*'Prop DUOS'!$D$83,IF('Prop DUOS'!N$80="month",AB22*12,AB22)) -> 0 | AR22: =IF('Prop DUOS'!O$78="cents",N22/100,N22)*IF('Prop DUOS'!O$80="day",AC22*'Prop DUOS'!$D$83,IF('Prop DUOS'!O$80="month",AC22*12,AC22)) -> 0 | AS22: =IF('Prop DUOS'!P$78="cents",O22/100,O22)*IF('Prop DUOS'!P$80="day",AD22*'Prop DUOS'!$D$83,IF('Prop DUOS'!P$80="month",AD22*12,AD22)) -> 0 | AT22: =IF('Prop DUOS'!Q$78="cents",P22/100,P22)*IF('Prop DUOS'!Q$80="day",AE22*'Prop DUOS'!$D$83,IF('Prop DUOS'!Q$80="month",AE22*12,AE22)) -> 0 | AU22: =IF('Prop DUOS'!R$78="cents",Q22/100,Q22)*IF('Prop DUOS'!R$80="day",AF22*'Prop DUOS'!$D$83,IF('Prop DUOS'!R$80="month",AF22*12,AF22)) -> 0 | AV22: 40448475.95
B23: NSP23 Photovoltaic | D23: 116 | E23: 0 | F23: 0 | G23: 2.9693 | H23: 30.4637 | I23: 34.8141 | J23: 26.6615 | K23: 0 | L23: 0 | M23: 0 | N23: 0 | O23: 0 | P23: 0 | Q23: 0 | S23: 127.0005444 | T23: 0 | U23: 0 | V23: 485092.276 | W23: 31258.86 | X23: 23240.08 | Y23: 48322.56935 | Z23: -148513.76 | AA23: 0 | AB23: 0 | AC23: 0 | AD23: 0 | AE23: 0 | AF23: 0 | AH23: =IF('Prop DUOS'!$E$78="cents",D23/100,D23)*IF('Prop DUOS'!$E$80="day",S23*'Prop DUOS'!$D$83,S23) -> 14732.06315 | AI23: =IF('Prop DUOS'!F$78="cents",E23/100,E23)*T23 -> 0 | AJ23: =IF('Prop DUOS'!G$78="cents",F23/100,F23)*U23 -> 0 | AK23: =IF('Prop DUOS'!H$78="cents",G23/100,G23)*V23 -> 14403.84495 | AL23: =IF('Prop DUOS'!I$78="cents",H23/100,H23)*W23 -> 9522.605334 | AM23: =IF('Prop DUOS'!J$78="cents",I23/100,I23)*X23 -> 8090.824691 | AN23: =IF('Prop DUOS'!K$78="cents",J23/100,J23)*Y23 -> 12883.52183 | AO23: =IF('Prop DUOS'!L$78="cents",K23/100,K23)*Z23 -> 0 | AP23: =IF('Prop DUOS'!M$78="cents",L23/100,L23)*AA23 -> 0 | AQ23: =IF('Prop DUOS'!N$78="cents",M23/100,M23)*IF('Prop DUOS'!N$80="day",AB23*'Prop DUOS'!$D$83,IF('Prop DUOS'!N$80="month",AB23*12,AB23)) -> 0 | AR23: =IF('Prop DUOS'!O$78="cents",N23/100,N23)*IF('Prop DUOS'!O$80="day",AC23*'Prop DUOS'!$D$83,IF('Prop DUOS'!O$80="month",AC23*12,AC23)) -> 0 | AS23: =IF('Prop DUOS'!P$78="cents",O23/100,O23)*IF('Prop DUOS'!P$80="day",AD23*'Prop DUOS'!$D$83,IF('Prop DUOS'!P$80="month",AD23*12,AD23)) -> 0 | AT23: =IF('Prop DUOS'!Q$78="cents",P23/100,P23)*IF('Prop DUOS'!Q$80="day",AE23*'Prop DUOS'!$D$83,IF('Prop DUOS'!Q$80="month",AE23*12,AE23)) -> 0 | AU23: =IF('Prop DUOS'!R$78="cents",Q23/100,Q23)*IF('Prop DUOS'!R$80="day",AF23*'Prop DUOS'!$D$83,IF('Prop DUOS'!R$80="month",AF23*12,AF23)) -> 0 | AV23: 59632.85995
B24: NEE24 Small rate 5 day 8 to 8 | D24: 106 | E24: 0 | F24: 6.5595 | G24: 2.7625 | H24: 0 | I24: 0 | J24: 0 | K24: 0 | L24: 0 | M24: 0 | N24: 0 | O24: 0 | P24: 0 | Q24: 0 | S24: 1102.7356 | T24: 0 | U24: 1395800.949 | V24: 3325406.857 | W24: 0 | X24: 0 | Y24: 0 | Z24: 0 | AA24: 0 | AB24: 0 | AC24: 0 | AD24: 0 | AE24: 0 | AF24: 0 | AH24: =IF('Prop DUOS'!$E$78="cents",D24/100,D24)*IF('Prop DUOS'!$E$80="day",S24*'Prop DUOS'!$D$83,S24) -> 116889.9736 | AI24: =IF('Prop DUOS'!F$78="cents",E24/100,E24)*T24 -> 0 | AJ24: =IF('Prop DUOS'!G$78="cents",F24/100,F24)*U24 -> 91557.56324 | AK24: =IF('Prop DUOS'!H$78="cents",G24/100,G24)*V24 -> 91864.36442 | AL24: =IF('Prop DUOS'!I$78="cents",H24/100,H24)*W24 -> 0 | AM24: =IF('Prop DUOS'!J$78="cents",I24/100,I24)*X24 -> 0 | AN24: =IF('Prop DUOS'!K$78="cents",J24/100,J24)*Y24 -> 0 | AO24: =IF('Prop DUOS'!L$78="cents",K24/100,K24)*Z24 -> 0 | AP24: =IF('Prop DUOS'!M$78="cents",L24/100,L24)*AA24 -> 0 | AQ24: =IF('Prop DUOS'!N$78="cents",M24/100,M24)*IF('Prop DUOS'!N$80="day",AB24*'Prop DUOS'!$D$83,IF('Prop DUOS'!N$80="month",AB24*12,AB24)) -> 0 | AR24: =IF('Prop DUOS'!O$78="cents",N24/100,N24)*IF('Prop DUOS'!O$80="day",AC24*'Prop DUOS'!$D$83,IF('Prop DUOS'!O$80="month",AC24*12,AC24)) -> 0 | AS24: =IF('Prop DUOS'!P$78="cents",O24/100,O24)*IF('Prop DUOS'!P$80="day",AD24*'Prop DUOS'!$D$83,IF('Prop DUOS'!P$80="month",AD24*12,AD24)) -> 0 | AT24: =IF('Prop DUOS'!Q$78="cents",P24/100,P24)*IF('Prop DUOS'!Q$80="day",AE24*'Prop DUOS'!$D$83,IF('Prop DUOS'!Q$80="month",AE24*12,AE24)) -> 0 | AU24: =IF('Prop DUOS'!R$78="cents",Q24/100,Q24)*IF('Prop DUOS'!R$80="day",AF24*'Prop DUOS'!$D$83,IF('Prop DUOS'!R$80="month",AF24*12,AF24)) -> 0 | AV24: 300311.9013
B25: NEE25 Small business rate 5 day 8 to 8 | D25: 106 | E25: 0 | F25: 13.7666 | G25: 2.8699 | H25: 0 | I25: 0 | J25: 0 | K25: 0 | L25: 0 | M25: 0 | N25: 0 | O25: 0 | P25: 0 | Q25: 0 | S25: 3.0062152 | T25: 0 | U25: 160058.6846 | V25: 174702.8666 | W25: 0 | X25: 0 | Y25: 0 | Z25: 0 | AA25: 0 | AB25: 0 | AC25: 0 | AD25: 0 | AE25: 0 | AF25: 0 | AH25: =IF('Prop DUOS'!$E$78="cents",D25/100,D25)*IF('Prop DUOS'!$E$80="day",S25*'Prop DUOS'!$D$83,S25) -> 318.6588112 | AI25: =IF('Prop DUOS'!F$78="cents",E25/100,E25)*T25 -> 0 | AJ25: =IF('Prop DUOS'!G$78="cents",F25/100,F25)*U25 -> 22034.63888 | AK25: =IF('Prop DUOS'!H$78="cents",G25/100,G25)*V25 -> 5013.797567 | AL25: =IF('Prop DUOS'!I$78="cents",H25/100,H25)*W25 -> 0 | AM25: =IF('Prop DUOS'!J$78="cents",I25/100,I25)*X25 -> 0 | AN25: =IF('Prop DUOS'!K$78="cents",J25/100,J25)*Y25 -> 0 | AO25: =IF('Prop DUOS'!L$78="cents",K25/100,K25)*Z25 -> 0 | AP25: =IF('Prop DUOS'!M$78="cents",L25/100,L25)*AA25 -> 0 | AQ25: =IF('Prop DUOS'!N$78="cents",M25/100,M25)*IF('Prop DUOS'!N$80="day",AB25*'Prop DUOS'!$D$83,IF('Prop DUOS'!N$80="month",AB25*12,AB25)) -> 0 | AR25: =IF('Prop DUOS'!O$78="cents",N25/100,N25)*IF('Prop DUOS'!O$80="day",AC25*'Prop DUOS'!$D$83,IF('Prop DUOS'!O$80="month",AC25*12,AC25)) -> 0 | AS25: =IF('Prop DUOS'!P$78="cents",O25/100,O25)*IF('Prop DUOS'!P$80="day",AD25*'Prop DUOS'!$D$83,IF('Prop DUOS'!P$80="month",AD25*12,AD25)) -> 0 | AT25: =IF('Prop DUOS'!Q$78="cents",P25/100,P25)*IF('Prop DUOS'!Q$80="day",AE25*'Prop DUOS'!$D$83,IF('Prop DUOS'!Q$80="month",AE25*12,AE25)) -> 0 | AU25: =IF('Prop DUOS'!R$78="cents",Q25/100,Q25)*IF('Prop DUOS'!R$80="day",AF25*'Prop DUOS'!$D$83,IF('Prop DUOS'!R$80="month",AF25*12,AF25)) -> 0 | AV25: 27367.09526
B26: NEE30 Small Dedicated | D26: 0 | E26: 0 | F26: 0 | G26: 0 | H26: 0 | I26: 0 | J26: 0 | K26: 0 | L26: 2.7869 | M26: 0 | N26: 0 | O26: 0 | P26: 0 | Q26: 0 | S26: 42499 | T26: 0 | U26: 0 | V26: 0 | W26: 0 | X26: 0 | Y26: 0 | Z26: 0 | AA26: 55478407.96 | AB26: 0 | AC26: 0 | AD26: 0 | AE26: 0 | AF26: 0 | AH26: =IF('Prop DUOS'!$E$78="cents",D26/100,D26)*IF('Prop DUOS'!$E$80="day",S26*'Prop DUOS'!$D$83,S26) -> 0 | AI26: =IF('Prop DUOS'!F$78="cents",E26/100,E26)*T26 -> 0 | AJ26: =IF('Prop DUOS'!G$78="cents",F26/100,F26)*U26 -> 0 | AK26: =IF('Prop DUOS'!H$78="cents",G26/100,G26)*V26 -> 0 | AL26: =IF('Prop DUOS'!I$78="cents",H26/100,H26)*W26 -> 0 | AM26: =IF('Prop DUOS'!J$78="cents",I26/100,I26)*X26 -> 0 | AN26: =IF('Prop DUOS'!K$78="cents",J26/100,J26)*Y26 -> 0 | AO26: =IF('Prop DUOS'!L$78="cents",K26/100,K26)*Z26 -> 0 | AP26: =IF('Prop DUOS'!M$78="cents",L26/100,L26)*AA26 -> 1546127.751 | AQ26: =IF('Prop DUOS'!N$78="cents",M26/100,M26)*IF('Prop DUOS'!N$80="day",AB26*'Prop DUOS'!$D$83,IF('Prop DUOS'!N$80="month",AB26*12,AB26)) -> 0 | AR26: =IF('Prop DUOS'!O$78="cents",N26/100,N26)*IF('Prop DUOS'!O$80="day",AC26*'Prop DUOS'!$D$83,IF('Prop DUOS'!O$80="month",AC26*12,AC26)) -> 0 | AS26: =IF('Prop DUOS'!P$78="cents",O26/100,O26)*IF('Prop DUOS'!P$80="day",AD26*'Prop DUOS'!$D$83,IF('Prop DUOS'!P$80="month",AD26*12,AD26)) -> 0 | AT26: =IF('Prop DUOS'!Q$78="cents",P26/100,P26)*IF('Prop DUOS'!Q$80="day",AE26*'Prop DUOS'!$D$83,IF('Prop DUOS'!Q$80="month",AE26*12,AE26)) -> 0 | AU26: =IF('Prop DUOS'!R$78="cents",Q26/100,Q26)*IF('Prop DUOS'!R$80="day",AF26*'Prop DUOS'!$D$83,IF('Prop DUOS'!R$80="month",AF26*12,AF26)) -> 0 | AV26: 1546127.751
B27: NSP30 Small Dedicated | D27: 0 | E27: 0 | F27: 0 | G27: 0 | H27: 0 | I27: 0 | J27: 0 | K27: 0 | L27: 2.7869 | M27: 0 | N27: 0 | O27: 0 | P27: 0 | Q27: 0 | S27: 0 | T27: 0 | U27: 0 | V27: 0 | W27: 0 | X27: 0 | Y27: 0 | Z27: 0 | AA27: 0 | AB27: 0 | AC27: 0 | AD27: 0 | AE27: 0 | AF27: 0 | AH27: =IF('Prop DUOS'!$E$78="cents",D27/100,D27)*IF('Prop DUOS'!$E$80="day",S27*'Prop DUOS'!$D$83,S27) -> 0 | AI27: =IF('Prop DUOS'!F$78="cents",E27/100,E27)*T27 -> 0 | AJ27: =IF('Prop DUOS'!G$78="cents",F27/100,F27)*U27 -> 0 | AK27: =IF('Prop DUOS'!H$78="cents",G27/100,G27)*V27 -> 0 | AL27: =IF('Prop DUOS'!I$78="cents",H27/100,H27)*W27 -> 0 | AM27: =IF('Prop DUOS'!J$78="cents",I27/100,I27)*X27 -> 0 | AN27: =IF('Prop DUOS'!K$78="cents",J27/100,J27)*Y27 -> 0 | AO27: =IF('Prop DUOS'!L$78="cents",K27/100,K27)*Z27 -> 0 | AP27: =IF('Prop DUOS'!M$78="cents",L27/100,L27)*AA27 -> 0 | AQ27: =IF('Prop DUOS'!N$78="cents",M27/100,M27)*IF('Prop DUOS'!N$80="day",AB27*'Prop DUOS'!$D$83,IF('Prop DUOS'!N$80="month",AB27*12,AB27)) -> 0 | AR27: =IF('Prop DUOS'!O$78="cents",N27/100,N27)*IF('Prop DUOS'!O$80="day",AC27*'Prop DUOS'!$D$83,IF('Prop DUOS'!O$80="month",AC27*12,AC27)) -> 0 | AS27: =IF('Prop DUOS'!P$78="cents",O27/100,O27)*IF('Prop DUOS'!P$80="day",AD27*'Prop DUOS'!$D$83,IF('Prop DUOS'!P$80="month",AD27*12,AD27)) -> 0 | AT27: =IF('Prop DUOS'!Q$78="cents",P27/100,P27)*IF('Prop DUOS'!Q$80="day",AE27*'Prop DUOS'!$D$83,IF('Prop DUOS'!Q$80="month",AE27*12,AE27)) -> 0 | AU27: =IF('Prop DUOS'!R$78="cents",Q27/100,Q27)*IF('Prop DUOS'!R$80="day",AF27*'Prop DUOS'!$D$83,IF('Prop DUOS'!R$80="month",AF27*12,AF27)) -> 0 | AV27: 0
B28: NEE31 Small Dedicated-afternoon boost | D28: 0 | E28: 0 | F28: 0 | G28: 0 | H28: 0 | I28: 0 | J28: 0 | K28: 0 | L28: 2.7869 | M28: 0 | N28: 0 | O28: 0 | P28: 0 | Q28: 0 | S28: 6281.5 | T28: 0 | U28: 0 | V28: 0 | W28: 0 | X28: 0 | Y28: 0 | Z28: 0 | AA28: 17563469.85 | AB28: 0 | AC28: 0 | AD28: 0 | AE28: 0 | AF28: 0 | AH28: =IF('Prop DUOS'!$E$78="cents",D28/100,D28)*IF('Prop DUOS'!$E$80="day",S28*'Prop DUOS'!$D$83,S28) -> 0 | AI28: =IF('Prop DUOS'!F$78="cents",E28/100,E28)*T28 -> 0 | AJ28: =IF('Prop DUOS'!G$78="cents",F28/100,F28)*U28 -> 0 | AK28: =IF('Prop DUOS'!H$78="cents",G28/100,G28)*V28 -> 0 | AL28: =IF('Prop DUOS'!I$78="cents",H28/100,H28)*W28 -> 0 | AM28: =IF('Prop DUOS'!J$78="cents",I28/100,I28)*X28 -> 0 | AN28: =IF('Prop DUOS'!K$78="cents",J28/100,J28)*Y28 -> 0 | AO28: =IF('Prop DUOS'!L$78="cents",K28/100,K28)*Z28 -> 0 | AP28: =IF('Prop DUOS'!M$78="cents",L28/100,L28)*AA28 -> 489476.3413 | AQ28: =IF('Prop DUOS'!N$78="cents",M28/100,M28)*IF('Prop DUOS'!N$80="day",AB28*'Prop DUOS'!$D$83,IF('Prop DUOS'!N$80="month",AB28*12,AB28)) -> 0 | AR28: =IF('Prop DUOS'!O$78="cents",N28/100,N28)*IF('Prop DUOS'!O$80="day",AC28*'Prop DUOS'!$D$83,IF('Prop DUOS'!O$80="month",AC28*12,AC28)) -> 0 | AS28: =IF('Prop DUOS'!P$78="cents",O28/100,O28)*IF('Prop DUOS'!P$80="day",AD28*'Prop DUOS'!$D$83,IF('Prop DUOS'!P$80="month",AD28*12,AD28)) -> 0 | AT28: =IF('Prop DUOS'!Q$78="cents",P28/100,P28)*IF('Prop DUOS'!Q$80="day",AE28*'Prop DUOS'!$D$83,IF('Prop DUOS'!Q$80="month",AE28*12,AE28)) -> 0 | AU28: =IF('Prop DUOS'!R$78="cents",Q28/100,Q28)*IF('Prop DUOS'!R$80="day",AF28*'Prop DUOS'!$D$83,IF('Prop DUOS'!R$80="month",AF28*12,AF28)) -> 0 | AV28: 489476.3413
B29: NSP31 Small Dedicated-afternoon boost | D29: 0 | E29: 0 | F29: 0 | G29: 0 | H29: 0 | I29: 0 | J29: 0 | K29: 0 | L29: 2.7869 | M29: 0 | N29: 0 | O29: 0 | P29: 0 | Q29: 0 | S29: 0 | T29: 0 | U29: 0 | V29: 0 | W29: 0 | X29: 0 | Y29: 0 | Z29: 0 | AA29: 0 | AB29: 0 | AC29: 0 | AD29: 0 | AE29: 0 | AF29: 0 | AH29: =IF('Prop DUOS'!$E$78="cents",D29/100,D29)*IF('Prop DUOS'!$E$80="day",S29*'Prop DUOS'!$D$83,S29) -> 0 | AI29: =IF('Prop DUOS'!F$78="cents",E29/100,E29)*T29 -> 0 | AJ29: =IF('Prop DUOS'!G$78="cents",F29/100,F29)*U29 -> 0 | AK29: =IF('Prop DUOS'!H$78="cents",G29/100,G29)*V29 -> 0 | AL29: =IF('Prop DUOS'!I$78="cents",H29/100,H29)*W29 -> 0 | AM29: =IF('Prop DUOS'!J$78="cents",I29/100,I29)*X29 -> 0 | AN29: =IF('Prop DUOS'!K$78="cents",J29/100,J29)*Y29 -> 0 | AO29: =IF('Prop DUOS'!L$78="cents",K29/100,K29)*Z29 -> 0 | AP29: =IF('Prop DUOS'!M$78="cents",L29/100,L29)*AA29 -> 0 | AQ29: =IF('Prop DUOS'!N$78="cents",M29/100,M29)*IF('Prop DUOS'!N$80="day",AB29*'Prop DUOS'!$D$83,IF('Prop DUOS'!N$80="month",AB29*12,AB29)) -> 0 | AR29: =IF('Prop DUOS'!O$78="cents",N29/100,N29)*IF('Prop DUOS'!O$80="day",AC29*'Prop DUOS'!$D$83,IF('Prop DUOS'!O$80="month",AC29*12,AC29)) -> 0 | AS29: =IF('Prop DUOS'!P$78="cents",O29/100,O29)*IF('Prop DUOS'!P$80="day",AD29*'Prop DUOS'!$D$83,IF('Prop DUOS'!P$80="month",AD29*12,AD29)) -> 0 | AT29: =IF('Prop DUOS'!Q$78="cents",P29/100,P29)*IF('Prop DUOS'!Q$80="day",AE29*'Prop DUOS'!$D$83,IF('Prop DUOS'!Q$80="month",AE29*12,AE29)) -> 0 | AU29: =IF('Prop DUOS'!R$78="cents",Q29/100,Q29)*IF('Prop DUOS'!R$80="day",AF29*'Prop DUOS'!$D$83,IF('Prop DUOS'!R$80="month",AF29*12,AF29)) -> 0 | AV29: 0
B30: NEE32 Dedicated Circuit 8 to 8 | D30: 0 | E30: 0 | F30: 0 | G30: 0 | H30: 0 | I30: 0 | J30: 0 | K30: 0 | L30: 2.7869 | M30: 0 | N30: 0 | O30: 0 | P30: 0 | Q30: 0 | S30: 1817 | T30: 0 | U30: 0 | V30: 0 | W30: 0 | X30: 0 | Y30: 0 | Z30: 0 | AA30: 2427357.047 | AB30: 0 | AC30: 0 | AD30: 0 | AE30: 0 | AF30: 0 | AH30: =IF('Prop DUOS'!$E$78="cents",D30/100,D30)*IF('Prop DUOS'!$E$80="day",S30*'Prop DUOS'!$D$83,S30) -> 0 | AI30: =IF('Prop DUOS'!F$78="cents",E30/100,E30)*T30 -> 0 | AJ30: =IF('Prop DUOS'!G$78="cents",F30/100,F30)*U30 -> 0 | AK30: =IF('Prop DUOS'!H$78="cents",G30/100,G30)*V30 -> 0 | AL30: =IF('Prop DUOS'!I$78="cents",H30/100,H30)*W30 -> 0 | AM30: =IF('Prop DUOS'!J$78="cents",I30/100,I30)*X30 -> 0 | AN30: =IF('Prop DUOS'!K$78="cents",J30/100,J30)*Y30 -> 0 | AO30: =IF('Prop DUOS'!L$78="cents",K30/100,K30)*Z30 -> 0 | AP30: =IF('Prop DUOS'!M$78="cents",L30/100,L30)*AA30 -> 67648.01355 | AQ30: =IF('Prop DUOS'!N$78="cents",M30/100,M30)*IF('Prop DUOS'!N$80="day",AB30*'Prop DUOS'!$D$83,IF('Prop DUOS'!N$80="month",AB30*12,AB30)) -> 0 | AR30: =IF('Prop DUOS'!O$78="cents",N30/100,N30)*IF('Prop DUOS'!O$80="day",AC30*'Prop DUOS'!$D$83,IF('Prop DUOS'!O$80="month",AC30*12,AC30)) -> 0 | AS30: =IF('Prop DUOS'!P$78="cents",O30/100,O30)*IF('Prop DUOS'!P$80="day",AD30*'Prop DUOS'!$D$83,IF('Prop DUOS'!P$80="month",AD30*12,AD30)) -> 0 | AT30: =IF('Prop DUOS'!Q$78="cents",P30/100,P30)*IF('Prop DUOS'!Q$80="day",AE30*'Prop DUOS'!$D$83,IF('Prop DUOS'!Q$80="month",AE30*12,AE30)) -> 0 | AU30: =IF('Prop DUOS'!R$78="cents",Q30/100,Q30)*IF('Prop DUOS'!R$80="day",AF30*'Prop DUOS'!$D$83,IF('Prop DUOS'!R$80="month",AF30*12,AF30)) -> 0 | AV30: 67648.01355
B31: NSP32 Dedicated Circuit 8 to 8 | D31: 0 | E31: 0 | F31: 0 | G31: 0 | H31: 0 | I31: 0 | J31: 0 | K31: 0 | L31: 2.7869 | M31: 0 | N31: 0 | O31: 0 | P31: 0 | Q31: 0 | S31: 0 | T31: 0 | U31: 0 | V31: 0 | W31: 0 | X31: 0 | Y31: 0 | Z31: 0 | AA31: 0 | AB31: 0 | AC31: 0 | AD31: 0 | AE31: 0 | AF31: 0 | AH31: =IF('Prop DUOS'!$E$78="cents",D31/100,D31)*IF('Prop DUOS'!$E$80="day",S31*'Prop DUOS'!$D$83,S31) -> 0 | AI31: =IF('Prop DUOS'!F$78="cents",E31/100,E31)*T31 -> 0 | AJ31: =IF('Prop DUOS'!G$78="cents",F31/100,F31)*U31 -> 0 | AK31: =IF('Prop DUOS'!H$78="cents",G31/100,G31)*V31 -> 0 | AL31: =IF('Prop DUOS'!I$78="cents",H31/100,H31)*W31 -> 0 | AM31: =IF('Prop DUOS'!J$78="cents",I31/100,I31)*X31 -> 0 | AN31: =IF('Prop DUOS'!K$78="cents",J31/100,J31)*Y31 -> 0 | AO31: =IF('Prop DUOS'!L$78="cents",K31/100,K31)*Z31 -> 0 | AP31: =IF('Prop DUOS'!M$78="cents",L31/100,L31)*AA31 -> 0 | AQ31: =IF('Prop DUOS'!N$78="cents",M31/100,M31)*IF('Prop DUOS'!N$80="day",AB31*'Prop DUOS'!$D$83,IF('Prop DUOS'!N$80="month",AB31*12,AB31)) -> 0 | AR31: =IF('Prop DUOS'!O$78="cents",N31/100,N31)*IF('Prop DUOS'!O$80="day",AC31*'Prop DUOS'!$D$83,IF('Prop DUOS'!O$80="month",AC31*12,AC31)) -> 0 | AS31: =IF('Prop DUOS'!P$78="cents",O31/100,O31)*IF('Prop DUOS'!P$80="day",AD31*'Prop DUOS'!$D$83,IF('Prop DUOS'!P$80="month",AD31*12,AD31)) -> 0 | AT31: =IF('Prop DUOS'!Q$78="cents",P31/100,P31)*IF('Prop DUOS'!Q$80="day",AE31*'Prop DUOS'!$D$83,IF('Prop DUOS'!Q$80="month",AE31*12,AE31)) -> 0 | AU31: =IF('Prop DUOS'!R$78="cents",Q31/100,Q31)*IF('Prop DUOS'!R$80="day",AF31*'Prop DUOS'!$D$83,IF('Prop DUOS'!R$80="month",AF31*12,AF31)) -> 0 | AV31: 0
B32: NEE40 Medium Single Rate - closed to new customers | D32: 106 | E32: 0 | F32: 20.3491 | G32: 0 | H32: 0 | I32: 0 | J32: 0 | K32: 0 | L32: 0 | M32: 0 | N32: 0 | O32: 0 | P32: 0 | Q32: 0 | S32: 95.8588458 | T32: 0 | U32: 1976815.018 | V32: 0 | W32: 0 | X32: 0 | Y32: 0 | Z32: 0 | AA32: 0 | AB32: 0 | AC32: 0 | AD32: 0 | AE32: 0 | AF32: 0 | AH32: =IF('Prop DUOS'!$E$78="cents",D32/100,D32)*IF('Prop DUOS'!$E$80="day",S32*'Prop DUOS'!$D$83,S32) -> 10161.03765 | AI32: =IF('Prop DUOS'!F$78="cents",E32/100,E32)*T32 -> 0 | AJ32: =IF('Prop DUOS'!G$78="cents",F32/100,F32)*U32 -> 402264.0649 | AK32: =IF('Prop DUOS'!H$78="cents",G32/100,G32)*V32 -> 0 | AL32: =IF('Prop DUOS'!I$78="cents",H32/100,H32)*W32 -> 0 | AM32: =IF('Prop DUOS'!J$78="cents",I32/100,I32)*X32 -> 0 | AN32: =IF('Prop DUOS'!K$78="cents",J32/100,J32)*Y32 -> 0 | AO32: =IF('Prop DUOS'!L$78="cents",K32/100,K32)*Z32 -> 0 | AP32: =IF('Prop DUOS'!M$78="cents",L32/100,L32)*AA32 -> 0 | AQ32: =IF('Prop DUOS'!N$78="cents",M32/100,M32)*IF('Prop DUOS'!N$80="day",AB32*'Prop DUOS'!$D$83,IF('Prop DUOS'!N$80="month",AB32*12,AB32)) -> 0 | AR32: =IF('Prop DUOS'!O$78="cents",N32/100,N32)*IF('Prop DUOS'!O$80="day",AC32*'Prop DUOS'!$D$83,IF('Prop DUOS'!O$80="month",AC32*12,AC32)) -> 0 | AS32: =IF('Prop DUOS'!P$78="cents",O32/100,O32)*IF('Prop DUOS'!P$80="day",AD32*'Prop DUOS'!$D$83,IF('Prop DUOS'!P$80="month",AD32*12,AD32)) -> 0 | AT32: =IF('Prop DUOS'!Q$78="cents",P32/100,P32)*IF('Prop DUOS'!Q$80="day",AE32*'Prop DUOS'!$D$83,IF('Prop DUOS'!Q$80="month",AE32*12,AE32)) -> 0 | AU32: =IF('Prop DUOS'!R$78="cents",Q32/100,Q32)*IF('Prop DUOS'!R$80="day",AF32*'Prop DUOS'!$D$83,IF('Prop DUOS'!R$80="month",AF32*12,AF32)) -> 0 | AV32: 412425.1026
B33: NEE51 Medium Two Rate 5Day - closed to new customers - <160MWh to NEE21 | D33: 106 | E33: 0 | F33: 17.5828 | G33: 3.7239 | H33: 0 | I33: 0 | J33: 0 | K33: 0 | L33: 0 | M33: 0 | N33: 0 | O33: 0 | P33: 0 | Q33: 0 | S33: 157.9463394 | T33: 0 | U33: 18910695.84 | V33: 16449370.83 | W33: 0 | X33: 0 | Y33: 0 | Z33: 0 | AA33: 0 | AB33: 0 | AC33: 0 | AD33: 0 | AE33: 0 | AF33: 0 | AH33: =IF('Prop DUOS'!$E$78="cents",D33/100,D33)*IF('Prop DUOS'!$E$80="day",S33*'Prop DUOS'!$D$83,S33) -> 16742.31198 | AI33: =IF('Prop DUOS'!F$78="cents",E33/100,E33)*T33 -> 0 | AJ33: =IF('Prop DUOS'!G$78="cents",F33/100,F33)*U33 -> 3325029.827 | AK33: =IF('Prop DUOS'!H$78="cents",G33/100,G33)*V33 -> 612558.1202 | AL33: =IF('Prop DUOS'!I$78="cents",H33/100,H33)*W33 -> 0 | AM33: =IF('Prop DUOS'!J$78="cents",I33/100,I33)*X33 -> 0 | AN33: =IF('Prop DUOS'!K$78="cents",J33/100,J33)*Y33 -> 0 | AO33: =IF('Prop DUOS'!L$78="cents",K33/100,K33)*Z33 -> 0 | AP33: =IF('Prop DUOS'!M$78="cents",L33/100,L33)*AA33 -> 0 | AQ33: =IF('Prop DUOS'!N$78="cents",M33/100,M33)*IF('Prop DUOS'!N$80="day",AB33*'Prop DUOS'!$D$83,IF('Prop DUOS'!N$80="month",AB33*12,AB33)) -> 0 | AR33: =IF('Prop DUOS'!O$78="cents",N33/100,N33)*IF('Prop DUOS'!O$80="day",AC33*'Prop DUOS'!$D$83,IF('Prop DUOS'!O$80="month",AC33*12,AC33)) -> 0 | AS33: =IF('Prop DUOS'!P$78="cents",O33/100,O33)*IF('Prop DUOS'!P$80="day",AD33*'Prop DUOS'!$D$83,IF('Prop DUOS'!P$80="month",AD33*12,AD33)) -> 0 | AT33: =IF('Prop DUOS'!Q$78="cents",P33/100,P33)*IF('Prop DUOS'!Q$80="day",AE33*'Prop DUOS'!$D$83,IF('Prop DUOS'!Q$80="month",AE33*12,AE33)) -> 0 | AU33: =IF('Prop DUOS'!R$78="cents",Q33/100,Q33)*IF('Prop DUOS'!R$80="day",AF33*'Prop DUOS'!$D$83,IF('Prop DUOS'!R$80="month",AF33*12,AF33)) -> 0 | AV33: 3954330.259
B34: NEE55 Snowfields Tariff | D34: 106 | E34: 0 | F34: 13.1077 | G34: 3.6657 | H34: 0 | I34: 0 | J34: 0 | K34: 0 | L34: 0 | M34: 0 | N34: 0 | O34: 0 | P34: 0 | Q34: 0 | S34: 0.501146 | T34: 0 | U34: 69088.65881 | V34: 9517.465408 | W34: 0 | X34: 0 | Y34: 0 | Z34: 0 | AA34: 0 | AB34: 0 | AC34: 0 | AD34: 0 | AE34: 0 | AF34: 0 | AH34: =IF('Prop DUOS'!$E$78="cents",D34/100,D34)*IF('Prop DUOS'!$E$80="day",S34*'Prop DUOS'!$D$83,S34) -> 53.121476 | AI34: =IF('Prop DUOS'!F$78="cents",E34/100,E34)*T34 -> 0 | AJ34: =IF('Prop DUOS'!G$78="cents",F34/100,F34)*U34 -> 9055.93413 | AK34: =IF('Prop DUOS'!H$78="cents",G34/100,G34)*V34 -> 348.8817295 | AL34: =IF('Prop DUOS'!I$78="cents",H34/100,H34)*W34 -> 0 | AM34: =IF('Prop DUOS'!J$78="cents",I34/100,I34)*X34 -> 0 | AN34: =IF('Prop DUOS'!K$78="cents",J34/100,J34)*Y34 -> 0 | AO34: =IF('Prop DUOS'!L$78="cents",K34/100,K34)*Z34 -> 0 | AP34: =IF('Prop DUOS'!M$78="cents",L34/100,L34)*AA34 -> 0 | AQ34: =IF('Prop DUOS'!N$78="cents",M34/100,M34)*IF('Prop DUOS'!N$80="day",AB34*'Prop DUOS'!$D$83,IF('Prop DUOS'!N$80="month",AB34*12,AB34)) -> 0 | AR34: =IF('Prop DUOS'!O$78="cents",N34/100,N34)*IF('Prop DUOS'!O$80="day",AC34*'Prop DUOS'!$D$83,IF('Prop DUOS'!O$80="month",AC34*12,AC34)) -> 0 | AS34: =IF('Prop DUOS'!P$78="cents",O34/100,O34)*IF('Prop DUOS'!P$80="day",AD34*'Prop DUOS'!$D$83,IF('Prop DUOS'!P$80="month",AD34*12,AD34)) -> 0 | AT34: =IF('Prop DUOS'!Q$78="cents",P34/100,P34)*IF('Prop DUOS'!Q$80="day",AE34*'Prop DUOS'!$D$83,IF('Prop DUOS'!Q$80="month",AE34*12,AE34)) -> 0 | AU34: =IF('Prop DUOS'!R$78="cents",Q34/100,Q34)*IF('Prop DUOS'!R$80="day",AF34*'Prop DUOS'!$D$83,IF('Prop DUOS'!R$80="month",AF34*12,AF34)) -> 0 | AV34: 9457.937336
B35: NSP55 Snowfields Tariff | D35: 106 | E35: 0 | F35: 0 | G35: 2.1199 | H35: 30.6126 | I35: 34.9844 | J35: 26.7918 | K35: 0 | L35: 0 | M35: 0 | N35: 0 | O35: 0 | P35: 0 | Q35: 0 | S35: 3.5078804 | T35: 0 | U35: 0 | V35: 548702.0597 | W35: 0 | X35: 8280.18 | Y35: 33617.18594 | Z35: 0 | AA35: 0 | AB35: 0 | AC35: 0 | AD35: 0 | AE35: 0 | AF35: 0 | AH35: =IF('Prop DUOS'!$E$78="cents",D35/100,D35)*IF('Prop DUOS'!$E$80="day",S35*'Prop DUOS'!$D$83,S35) -> 371.8353224 | AI35: =IF('Prop DUOS'!F$78="cents",E35/100,E35)*T35 -> 0 | AJ35: =IF('Prop DUOS'!G$78="cents",F35/100,F35)*U35 -> 0 | AK35: =IF('Prop DUOS'!H$78="cents",G35/100,G35)*V35 -> 11631.93496 | AL35: =IF('Prop DUOS'!I$78="cents",H35/100,H35)*W35 -> 0 | AM35: =IF('Prop DUOS'!J$78="cents",I35/100,I35)*X35 -> 2896.771292 | AN35: =IF('Prop DUOS'!K$78="cents",J35/100,J35)*Y35 -> 9006.649223 | AO35: =IF('Prop DUOS'!L$78="cents",K35/100,K35)*Z35 -> 0 | AP35: =IF('Prop DUOS'!M$78="cents",L35/100,L35)*AA35 -> 0 | AQ35: =IF('Prop DUOS'!N$78="cents",M35/100,M35)*IF('Prop DUOS'!N$80="day",AB35*'Prop DUOS'!$D$83,IF('Prop DUOS'!N$80="month",AB35*12,AB35)) -> 0 | AR35: =IF('Prop DUOS'!O$78="cents",N35/100,N35)*IF('Prop DUOS'!O$80="day",AC35*'Prop DUOS'!$D$83,IF('Prop DUOS'!O$80="month",AC35*12,AC35)) -> 0 | AS35: =IF('Prop DUOS'!P$78="cents",O35/100,O35)*IF('Prop DUOS'!P$80="day",AD35*'Prop DUOS'!$D$83,IF('Prop DUOS'!P$80="month",AD35*12,AD35)) -> 0 | AT35: =IF('Prop DUOS'!Q$78="cents",P35/100,P35)*IF('Prop DUOS'!Q$80="day",AE35*'Prop DUOS'!$D$83,IF('Prop DUOS'!Q$80="month",AE35*12,AE35)) -> 0 | AU35: =IF('Prop DUOS'!R$78="cents",Q35/100,Q35)*IF('Prop DUOS'!R$80="day",AF35*'Prop DUOS'!$D$83,IF('Prop DUOS'!R$80="month",AF35*12,AF35)) -> 0 | AV35: 23907.1908
B36: NSP56 Medium Demand Multi-rate | D36: 2282 | E36: 0 | F36: 9.9768 | G36: 3.4093 | H36: 7.2641 | I36: 0 | J36: 0 | K36: 0 | L36: 0 | M36: 0 | N36: 17.35 | O36: 28.92 | P36: 0 | Q36: 0 | S36: 625.5840505 | T36: 0 | U36: 45203831.39 | V36: 57753597.2 | W36: 33413995.31 | X36: 0 | Y36: 0 | Z36: 0 | AA36: 0 | AB36: 0 | AC36: 108977.123 | AD36: 39034.78505 | AE36: 0 | AF36: 0 | AH36: =IF('Prop DUOS'!$E$78="cents",D36/100,D36)*IF('Prop DUOS'!$E$80="day",S36*'Prop DUOS'!$D$83,S36) -> 1427582.803 | AI36: =IF('Prop DUOS'!F$78="cents",E36/100,E36)*T36 -> 0 | AJ36: =IF('Prop DUOS'!G$78="cents",F36/100,F36)*U36 -> 4509895.85 | AK36: =IF('Prop DUOS'!H$78="cents",G36/100,G36)*V36 -> 1968993.389 | AL36: =IF('Prop DUOS'!I$78="cents",H36/100,H36)*W36 -> 2427226.033 | AM36: =IF('Prop DUOS'!J$78="cents",I36/100,I36)*X36 -> 0 | AN36: =IF('Prop DUOS'!K$78="cents",J36/100,J36)*Y36 -> 0 | AO36: =IF('Prop DUOS'!L$78="cents",K36/100,K36)*Z36 -> 0 | AP36: =IF('Prop DUOS'!M$78="cents",L36/100,L36)*AA36 -> 0 | AQ36: =IF('Prop DUOS'!N$78="cents",M36/100,M36)*IF('Prop DUOS'!N$80="day",AB36*'Prop DUOS'!$D$83,IF('Prop DUOS'!N$80="month",AB36*12,AB36)) -> 0 | AR36: =IF('Prop DUOS'!O$78="cents",N36/100,N36)*IF('Prop DUOS'!O$80="day",AC36*'Prop DUOS'!$D$83,IF('Prop DUOS'!O$80="month",AC36*12,AC36)) -> 1890753.083 | AS36: =IF('Prop DUOS'!P$78="cents",O36/100,O36)*IF('Prop DUOS'!P$80="day",AD36*'Prop DUOS'!$D$83,IF('Prop DUOS'!P$80="month",AD36*12,AD36)) -> 1128885.984 | AT36: =IF('Prop DUOS'!Q$78="cents",P36/100,P36)*IF('Prop DUOS'!Q$80="day",AE36*'Prop DUOS'!$D$83,IF('Prop DUOS'!Q$80="month",AE36*12,AE36)) -> 0 | AU36: =IF('Prop DUOS'!R$78="cents",Q36/100,Q36)*IF('Prop DUOS'!R$80="day",AF36*'Prop DUOS'!$D$83,IF('Prop DUOS'!R$80="month",AF36*12,AF36)) -> 0 | AV36: 13353337.14
B37: NEN56 Medium Demand Multi-rate - Embedded Network | D37: 2282 | E37: 0 | F37: 8.0352 | G37: 3.4832 | H37: 5.6001 | I37: 0 | J37: 0 | K37: 0 | L37: 0 | M37: 0 | N37: 17.35 | O37: 28.92 | P37: 0 | Q37: 0 | S37: 1.0021858 | T37: 0 | U37: 73717.37197 | V37: 84045.96246 | W37: 66316.087 | X37: 0 | Y37: 0 | Z37: 0 | AA37: 0 | AB37: 0 | AC37: 259.9866667 | AD37: 73.385 | AE37: 0 | AF37: 0 | AH37: =IF('Prop DUOS'!$E$78="cents",D37/100,D37)*IF('Prop DUOS'!$E$80="day",S37*'Prop DUOS'!$D$83,S37) -> 2286.987996 | AI37: =IF('Prop DUOS'!F$78="cents",E37/100,E37)*T37 -> 0 | AJ37: =IF('Prop DUOS'!G$78="cents",F37/100,F37)*U37 -> 5923.338273 | AK37: =IF('Prop DUOS'!H$78="cents",G37/100,G37)*V37 -> 2927.488964 | AL37: =IF('Prop DUOS'!I$78="cents",H37/100,H37)*W37 -> 3713.767188 | AM37: =IF('Prop DUOS'!J$78="cents",I37/100,I37)*X37 -> 0 | AN37: =IF('Prop DUOS'!K$78="cents",J37/100,J37)*Y37 -> 0 | AO37: =IF('Prop DUOS'!L$78="cents",K37/100,K37)*Z37 -> 0 | AP37: =IF('Prop DUOS'!M$78="cents",L37/100,L37)*AA37 -> 0 | AQ37: =IF('Prop DUOS'!N$78="cents",M37/100,M37)*IF('Prop DUOS'!N$80="day",AB37*'Prop DUOS'!$D$83,IF('Prop DUOS'!N$80="month",AB37*12,AB37)) -> 0 | AR37: =IF('Prop DUOS'!O$78="cents",N37/100,N37)*IF('Prop DUOS'!O$80="day",AC37*'Prop DUOS'!$D$83,IF('Prop DUOS'!O$80="month",AC37*12,AC37)) -> 4510.768667 | AS37: =IF('Prop DUOS'!P$78="cents",O37/100,O37)*IF('Prop DUOS'!P$80="day",AD37*'Prop DUOS'!$D$83,IF('Prop DUOS'!P$80="month",AD37*12,AD37)) -> 2122.2942 | AT37: =IF('Prop DUOS'!Q$78="cents",P37/100,P37)*IF('Prop DUOS'!Q$80="day",AE37*'Prop DUOS'!$D$83,IF('Prop DUOS'!Q$80="month",AE37*12,AE37)) -> 0 | AU37: =IF('Prop DUOS'!R$78="cents",Q37/100,Q37)*IF('Prop DUOS'!R$80="day",AF37*'Prop DUOS'!$D$83,IF('Prop DUOS'!R$80="month",AF37*12,AF37)) -> 0 | AV37: 21484.64529
B38: NEE60 Medium Two Rate 7Day - closed to new customers | D38: 106 | E38: 0 | F38: 9.1032 | G38: 3.5401 | H38: 0 | I38: 0 | J38: 0 | K38: 0 | L38: 0 | M38: 0 | N38: 0 | O38: 0 | P38: 0 | Q38: 0 | S38: 142.3350515 | T38: 0 | U38: 4458174.214 | V38: 1627877.247 | W38: 0 | X38: 0 | Y38: 0 | Z38: 0 | AA38: 0 | AB38: 0 | AC38: 0 | AD38: 0 | AE38: 0 | AF38: 0 | AH38: =IF('Prop DUOS'!$E$78="cents",D38/100,D38)*IF('Prop DUOS'!$E$80="day",S38*'Prop DUOS'!$D$83,S38) -> 15087.51546 | AI38: =IF('Prop DUOS'!F$78="cents",E38/100,E38)*T38 -> 0 | AJ38: =IF('Prop DUOS'!G$78="cents",F38/100,F38)*U38 -> 405836.515 | AK38: =IF('Prop DUOS'!H$78="cents",G38/100,G38)*V38 -> 57628.48244 | AL38: =IF('Prop DUOS'!I$78="cents",H38/100,H38)*W38 -> 0 | AM38: =IF('Prop DUOS'!J$78="cents",I38/100,I38)*X38 -> 0 | AN38: =IF('Prop DUOS'!K$78="cents",J38/100,J38)*Y38 -> 0 | AO38: =IF('Prop DUOS'!L$78="cents",K38/100,K38)*Z38 -> 0 | AP38: =IF('Prop DUOS'!M$78="cents",L38/100,L38)*AA38 -> 0 | AQ38: =IF('Prop DUOS'!N$78="cents",M38/100,M38)*IF('Prop DUOS'!N$80="day",AB38*'Prop DUOS'!$D$83,IF('Prop DUOS'!N$80="month",AB38*12,AB38)) -> 0 | AR38: =IF('Prop DUOS'!O$78="cents",N38/100,N38)*IF('Prop DUOS'!O$80="day",AC38*'Prop DUOS'!$D$83,IF('Prop DUOS'!O$80="month",AC38*12,AC38)) -> 0 | AS38: =IF('Prop DUOS'!P$78="cents",O38/100,O38)*IF('Prop DUOS'!P$80="day",AD38*'Prop DUOS'!$D$83,IF('Prop DUOS'!P$80="month",AD38*12,AD38)) -> 0 | AT38: =IF('Prop DUOS'!Q$78="cents",P38/100,P38)*IF('Prop DUOS'!Q$80="day",AE38*'Prop DUOS'!$D$83,IF('Prop DUOS'!Q$80="month",AE38*12,AE38)) -> 0 | AU38: =IF('Prop DUOS'!R$78="cents",Q38/100,Q38)*IF('Prop DUOS'!R$80="day",AF38*'Prop DUOS'!$D$83,IF('Prop DUOS'!R$80="month",AF38*12,AF38)) -> 0 | AV38: 478552.5129
B39: NEE52 Unmetered | D39: 0 | E39: 0 | F39: 15.1205 | G39: 7.6658 | H39: 0 | I39: 0 | J39: 0 | K39: 0 | L39: 0 | M39: 0 | N39: 0 | O39: 0 | P39: 0 | Q39: 0 | S39: 0 | T39: 0 | U39: 7690933.05 | V39: 19533322.38 | W39: 0 | X39: 0 | Y39: 0 | Z39: 0 | AA39: 0 | AB39: 0 | AC39: 0 | AD39: 0 | AE39: 0 | AF39: 0 | AH39: =IF('Prop DUOS'!$E$78="cents",D39/100,D39)*IF('Prop DUOS'!$E$80="day",S39*'Prop DUOS'!$D$83,S39) -> 0 | AI39: =IF('Prop DUOS'!F$78="cents",E39/100,E39)*T39 -> 0 | AJ39: =IF('Prop DUOS'!G$78="cents",F39/100,F39)*U39 -> 1162907.532 | AK39: =IF('Prop DUOS'!H$78="cents",G39/100,G39)*V39 -> 1497385.427 | AL39: =IF('Prop DUOS'!I$78="cents",H39/100,H39)*W39 -> 0 | AM39: =IF('Prop DUOS'!J$78="cents",I39/100,I39)*X39 -> 0 | AN39: =IF('Prop DUOS'!K$78="cents",J39/100,J39)*Y39 -> 0 | AO39: =IF('Prop DUOS'!L$78="cents",K39/100,K39)*Z39 -> 0 | AP39: =IF('Prop DUOS'!M$78="cents",L39/100,L39)*AA39 -> 0 | AQ39: =IF('Prop DUOS'!N$78="cents",M39/100,M39)*IF('Prop DUOS'!N$80="day",AB39*'Prop DUOS'!$D$83,IF('Prop DUOS'!N$80="month",AB39*12,AB39)) -> 0 | AR39: =IF('Prop DUOS'!O$78="cents",N39/100,N39)*IF('Prop DUOS'!O$80="day",AC39*'Prop DUOS'!$D$83,IF('Prop DUOS'!O$80="month",AC39*12,AC39)) -> 0 | AS39: =IF('Prop DUOS'!P$78="cents",O39/100,O39)*IF('Prop DUOS'!P$80="day",AD39*'Prop DUOS'!$D$83,IF('Prop DUOS'!P$80="month",AD39*12,AD39)) -> 0 | AT39: =IF('Prop DUOS'!Q$78="cents",P39/100,P39)*IF('Prop DUOS'!Q$80="day",AE39*'Prop DUOS'!$D$83,IF('Prop DUOS'!Q$80="month",AE39*12,AE39)) -> 0 | AU39: =IF('Prop DUOS'!R$78="cents",Q39/100,Q39)*IF('Prop DUOS'!R$80="day",AF39*'Prop DUOS'!$D$83,IF('Prop DUOS'!R$80="month",AF39*12,AF39)) -> 0 | AV39: 2660292.959
B40: NEE74 LV Large Two Rate 5Day | D40: 127 | E40: 0 | F40: 22.5333 | G40: 6.4018 | H40: 0 | I40: 0 | J40: 0 | K40: 0 | L40: 0 | M40: 0 | N40: 0 | O40: 0 | P40: 0 | Q40: 0 | S40: 3.5071547 | T40: 0 | U40: 981379.7391 | V40: 1156071.224 | W40: 0 | X40: 0 | Y40: 0 | Z40: 0 | AA40: 0 | AB40: 0 | AC40: 0 | AD40: 0 | AE40: 0 | AF40: 0 | AH40: =IF('Prop DUOS'!$E$78="cents",D40/100,D40)*IF('Prop DUOS'!$E$80="day",S40*'Prop DUOS'!$D$83,S40) -> 445.4086469 | AI40: =IF('Prop DUOS'!F$78="cents",E40/100,E40)*T40 -> 0 | AJ40: =IF('Prop DUOS'!G$78="cents",F40/100,F40)*U40 -> 221137.2407 | AK40: =IF('Prop DUOS'!H$78="cents",G40/100,G40)*V40 -> 74009.3676 | AL40: =IF('Prop DUOS'!I$78="cents",H40/100,H40)*W40 -> 0 | AM40: =IF('Prop DUOS'!J$78="cents",I40/100,I40)*X40 -> 0 | AN40: =IF('Prop DUOS'!K$78="cents",J40/100,J40)*Y40 -> 0 | AO40: =IF('Prop DUOS'!L$78="cents",K40/100,K40)*Z40 -> 0 | AP40: =IF('Prop DUOS'!M$78="cents",L40/100,L40)*AA40 -> 0 | AQ40: =IF('Prop DUOS'!N$78="cents",M40/100,M40)*IF('Prop DUOS'!N$80="day",AB40*'Prop DUOS'!$D$83,IF('Prop DUOS'!N$80="month",AB40*12,AB40)) -> 0 | AR40: =IF('Prop DUOS'!O$78="cents",N40/100,N40)*IF('Prop DUOS'!O$80="day",AC40*'Prop DUOS'!$D$83,IF('Prop DUOS'!O$80="month",AC40*12,AC40)) -> 0 | AS40: =IF('Prop DUOS'!P$78="cents",O40/100,O40)*IF('Prop DUOS'!P$80="day",AD40*'Prop DUOS'!$D$83,IF('Prop DUOS'!P$80="month",AD40*12,AD40)) -> 0 | AT40: =IF('Prop DUOS'!Q$78="cents",P40/100,P40)*IF('Prop DUOS'!Q$80="day",AE40*'Prop DUOS'!$D$83,IF('Prop DUOS'!Q$80="month",AE40*12,AE40)) -> 0 | AU40: =IF('Prop DUOS'!R$78="cents",Q40/100,Q40)*IF('Prop DUOS'!R$80="day",AF40*'Prop DUOS'!$D$83,IF('Prop DUOS'!R$80="month",AF40*12,AF40)) -> 0 | AV40: 295592.017
B41: NSP75 Large Multi-rate <750 kVA | D41: 5102 | E41: 0 | F41: 2.9014 | G41: 1.1213 | H41: 1.9659 | I41: 0 | J41: 0 | K41: 0 | L41: 0 | M41: 0 | N41: 42.16 | O41: 70.71 | P41: 0 | Q41: 0 | S41: 405.6626479 | T41: 0 | U41: 68257672.2 | V41: 90827042.6 | W41: 48108647.84 | X41: 0 | Y41: 0 | Z41: 0 | AA41: 0 | AB41: 0 | AC41: 107886.6264 | AD41: 47621.77257 | AE41: 0 | AF41: 0 | AH41: =IF('Prop DUOS'!$E$78="cents",D41/100,D41)*IF('Prop DUOS'!$E$80="day",S41*'Prop DUOS'!$D$83,S41) -> 2069690.83 | AI41: =IF('Prop DUOS'!F$78="cents",E41/100,E41)*T41 -> 0 | AJ41: =IF('Prop DUOS'!G$78="cents",F41/100,F41)*U41 -> 1980428.101 | AK41: =IF('Prop DUOS'!H$78="cents",G41/100,G41)*V41 -> 1018443.629 | AL41: =IF('Prop DUOS'!I$78="cents",H41/100,H41)*W41 -> 945767.9079 | AM41: =IF('Prop DUOS'!J$78="cents",I41/100,I41)*X41 -> 0 | AN41: =IF('Prop DUOS'!K$78="cents",J41/100,J41)*Y41 -> 0 | AO41: =IF('Prop DUOS'!L$78="cents",K41/100,K41)*Z41 -> 0 | AP41: =IF('Prop DUOS'!M$78="cents",L41/100,L41)*AA41 -> 0 | AQ41: =IF('Prop DUOS'!N$78="cents",M41/100,M41)*IF('Prop DUOS'!N$80="day",AB41*'Prop DUOS'!$D$83,IF('Prop DUOS'!N$80="month",AB41*12,AB41)) -> 0 | AR41: =IF('Prop DUOS'!O$78="cents",N41/100,N41)*IF('Prop DUOS'!O$80="day",AC41*'Prop DUOS'!$D$83,IF('Prop DUOS'!O$80="month",AC41*12,AC41)) -> 4548500.171 | AS41: =IF('Prop DUOS'!P$78="cents",O41/100,O41)*IF('Prop DUOS'!P$80="day",AD41*'Prop DUOS'!$D$83,IF('Prop DUOS'!P$80="month",AD41*12,AD41)) -> 3367335.538 | AT41: =IF('Prop DUOS'!Q$78="cents",P41/100,P41)*IF('Prop DUOS'!Q$80="day",AE41*'Prop DUOS'!$D$83,IF('Prop DUOS'!Q$80="month",AE41*12,AE41)) -> 0 | AU41: =IF('Prop DUOS'!R$78="cents",Q41/100,Q41)*IF('Prop DUOS'!R$80="day",AF41*'Prop DUOS'!$D$83,IF('Prop DUOS'!R$80="month",AF41*12,AF41)) -> 0 | AV41: 13930166.18
B42: NSP76 Large Multi-rate >750 kVA | D42: 5102 | E42: 0 | F42: 2.6821 | G42: 0.9967 | H42: 1.7577 | I42: 0 | J42: 0 | K42: 0 | L42: 0 | M42: 0 | N42: 43.96 | O42: 74.34 | P42: 0 | Q42: 0 | S42: 279.7901894 | T42: 0 | U42: 102123193.9 | V42: 132648525 | W42: 73834521.94 | X42: 0 | Y42: 0 | Z42: 0 | AA42: 0 | AB42: 0 | AC42: 146312.9569 | AD42: 65055.97488 | AE42: 0 | AF42: 0 | AH42: =IF('Prop DUOS'!$E$78="cents",D42/100,D42)*IF('Prop DUOS'!$E$80="day",S42*'Prop DUOS'!$D$83,S42) -> 1427489.546 | AI42: =IF('Prop DUOS'!F$78="cents",E42/100,E42)*T42 -> 0 | AJ42: =IF('Prop DUOS'!G$78="cents",F42/100,F42)*U42 -> 2739046.183 | AK42: =IF('Prop DUOS'!H$78="cents",G42/100,G42)*V42 -> 1322107.849 | AL42: =IF('Prop DUOS'!I$78="cents",H42/100,H42)*W42 -> 1297789.392 | AM42: =IF('Prop DUOS'!J$78="cents",I42/100,I42)*X42 -> 0 | AN42: =IF('Prop DUOS'!K$78="cents",J42/100,J42)*Y42 -> 0 | AO42: =IF('Prop DUOS'!L$78="cents",K42/100,K42)*Z42 -> 0 | AP42: =IF('Prop DUOS'!M$78="cents",L42/100,L42)*AA42 -> 0 | AQ42: =IF('Prop DUOS'!N$78="cents",M42/100,M42)*IF('Prop DUOS'!N$80="day",AB42*'Prop DUOS'!$D$83,IF('Prop DUOS'!N$80="month",AB42*12,AB42)) -> 0 | AR42: =IF('Prop DUOS'!O$78="cents",N42/100,N42)*IF('Prop DUOS'!O$80="day",AC42*'Prop DUOS'!$D$83,IF('Prop DUOS'!O$80="month",AC42*12,AC42)) -> 6431917.586 | AS42: =IF('Prop DUOS'!P$78="cents",O42/100,O42)*IF('Prop DUOS'!P$80="day",AD42*'Prop DUOS'!$D$83,IF('Prop DUOS'!P$80="month",AD42*12,AD42)) -> 4836261.172 | AT42: =IF('Prop DUOS'!Q$78="cents",P42/100,P42)*IF('Prop DUOS'!Q$80="day",AE42*'Prop DUOS'!$D$83,IF('Prop DUOS'!Q$80="month",AE42*12,AE42)) -> 0 | AU42: =IF('Prop DUOS'!R$78="cents",Q42/100,Q42)*IF('Prop DUOS'!R$80="day",AF42*'Prop DUOS'!$D$83,IF('Prop DUOS'!R$80="month",AF42*12,AF42)) -> 0 | AV42: 18054611.73
B43: NSP77 Large Multi-rate >2 GWh | D43: 5102 | E43: 0 | F43: 2.6291 | G43: 0.9389 | H43: 1.7343 | I43: 0 | J43: 0 | K43: 0 | L43: 0 | M43: 0 | N43: 48.19 | O43: 80 | P43: 0 | Q43: 0 | S43: 38.7784816 | T43: 0 | U43: 34031997.13 | V43: 42859743.76 | W43: 23897821.96 | X43: 0 | Y43: 0 | Z43: 0 | AA43: 0 | AB43: 0 | AC43: 38552.35144 | AD43: 18994.9579 | AE43: 0 | AF43: 0 | AH43: =IF('Prop DUOS'!$E$78="cents",D43/100,D43)*IF('Prop DUOS'!$E$80="day",S43*'Prop DUOS'!$D$83,S43) -> 197847.8131 | AI43: =IF('Prop DUOS'!F$78="cents",E43/100,E43)*T43 -> 0 | AJ43: =IF('Prop DUOS'!G$78="cents",F43/100,F43)*U43 -> 894735.2366 | AK43: =IF('Prop DUOS'!H$78="cents",G43/100,G43)*V43 -> 402410.1342 | AL43: =IF('Prop DUOS'!I$78="cents",H43/100,H43)*W43 -> 414459.9263 | AM43: =IF('Prop DUOS'!J$78="cents",I43/100,I43)*X43 -> 0 | AN43: =IF('Prop DUOS'!K$78="cents",J43/100,J43)*Y43 -> 0 | AO43: =IF('Prop DUOS'!L$78="cents",K43/100,K43)*Z43 -> 0 | AP43: =IF('Prop DUOS'!M$78="cents",L43/100,L43)*AA43 -> 0 | AQ43: =IF('Prop DUOS'!N$78="cents",M43/100,M43)*IF('Prop DUOS'!N$80="day",AB43*'Prop DUOS'!$D$83,IF('Prop DUOS'!N$80="month",AB43*12,AB43)) -> 0 | AR43: =IF('Prop DUOS'!O$78="cents",N43/100,N43)*IF('Prop DUOS'!O$80="day",AC43*'Prop DUOS'!$D$83,IF('Prop DUOS'!O$80="month",AC43*12,AC43)) -> 1857837.816 | AS43: =IF('Prop DUOS'!P$78="cents",O43/100,O43)*IF('Prop DUOS'!P$80="day",AD43*'Prop DUOS'!$D$83,IF('Prop DUOS'!P$80="month",AD43*12,AD43)) -> 1519596.632 | AT43: =IF('Prop DUOS'!Q$78="cents",P43/100,P43)*IF('Prop DUOS'!Q$80="day",AE43*'Prop DUOS'!$D$83,IF('Prop DUOS'!Q$80="month",AE43*12,AE43)) -> 0 | AU43: =IF('Prop DUOS'!R$78="cents",Q43/100,Q43)*IF('Prop DUOS'!R$80="day",AF43*'Prop DUOS'!$D$83,IF('Prop DUOS'!R$80="month",AF43*12,AF43)) -> 0 | AV43: 5286887.558
B44: NSP78 Large Multi-rate >4 GWh | D44: 5102 | E44: 0 | F44: 2.3495 | G44: 0.811 | H44: 1.5507 | I44: 0 | J44: 0 | K44: 0 | L44: 0 | M44: 0 | N44: 53.01 | O44: 87.71 | P44: 0 | Q44: 0 | S44: 12.8927803 | T44: 0 | U44: 26274554.37 | V44: 32865603.96 | W44: 17751899.45 | X44: 0 | Y44: 0 | Z44: 0 | AA44: 0 | AB44: 0 | AC44: 23577.91501 | AD44: 14702.07088 | AE44: 0 | AF44: 0 | AH44: =IF('Prop DUOS'!$E$78="cents",D44/100,D44)*IF('Prop DUOS'!$E$80="day",S44*'Prop DUOS'!$D$83,S44) -> 65778.96509 | AI44: =IF('Prop DUOS'!F$78="cents",E44/100,E44)*T44 -> 0 | AJ44: =IF('Prop DUOS'!G$78="cents",F44/100,F44)*U44 -> 617320.6549 | AK44: =IF('Prop DUOS'!H$78="cents",G44/100,G44)*V44 -> 266540.0481 | AL44: =IF('Prop DUOS'!I$78="cents",H44/100,H44)*W44 -> 275278.7047 | AM44: =IF('Prop DUOS'!J$78="cents",I44/100,I44)*X44 -> 0 | AN44: =IF('Prop DUOS'!K$78="cents",J44/100,J44)*Y44 -> 0 | AO44: =IF('Prop DUOS'!L$78="cents",K44/100,K44)*Z44 -> 0 | AP44: =IF('Prop DUOS'!M$78="cents",L44/100,L44)*AA44 -> 0 | AQ44: =IF('Prop DUOS'!N$78="cents",M44/100,M44)*IF('Prop DUOS'!N$80="day",AB44*'Prop DUOS'!$D$83,IF('Prop DUOS'!N$80="month",AB44*12,AB44)) -> 0 | AR44: =IF('Prop DUOS'!O$78="cents",N44/100,N44)*IF('Prop DUOS'!O$80="day",AC44*'Prop DUOS'!$D$83,IF('Prop DUOS'!O$80="month",AC44*12,AC44)) -> 1249865.275 | AS44: =IF('Prop DUOS'!P$78="cents",O44/100,O44)*IF('Prop DUOS'!P$80="day",AD44*'Prop DUOS'!$D$83,IF('Prop DUOS'!P$80="month",AD44*12,AD44)) -> 1289518.637 | AT44: =IF('Prop DUOS'!Q$78="cents",P44/100,P44)*IF('Prop DUOS'!Q$80="day",AE44*'Prop DUOS'!$D$83,IF('Prop DUOS'!Q$80="month",AE44*12,AE44)) -> 0 | AU44: =IF('Prop DUOS'!R$78="cents",Q44/100,Q44)*IF('Prop DUOS'!R$80="day",AF44*'Prop DUOS'!$D$83,IF('Prop DUOS'!R$80="month",AF44*12,AF44)) -> 0 | AV44: 3764302.284
B45: NSP81 HV Kva | D45: 5102 | E45: 0 | F45: 0.5119 | G45: 0.2071 | H45: 0 | I45: 0 | J45: 0 | K45: 0 | L45: 0 | M45: 0 | N45: 34.7 | O45: 56.86 | P45: 0 | Q45: 0 | S45: 25.9137794 | T45: 0 | U45: 133349359.1 | V45: 112802510.4 | W45: 0 | X45: 0 | Y45: 0 | Z45: 0 | AA45: 0 | AB45: 0 | AC45: 88505.27 | AD45: 38825.93416 | AE45: 0 | AF45: 0 | AH45: =IF('Prop DUOS'!$E$78="cents",D45/100,D45)*IF('Prop DUOS'!$E$80="day",S45*'Prop DUOS'!$D$83,S45) -> 132212.1025 | AI45: =IF('Prop DUOS'!F$78="cents",E45/100,E45)*T45 -> 0 | AJ45: =IF('Prop DUOS'!G$78="cents",F45/100,F45)*U45 -> 682615.3691 | AK45: =IF('Prop DUOS'!H$78="cents",G45/100,G45)*V45 -> 233613.999 | AL45: =IF('Prop DUOS'!I$78="cents",H45/100,H45)*W45 -> 0 | AM45: =IF('Prop DUOS'!J$78="cents",I45/100,I45)*X45 -> 0 | AN45: =IF('Prop DUOS'!K$78="cents",J45/100,J45)*Y45 -> 0 | AO45: =IF('Prop DUOS'!L$78="cents",K45/100,K45)*Z45 -> 0 | AP45: =IF('Prop DUOS'!M$78="cents",L45/100,L45)*AA45 -> 0 | AQ45: =IF('Prop DUOS'!N$78="cents",M45/100,M45)*IF('Prop DUOS'!N$80="day",AB45*'Prop DUOS'!$D$83,IF('Prop DUOS'!N$80="month",AB45*12,AB45)) -> 0 | AR45: =IF('Prop DUOS'!O$78="cents",N45/100,N45)*IF('Prop DUOS'!O$80="day",AC45*'Prop DUOS'!$D$83,IF('Prop DUOS'!O$80="month",AC45*12,AC45)) -> 3071132.869 | AS45: =IF('Prop DUOS'!P$78="cents",O45/100,O45)*IF('Prop DUOS'!P$80="day",AD45*'Prop DUOS'!$D$83,IF('Prop DUOS'!P$80="month",AD45*12,AD45)) -> 2207642.616 | AT45: =IF('Prop DUOS'!Q$78="cents",P45/100,P45)*IF('Prop DUOS'!Q$80="day",AE45*'Prop DUOS'!$D$83,IF('Prop DUOS'!Q$80="month",AE45*12,AE45)) -> 0 | AU45: =IF('Prop DUOS'!R$78="cents",Q45/100,Q45)*IF('Prop DUOS'!R$80="day",AF45*'Prop DUOS'!$D$83,IF('Prop DUOS'!R$80="month",AF45*12,AF45)) -> 0 | AV45: 6327216.956
B46: NSP82 Traction | D46: 5102 | E46: 0 | F46: 0.4601 | G46: 0.392 | H46: 0.4601 | I46: 0 | J46: 0 | K46: 0 | L46: 0 | M46: 0 | N46: 31.81 | O46: 52.05 | P46: 0 | Q46: 0
B47: NSP83 Small HV | D47: 5102 | E47: 0 | F47: 8.6372 | G47: 0.9412 | H47: 3.0223 | I47: 0 | J47: 0 | K47: 0 | L47: 0 | M47: 0 | N47: 3.7 | O47: 6.12 | P47: 0 | Q47: 0 | S47: 4.8752054 | T47: 0 | U47: 3484117.138 | V47: 5382304.623 | W47: 2472570.879 | X47: 0 | Y47: 0 | Z47: 0 | AA47: 0 | AB47: 0 | AC47: 12332.30326 | AD47: 2612.788094 | AE47: 0 | AF47: 0 | AH47: =IF('Prop DUOS'!$E$78="cents",D47/100,D47)*IF('Prop DUOS'!$E$80="day",S47*'Prop DUOS'!$D$83,S47) -> 24873.29795 | AI47: =IF('Prop DUOS'!F$78="cents",E47/100,E47)*T47 -> 0 | AJ47: =IF('Prop DUOS'!G$78="cents",F47/100,F47)*U47 -> 300930.1654 | AK47: =IF('Prop DUOS'!H$78="cents",G47/100,G47)*V47 -> 50658.25111 | AL47: =IF('Prop DUOS'!I$78="cents",H47/100,H47)*W47 -> 74728.50967 | AM47: =IF('Prop DUOS'!J$78="cents",I47/100,I47)*X47 -> 0 | AN47: =IF('Prop DUOS'!K$78="cents",J47/100,J47)*Y47 -> 0 | AO47: =IF('Prop DUOS'!L$78="cents",K47/100,K47)*Z47 -> 0 | AP47: =IF('Prop DUOS'!M$78="cents",L47/100,L47)*AA47 -> 0 | AQ47: =IF('Prop DUOS'!N$78="cents",M47/100,M47)*IF('Prop DUOS'!N$80="day",AB47*'Prop DUOS'!$D$83,IF('Prop DUOS'!N$80="month",AB47*12,AB47)) -> 0 | AR47: =IF('Prop DUOS'!O$78="cents",N47/100,N47)*IF('Prop DUOS'!O$80="day",AC47*'Prop DUOS'!$D$83,IF('Prop DUOS'!O$80="month",AC47*12,AC47)) -> 45629.52205 | AS47: =IF('Prop DUOS'!P$78="cents",O47/100,O47)*IF('Prop DUOS'!P$80="day",AD47*'Prop DUOS'!$D$83,IF('Prop DUOS'!P$80="month",AD47*12,AD47)) -> 15990.26314 | AT47: =IF('Prop DUOS'!Q$78="cents",P47/100,P47)*IF('Prop DUOS'!Q$80="day",AE47*'Prop DUOS'!$D$83,IF('Prop DUOS'!Q$80="month",AE47*12,AE47)) -> 0 | AU47: =IF('Prop DUOS'!R$78="cents",Q47/100,Q47)*IF('Prop DUOS'!R$80="day",AF47*'Prop DUOS'!$D$83,IF('Prop DUOS'!R$80="month",AF47*12,AF47)) -> 0 | AV47: 512810.0093
B48: NSP91 ST kVA | D48: 18184 | E48: 0 | F48: 0.4645 | G48: 0.0437 | H48: 0 | I48: 0 | J48: 0 | K48: 0 | L48: 0 | M48: 0 | N48: 2.32 | O48: 3.82 | P48: 0 | Q48: 0
B49: NEE93 Latrobe Generators kVA (non published) | D49: 0 | E49: 0 | F49: 0.9125 | G49: 0.9125 | H49: 0 | I49: 0 | J49: 0 | K49: 0 | L49: 0 | M49: 0 | N49: 0 | O49: 0 | P49: 0 | Q49: 0
B50: NSP94 - ST kVA >25MVA <20kM | D50: 18184 | E50: 0 | F50: 0.432 | G50: 0.0277 | H50: 0 | I50: 0 | J50: 0 | K50: 0 | L50: 0 | M50: 0 | N50: 1.73 | O50: 2.87 | P50: 0 | Q50: 0
B51: NSP95 - ST kVA <25MVA >20kM | D51: 18184 | E51: 0 | F51: 0.5012 | G51: 0.0631 | H51: 0 | I51: 0 | J51: 0 | K51: 0 | L51: 0 | M51: 0 | N51: 3.59 | O51: 5.96 | P51: 0 | Q51: 0
B52: NASN19 - Business >40MWh Single Rate | D52: 106 | E52: 0 | F52: 12.5484 | G52: 12.5484 | H52: 0 | I52: 0 | J52: 0 | K52: 0 | L52: 0 | M52: 0 | N52: 0 | O52: 0 | P52: 6.91 | Q52: 1.73 | S52: 572.514288 | T52: 0 | U52: 27945440.56 | V52: 0 | W52: 0 | X52: 0 | Y52: 0 | Z52: 0 | AA52: 0 | AB52: 0 | AC52: 0 | AD52: 0 | AE52: 57967.94 | AF52: 45909.45705 | AH52: =IF('Prop DUOS'!$E$78="cents",D52/100,D52)*IF('Prop DUOS'!$E$80="day",S52*'Prop DUOS'!$D$83,S52) -> 60686.51453 | AI52: =IF('Prop DUOS'!F$78="cents",E52/100,E52)*T52 -> 0 | AJ52: =IF('Prop DUOS'!G$78="cents",F52/100,F52)*U52 -> 3506705.663 | AK52: =IF('Prop DUOS'!H$78="cents",G52/100,G52)*V52 -> 0 | AL52: =IF('Prop DUOS'!I$78="cents",H52/100,H52)*W52 -> 0 | AM52: =IF('Prop DUOS'!J$78="cents",I52/100,I52)*X52 -> 0 | AN52: =IF('Prop DUOS'!K$78="cents",J52/100,J52)*Y52 -> 0 | AO52: =IF('Prop DUOS'!L$78="cents",K52/100,K52)*Z52 -> 0 | AP52: =IF('Prop DUOS'!M$78="cents",L52/100,L52)*AA52 -> 0 | AQ52: =IF('Prop DUOS'!N$78="cents",M52/100,M52)*IF('Prop DUOS'!N$80="day",AB52*'Prop DUOS'!$D$83,IF('Prop DUOS'!N$80="month",AB52*12,AB52)) -> 0 | AR52: =IF('Prop DUOS'!O$78="cents",N52/100,N52)*IF('Prop DUOS'!O$80="day",AC52*'Prop DUOS'!$D$83,IF('Prop DUOS'!O$80="month",AC52*12,AC52)) -> 0 | AS52: =IF('Prop DUOS'!P$78="cents",O52/100,O52)*IF('Prop DUOS'!P$80="day",AD52*'Prop DUOS'!$D$83,IF('Prop DUOS'!P$80="month",AD52*12,AD52)) -> 0 | AT52: =IF('Prop DUOS'!Q$78="cents",P52/100,P52)*IF('Prop DUOS'!Q$80="day",AE52*'Prop DUOS'!$D$83,IF('Prop DUOS'!Q$80="month",AE52*12,AE52)) -> 400558.4654 | AU52: =IF('Prop DUOS'!R$78="cents",Q52/100,Q52)*IF('Prop DUOS'!R$80="day",AF52*'Prop DUOS'!$D$83,IF('Prop DUOS'!R$80="month",AF52*12,AF52)) -> 79423.3607 | AV52: 4047374.004
B53: NASN21 - Business >40MWh Two Rate | D53: 106 | E53: 0 | F53: 12.8906 | G53: 2.7866 | H53: 0 | I53: 0 | J53: 0 | L53: 0 | M53: 0 | N53: 0 | O53: 0 | P53: 6.91 | Q53: 1.73 | S53: 4316.355388 | T53: 0 | U53: 152488115.8 | V53: 131113448.5 | W53: 0 | X53: 0 | Y53: 0 | Z53: -2041019.45 | AA53: 0 | AB53: 0 | AC53: 0 | AD53: 0 | AE53: 634082.9 | AF53: 500348.4757 | AH53: =IF('Prop DUOS'!$E$78="cents",D53/100,D53)*IF('Prop DUOS'!$E$80="day",S53*'Prop DUOS'!$D$83,S53) -> 457533.6711 | AI53: =IF('Prop DUOS'!F$78="cents",E53/100,E53)*T53 -> 0 | AJ53: =IF('Prop DUOS'!G$78="cents",F53/100,F53)*U53 -> 19656633.06 | AK53: =IF('Prop DUOS'!H$78="cents",G53/100,G53)*V53 -> 3653607.356 | AL53: =IF('Prop DUOS'!I$78="cents",H53/100,H53)*W53 -> 0 | AM53: =IF('Prop DUOS'!J$78="cents",I53/100,I53)*X53 -> 0 | AN53: =IF('Prop DUOS'!K$78="cents",J53/100,J53)*Y53 -> 0 | AO53: =IF('Prop DUOS'!L$78="cents",K53/100,K53)*Z53 -> 0 | AP53: =IF('Prop DUOS'!M$78="cents",L53/100,L53)*AA53 -> 0 | AQ53: =IF('Prop DUOS'!N$78="cents",M53/100,M53)*IF('Prop DUOS'!N$80="day",AB53*'Prop DUOS'!$D$83,IF('Prop DUOS'!N$80="month",AB53*12,AB53)) -> 0 | AR53: =IF('Prop DUOS'!O$78="cents",N53/100,N53)*IF('Prop DUOS'!O$80="day",AC53*'Prop DUOS'!$D$83,IF('Prop DUOS'!O$80="month",AC53*12,AC53)) -> 0 | AS53: =IF('Prop DUOS'!P$78="cents",O53/100,O53)*IF('Prop DUOS'!P$80="day",AD53*'Prop DUOS'!$D$83,IF('Prop DUOS'!P$80="month",AD53*12,AD53)) -> 0 | AT53: =IF('Prop DUOS'!Q$78="cents",P53/100,P53)*IF('Prop DUOS'!Q$80="day",AE53*'Prop DUOS'!$D$83,IF('Prop DUOS'!Q$80="month",AE53*12,AE53)) -> 4381512.839 | AU53: =IF('Prop DUOS'!R$78="cents",Q53/100,Q53)*IF('Prop DUOS'!R$80="day",AF53*'Prop DUOS'!$D$83,IF('Prop DUOS'!R$80="month",AF53*12,AF53)) -> 865602.8629 | AV53: 29014889.79
B54: NASN11 - Residential Single Rate | D54: 106 | E54: 0 | F54: 4.9494 | G54: 4.9494 | H54: 0 | I54: 0 | J54: 0 | L54: 0 | M54: 0 | N54: 0 | O54: 0 | P54: 8.64 | Q54: 2.16 | S54: 37.8668667 | T54: 0 | U54: 72496.35264 | V54: 0 | W54: 0 | X54: 0 | Y54: 0 | Z54: 0 | AA54: 0 | AB54: 0 | AC54: 0 | AD54: 0 | AE54: 575.78 | AF54: 171.916854 | AH54: =IF('Prop DUOS'!$E$78="cents",D54/100,D54)*IF('Prop DUOS'!$E$80="day",S54*'Prop DUOS'!$D$83,S54) -> 4013.88787 | AI54: =IF('Prop DUOS'!F$78="cents",E54/100,E54)*T54 -> 0 | AJ54: =IF('Prop DUOS'!G$78="cents",F54/100,F54)*U54 -> 3588.134478 | AK54: =IF('Prop DUOS'!H$78="cents",G54/100,G54)*V54 -> 0 | AL54: =IF('Prop DUOS'!I$78="cents",H54/100,H54)*W54 -> 0 | AM54: =IF('Prop DUOS'!J$78="cents",I54/100,I54)*X54 -> 0 | AN54: =IF('Prop DUOS'!K$78="cents",J54/100,J54)*Y54 -> 0 | AO54: =IF('Prop DUOS'!L$78="cents",K54/100,K54)*Z54 -> 0 | AP54: =IF('Prop DUOS'!M$78="cents",L54/100,L54)*AA54 -> 0 | AQ54: =IF('Prop DUOS'!N$78="cents",M54/100,M54)*IF('Prop DUOS'!N$80="day",AB54*'Prop DUOS'!$D$83,IF('Prop DUOS'!N$80="month",AB54*12,AB54)) -> 0 | AR54: =IF('Prop DUOS'!O$78="cents",N54/100,N54)*IF('Prop DUOS'!O$80="day",AC54*'Prop DUOS'!$D$83,IF('Prop DUOS'!O$80="month",AC54*12,AC54)) -> 0 | AS54: =IF('Prop DUOS'!P$78="cents",O54/100,O54)*IF('Prop DUOS'!P$80="day",AD54*'Prop DUOS'!$D$83,IF('Prop DUOS'!P$80="month",AD54*12,AD54)) -> 0 | AT54: =IF('Prop DUOS'!Q$78="cents",P54/100,P54)*IF('Prop DUOS'!Q$80="day",AE54*'Prop DUOS'!$D$83,IF('Prop DUOS'!Q$80="month",AE54*12,AE54)) -> 4974.7392 | AU54: =IF('Prop DUOS'!R$78="cents",Q54/100,Q54)*IF('Prop DUOS'!R$80="day",AF54*'Prop DUOS'!$D$83,IF('Prop DUOS'!R$80="month",AF54*12,AF54)) -> 371.3404046 | AV54: 12948.10195
B55: NASN12 - Business Single Rate | D55: 106 | E55: 0 | F55: 10.1744 | G55: 10.1744 | H55: 0 | I55: 0 | J55: 0 | L55: 0 | M55: 0 | N55: 0 | O55: 0 | P55: 8.64 | Q55: 2.16 | S55: 23.6283849 | T55: 0 | U55: 236065.5962 | V55: 0 | W55: 0 | X55: 0 | Y55: 0 | Z55: 0 | AA55: 0 | AB55: 0 | AC55: 0 | AD55: 0 | AE55: 930.66 | AF55: 233.3791945 | AH55: =IF('Prop DUOS'!$E$78="cents",D55/100,D55)*IF('Prop DUOS'!$E$80="day",S55*'Prop DUOS'!$D$83,S55) -> 2504.608799 | AI55: =IF('Prop DUOS'!F$78="cents",E55/100,E55)*T55 -> 0 | AJ55: =IF('Prop DUOS'!G$78="cents",F55/100,F55)*U55 -> 24018.25802 | AK55: =IF('Prop DUOS'!H$78="cents",G55/100,G55)*V55 -> 0 | AL55: =IF('Prop DUOS'!I$78="cents",H55/100,H55)*W55 -> 0 | AM55: =IF('Prop DUOS'!J$78="cents",I55/100,I55)*X55 -> 0 | AN55: =IF('Prop DUOS'!K$78="cents",J55/100,J55)*Y55 -> 0 | AO55: =IF('Prop DUOS'!L$78="cents",K55/100,K55)*Z55 -> 0 | AP55: =IF('Prop DUOS'!M$78="cents",L55/100,L55)*AA55 -> 0 | AQ55: =IF('Prop DUOS'!N$78="cents",M55/100,M55)*IF('Prop DUOS'!N$80="day",AB55*'Prop DUOS'!$D$83,IF('Prop DUOS'!N$80="month",AB55*12,AB55)) -> 0 | AR55: =IF('Prop DUOS'!O$78="cents",N55/100,N55)*IF('Prop DUOS'!O$80="day",AC55*'Prop DUOS'!$D$83,IF('Prop DUOS'!O$80="month",AC55*12,AC55)) -> 0 | AS55: =IF('Prop DUOS'!P$78="cents",O55/100,O55)*IF('Prop DUOS'!P$80="day",AD55*'Prop DUOS'!$D$83,IF('Prop DUOS'!P$80="month",AD55*12,AD55)) -> 0 | AT55: =IF('Prop DUOS'!Q$78="cents",P55/100,P55)*IF('Prop DUOS'!Q$80="day",AE55*'Prop DUOS'!$D$83,IF('Prop DUOS'!Q$80="month",AE55*12,AE55)) -> 8040.9024 | AU55: =IF('Prop DUOS'!R$78="cents",Q55/100,Q55)*IF('Prop DUOS'!R$80="day",AF55*'Prop DUOS'!$D$83,IF('Prop DUOS'!R$80="month",AF55*12,AF55)) -> 504.0990602 | AV55: 35067.86828
AH56: =IF('Prop DUOS'!$E$78="cents",D56/100,D56)*IF('Prop DUOS'!$E$80="day",S56*'Prop DUOS'!$D$83,S56) -> 0 | AI56: =IF('Prop DUOS'!F$78="cents",E56/100,E56)*T56 -> 0 | AJ56: =IF('Prop DUOS'!G$78="cents",F56/100,F56)*U56 -> 0 | AK56: =IF('Prop DUOS'!H$78="cents",G56/100,G56)*V56 -> 0 | AL56: =IF('Prop DUOS'!I$78="cents",H56/100,H56)*W56 -> 0 | AM56: =IF('Prop DUOS'!J$78="cents",I56/100,I56)*X56 -> 0 | AN56: =IF('Prop DUOS'!K$78="cents",J56/100,J56)*Y56 -> 0 | AO56: =IF('Prop DUOS'!L$78="cents",K56/100,K56)*Z56 -> 0 | AP56: =IF('Prop DUOS'!M$78="cents",L56/100,L56)*AA56 -> 0 | AQ56: =IF('Prop DUOS'!N$78="cents",M56/100,M56)*IF('Prop DUOS'!N$80="day",AB56*'Prop DUOS'!$D$83,IF('Prop DUOS'!N$80="month",AB56*12,AB56)) -> 0 | AR56: =IF('Prop DUOS'!O$78="cents",N56/100,N56)*IF('Prop DUOS'!O$80="day",AC56*'Prop DUOS'!$D$83,IF('Prop DUOS'!O$80="month",AC56*12,AC56)) -> 0 | AS56: =IF('Prop DUOS'!P$78="cents",O56/100,O56)*IF('Prop DUOS'!P$80="day",AD56*'Prop DUOS'!$D$83,IF('Prop DUOS'!P$80="month",AD56*12,AD56)) -> 0 | AT56: =IF('Prop DUOS'!Q$78="cents",P56/100,P56)*IF('Prop DUOS'!Q$80="day",AE56*'Prop DUOS'!$D$83,IF('Prop DUOS'!Q$80="month",AE56*12,AE56)) -> 0 | AU56: =IF('Prop DUOS'!R$78="cents",Q56/100,Q56)*IF('Prop DUOS'!R$80="day",AF56*'Prop DUOS'!$D$83,IF('Prop DUOS'!R$80="month",AF56*12,AF56)) -> 0 | AV56: 0
AH57: =IF('Prop DUOS'!$E$78="cents",D57/100,D57)*IF('Prop DUOS'!$E$80="day",S57*'Prop DUOS'!$D$83,S57) -> 0 | AI57: =IF('Prop DUOS'!F$78="cents",E57/100,E57)*T57 -> 0 | AJ57: =IF('Prop DUOS'!G$78="cents",F57/100,F57)*U57 -> 0 | AK57: =IF('Prop DUOS'!H$78="cents",G57/100,G57)*V57 -> 0 | AL57: =IF('Prop DUOS'!I$78="cents",H57/100,H57)*W57 -> 0 | AM57: =IF('Prop DUOS'!J$78="cents",I57/100,I57)*X57 -> 0 | AN57: =IF('Prop DUOS'!K$78="cents",J57/100,J57)*Y57 -> 0 | AO57: =IF('Prop DUOS'!L$78="cents",K57/100,K57)*Z57 -> 0 | AP57: =IF('Prop DUOS'!M$78="cents",L57/100,L57)*AA57 -> 0 | AQ57: =IF('Prop DUOS'!N$78="cents",M57/100,M57)*IF('Prop DUOS'!N$80="day",AB57*'Prop DUOS'!$D$83,IF('Prop DUOS'!N$80="month",AB57*12,AB57)) -> 0 | AR57: =IF('Prop DUOS'!O$78="cents",N57/100,N57)*IF('Prop DUOS'!O$80="day",AC57*'Prop DUOS'!$D$83,IF('Prop DUOS'!O$80="month",AC57*12,AC57)) -> 0 | AS57: =IF('Prop DUOS'!P$78="cents",O57/100,O57)*IF('Prop DUOS'!P$80="day",AD57*'Prop DUOS'!$D$83,IF('Prop DUOS'!P$80="month",AD57*12,AD57)) -> 0 | AT57: =IF('Prop DUOS'!Q$78="cents",P57/100,P57)*IF('Prop DUOS'!Q$80="day",AE57*'Prop DUOS'!$D$83,IF('Prop DUOS'!Q$80="month",AE57*12,AE57)) -> 0 | AU57: =IF('Prop DUOS'!R$78="cents",Q57/100,Q57)*IF('Prop DUOS'!R$80="day",AF57*'Prop DUOS'!$D$83,IF('Prop DUOS'!R$80="month",AF57*12,AF57)) -> 0 | AV57: =SUM(AH57:AU57) -> 0
AH58: =IF('Prop DUOS'!$E$78="cents",D58/100,D58)*IF('Prop DUOS'!$E$80="day",S58*'Prop DUOS'!$D$83,S58) -> 0 | AI58: =IF('Prop DUOS'!F$78="cents",E58/100,E58)*T58 -> 0 | AJ58: =IF('Prop DUOS'!G$78="cents",F58/100,F58)*U58 -> 0 | AK58: =IF('Prop DUOS'!H$78="cents",G58/100,G58)*V58 -> 0 | AL58: =IF('Prop DUOS'!I$78="cents",H58/100,H58)*W58 -> 0 | AM58: =IF('Prop DUOS'!J$78="cents",I58/100,I58)*X58 -> 0 | AN58: =IF('Prop DUOS'!K$78="cents",J58/100,J58)*Y58 -> 0 | AO58: =IF('Prop DUOS'!L$78="cents",K58/100,K58)*Z58 -> 0 | AP58: =IF('Prop DUOS'!M$78="cents",L58/100,L58)*AA58 -> 0 | AQ58: =IF('Prop DUOS'!N$78="cents",M58/100,M58)*IF('Prop DUOS'!N$80="day",AB58*'Prop DUOS'!$D$83,IF('Prop DUOS'!N$80="month",AB58*12,AB58)) -> 0 | AR58: =IF('Prop DUOS'!O$78="cents",N58/100,N58)*IF('Prop DUOS'!O$80="day",AC58*'Prop DUOS'!$D$83,IF('Prop DUOS'!O$80="month",AC58*12,AC58)) -> 0 | AS58: =IF('Prop DUOS'!P$78="cents",O58/100,O58)*IF('Prop DUOS'!P$80="day",AD58*'Prop DUOS'!$D$83,IF('Prop DUOS'!P$80="month",AD58*12,AD58)) -> 0 | AT58: =IF('Prop DUOS'!Q$78="cents",P58/100,P58)*IF('Prop DUOS'!Q$80="day",AE58*'Prop DUOS'!$D$83,IF('Prop DUOS'!Q$80="month",AE58*12,AE58)) -> 0 | AU58: =IF('Prop DUOS'!R$78="cents",Q58/100,Q58)*IF('Prop DUOS'!R$80="day",AF58*'Prop DUOS'!$D$83,IF('Prop DUOS'!R$80="month",AF58*12,AF58)) -> 0 | AV58: 0
AH59: =IF('Prop DUOS'!$E$78="cents",D59/100,D59)*IF('Prop DUOS'!$E$80="day",S59*'Prop DUOS'!$D$83,S59) -> 0 | AI59: =IF('Prop DUOS'!F$78="cents",E59/100,E59)*T59 -> 0 | AJ59: =IF('Prop DUOS'!G$78="cents",F59/100,F59)*U59 -> 0 | AK59: =IF('Prop DUOS'!H$78="cents",G59/100,G59)*V59 -> 0 | AL59: =IF('Prop DUOS'!I$78="cents",H59/100,H59)*W59 -> 0 | AM59: =IF('Prop DUOS'!J$78="cents",I59/100,I59)*X59 -> 0 | AN59: =IF('Prop DUOS'!K$78="cents",J59/100,J59)*Y59 -> 0 | AO59: =IF('Prop DUOS'!L$78="cents",K59/100,K59)*Z59 -> 0 | AP59: =IF('Prop DUOS'!M$78="cents",L59/100,L59)*AA59 -> 0 | AQ59: =IF('Prop DUOS'!N$78="cents",M59/100,M59)*IF('Prop DUOS'!N$80="day",AB59*'Prop DUOS'!$D$83,IF('Prop DUOS'!N$80="month",AB59*12,AB59)) -> 0 | AR59: =IF('Prop DUOS'!O$78="cents",N59/100,N59)*IF('Prop DUOS'!O$80="day",AC59*'Prop DUOS'!$D$83,IF('Prop DUOS'!O$80="month",AC59*12,AC59)) -> 0 | AS59: =IF('Prop DUOS'!P$78="cents",O59/100,O59)*IF('Prop DUOS'!P$80="day",AD59*'Prop DUOS'!$D$83,IF('Prop DUOS'!P$80="month",AD59*12,AD59)) -> 0 | AT59: =IF('Prop DUOS'!Q$78="cents",P59/100,P59)*IF('Prop DUOS'!Q$80="day",AE59*'Prop DUOS'!$D$83,IF('Prop DUOS'!Q$80="month",AE59*12,AE59)) -> 0 | AU59: =IF('Prop DUOS'!R$78="cents",Q59/100,Q59)*IF('Prop DUOS'!R$80="day",AF59*'Prop DUOS'!$D$83,IF('Prop DUOS'!R$80="month",AF59*12,AF59)) -> 0 | AV59: 0
AH60: =IF('Prop DUOS'!$E$78="cents",D60/100,D60)*IF('Prop DUOS'!$E$80="day",S60*'Prop DUOS'!$D$83,S60) -> 0 | AI60: =IF('Prop DUOS'!F$78="cents",E60/100,E60)*T60 -> 0 | AJ60: =IF('Prop DUOS'!G$78="cents",F60/100,F60)*U60 -> 0 | AK60: =IF('Prop DUOS'!H$78="cents",G60/100,G60)*V60 -> 0 | AL60: =IF('Prop DUOS'!I$78="cents",H60/100,H60)*W60 -> 0 | AM60: =IF('Prop DUOS'!J$78="cents",I60/100,I60)*X60 -> 0 | AN60: =IF('Prop DUOS'!K$78="cents",J60/100,J60)*Y60 -> 0 | AO60: =IF('Prop DUOS'!L$78="cents",K60/100,K60)*Z60 -> 0 | AP60: =IF('Prop DUOS'!M$78="cents",L60/100,L60)*AA60 -> 0 | AQ60: =IF('Prop DUOS'!N$78="cents",M60/100,M60)*IF('Prop DUOS'!N$80="day",AB60*'Prop DUOS'!$D$83,IF('Prop DUOS'!N$80="month",AB60*12,AB60)) -> 0 | AR60: =IF('Prop DUOS'!O$78="cents",N60/100,N60)*IF('Prop DUOS'!O$80="day",AC60*'Prop DUOS'!$D$83,IF('Prop DUOS'!O$80="month",AC60*12,AC60)) -> 0 | AS60: =IF('Prop DUOS'!P$78="cents",O60/100,O60)*IF('Prop DUOS'!P$80="day",AD60*'Prop DUOS'!$D$83,IF('Prop DUOS'!P$80="month",AD60*12,AD60)) -> 0 | AT60: =IF('Prop DUOS'!Q$78="cents",P60/100,P60)*IF('Prop DUOS'!Q$80="day",AE60*'Prop DUOS'!$D$83,IF('Prop DUOS'!Q$80="month",AE60*12,AE60)) -> 0 | AU60: =IF('Prop DUOS'!R$78="cents",Q60/100,Q60)*IF('Prop DUOS'!R$80="day",AF60*'Prop DUOS'!$D$83,IF('Prop DUOS'!R$80="month",AF60*12,AF60)) -> 0 | AV60: 0
AH61: =IF('Prop DUOS'!$E$78="cents",D61/100,D61)*IF('Prop DUOS'!$E$80="day",S61*'Prop DUOS'!$D$83,S61) -> 0 | AI61: =IF('Prop DUOS'!F$78="cents",E61/100,E61)*T61 -> 0 | AJ61: =IF('Prop DUOS'!G$78="cents",F61/100,F61)*U61 -> 0 | AK61: =IF('Prop DUOS'!H$78="cents",G61/100,G61)*V61 -> 0 | AL61: =IF('Prop DUOS'!I$78="cents",H61/100,H61)*W61 -> 0 | AM61: =IF('Prop DUOS'!J$78="cents",I61/100,I61)*X61 -> 0 | AN61: =IF('Prop DUOS'!K$78="cents",J61/100,J61)*Y61 -> 0 | AO61: =IF('Prop DUOS'!L$78="cents",K61/100,K61)*Z61 -> 0 | AP61: =IF('Prop DUOS'!M$78="cents",L61/100,L61)*AA61 -> 0 | AQ61: =IF('Prop DUOS'!N$78="cents",M61/100,M61)*IF('Prop DUOS'!N$80="day",AB61*'Prop DUOS'!$D$83,IF('Prop DUOS'!N$80="month",AB61*12,AB61)) -> 0 | AR61: =IF('Prop DUOS'!O$78="cents",N61/100,N61)*IF('Prop DUOS'!O$80="day",AC61*'Prop DUOS'!$D$83,IF('Prop DUOS'!O$80="month",AC61*12,AC61)) -> 0 | AS61: =IF('Prop DUOS'!P$78="cents",O61/100,O61)*IF('Prop DUOS'!P$80="day",AD61*'Prop DUOS'!$D$83,IF('Prop DUOS'!P$80="month",AD61*12,AD61)) -> 0 | AT61: =IF('Prop DUOS'!Q$78="cents",P61/100,P61)*IF('Prop DUOS'!Q$80="day",AE61*'Prop DUOS'!$D$83,IF('Prop DUOS'!Q$80="month",AE61*12,AE61)) -> 0 | AU61: =IF('Prop DUOS'!R$78="cents",Q61/100,Q61)*IF('Prop DUOS'!R$80="day",AF61*'Prop DUOS'!$D$83,IF('Prop DUOS'!R$80="month",AF61*12,AF61)) -> 0 | AV61: 0
AH62: =IF('Prop DUOS'!$E$78="cents",D62/100,D62)*IF('Prop DUOS'!$E$80="day",S62*'Prop DUOS'!$D$83,S62) -> 0 | AI62: =IF('Prop DUOS'!F$78="cents",E62/100,E62)*T62 -> 0 | AJ62: =IF('Prop DUOS'!G$78="cents",F62/100,F62)*U62 -> 0 | AK62: =IF('Prop DUOS'!H$78="cents",G62/100,G62)*V62 -> 0 | AL62: =IF('Prop DUOS'!I$78="cents",H62/100,H62)*W62 -> 0 | AM62: =IF('Prop DUOS'!J$78="cents",I62/100,I62)*X62 -> 0 | AN62: =IF('Prop DUOS'!K$78="cents",J62/100,J62)*Y62 -> 0 | AO62: =IF('Prop DUOS'!L$78="cents",K62/100,K62)*Z62 -> 0 | AP62: =IF('Prop DUOS'!M$78="cents",L62/100,L62)*AA62 -> 0 | AQ62: =IF('Prop DUOS'!N$78="cents",M62/100,M62)*IF('Prop DUOS'!N$80="day",AB62*'Prop DUOS'!$D$83,IF('Prop DUOS'!N$80="month",AB62*12,AB62)) -> 0 | AR62: =IF('Prop DUOS'!O$78="cents",N62/100,N62)*IF('Prop DUOS'!O$80="day",AC62*'Prop DUOS'!$D$83,IF('Prop DUOS'!O$80="month",AC62*12,AC62)) -> 0 | AS62: =IF('Prop DUOS'!P$78="cents",O62/100,O62)*IF('Prop DUOS'!P$80="day",AD62*'Prop DUOS'!$D$83,IF('Prop DUOS'!P$80="month",AD62*12,AD62)) -> 0 | AT62: =IF('Prop DUOS'!Q$78="cents",P62/100,P62)*IF('Prop DUOS'!Q$80="day",AE62*'Prop DUOS'!$D$83,IF('Prop DUOS'!Q$80="month",AE62*12,AE62)) -> 0 | AU62: =IF('Prop DUOS'!R$78="cents",Q62/100,Q62)*IF('Prop DUOS'!R$80="day",AF62*'Prop DUOS'!$D$83,IF('Prop DUOS'!R$80="month",AF62*12,AF62)) -> 0 | AV62: 0
AH63: =IF('Prop DUOS'!$E$78="cents",D63/100,D63)*IF('Prop DUOS'!$E$80="day",S63*'Prop DUOS'!$D$83,S63) -> 0 | AI63: =IF('Prop DUOS'!F$78="cents",E63/100,E63)*T63 -> 0 | AJ63: =IF('Prop DUOS'!G$78="cents",F63/100,F63)*U63 -> 0 | AK63: =IF('Prop DUOS'!H$78="cents",G63/100,G63)*V63 -> 0 | AL63: =IF('Prop DUOS'!I$78="cents",H63/100,H63)*W63 -> 0 | AM63: =IF('Prop DUOS'!J$78="cents",I63/100,I63)*X63 -> 0 | AN63: =IF('Prop DUOS'!K$78="cents",J63/100,J63)*Y63 -> 0 | AO63: =IF('Prop DUOS'!L$78="cents",K63/100,K63)*Z63 -> 0 | AP63: =IF('Prop DUOS'!M$78="cents",L63/100,L63)*AA63 -> 0 | AQ63: =IF('Prop DUOS'!N$78="cents",M63/100,M63)*IF('Prop DUOS'!N$80="day",AB63*'Prop DUOS'!$D$83,IF('Prop DUOS'!N$80="month",AB63*12,AB63)) -> 0 | AR63: =IF('Prop DUOS'!O$78="cents",N63/100,N63)*IF('Prop DUOS'!O$80="day",AC63*'Prop DUOS'!$D$83,IF('Prop DUOS'!O$80="month",AC63*12,AC63)) -> 0 | AS63: =IF('Prop DUOS'!P$78="cents",O63/100,O63)*IF('Prop DUOS'!P$80="day",AD63*'Prop DUOS'!$D$83,IF('Prop DUOS'!P$80="month",AD63*12,AD63)) -> 0 | AT63: =IF('Prop DUOS'!Q$78="cents",P63/100,P63)*IF('Prop DUOS'!Q$80="day",AE63*'Prop DUOS'!$D$83,IF('Prop DUOS'!Q$80="month",AE63*12,AE63)) -> 0 | AU63: =IF('Prop DUOS'!R$78="cents",Q63/100,Q63)*IF('Prop DUOS'!R$80="day",AF63*'Prop DUOS'!$D$83,IF('Prop DUOS'!R$80="month",AF63*12,AF63)) -> 0 | AV63: 0
AH64: =IF('Prop DUOS'!$E$78="cents",D64/100,D64)*IF('Prop DUOS'!$E$80="day",S64*'Prop DUOS'!$D$83,S64) -> 0 | AI64: =IF('Prop DUOS'!F$78="cents",E64/100,E64)*T64 -> 0 | AJ64: =IF('Prop DUOS'!G$78="cents",F64/100,F64)*U64 -> 0 | AK64: =IF('Prop DUOS'!H$78="cents",G64/100,G64)*V64 -> 0 | AL64: =IF('Prop DUOS'!I$78="cents",H64/100,H64)*W64 -> 0 | AM64: =IF('Prop DUOS'!J$78="cents",I64/100,I64)*X64 -> 0 | AN64: =IF('Prop DUOS'!K$78="cents",J64/100,J64)*Y64 -> 0 | AO64: =IF('Prop DUOS'!L$78="cents",K64/100,K64)*Z64 -> 0 | AP64: =IF('Prop DUOS'!M$78="cents",L64/100,L64)*AA64 -> 0 | AQ64: =IF('Prop DUOS'!N$78="cents",M64/100,M64)*IF('Prop DUOS'!N$80="day",AB64*'Prop DUOS'!$D$83,IF('Prop DUOS'!N$80="month",AB64*12,AB64)) -> 0 | AR64: =IF('Prop DUOS'!O$78="cents",N64/100,N64)*IF('Prop DUOS'!O$80="day",AC64*'Prop DUOS'!$D$83,IF('Prop DUOS'!O$80="month",AC64*12,AC64)) -> 0 | AS64: =IF('Prop DUOS'!P$78="cents",O64/100,O64)*IF('Prop DUOS'!P$80="day",AD64*'Prop DUOS'!$D$83,IF('Prop DUOS'!P$80="month",AD64*12,AD64)) -> 0 | AT64: =IF('Prop DUOS'!Q$78="cents",P64/100,P64)*IF('Prop DUOS'!Q$80="day",AE64*'Prop DUOS'!$D$83,IF('Prop DUOS'!Q$80="month",AE64*12,AE64)) -> 0 | AU64: =IF('Prop DUOS'!R$78="cents",Q64/100,Q64)*IF('Prop DUOS'!R$80="day",AF64*'Prop DUOS'!$D$83,IF('Prop DUOS'!R$80="month",AF64*12,AF64)) -> 0 | AV64: 0
AH65: =IF('Prop DUOS'!$E$78="cents",D65/100,D65)*IF('Prop DUOS'!$E$80="day",S65*'Prop DUOS'!$D$83,S65) -> 0 | AI65: =IF('Prop DUOS'!F$78="cents",E65/100,E65)*T65 -> 0 | AJ65: =IF('Prop DUOS'!G$78="cents",F65/100,F65)*U65 -> 0 | AK65: =IF('Prop DUOS'!H$78="cents",G65/100,G65)*V65 -> 0 | AL65: =IF('Prop DUOS'!I$78="cents",H65/100,H65)*W65 -> 0 | AM65: =IF('Prop DUOS'!J$78="cents",I65/100,I65)*X65 -> 0 | AN65: =IF('Prop DUOS'!K$78="cents",J65/100,J65)*Y65 -> 0 | AO65: =IF('Prop DUOS'!L$78="cents",K65/100,K65)*Z65 -> 0 | AP65: =IF('Prop DUOS'!M$78="cents",L65/100,L65)*AA65 -> 0 | AQ65: =IF('Prop DUOS'!N$78="cents",M65/100,M65)*IF('Prop DUOS'!N$80="day",AB65*'Prop DUOS'!$D$83,IF('Prop DUOS'!N$80="month",AB65*12,AB65)) -> 0 | AR65: =IF('Prop DUOS'!O$78="cents",N65/100,N65)*IF('Prop DUOS'!O$80="day",AC65*'Prop DUOS'!$D$83,IF('Prop DUOS'!O$80="month",AC65*12,AC65)) -> 0 | AS65: =IF('Prop DUOS'!P$78="cents",O65/100,O65)*IF('Prop DUOS'!P$80="day",AD65*'Prop DUOS'!$D$83,IF('Prop DUOS'!P$80="month",AD65*12,AD65)) -> 0 | AT65: =IF('Prop DUOS'!Q$78="cents",P65/100,P65)*IF('Prop DUOS'!Q$80="day",AE65*'Prop DUOS'!$D$83,IF('Prop DUOS'!Q$80="month",AE65*12,AE65)) -> 0 | AU65: =IF('Prop DUOS'!R$78="cents",Q65/100,Q65)*IF('Prop DUOS'!R$80="day",AF65*'Prop DUOS'!$D$83,IF('Prop DUOS'!R$80="month",AF65*12,AF65)) -> 0 | AV65: 0
AH66: =IF('Prop DUOS'!$E$78="cents",D66/100,D66)*IF('Prop DUOS'!$E$80="day",S66*'Prop DUOS'!$D$83,S66) -> 0 | AI66: =IF('Prop DUOS'!F$78="cents",E66/100,E66)*T66 -> 0 | AJ66: =IF('Prop DUOS'!G$78="cents",F66/100,F66)*U66 -> 0 | AK66: =IF('Prop DUOS'!H$78="cents",G66/100,G66)*V66 -> 0 | AL66: =IF('Prop DUOS'!I$78="cents",H66/100,H66)*W66 -> 0 | AM66: =IF('Prop DUOS'!J$78="cents",I66/100,I66)*X66 -> 0 | AN66: =IF('Prop DUOS'!K$78="cents",J66/100,J66)*Y66 -> 0 | AO66: =IF('Prop DUOS'!L$78="cents",K66/100,K66)*Z66 -> 0 | AP66: =IF('Prop DUOS'!M$78="cents",L66/100,L66)*AA66 -> 0 | AQ66: =IF('Prop DUOS'!N$78="cents",M66/100,M66)*IF('Prop DUOS'!N$80="day",AB66*'Prop DUOS'!$D$83,IF('Prop DUOS'!N$80="month",AB66*12,AB66)) -> 0 | AR66: =IF('Prop DUOS'!O$78="cents",N66/100,N66)*IF('Prop DUOS'!O$80="day",AC66*'Prop DUOS'!$D$83,IF('Prop DUOS'!O$80="month",AC66*12,AC66)) -> 0 | AS66: =IF('Prop DUOS'!P$78="cents",O66/100,O66)*IF('Prop DUOS'!P$80="day",AD66*'Prop DUOS'!$D$83,IF('Prop DUOS'!P$80="month",AD66*12,AD66)) -> 0 | AT66: =IF('Prop DUOS'!Q$78="cents",P66/100,P66)*IF('Prop DUOS'!Q$80="day",AE66*'Prop DUOS'!$D$83,IF('Prop DUOS'!Q$80="month",AE66*12,AE66)) -> 0 | AU66: =IF('Prop DUOS'!R$78="cents",Q66/100,Q66)*IF('Prop DUOS'!R$80="day",AF66*'Prop DUOS'!$D$83,IF('Prop DUOS'!R$80="month",AF66*12,AF66)) -> 0 | AV66: 0
AH67: =IF('Prop DUOS'!$E$78="cents",D67/100,D67)*IF('Prop DUOS'!$E$80="day",S67*'Prop DUOS'!$D$83,S67) -> 0 | AI67: =IF('Prop DUOS'!F$78="cents",E67/100,E67)*T67 -> 0 | AJ67: =IF('Prop DUOS'!G$78="cents",F67/100,F67)*U67 -> 0 | AK67: =IF('Prop DUOS'!H$78="cents",G67/100,G67)*V67 -> 0 | AL67: =IF('Prop DUOS'!I$78="cents",H67/100,H67)*W67 -> 0 | AM67: =IF('Prop DUOS'!J$78="cents",I67/100,I67)*X67 -> 0 | AN67: =IF('Prop DUOS'!K$78="cents",J67/100,J67)*Y67 -> 0 | AO67: =IF('Prop DUOS'!L$78="cents",K67/100,K67)*Z67 -> 0 | AP67: =IF('Prop DUOS'!M$78="cents",L67/100,L67)*AA67 -> 0 | AQ67: =IF('Prop DUOS'!N$78="cents",M67/100,M67)*IF('Prop DUOS'!N$80="day",AB67*'Prop DUOS'!$D$83,IF('Prop DUOS'!N$80="month",AB67*12,AB67)) -> 0 | AR67: =IF('Prop DUOS'!O$78="cents",N67/100,N67)*IF('Prop DUOS'!O$80="day",AC67*'Prop DUOS'!$D$83,IF('Prop DUOS'!O$80="month",AC67*12,AC67)) -> 0 | AS67: =IF('Prop DUOS'!P$78="cents",O67/100,O67)*IF('Prop DUOS'!P$80="day",AD67*'Prop DUOS'!$D$83,IF('Prop DUOS'!P$80="month",AD67*12,AD67)) -> 0 | AT67: =IF('Prop DUOS'!Q$78="cents",P67/100,P67)*IF('Prop DUOS'!Q$80="day",AE67*'Prop DUOS'!$D$83,IF('Prop DUOS'!Q$80="month",AE67*12,AE67)) -> 0 | AU67: =IF('Prop DUOS'!R$78="cents",Q67/100,Q67)*IF('Prop DUOS'!R$80="day",AF67*'Prop DUOS'!$D$83,IF('Prop DUOS'!R$80="month",AF67*12,AF67)) -> 0 | AV67: 0
AH68: =IF('Prop DUOS'!$E$78="cents",D68/100,D68)*IF('Prop DUOS'!$E$80="day",S68*'Prop DUOS'!$D$83,S68) -> 0 | AI68: =IF('Prop DUOS'!F$78="cents",E68/100,E68)*T68 -> 0 | AJ68: =IF('Prop DUOS'!G$78="cents",F68/100,F68)*U68 -> 0 | AK68: =IF('Prop DUOS'!H$78="cents",G68/100,G68)*V68 -> 0 | AL68: =IF('Prop DUOS'!I$78="cents",H68/100,H68)*W68 -> 0 | AM68: =IF('Prop DUOS'!J$78="cents",I68/100,I68)*X68 -> 0 | AN68: =IF('Prop DUOS'!K$78="cents",J68/100,J68)*Y68 -> 0 | AO68: =IF('Prop DUOS'!L$78="cents",K68/100,K68)*Z68 -> 0 | AP68: =IF('Prop DUOS'!M$78="cents",L68/100,L68)*AA68 -> 0 | AQ68: =IF('Prop DUOS'!N$78="cents",M68/100,M68)*IF('Prop DUOS'!N$80="day",AB68*'Prop DUOS'!$D$83,IF('Prop DUOS'!N$80="month",AB68*12,AB68)) -> 0 | AR68: =IF('Prop DUOS'!O$78="cents",N68/100,N68)*IF('Prop DUOS'!O$80="day",AC68*'Prop DUOS'!$D$83,IF('Prop DUOS'!O$80="month",AC68*12,AC68)) -> 0 | AS68: =IF('Prop DUOS'!P$78="cents",O68/100,O68)*IF('Prop DUOS'!P$80="day",AD68*'Prop DUOS'!$D$83,IF('Prop DUOS'!P$80="month",AD68*12,AD68)) -> 0 | AT68: =IF('Prop DUOS'!Q$78="cents",P68/100,P68)*IF('Prop DUOS'!Q$80="day",AE68*'Prop DUOS'!$D$83,IF('Prop DUOS'!Q$80="month",AE68*12,AE68)) -> 0 | AU68: =IF('Prop DUOS'!R$78="cents",Q68/100,Q68)*IF('Prop DUOS'!R$80="day",AF68*'Prop DUOS'!$D$83,IF('Prop DUOS'!R$80="month",AF68*12,AF68)) -> 0 | AV68: 0
